Workbook

Sheet Report - ALL (DASHBOARD)
A1: Dashboard | B1: Select Parameter: | F1: Select Statistic: | I1: Select Seasonal Period: | L1: Do you want to convert CFS values to TAF/Mon? | W1: 29
W2: 1
W3: 12
L4: Notes | W4: FALSE
L5: - HEC5Q/RecTemp flows and storages may not by consistent CalSim II. Our standard for flows and storages is to use CalSim II output.
L6: - year type sorting is done by calendar year
L7: - year type sorting is provided for 60-20-20 index as well as 40-30-30 index
L8: - format consistent with appendix reports
L9: - check out the new spinners!
B12: =CONCATENATE('Report Data'!$P$7," / seasonal statistics (",$W$1,"-",$W$2,"-",$W$3,"-",IF(NOT($W$4),1,2),"a):") -> Sacramento River Below Clear Creek Temperature / seasonal statistics (29-1-12-1a):
C16: ='Report Data'!P6 -> September
C17: ='Report Data'!P7 -> Sacramento River Below Clear Creek Temperature
C18: ='Report Data'!P9 -> (BLW CLEAR CREEK/TEMP)
C19: ='Report Data'!P8 -> Averages
C20: ='Report Data'!P11 -> TEMPERATURE (deg F) | F20: =CONCATENATE("Difference from ",'Report Data'!Q13) -> Difference from No Action Alternative 011221 | G20: ="Difference from Previous" -> Difference from Previous
C24: ='Report Data'!O14 -> No Action Alternative 011221 | E24: ='Report Data'!P14 -> 52.22001774
C25: ='Report Data'!O15 -> Alternative 1B 011221 | E25: ='Report Data'!P15 -> 52.12418124 | F25: ='Report Data'!Q15 -> -0.09583649984 | G25: ='Report Data'!R15 -> -0.09583649984
C26: ='Report Data'!O16 -> Alternative 3 020121 | E26: ='Report Data'!P16 -> 52.06187858 | F26: ='Report Data'!Q16 -> -0.158139159 | G26: ='Report Data'!R16 -> -0.0623026592
C27: ='Report Data'!O17 -> Alternative 3BR 032321 | E27: ='Report Data'!P17 -> 52.05143598 | F27: ='Report Data'!Q17 -> -0.1685817532 | G27: ='Report Data'!R17 -> -0.0104425942
C28: ='Report Data'!O18 -> Alternative 3BR 120121 rev9b | E28: ='Report Data'!P18 -> 51.99486291 | F28: ='Report Data'!Q18 -> -0.2251548302 | G28: ='Report Data'!R18 -> -0.1293183303
B59: =CONCATENATE('Report Data'!$P$7," / monthly statistics (",$W$1,"-",$W$2,"-",$W$3,"-",IF(NOT($W$4),1,2),"b):") -> Sacramento River Below Clear Creek Temperature / monthly statistics (29-1-12-1b):
B87: =CONCATENATE('Report Data'!$P$7," / time series (",$W$1,"-",$W$2,"-",$W$3,"-",IF(NOT($W$4),1,2),"c):") -> Sacramento River Below Clear Creek Temperature / time series (29-1-12-1c):

Sheet Chart - Prob Exc

Sheet Chart - Pattern

Sheet Report Data
A2: Information, Tables and Calculations for Reports
A4: Table of Selected Values for Monthly Chart: | O4: Trend Evaluation:
A6: Title: | B6: ='Compile Data'!$B$5 -> Sacramento River Below Clear Creek Temperature | O6: Title: | P6: =INDEX(Other!$B$9:$B$31,'Report - ALL (DASHBOARD)'!$W$3) -> September
B7: =INDEX(Other!$C$9:$C$33,'Report - ALL (DASHBOARD)'!$W$2) -> Averages | P7: ='Compile Data'!$B$5 -> Sacramento River Below Clear Creek Temperature
B8: =CONCATENATE("(",'Compile Data'!$B$6,"/",'Compile Data'!$B$7,")") -> (BLW CLEAR CREEK/TEMP) | P8: =CONCATENATE(INDEX(Other!$C$9:$C$33,'Report - ALL (DASHBOARD)'!$W$2)," ",IF('Report - ALL (DASHBOARD)'!$W$2>4,IF(AND('Compile Data'!$B$10="TAF",'Compile Data'!$B$8="PER-AVER"),"Totals","Averages"),"")) -> Averages
P9: =CONCATENATE("(",'Compile Data'!$B$6,"/",'Compile Data'!$B$7,")") -> (BLW CLEAR CREEK/TEMP)
A11: Y-axis: | B11: =IF('Compile Data'!$B$10="CFS","Flow (CFS)",IF('Compile Data'!$B$10="TAF","Volume (TAF)",IF('Compile Data'!$B$10="KM","POSITION (KM)",IF(OR('Compile Data'!$B$10="DEGF",'Compile Data'!$B$10="DEG-F"),"TEMPERATURE (deg F)","")))) -> TEMPERATURE (deg F) | P11: =IF('Compile Data'!$B$10="CFS","Flow (CFS)",IF('Compile Data'!$B$10="TAF","Volume (TAF)",IF('Compile Data'!$B$10="KM","POSITION (KM)",IF(OR('Compile Data'!$B$10="DEGF",'Compile Data'!$B$10="DEG-F"),"TEMPERATURE (deg F)","")))) -> TEMPERATURE (deg F)
Q12: Diff from | R12: Diff from
B13: OCT | C13: NOV | D13: DEC | E13: JAN | F13: FEB | G13: MAR | H13: APR | I13: MAY | J13: JUN | K13: JUL | L13: AUG | M13: SEP | P13: Value | Q13: =$O$14 -> No Action Alternative 011221 | R13: Previous
A14: ='Compile Data'!$B$1 -> No Action Alternative 011221 | B14: =INDEX('Compile Data'!J$95:J$120,'Report - ALL (DASHBOARD)'!$W$2) -> 52.81215192 | C14: =INDEX('Compile Data'!K$95:K$120,'Report - ALL (DASHBOARD)'!$W$2) -> 53.81213162 | D14: =INDEX('Compile Data'!L$95:L$120,'Report - ALL (DASHBOARD)'!$W$2) -> 50.99033473 | E14: =INDEX('Compile Data'!M$95:M$120,'Report - ALL (DASHBOARD)'!$W$2) -> 47.40117161 | F14: =INDEX('Compile Data'!N$95:N$120,'Report - ALL (DASHBOARD)'!$W$2) -> 46.53232579 | G14: =INDEX('Compile Data'!O$95:O$120,'Report - ALL (DASHBOARD)'!$W$2) -> 48.45969549 | H14: =INDEX('Compile Data'!P$95:P$120,'Report - ALL (DASHBOARD)'!$W$2) -> 52.19284248 | I14: =INDEX('Compile Data'!Q$95:Q$120,'Report - ALL (DASHBOARD)'!$W$2) -> 52.55493048 | J14: =INDEX('Compile Data'!R$95:R$120,'Report - ALL (DASHBOARD)'!$W$2) -> 52.39834339 | K14: =INDEX('Compile Data'!S$95:S$120,'Report - ALL (DASHBOARD)'!$W$2) -> 51.59267328 | L14: =INDEX('Compile Data'!T$95:T$120,'Report - ALL (DASHBOARD)'!$W$2) -> 52.13389169 | M14: =INDEX('Compile Data'!U$95:U$120,'Report - ALL (DASHBOARD)'!$W$2) -> 52.22001774 | O14: ='Compile Data'!$B$1 -> No Action Alternative 011221 | P14: =INDEX('Compile Data'!$J$95:$AE$120,'Report - ALL (DASHBOARD)'!$W$2,'Report - ALL (DASHBOARD)'!$W$3) -> 52.22001774
A15: ='Compile Data'!$C$1 -> Alternative 1B 011221 | B15: =INDEX('Compile Data'!AH$95:AH$120,'Report - ALL (DASHBOARD)'!$W$2) -> 52.79793191 | C15: =INDEX('Compile Data'!AI$95:AI$120,'Report - ALL (DASHBOARD)'!$W$2) -> 53.82007086 | D15: =INDEX('Compile Data'!AJ$95:AJ$120,'Report - ALL (DASHBOARD)'!$W$2) -> 50.99209303 | E15: =INDEX('Compile Data'!AK$95:AK$120,'Report - ALL (DASHBOARD)'!$W$2) -> 47.39995054 | F15: =INDEX('Compile Data'!AL$95:AL$120,'Report - ALL (DASHBOARD)'!$W$2) -> 46.53144357 | G15: =INDEX('Compile Data'!AM$95:AM$120,'Report - ALL (DASHBOARD)'!$W$2) -> 48.46798827 | H15: =INDEX('Compile Data'!AN$95:AN$120,'Report - ALL (DASHBOARD)'!$W$2) -> 52.22229371 | I15: =INDEX('Compile Data'!AO$95:AO$120,'Report - ALL (DASHBOARD)'!$W$2) -> 52.64440951 | J15: =INDEX('Compile Data'!AP$95:AP$120,'Report - ALL (DASHBOARD)'!$W$2) -> 52.47901037 | K15: =INDEX('Compile Data'!AQ$95:AQ$120,'Report - ALL (DASHBOARD)'!$W$2) -> 51.58299488 | L15: =INDEX('Compile Data'!AR$95:AR$120,'Report - ALL (DASHBOARD)'!$W$2) -> 52.09411384 | M15: =INDEX('Compile Data'!AS$95:AS$120,'Report - ALL (DASHBOARD)'!$W$2) -> 52.12418124 | O15: ='Compile Data'!$C$1 -> Alternative 1B 011221 | P15: =INDEX('Compile Data'!$AH$95:$BC$120,'Report - ALL (DASHBOARD)'!$W$2,'Report - ALL (DASHBOARD)'!$W$3) -> 52.12418124 | Q15: =$P15-$P$14 -> -0.09583649984 | R15: =$P15-$P14 -> -0.09583649984
A16: ='Compile Data'!$D$1 -> Alternative 3 020121 | B16: =INDEX('Compile Data'!BF$95:BF$120,'Report - ALL (DASHBOARD)'!$W$2) -> 52.73069523 | C16: =INDEX('Compile Data'!BG$95:BG$120,'Report - ALL (DASHBOARD)'!$W$2) -> 53.78108945 | D16: =INDEX('Compile Data'!BH$95:BH$120,'Report - ALL (DASHBOARD)'!$W$2) -> 50.99039935 | E16: =INDEX('Compile Data'!BI$95:BI$120,'Report - ALL (DASHBOARD)'!$W$2) -> 47.3916298 | F16: =INDEX('Compile Data'!BJ$95:BJ$120,'Report - ALL (DASHBOARD)'!$W$2) -> 46.52781942 | G16: =INDEX('Compile Data'!BK$95:BK$120,'Report - ALL (DASHBOARD)'!$W$2) -> 48.4549147 | H16: =INDEX('Compile Data'!BL$95:BL$120,'Report - ALL (DASHBOARD)'!$W$2) -> 52.23354665 | I16: =INDEX('Compile Data'!BM$95:BM$120,'Report - ALL (DASHBOARD)'!$W$2) -> 52.62695531 | J16: =INDEX('Compile Data'!BN$95:BN$120,'Report - ALL (DASHBOARD)'!$W$2) -> 52.49597363 | K16: =INDEX('Compile Data'!BO$95:BO$120,'Report - ALL (DASHBOARD)'!$W$2) -> 51.6169462 | L16: =INDEX('Compile Data'!BP$95:BP$120,'Report - ALL (DASHBOARD)'!$W$2) -> 52.14575316 | M16: =INDEX('Compile Data'!BQ$95:BQ$120,'Report - ALL (DASHBOARD)'!$W$2) -> 52.06187858 | O16: ='Compile Data'!$D$1 -> Alternative 3 020121 | P16: =INDEX('Compile Data'!$BF$95:$CA$120,'Report - ALL (DASHBOARD)'!$W$2,'Report - ALL (DASHBOARD)'!$W$3) -> 52.06187858 | Q16: =$P16-$P$14 -> -0.158139159 | R16: =$P16-$P15 -> -0.0623026592
A17: ='Compile Data'!$E$1 -> Alternative 3BR 032321 | B17: =INDEX('Compile Data'!CD$95:CD$120,'Report - ALL (DASHBOARD)'!$W$2) -> 52.65630284 | C17: =INDEX('Compile Data'!CE$95:CE$120,'Report - ALL (DASHBOARD)'!$W$2) -> 53.75291094 | D17: =INDEX('Compile Data'!CF$95:CF$120,'Report - ALL (DASHBOARD)'!$W$2) -> 50.98695458 | E17: =INDEX('Compile Data'!CG$95:CG$120,'Report - ALL (DASHBOARD)'!$W$2) -> 47.3947097 | F17: =INDEX('Compile Data'!CH$95:CH$120,'Report - ALL (DASHBOARD)'!$W$2) -> 46.54201596 | G17: =INDEX('Compile Data'!CI$95:CI$120,'Report - ALL (DASHBOARD)'!$W$2) -> 48.45903383 | H17: =INDEX('Compile Data'!CJ$95:CJ$120,'Report - ALL (DASHBOARD)'!$W$2) -> 52.22330042 | I17: =INDEX('Compile Data'!CK$95:CK$120,'Report - ALL (DASHBOARD)'!$W$2) -> 52.56924927 | J17: =INDEX('Compile Data'!CL$95:CL$120,'Report - ALL (DASHBOARD)'!$W$2) -> 52.48113311 | K17: =INDEX('Compile Data'!CM$95:CM$120,'Report - ALL (DASHBOARD)'!$W$2) -> 51.66021859 | L17: =INDEX('Compile Data'!CN$95:CN$120,'Report - ALL (DASHBOARD)'!$W$2) -> 52.15558173 | M17: =INDEX('Compile Data'!CO$95:CO$120,'Report - ALL (DASHBOARD)'!$W$2) -> 52.05143598 | O17: ='Compile Data'!$E$1 -> Alternative 3BR 032321 | P17: =INDEX('Compile Data'!$CD$95:$CY$120,'Report - ALL (DASHBOARD)'!$W$2,'Report - ALL (DASHBOARD)'!$W$3) -> 52.05143598 | Q17: -0.1685817532 | R17: =$P17-$P16 -> -0.0104425942
A18: ='Compile Data'!$F$1 -> Alternative 3BR 120121 rev9b | B18: =INDEX('Compile Data'!DB$95:DB$120,'Report - ALL (DASHBOARD)'!$W$2) -> 52.69313426 | C18: =INDEX('Compile Data'!DC$95:DC$120,'Report - ALL (DASHBOARD)'!$W$2) -> 53.80037421 | D18: =INDEX('Compile Data'!DD$95:DD$120,'Report - ALL (DASHBOARD)'!$W$2) -> 51.00965486 | E18: =INDEX('Compile Data'!DE$95:DE$120,'Report - ALL (DASHBOARD)'!$W$2) -> 47.39030726 | F18: =INDEX('Compile Data'!DF$95:DF$120,'Report - ALL (DASHBOARD)'!$W$2) -> 46.48493869 | G18: =INDEX('Compile Data'!DG$95:DG$120,'Report - ALL (DASHBOARD)'!$W$2) -> 48.41560829 | H18: =INDEX('Compile Data'!DH$95:DH$120,'Report - ALL (DASHBOARD)'!$W$2) -> 52.20493442 | I18: =INDEX('Compile Data'!DI$95:DI$120,'Report - ALL (DASHBOARD)'!$W$2) -> 52.68535051 | J18: =INDEX('Compile Data'!DJ$95:DJ$120,'Report - ALL (DASHBOARD)'!$W$2) -> 52.56268808 | K18: =INDEX('Compile Data'!DK$95:DK$120,'Report - ALL (DASHBOARD)'!$W$2) -> 51.6835022 | L18: =INDEX('Compile Data'!DL$95:DL$120,'Report - ALL (DASHBOARD)'!$W$2) -> 52.09570996 | M18: =INDEX('Compile Data'!DM$95:DM$120,'Report - ALL (DASHBOARD)'!$W$2) -> 51.99486291 | O18: ='Compile Data'!$F$1 -> Alternative 3BR 120121 rev9b | P18: =INDEX('Compile Data'!$DB$95:$DW$120,'Report - ALL (DASHBOARD)'!$W$2,'Report - ALL (DASHBOARD)'!$W$3) -> 51.99486291 | Q18: -0.2251548302 | R18: =$P18-$P$15 -> -0.1293183303
A22: Annuals Plot: | O22: Exceedence Plot:
A24: Title: | B24: =INDEX(Other!$B$9:$B$31,'Report - ALL (DASHBOARD)'!$W$3) -> September | O24: Title: | P24: =INDEX(Other!$B$9:$B$31,'Report - ALL (DASHBOARD)'!$W$3) -> September
B25: ='Compile Data'!$B$5 -> Sacramento River Below Clear Creek Temperature | P25: ='Compile Data'!$B$5 -> Sacramento River Below Clear Creek Temperature
B26: =IF('Compile Data'!$B$10="CFS","Flow (CFS)",IF('Compile Data'!$B$10="TAF","Volume (TAF)",IF('Compile Data'!$B$10="KM","POSITION (KM)",IF(OR('Compile Data'!$B$10="DEGF",'Compile Data'!$B$10="DEG-F"),"TEMPERATURE (deg F)","")))) -> TEMPERATURE (deg F) | P26: =IF('Compile Data'!$B$10="CFS","Flow (CFS)",IF('Compile Data'!$B$10="TAF","Volume (TAF)",IF('Compile Data'!$B$10="KM","POSITION (KM)",IF(OR('Compile Data'!$B$10="DEGF",'Compile Data'!$B$10="DEG-F"),"TEMPERATURE (deg F)","")))) -> TEMPERATURE (deg F)
B28: ='Compile Data'!$B$1 -> No Action Alternative 011221 | C28: ='Compile Data'!$C$1 -> Alternative 1B 011221 | D28: ='Compile Data'!$D$1 -> Alternative 3 020121 | E28: ='Compile Data'!$E$1 -> Alternative 3BR 032321 | F28: ='Compile Data'!$F$1 -> Alternative 3BR 120121 rev9b | Q28: ='Compile Data'!$B$1 -> No Action Alternative 011221 | R28: ='Compile Data'!$C$1 -> Alternative 1B 011221 | S28: ='Compile Data'!$D$1 -> Alternative 3 020121 | T28: ='Compile Data'!$E$1 -> Alternative 3BR 032321 | U28: ='Compile Data'!F1 -> Alternative 3BR 120121 rev9b
A29: 1922 | B29: =INDEX('Compile Data'!$J$12:$AE$93,$A29-1921,'Report - ALL (DASHBOARD)'!$W$3) -> 51.04671097 | C29: =INDEX('Compile Data'!$AH$12:$BC$93,$A29-1921,'Report - ALL (DASHBOARD)'!$W$3) -> 50.79842377 | D29: =INDEX('Compile Data'!$BF$12:$CA$93,$A29-1921,'Report - ALL (DASHBOARD)'!$W$3) -> 50.16563034 | E29: =INDEX('Compile Data'!$CD$12:$CY$93,$A29-1921,'Report - ALL (DASHBOARD)'!$W$3) -> 50.15712357 | F29: =INDEX('Compile Data'!$DB$12:$DW$93,$A29-1921,'Report - ALL (DASHBOARD)'!$W$3) -> 50.16249084 | O29: 1 | P29: =(O29-1)/81 -> 0 | Q29: =INDEX('Compile Data'!$J$123:$AE$204,$O29,'Report - ALL (DASHBOARD)'!$W$3) -> 65.31702423 | R29: =INDEX('Compile Data'!$AH$123:$BC$204,$O29,'Report - ALL (DASHBOARD)'!$W$3) -> 64.29177856 | S29: =INDEX('Compile Data'!$BF$123:$CA$204,$O29,'Report - ALL (DASHBOARD)'!$W$3) -> 62.16758347 | T29: =INDEX('Compile Data'!$CD$123:$CY$204,$O29,'Report - ALL (DASHBOARD)'!$W$3) -> 62.18003845 | U29: =INDEX('Compile Data'!$DB$123:$DW$204,$O29,'Report - ALL (DASHBOARD)'!$W$3) -> 60.74496841
A30: =A29+1 -> 1923 | B30: =INDEX('Compile Data'!$J$12:$AE$93,$A30-1921,'Report - ALL (DASHBOARD)'!$W$3) -> 52.60756683 | C30: =INDEX('Compile Data'!$AH$12:$BC$93,$A30-1921,'Report - ALL (DASHBOARD)'!$W$3) -> 52.50654602 | D30: =INDEX('Compile Data'!$BF$12:$CA$93,$A30-1921,'Report - ALL (DASHBOARD)'!$W$3) -> 52.32866669 | E30: =INDEX('Compile Data'!$CD$12:$CY$93,$A30-1921,'Report - ALL (DASHBOARD)'!$W$3) -> 52.1558075 | F30: =INDEX('Compile Data'!$DB$12:$DW$93,$A30-1921,'Report - ALL (DASHBOARD)'!$W$3) -> 52.59682846 | O30: 2 | P30: 0.01234567901 | Q30: =INDEX('Compile Data'!$J$123:$AE$204,$O30,'Report - ALL (DASHBOARD)'!$W$3) -> 56.0083046 | R30: =INDEX('Compile Data'!$AH$123:$BC$204,$O30,'Report - ALL (DASHBOARD)'!$W$3) -> 55.76084137 | S30: =INDEX('Compile Data'!$BF$123:$CA$204,$O30,'Report - ALL (DASHBOARD)'!$W$3) -> 55.85803223 | T30: =INDEX('Compile Data'!$CD$123:$CY$204,$O30,'Report - ALL (DASHBOARD)'!$W$3) -> 55.88502884 | U30: =INDEX('Compile Data'!$DB$123:$DW$204,$O30,'Report - ALL (DASHBOARD)'!$W$3) -> 55.78344727
A31: =A30+1 -> 1924 | B31: =INDEX('Compile Data'!$J$12:$AE$93,$A31-1921,'Report - ALL (DASHBOARD)'!$W$3) -> 55.4389267 | C31: =INDEX('Compile Data'!$AH$12:$BC$93,$A31-1921,'Report - ALL (DASHBOARD)'!$W$3) -> 55.29014969 | D31: =INDEX('Compile Data'!$BF$12:$CA$93,$A31-1921,'Report - ALL (DASHBOARD)'!$W$3) -> 55.1446228 | E31: =INDEX('Compile Data'!$CD$12:$CY$93,$A31-1921,'Report - ALL (DASHBOARD)'!$W$3) -> 54.91821671 | F31: =INDEX('Compile Data'!$DB$12:$DW$93,$A31-1921,'Report - ALL (DASHBOARD)'!$W$3) -> 54.64143753 | O31: 3 | P31: 0.02469135802 | Q31: =INDEX('Compile Data'!$J$123:$AE$204,$O31,'Report - ALL (DASHBOARD)'!$W$3) -> 55.68894196 | R31: =INDEX('Compile Data'!$AH$123:$BC$204,$O31,'Report - ALL (DASHBOARD)'!$W$3) -> 55.29014969 | S31: =INDEX('Compile Data'!$BF$123:$CA$204,$O31,'Report - ALL (DASHBOARD)'!$W$3) -> 55.42884827 | T31: =INDEX('Compile Data'!$CD$123:$CY$204,$O31,'Report - ALL (DASHBOARD)'!$W$3) -> 55.19777679 | U31: =INDEX('Compile Data'!$DB$123:$DW$204,$O31,'Report - ALL (DASHBOARD)'!$W$3) -> 55.02035141
A32: 1925 | B32: =INDEX('Compile Data'!$J$12:$AE$93,$A32-1921,'Report - ALL (DASHBOARD)'!$W$3) -> 51.08818436 | C32: =INDEX('Compile Data'!$AH$12:$BC$93,$A32-1921,'Report - ALL (DASHBOARD)'!$W$3) -> 51.09160614 | D32: =INDEX('Compile Data'!$BF$12:$CA$93,$A32-1921,'Report - ALL (DASHBOARD)'!$W$3) -> 51.13647461 | E32: =INDEX('Compile Data'!$CD$12:$CY$93,$A32-1921,'Report - ALL (DASHBOARD)'!$W$3) -> 51.14852905 | F32: =INDEX('Compile Data'!$DB$12:$DW$93,$A32-1921,'Report - ALL (DASHBOARD)'!$W$3) -> 51.08826447 | O32: 4 | P32: 0.03703703704 | Q32: =INDEX('Compile Data'!$J$123:$AE$204,$O32,'Report - ALL (DASHBOARD)'!$W$3) -> 55.4389267 | R32: =INDEX('Compile Data'!$AH$123:$BC$204,$O32,'Report - ALL (DASHBOARD)'!$W$3) -> 55.09200668 | S32: =INDEX('Compile Data'!$BF$123:$CA$204,$O32,'Report - ALL (DASHBOARD)'!$W$3) -> 55.2407341 | T32: =INDEX('Compile Data'!$CD$123:$CY$204,$O32,'Report - ALL (DASHBOARD)'!$W$3) -> 55.02626038 | U32: =INDEX('Compile Data'!$DB$123:$DW$204,$O32,'Report - ALL (DASHBOARD)'!$W$3) -> 54.81615067
A33: 1926 | B33: =INDEX('Compile Data'!$J$12:$AE$93,$A33-1921,'Report - ALL (DASHBOARD)'!$W$3) -> 52.60937881 | C33: =INDEX('Compile Data'!$AH$12:$BC$93,$A33-1921,'Report - ALL (DASHBOARD)'!$W$3) -> 52.54386139 | D33: =INDEX('Compile Data'!$BF$12:$CA$93,$A33-1921,'Report - ALL (DASHBOARD)'!$W$3) -> 52.55150604 | E33: =INDEX('Compile Data'!$CD$12:$CY$93,$A33-1921,'Report - ALL (DASHBOARD)'!$W$3) -> 52.55936813 | F33: =INDEX('Compile Data'!$DB$12:$DW$93,$A33-1921,'Report - ALL (DASHBOARD)'!$W$3) -> 52.54711914 | O33: 5 | P33: 0.04938271605 | Q33: =INDEX('Compile Data'!$J$123:$AE$204,$O33,'Report - ALL (DASHBOARD)'!$W$3) -> 54.91597366 | R33: =INDEX('Compile Data'!$AH$123:$BC$204,$O33,'Report - ALL (DASHBOARD)'!$W$3) -> 55.0137558 | S33: =INDEX('Compile Data'!$BF$123:$CA$204,$O33,'Report - ALL (DASHBOARD)'!$W$3) -> 55.1446228 | T33: =INDEX('Compile Data'!$CD$123:$CY$204,$O33,'Report - ALL (DASHBOARD)'!$W$3) -> 54.91821671 | U33: =INDEX('Compile Data'!$DB$123:$DW$204,$O33,'Report - ALL (DASHBOARD)'!$W$3) -> 54.79707336
A34: 1927 | B34: =INDEX('Compile Data'!$J$12:$AE$93,$A34-1921,'Report - ALL (DASHBOARD)'!$W$3) -> 50.05224228 | C34: =INDEX('Compile Data'!$AH$12:$BC$93,$A34-1921,'Report - ALL (DASHBOARD)'!$W$3) -> 50.0308075 | D34: =INDEX('Compile Data'!$BF$12:$CA$93,$A34-1921,'Report - ALL (DASHBOARD)'!$W$3) -> 50.024086 | E34: =INDEX('Compile Data'!$CD$12:$CY$93,$A34-1921,'Report - ALL (DASHBOARD)'!$W$3) -> 50.03415298 | F34: =INDEX('Compile Data'!$DB$12:$DW$93,$A34-1921,'Report - ALL (DASHBOARD)'!$W$3) -> 50.0431366 | O34: 6 | P34: 0.06172839506 | Q34: =INDEX('Compile Data'!$J$123:$AE$204,$O34,'Report - ALL (DASHBOARD)'!$W$3) -> 54.91272736 | R34: =INDEX('Compile Data'!$AH$123:$BC$204,$O34,'Report - ALL (DASHBOARD)'!$W$3) -> 54.94610596 | S34: =INDEX('Compile Data'!$BF$123:$CA$204,$O34,'Report - ALL (DASHBOARD)'!$W$3) -> 54.80682373 | T34: =INDEX('Compile Data'!$CD$123:$CY$204,$O34,'Report - ALL (DASHBOARD)'!$W$3) -> 54.68080139 | U34: =INDEX('Compile Data'!$DB$123:$DW$204,$O34,'Report - ALL (DASHBOARD)'!$W$3) -> 54.66806412
A35: 1928 | B35: =INDEX('Compile Data'!$J$12:$AE$93,$A35-1921,'Report - ALL (DASHBOARD)'!$W$3) -> 50.37451553 | C35: =INDEX('Compile Data'!$AH$12:$BC$93,$A35-1921,'Report - ALL (DASHBOARD)'!$W$3) -> 50.24259949 | D35: =INDEX('Compile Data'!$BF$12:$CA$93,$A35-1921,'Report - ALL (DASHBOARD)'!$W$3) -> 50.05426788 | E35: =INDEX('Compile Data'!$CD$12:$CY$93,$A35-1921,'Report - ALL (DASHBOARD)'!$W$3) -> 49.96949768 | F35: =INDEX('Compile Data'!$DB$12:$DW$93,$A35-1921,'Report - ALL (DASHBOARD)'!$W$3) -> 50.37598038 | O35: 7 | P35: 0.07407407407 | Q35: =INDEX('Compile Data'!$J$123:$AE$204,$O35,'Report - ALL (DASHBOARD)'!$W$3) -> 54.84569168 | R35: =INDEX('Compile Data'!$AH$123:$BC$204,$O35,'Report - ALL (DASHBOARD)'!$W$3) -> 54.79928589 | S35: =INDEX('Compile Data'!$BF$123:$CA$204,$O35,'Report - ALL (DASHBOARD)'!$W$3) -> 54.79410172 | T35: =INDEX('Compile Data'!$CD$123:$CY$204,$O35,'Report - ALL (DASHBOARD)'!$W$3) -> 54.6702652 | U35: =INDEX('Compile Data'!$DB$123:$DW$204,$O35,'Report - ALL (DASHBOARD)'!$W$3) -> 54.64143753
A36: 1929 | B36: =INDEX('Compile Data'!$J$12:$AE$93,$A36-1921,'Report - ALL (DASHBOARD)'!$W$3) -> 54.21083832 | C36: =INDEX('Compile Data'!$AH$12:$BC$93,$A36-1921,'Report - ALL (DASHBOARD)'!$W$3) -> 53.76229095 | D36: =INDEX('Compile Data'!$BF$12:$CA$93,$A36-1921,'Report - ALL (DASHBOARD)'!$W$3) -> 53.71918869 | E36: =INDEX('Compile Data'!$CD$12:$CY$93,$A36-1921,'Report - ALL (DASHBOARD)'!$W$3) -> 53.73774338 | F36: =INDEX('Compile Data'!$DB$12:$DW$93,$A36-1921,'Report - ALL (DASHBOARD)'!$W$3) -> 53.65365219 | O36: 8 | P36: 0.08641975309 | Q36: =INDEX('Compile Data'!$J$123:$AE$204,$O36,'Report - ALL (DASHBOARD)'!$W$3) -> 54.68373871 | R36: =INDEX('Compile Data'!$AH$123:$BC$204,$O36,'Report - ALL (DASHBOARD)'!$W$3) -> 54.67761612 | S36: =INDEX('Compile Data'!$BF$123:$CA$204,$O36,'Report - ALL (DASHBOARD)'!$W$3) -> 54.67821884 | T36: =INDEX('Compile Data'!$CD$123:$CY$204,$O36,'Report - ALL (DASHBOARD)'!$W$3) -> 54.5957222 | U36: =INDEX('Compile Data'!$DB$123:$DW$204,$O36,'Report - ALL (DASHBOARD)'!$W$3) -> 54.62482071
A37: 1930 | B37: =INDEX('Compile Data'!$J$12:$AE$93,$A37-1921,'Report - ALL (DASHBOARD)'!$W$3) -> 52.85365677 | C37: =INDEX('Compile Data'!$AH$12:$BC$93,$A37-1921,'Report - ALL (DASHBOARD)'!$W$3) -> 53.03053665 | D37: =INDEX('Compile Data'!$BF$12:$CA$93,$A37-1921,'Report - ALL (DASHBOARD)'!$W$3) -> 53.022995 | E37: =INDEX('Compile Data'!$CD$12:$CY$93,$A37-1921,'Report - ALL (DASHBOARD)'!$W$3) -> 53.07000351 | F37: =INDEX('Compile Data'!$DB$12:$DW$93,$A37-1921,'Report - ALL (DASHBOARD)'!$W$3) -> 52.53850937 | O37: 9 | P37: 0.0987654321 | Q37: =INDEX('Compile Data'!$J$123:$AE$204,$O37,'Report - ALL (DASHBOARD)'!$W$3) -> 54.43056107 | R37: =INDEX('Compile Data'!$AH$123:$BC$204,$O37,'Report - ALL (DASHBOARD)'!$W$3) -> 54.59238052 | S37: =INDEX('Compile Data'!$BF$123:$CA$204,$O37,'Report - ALL (DASHBOARD)'!$W$3) -> 54.6126976 | T37: =INDEX('Compile Data'!$CD$123:$CY$204,$O37,'Report - ALL (DASHBOARD)'!$W$3) -> 54.23544312 | U37: =INDEX('Compile Data'!$DB$123:$DW$204,$O37,'Report - ALL (DASHBOARD)'!$W$3) -> 54.60929489
A38: 1931 | B38: =INDEX('Compile Data'!$J$12:$AE$93,$A38-1921,'Report - ALL (DASHBOARD)'!$W$3) -> 54.91597366 | C38: =INDEX('Compile Data'!$AH$12:$BC$93,$A38-1921,'Report - ALL (DASHBOARD)'!$W$3) -> 54.94610596 | D38: =INDEX('Compile Data'!$BF$12:$CA$93,$A38-1921,'Report - ALL (DASHBOARD)'!$W$3) -> 54.6126976 | E38: =INDEX('Compile Data'!$CD$12:$CY$93,$A38-1921,'Report - ALL (DASHBOARD)'!$W$3) -> 54.23544312 | F38: =INDEX('Compile Data'!$DB$12:$DW$93,$A38-1921,'Report - ALL (DASHBOARD)'!$W$3) -> 54.79707336 | O38: 10 | P38: 0.1111111111 | Q38: =INDEX('Compile Data'!$J$123:$AE$204,$O38,'Report - ALL (DASHBOARD)'!$W$3) -> 54.26488113 | R38: =INDEX('Compile Data'!$AH$123:$BC$204,$O38,'Report - ALL (DASHBOARD)'!$W$3) -> 54.13597107 | S38: =INDEX('Compile Data'!$BF$123:$CA$204,$O38,'Report - ALL (DASHBOARD)'!$W$3) -> 54.21175003 | T38: =INDEX('Compile Data'!$CD$123:$CY$204,$O38,'Report - ALL (DASHBOARD)'!$W$3) -> 54.20741653 | U38: =INDEX('Compile Data'!$DB$123:$DW$204,$O38,'Report - ALL (DASHBOARD)'!$W$3) -> 53.98009109
A39: 1932 | B39: =INDEX('Compile Data'!$J$12:$AE$93,$A39-1921,'Report - ALL (DASHBOARD)'!$W$3) -> 54.84569168 | C39: =INDEX('Compile Data'!$AH$12:$BC$93,$A39-1921,'Report - ALL (DASHBOARD)'!$W$3) -> 54.79928589 | D39: =INDEX('Compile Data'!$BF$12:$CA$93,$A39-1921,'Report - ALL (DASHBOARD)'!$W$3) -> 54.80682373 | E39: =INDEX('Compile Data'!$CD$12:$CY$93,$A39-1921,'Report - ALL (DASHBOARD)'!$W$3) -> 54.6702652 | F39: =INDEX('Compile Data'!$DB$12:$DW$93,$A39-1921,'Report - ALL (DASHBOARD)'!$W$3) -> 54.60929489 | O39: 11 | P39: 0.1234567901 | Q39: =INDEX('Compile Data'!$J$123:$AE$204,$O39,'Report - ALL (DASHBOARD)'!$W$3) -> 54.21083832 | R39: =INDEX('Compile Data'!$AH$123:$BC$204,$O39,'Report - ALL (DASHBOARD)'!$W$3) -> 54.08722687 | S39: =INDEX('Compile Data'!$BF$123:$CA$204,$O39,'Report - ALL (DASHBOARD)'!$W$3) -> 54.15697861 | T39: =INDEX('Compile Data'!$CD$123:$CY$204,$O39,'Report - ALL (DASHBOARD)'!$W$3) -> 54.16012955 | U39: =INDEX('Compile Data'!$DB$123:$DW$204,$O39,'Report - ALL (DASHBOARD)'!$W$3) -> 53.97069168
A40: 1933 | B40: =INDEX('Compile Data'!$J$12:$AE$93,$A40-1921,'Report - ALL (DASHBOARD)'!$W$3) -> 54.43056107 | C40: =INDEX('Compile Data'!$AH$12:$BC$93,$A40-1921,'Report - ALL (DASHBOARD)'!$W$3) -> 54.59238052 | D40: =INDEX('Compile Data'!$BF$12:$CA$93,$A40-1921,'Report - ALL (DASHBOARD)'!$W$3) -> 54.79410172 | E40: =INDEX('Compile Data'!$CD$12:$CY$93,$A40-1921,'Report - ALL (DASHBOARD)'!$W$3) -> 55.02626038 | F40: =INDEX('Compile Data'!$DB$12:$DW$93,$A40-1921,'Report - ALL (DASHBOARD)'!$W$3) -> 54.62482071 | O40: 12 | P40: 0.1358024691 | Q40: =INDEX('Compile Data'!$J$123:$AE$204,$O40,'Report - ALL (DASHBOARD)'!$W$3) -> 54.15291595 | R40: =INDEX('Compile Data'!$AH$123:$BC$204,$O40,'Report - ALL (DASHBOARD)'!$W$3) -> 53.94460678 | S40: =INDEX('Compile Data'!$BF$123:$CA$204,$O40,'Report - ALL (DASHBOARD)'!$W$3) -> 53.94807434 | T40: =INDEX('Compile Data'!$CD$123:$CY$204,$O40,'Report - ALL (DASHBOARD)'!$W$3) -> 54.05443573 | U40: =INDEX('Compile Data'!$DB$123:$DW$204,$O40,'Report - ALL (DASHBOARD)'!$W$3) -> 53.65365219
A41: 1934 | B41: =INDEX('Compile Data'!$J$12:$AE$93,$A41-1921,'Report - ALL (DASHBOARD)'!$W$3) -> 54.91272736 | C41: =INDEX('Compile Data'!$AH$12:$BC$93,$A41-1921,'Report - ALL (DASHBOARD)'!$W$3) -> 55.0137558 | D41: =INDEX('Compile Data'!$BF$12:$CA$93,$A41-1921,'Report - ALL (DASHBOARD)'!$W$3) -> 55.2407341 | E41: =INDEX('Compile Data'!$CD$12:$CY$93,$A41-1921,'Report - ALL (DASHBOARD)'!$W$3) -> 54.5957222 | F41: =INDEX('Compile Data'!$DB$12:$DW$93,$A41-1921,'Report - ALL (DASHBOARD)'!$W$3) -> 54.81615067 | O41: 13 | P41: 0.1481481481 | Q41: =INDEX('Compile Data'!$J$123:$AE$204,$O41,'Report - ALL (DASHBOARD)'!$W$3) -> 54.09262466 | R41: =INDEX('Compile Data'!$AH$123:$BC$204,$O41,'Report - ALL (DASHBOARD)'!$W$3) -> 53.83698654 | S41: =INDEX('Compile Data'!$BF$123:$CA$204,$O41,'Report - ALL (DASHBOARD)'!$W$3) -> 53.71918869 | T41: =INDEX('Compile Data'!$CD$123:$CY$204,$O41,'Report - ALL (DASHBOARD)'!$W$3) -> 53.73774338 | U41: =INDEX('Compile Data'!$DB$123:$DW$204,$O41,'Report - ALL (DASHBOARD)'!$W$3) -> 53.64324188
A42: 1935 | B42: =INDEX('Compile Data'!$J$12:$AE$93,$A42-1921,'Report - ALL (DASHBOARD)'!$W$3) -> 53.38204956 | C42: =INDEX('Compile Data'!$AH$12:$BC$93,$A42-1921,'Report - ALL (DASHBOARD)'!$W$3) -> 53.34858322 | D42: =INDEX('Compile Data'!$BF$12:$CA$93,$A42-1921,'Report - ALL (DASHBOARD)'!$W$3) -> 53.33198547 | E42: =INDEX('Compile Data'!$CD$12:$CY$93,$A42-1921,'Report - ALL (DASHBOARD)'!$W$3) -> 53.40000153 | F42: =INDEX('Compile Data'!$DB$12:$DW$93,$A42-1921,'Report - ALL (DASHBOARD)'!$W$3) -> 53.4137764 | O42: 14 | P42: 0.1604938272 | Q42: =INDEX('Compile Data'!$J$123:$AE$204,$O42,'Report - ALL (DASHBOARD)'!$W$3) -> 53.99173355 | R42: =INDEX('Compile Data'!$AH$123:$BC$204,$O42,'Report - ALL (DASHBOARD)'!$W$3) -> 53.78842163 | S42: =INDEX('Compile Data'!$BF$123:$CA$204,$O42,'Report - ALL (DASHBOARD)'!$W$3) -> 53.66935349 | T42: =INDEX('Compile Data'!$CD$123:$CY$204,$O42,'Report - ALL (DASHBOARD)'!$W$3) -> 53.64888763 | U42: =INDEX('Compile Data'!$DB$123:$DW$204,$O42,'Report - ALL (DASHBOARD)'!$W$3) -> 53.63610458
A43: 1936 | B43: =INDEX('Compile Data'!$J$12:$AE$93,$A43-1921,'Report - ALL (DASHBOARD)'!$W$3) -> 52.09086227 | C43: =INDEX('Compile Data'!$AH$12:$BC$93,$A43-1921,'Report - ALL (DASHBOARD)'!$W$3) -> 52.09376907 | D43: =INDEX('Compile Data'!$BF$12:$CA$93,$A43-1921,'Report - ALL (DASHBOARD)'!$W$3) -> 52.08003235 | E43: =INDEX('Compile Data'!$CD$12:$CY$93,$A43-1921,'Report - ALL (DASHBOARD)'!$W$3) -> 52.08397675 | F43: =INDEX('Compile Data'!$DB$12:$DW$93,$A43-1921,'Report - ALL (DASHBOARD)'!$W$3) -> 52.09082413 | O43: 15 | P43: 0.1728395062 | Q43: =INDEX('Compile Data'!$J$123:$AE$204,$O43,'Report - ALL (DASHBOARD)'!$W$3) -> 53.89011002 | R43: =INDEX('Compile Data'!$AH$123:$BC$204,$O43,'Report - ALL (DASHBOARD)'!$W$3) -> 53.76229095 | S43: =INDEX('Compile Data'!$BF$123:$CA$204,$O43,'Report - ALL (DASHBOARD)'!$W$3) -> 53.58084106 | T43: =INDEX('Compile Data'!$CD$123:$CY$204,$O43,'Report - ALL (DASHBOARD)'!$W$3) -> 53.42854309 | U43: =INDEX('Compile Data'!$DB$123:$DW$204,$O43,'Report - ALL (DASHBOARD)'!$W$3) -> 53.4559288
A44: 1937 | B44: =INDEX('Compile Data'!$J$12:$AE$93,$A44-1921,'Report - ALL (DASHBOARD)'!$W$3) -> 51.86030197 | C44: =INDEX('Compile Data'!$AH$12:$BC$93,$A44-1921,'Report - ALL (DASHBOARD)'!$W$3) -> 51.83375931 | D44: =INDEX('Compile Data'!$BF$12:$CA$93,$A44-1921,'Report - ALL (DASHBOARD)'!$W$3) -> 51.79745483 | E44: =INDEX('Compile Data'!$CD$12:$CY$93,$A44-1921,'Report - ALL (DASHBOARD)'!$W$3) -> 51.80405045 | F44: =INDEX('Compile Data'!$DB$12:$DW$93,$A44-1921,'Report - ALL (DASHBOARD)'!$W$3) -> 51.79595184 | O44: 16 | P44: 0.1851851852 | Q44: =INDEX('Compile Data'!$J$123:$AE$204,$O44,'Report - ALL (DASHBOARD)'!$W$3) -> 53.48656082 | R44: =INDEX('Compile Data'!$AH$123:$BC$204,$O44,'Report - ALL (DASHBOARD)'!$W$3) -> 53.34858322 | S44: =INDEX('Compile Data'!$BF$123:$CA$204,$O44,'Report - ALL (DASHBOARD)'!$W$3) -> 53.43098831 | T44: =INDEX('Compile Data'!$CD$123:$CY$204,$O44,'Report - ALL (DASHBOARD)'!$W$3) -> 53.40000153 | U44: =INDEX('Compile Data'!$DB$123:$DW$204,$O44,'Report - ALL (DASHBOARD)'!$W$3) -> 53.4137764
A45: 1938 | B45: =INDEX('Compile Data'!$J$12:$AE$93,$A45-1921,'Report - ALL (DASHBOARD)'!$W$3) -> 50.15649033 | C45: =INDEX('Compile Data'!$AH$12:$BC$93,$A45-1921,'Report - ALL (DASHBOARD)'!$W$3) -> 50.14161682 | D45: =INDEX('Compile Data'!$BF$12:$CA$93,$A45-1921,'Report - ALL (DASHBOARD)'!$W$3) -> 50.13928223 | E45: =INDEX('Compile Data'!$CD$12:$CY$93,$A45-1921,'Report - ALL (DASHBOARD)'!$W$3) -> 50.14468002 | F45: =INDEX('Compile Data'!$DB$12:$DW$93,$A45-1921,'Report - ALL (DASHBOARD)'!$W$3) -> 50.13489151 | O45: 17 | P45: 0.1975308642 | Q45: =INDEX('Compile Data'!$J$123:$AE$204,$O45,'Report - ALL (DASHBOARD)'!$W$3) -> 53.38204956 | R45: =INDEX('Compile Data'!$AH$123:$BC$204,$O45,'Report - ALL (DASHBOARD)'!$W$3) -> 53.32044983 | S45: =INDEX('Compile Data'!$BF$123:$CA$204,$O45,'Report - ALL (DASHBOARD)'!$W$3) -> 53.33198547 | T45: =INDEX('Compile Data'!$CD$123:$CY$204,$O45,'Report - ALL (DASHBOARD)'!$W$3) -> 53.37161255 | U45: =INDEX('Compile Data'!$DB$123:$DW$204,$O45,'Report - ALL (DASHBOARD)'!$W$3) -> 53.11721802
A46: 1939 | B46: =INDEX('Compile Data'!$J$12:$AE$93,$A46-1921,'Report - ALL (DASHBOARD)'!$W$3) -> 53.23913574 | C46: =INDEX('Compile Data'!$AH$12:$BC$93,$A46-1921,'Report - ALL (DASHBOARD)'!$W$3) -> 52.85730743 | D46: =INDEX('Compile Data'!$BF$12:$CA$93,$A46-1921,'Report - ALL (DASHBOARD)'!$W$3) -> 53.14807129 | E46: =INDEX('Compile Data'!$CD$12:$CY$93,$A46-1921,'Report - ALL (DASHBOARD)'!$W$3) -> 53.19334412 | F46: =INDEX('Compile Data'!$DB$12:$DW$93,$A46-1921,'Report - ALL (DASHBOARD)'!$W$3) -> 52.47424316 | O46: 18 | P46: 0.2098765432 | Q46: =INDEX('Compile Data'!$J$123:$AE$204,$O46,'Report - ALL (DASHBOARD)'!$W$3) -> 53.35100937 | R46: =INDEX('Compile Data'!$AH$123:$BC$204,$O46,'Report - ALL (DASHBOARD)'!$W$3) -> 53.24031448 | S46: =INDEX('Compile Data'!$BF$123:$CA$204,$O46,'Report - ALL (DASHBOARD)'!$W$3) -> 53.15063477 | T46: =INDEX('Compile Data'!$CD$123:$CY$204,$O46,'Report - ALL (DASHBOARD)'!$W$3) -> 53.19334412 | U46: =INDEX('Compile Data'!$DB$123:$DW$204,$O46,'Report - ALL (DASHBOARD)'!$W$3) -> 52.98731995
A47: 1940 | B47: =INDEX('Compile Data'!$J$12:$AE$93,$A47-1921,'Report - ALL (DASHBOARD)'!$W$3) -> 50.3908577 | C47: =INDEX('Compile Data'!$AH$12:$BC$93,$A47-1921,'Report - ALL (DASHBOARD)'!$W$3) -> 50.28324509 | D47: =INDEX('Compile Data'!$BF$12:$CA$93,$A47-1921,'Report - ALL (DASHBOARD)'!$W$3) -> 50.25080109 | E47: =INDEX('Compile Data'!$CD$12:$CY$93,$A47-1921,'Report - ALL (DASHBOARD)'!$W$3) -> 50.17681503 | F47: =INDEX('Compile Data'!$DB$12:$DW$93,$A47-1921,'Report - ALL (DASHBOARD)'!$W$3) -> 50.29141235 | O47: 19 | P47: 0.2222222222 | Q47: =INDEX('Compile Data'!$J$123:$AE$204,$O47,'Report - ALL (DASHBOARD)'!$W$3) -> 53.32525635 | R47: =INDEX('Compile Data'!$AH$123:$BC$204,$O47,'Report - ALL (DASHBOARD)'!$W$3) -> 53.03053665 | S47: =INDEX('Compile Data'!$BF$123:$CA$204,$O47,'Report - ALL (DASHBOARD)'!$W$3) -> 53.14807129 | T47: =INDEX('Compile Data'!$CD$123:$CY$204,$O47,'Report - ALL (DASHBOARD)'!$W$3) -> 53.1305809 | U47: =INDEX('Compile Data'!$DB$123:$DW$204,$O47,'Report - ALL (DASHBOARD)'!$W$3) -> 52.89064407
A48: 1941 | B48: =INDEX('Compile Data'!$J$12:$AE$93,$A48-1921,'Report - ALL (DASHBOARD)'!$W$3) -> 50.09543991 | C48: =INDEX('Compile Data'!$AH$12:$BC$93,$A48-1921,'Report - ALL (DASHBOARD)'!$W$3) -> 50.07869339 | D48: =INDEX('Compile Data'!$BF$12:$CA$93,$A48-1921,'Report - ALL (DASHBOARD)'!$W$3) -> 50.06525803 | E48: =INDEX('Compile Data'!$CD$12:$CY$93,$A48-1921,'Report - ALL (DASHBOARD)'!$W$3) -> 50.05495834 | F48: =INDEX('Compile Data'!$DB$12:$DW$93,$A48-1921,'Report - ALL (DASHBOARD)'!$W$3) -> 50.05524445 | O48: 20 | P48: 0.2345679012 | Q48: =INDEX('Compile Data'!$J$123:$AE$204,$O48,'Report - ALL (DASHBOARD)'!$W$3) -> 53.23913574 | R48: =INDEX('Compile Data'!$AH$123:$BC$204,$O48,'Report - ALL (DASHBOARD)'!$W$3) -> 52.95658112 | S48: =INDEX('Compile Data'!$BF$123:$CA$204,$O48,'Report - ALL (DASHBOARD)'!$W$3) -> 53.022995 | T48: =INDEX('Compile Data'!$CD$123:$CY$204,$O48,'Report - ALL (DASHBOARD)'!$W$3) -> 53.07000351 | U48: =INDEX('Compile Data'!$DB$123:$DW$204,$O48,'Report - ALL (DASHBOARD)'!$W$3) -> 52.78346634
A49: 1942 | B49: =INDEX('Compile Data'!$J$12:$AE$93,$A49-1921,'Report - ALL (DASHBOARD)'!$W$3) -> 49.79504013 | C49: =INDEX('Compile Data'!$AH$12:$BC$93,$A49-1921,'Report - ALL (DASHBOARD)'!$W$3) -> 49.79063797 | D49: =INDEX('Compile Data'!$BF$12:$CA$93,$A49-1921,'Report - ALL (DASHBOARD)'!$W$3) -> 49.79946136 | E49: =INDEX('Compile Data'!$CD$12:$CY$93,$A49-1921,'Report - ALL (DASHBOARD)'!$W$3) -> 49.79614258 | F49: =INDEX('Compile Data'!$DB$12:$DW$93,$A49-1921,'Report - ALL (DASHBOARD)'!$W$3) -> 49.79777527 | O49: 21 | P49: 0.2469135802 | Q49: =INDEX('Compile Data'!$J$123:$AE$204,$O49,'Report - ALL (DASHBOARD)'!$W$3) -> 53.03466415 | R49: =INDEX('Compile Data'!$AH$123:$BC$204,$O49,'Report - ALL (DASHBOARD)'!$W$3) -> 52.93452072 | S49: =INDEX('Compile Data'!$BF$123:$CA$204,$O49,'Report - ALL (DASHBOARD)'!$W$3) -> 52.98040009 | T49: =INDEX('Compile Data'!$CD$123:$CY$204,$O49,'Report - ALL (DASHBOARD)'!$W$3) -> 53.03200912 | U49: =INDEX('Compile Data'!$DB$123:$DW$204,$O49,'Report - ALL (DASHBOARD)'!$W$3) -> 52.72676468
A50: 1943 | B50: =INDEX('Compile Data'!$J$12:$AE$93,$A50-1921,'Report - ALL (DASHBOARD)'!$W$3) -> 50.34731674 | C50: =INDEX('Compile Data'!$AH$12:$BC$93,$A50-1921,'Report - ALL (DASHBOARD)'!$W$3) -> 50.35641098 | D50: =INDEX('Compile Data'!$BF$12:$CA$93,$A50-1921,'Report - ALL (DASHBOARD)'!$W$3) -> 50.35111618 | E50: =INDEX('Compile Data'!$CD$12:$CY$93,$A50-1921,'Report - ALL (DASHBOARD)'!$W$3) -> 50.34869766 | F50: =INDEX('Compile Data'!$DB$12:$DW$93,$A50-1921,'Report - ALL (DASHBOARD)'!$W$3) -> 50.35003281 | O50: 22 | P50: 0.2592592593 | Q50: =INDEX('Compile Data'!$J$123:$AE$204,$O50,'Report - ALL (DASHBOARD)'!$W$3) -> 52.95948792 | R50: =INDEX('Compile Data'!$AH$123:$BC$204,$O50,'Report - ALL (DASHBOARD)'!$W$3) -> 52.87475204 | S50: =INDEX('Compile Data'!$BF$123:$CA$204,$O50,'Report - ALL (DASHBOARD)'!$W$3) -> 52.82455444 | T50: =INDEX('Compile Data'!$CD$123:$CY$204,$O50,'Report - ALL (DASHBOARD)'!$W$3) -> 53.00137711 | U50: =INDEX('Compile Data'!$DB$123:$DW$204,$O50,'Report - ALL (DASHBOARD)'!$W$3) -> 52.67251587
A51: 1944 | B51: =INDEX('Compile Data'!$J$12:$AE$93,$A51-1921,'Report - ALL (DASHBOARD)'!$W$3) -> 52.74274445 | C51: =INDEX('Compile Data'!$AH$12:$BC$93,$A51-1921,'Report - ALL (DASHBOARD)'!$W$3) -> 52.72269058 | D51: =INDEX('Compile Data'!$BF$12:$CA$93,$A51-1921,'Report - ALL (DASHBOARD)'!$W$3) -> 52.76067352 | E51: =INDEX('Compile Data'!$CD$12:$CY$93,$A51-1921,'Report - ALL (DASHBOARD)'!$W$3) -> 52.76528168 | F51: =INDEX('Compile Data'!$DB$12:$DW$93,$A51-1921,'Report - ALL (DASHBOARD)'!$W$3) -> 52.24640274 | O51: 23 | P51: 0.2716049383 | Q51: =INDEX('Compile Data'!$J$123:$AE$204,$O51,'Report - ALL (DASHBOARD)'!$W$3) -> 52.92120361 | R51: =INDEX('Compile Data'!$AH$123:$BC$204,$O51,'Report - ALL (DASHBOARD)'!$W$3) -> 52.8620224 | S51: =INDEX('Compile Data'!$BF$123:$CA$204,$O51,'Report - ALL (DASHBOARD)'!$W$3) -> 52.80158997 | T51: =INDEX('Compile Data'!$CD$123:$CY$204,$O51,'Report - ALL (DASHBOARD)'!$W$3) -> 52.85452271 | U51: =INDEX('Compile Data'!$DB$123:$DW$204,$O51,'Report - ALL (DASHBOARD)'!$W$3) -> 52.59682846
A52: 1945 | B52: =INDEX('Compile Data'!$J$12:$AE$93,$A52-1921,'Report - ALL (DASHBOARD)'!$W$3) -> 51.83347321 | C52: =INDEX('Compile Data'!$AH$12:$BC$93,$A52-1921,'Report - ALL (DASHBOARD)'!$W$3) -> 51.83765793 | D52: =INDEX('Compile Data'!$BF$12:$CA$93,$A52-1921,'Report - ALL (DASHBOARD)'!$W$3) -> 51.6214447 | E52: =INDEX('Compile Data'!$CD$12:$CY$93,$A52-1921,'Report - ALL (DASHBOARD)'!$W$3) -> 51.26187897 | F52: =INDEX('Compile Data'!$DB$12:$DW$93,$A52-1921,'Report - ALL (DASHBOARD)'!$W$3) -> 50.9408989 | O52: 24 | P52: 0.2839506173 | Q52: =INDEX('Compile Data'!$J$123:$AE$204,$O52,'Report - ALL (DASHBOARD)'!$W$3) -> 52.85365677 | R52: =INDEX('Compile Data'!$AH$123:$BC$204,$O52,'Report - ALL (DASHBOARD)'!$W$3) -> 52.85730743 | S52: =INDEX('Compile Data'!$BF$123:$CA$204,$O52,'Report - ALL (DASHBOARD)'!$W$3) -> 52.76912689 | T52: =INDEX('Compile Data'!$CD$123:$CY$204,$O52,'Report - ALL (DASHBOARD)'!$W$3) -> 52.7875061 | U52: =INDEX('Compile Data'!$DB$123:$DW$204,$O52,'Report - ALL (DASHBOARD)'!$W$3) -> 52.54711914
A53: 1946 | B53: =INDEX('Compile Data'!$J$12:$AE$93,$A53-1921,'Report - ALL (DASHBOARD)'!$W$3) -> 51.79418182 | C53: =INDEX('Compile Data'!$AH$12:$BC$93,$A53-1921,'Report - ALL (DASHBOARD)'!$W$3) -> 51.8177681 | D53: =INDEX('Compile Data'!$BF$12:$CA$93,$A53-1921,'Report - ALL (DASHBOARD)'!$W$3) -> 51.81990433 | E53: =INDEX('Compile Data'!$CD$12:$CY$93,$A53-1921,'Report - ALL (DASHBOARD)'!$W$3) -> 51.8212738 | F53: =INDEX('Compile Data'!$DB$12:$DW$93,$A53-1921,'Report - ALL (DASHBOARD)'!$W$3) -> 51.81628036 | O53: 25 | P53: 0.2962962963 | Q53: =INDEX('Compile Data'!$J$123:$AE$204,$O53,'Report - ALL (DASHBOARD)'!$W$3) -> 52.8417511 | R53: =INDEX('Compile Data'!$AH$123:$BC$204,$O53,'Report - ALL (DASHBOARD)'!$W$3) -> 52.79584122 | S53: =INDEX('Compile Data'!$BF$123:$CA$204,$O53,'Report - ALL (DASHBOARD)'!$W$3) -> 52.76067352 | T53: =INDEX('Compile Data'!$CD$123:$CY$204,$O53,'Report - ALL (DASHBOARD)'!$W$3) -> 52.77866364 | U53: =INDEX('Compile Data'!$DB$123:$DW$204,$O53,'Report - ALL (DASHBOARD)'!$W$3) -> 52.53850937
A54: 1947 | B54: =INDEX('Compile Data'!$J$12:$AE$93,$A54-1921,'Report - ALL (DASHBOARD)'!$W$3) -> 52.8417511 | C54: =INDEX('Compile Data'!$AH$12:$BC$93,$A54-1921,'Report - ALL (DASHBOARD)'!$W$3) -> 52.8620224 | D54: =INDEX('Compile Data'!$BF$12:$CA$93,$A54-1921,'Report - ALL (DASHBOARD)'!$W$3) -> 52.82455444 | E54: =INDEX('Compile Data'!$CD$12:$CY$93,$A54-1921,'Report - ALL (DASHBOARD)'!$W$3) -> 52.85452271 | F54: =INDEX('Compile Data'!$DB$12:$DW$93,$A54-1921,'Report - ALL (DASHBOARD)'!$W$3) -> 52.89064407 | O54: 26 | P54: 0.3086419753 | Q54: =INDEX('Compile Data'!$J$123:$AE$204,$O54,'Report - ALL (DASHBOARD)'!$W$3) -> 52.78699493 | R54: =INDEX('Compile Data'!$AH$123:$BC$204,$O54,'Report - ALL (DASHBOARD)'!$W$3) -> 52.78030777 | S54: =INDEX('Compile Data'!$BF$123:$CA$204,$O54,'Report - ALL (DASHBOARD)'!$W$3) -> 52.66753387 | T54: =INDEX('Compile Data'!$CD$123:$CY$204,$O54,'Report - ALL (DASHBOARD)'!$W$3) -> 52.76528168 | U54: =INDEX('Compile Data'!$DB$123:$DW$204,$O54,'Report - ALL (DASHBOARD)'!$W$3) -> 52.48849106
A55: 1948 | B55: =INDEX('Compile Data'!$J$12:$AE$93,$A55-1921,'Report - ALL (DASHBOARD)'!$W$3) -> 50.74880981 | C55: =INDEX('Compile Data'!$AH$12:$BC$93,$A55-1921,'Report - ALL (DASHBOARD)'!$W$3) -> 50.40983582 | D55: =INDEX('Compile Data'!$BF$12:$CA$93,$A55-1921,'Report - ALL (DASHBOARD)'!$W$3) -> 50.40996933 | E55: =INDEX('Compile Data'!$CD$12:$CY$93,$A55-1921,'Report - ALL (DASHBOARD)'!$W$3) -> 50.39599228 | F55: =INDEX('Compile Data'!$DB$12:$DW$93,$A55-1921,'Report - ALL (DASHBOARD)'!$W$3) -> 50.38224792 | O55: 27 | P55: 0.3209876543 | Q55: =INDEX('Compile Data'!$J$123:$AE$204,$O55,'Report - ALL (DASHBOARD)'!$W$3) -> 52.78435898 | R55: =INDEX('Compile Data'!$AH$123:$BC$204,$O55,'Report - ALL (DASHBOARD)'!$W$3) -> 52.72269058 | S55: =INDEX('Compile Data'!$BF$123:$CA$204,$O55,'Report - ALL (DASHBOARD)'!$W$3) -> 52.55150604 | T55: =INDEX('Compile Data'!$CD$123:$CY$204,$O55,'Report - ALL (DASHBOARD)'!$W$3) -> 52.66504669 | U55: =INDEX('Compile Data'!$DB$123:$DW$204,$O55,'Report - ALL (DASHBOARD)'!$W$3) -> 52.47424316
A56: 1949 | B56: =INDEX('Compile Data'!$J$12:$AE$93,$A56-1921,'Report - ALL (DASHBOARD)'!$W$3) -> 51.99155426 | C56: =INDEX('Compile Data'!$AH$12:$BC$93,$A56-1921,'Report - ALL (DASHBOARD)'!$W$3) -> 52.00407791 | D56: =INDEX('Compile Data'!$BF$12:$CA$93,$A56-1921,'Report - ALL (DASHBOARD)'!$W$3) -> 52.01309586 | E56: =INDEX('Compile Data'!$CD$12:$CY$93,$A56-1921,'Report - ALL (DASHBOARD)'!$W$3) -> 52.0096283 | F56: =INDEX('Compile Data'!$DB$12:$DW$93,$A56-1921,'Report - ALL (DASHBOARD)'!$W$3) -> 51.99376678 | O56: 28 | P56: 0.3333333333 | Q56: =INDEX('Compile Data'!$J$123:$AE$204,$O56,'Report - ALL (DASHBOARD)'!$W$3) -> 52.74786377 | R56: =INDEX('Compile Data'!$AH$123:$BC$204,$O56,'Report - ALL (DASHBOARD)'!$W$3) -> 52.63885117 | S56: =INDEX('Compile Data'!$BF$123:$CA$204,$O56,'Report - ALL (DASHBOARD)'!$W$3) -> 52.53428268 | T56: =INDEX('Compile Data'!$CD$123:$CY$204,$O56,'Report - ALL (DASHBOARD)'!$W$3) -> 52.55936813 | U56: =INDEX('Compile Data'!$DB$123:$DW$204,$O56,'Report - ALL (DASHBOARD)'!$W$3) -> 52.40343857
A57: 1950 | B57: =INDEX('Compile Data'!$J$12:$AE$93,$A57-1921,'Report - ALL (DASHBOARD)'!$W$3) -> 52.29706955 | C57: =INDEX('Compile Data'!$AH$12:$BC$93,$A57-1921,'Report - ALL (DASHBOARD)'!$W$3) -> 52.29218292 | D57: =INDEX('Compile Data'!$BF$12:$CA$93,$A57-1921,'Report - ALL (DASHBOARD)'!$W$3) -> 52.34736633 | E57: =INDEX('Compile Data'!$CD$12:$CY$93,$A57-1921,'Report - ALL (DASHBOARD)'!$W$3) -> 52.35584259 | F57: =INDEX('Compile Data'!$DB$12:$DW$93,$A57-1921,'Report - ALL (DASHBOARD)'!$W$3) -> 52.36849213 | O57: 29 | P57: 0.3456790123 | Q57: =INDEX('Compile Data'!$J$123:$AE$204,$O57,'Report - ALL (DASHBOARD)'!$W$3) -> 52.74274445 | R57: =INDEX('Compile Data'!$AH$123:$BC$204,$O57,'Report - ALL (DASHBOARD)'!$W$3) -> 52.54386139 | S57: =INDEX('Compile Data'!$BF$123:$CA$204,$O57,'Report - ALL (DASHBOARD)'!$W$3) -> 52.53048706 | T57: =INDEX('Compile Data'!$CD$123:$CY$204,$O57,'Report - ALL (DASHBOARD)'!$W$3) -> 52.53683472 | U57: =INDEX('Compile Data'!$DB$123:$DW$204,$O57,'Report - ALL (DASHBOARD)'!$W$3) -> 52.36849213
A58: 1951 | B58: =INDEX('Compile Data'!$J$12:$AE$93,$A58-1921,'Report - ALL (DASHBOARD)'!$W$3) -> 50.68167496 | C58: =INDEX('Compile Data'!$AH$12:$BC$93,$A58-1921,'Report - ALL (DASHBOARD)'!$W$3) -> 50.72542572 | D58: =INDEX('Compile Data'!$BF$12:$CA$93,$A58-1921,'Report - ALL (DASHBOARD)'!$W$3) -> 50.701828 | E58: =INDEX('Compile Data'!$CD$12:$CY$93,$A58-1921,'Report - ALL (DASHBOARD)'!$W$3) -> 50.69851685 | F58: =INDEX('Compile Data'!$DB$12:$DW$93,$A58-1921,'Report - ALL (DASHBOARD)'!$W$3) -> 50.69298935 | O58: 30 | P58: 0.3580246914 | Q58: =INDEX('Compile Data'!$J$123:$AE$204,$O58,'Report - ALL (DASHBOARD)'!$W$3) -> 52.60937881 | R58: =INDEX('Compile Data'!$AH$123:$BC$204,$O58,'Report - ALL (DASHBOARD)'!$W$3) -> 52.54146576 | S58: =INDEX('Compile Data'!$BF$123:$CA$204,$O58,'Report - ALL (DASHBOARD)'!$W$3) -> 52.38694382 | T58: =INDEX('Compile Data'!$CD$123:$CY$204,$O58,'Report - ALL (DASHBOARD)'!$W$3) -> 52.5290184 | U58: =INDEX('Compile Data'!$DB$123:$DW$204,$O58,'Report - ALL (DASHBOARD)'!$W$3) -> 52.29004288
A59: 1952 | B59: =INDEX('Compile Data'!$J$12:$AE$93,$A59-1921,'Report - ALL (DASHBOARD)'!$W$3) -> 50.35299683 | C59: =INDEX('Compile Data'!$AH$12:$BC$93,$A59-1921,'Report - ALL (DASHBOARD)'!$W$3) -> 50.25788879 | D59: =INDEX('Compile Data'!$BF$12:$CA$93,$A59-1921,'Report - ALL (DASHBOARD)'!$W$3) -> 50.3596344 | E59: =INDEX('Compile Data'!$CD$12:$CY$93,$A59-1921,'Report - ALL (DASHBOARD)'!$W$3) -> 50.3644104 | F59: =INDEX('Compile Data'!$DB$12:$DW$93,$A59-1921,'Report - ALL (DASHBOARD)'!$W$3) -> 50.29238129 | O59: 31 | P59: 0.3703703704 | Q59: =INDEX('Compile Data'!$J$123:$AE$204,$O59,'Report - ALL (DASHBOARD)'!$W$3) -> 52.60756683 | R59: =INDEX('Compile Data'!$AH$123:$BC$204,$O59,'Report - ALL (DASHBOARD)'!$W$3) -> 52.50654602 | S59: =INDEX('Compile Data'!$BF$123:$CA$204,$O59,'Report - ALL (DASHBOARD)'!$W$3) -> 52.37314606 | T59: =INDEX('Compile Data'!$CD$123:$CY$204,$O59,'Report - ALL (DASHBOARD)'!$W$3) -> 52.39776611 | U59: =INDEX('Compile Data'!$DB$123:$DW$204,$O59,'Report - ALL (DASHBOARD)'!$W$3) -> 52.28369522
A60: 1953 | B60: =INDEX('Compile Data'!$J$12:$AE$93,$A60-1921,'Report - ALL (DASHBOARD)'!$W$3) -> 50.2575531 | C60: =INDEX('Compile Data'!$AH$12:$BC$93,$A60-1921,'Report - ALL (DASHBOARD)'!$W$3) -> 50.26280212 | D60: =INDEX('Compile Data'!$BF$12:$CA$93,$A60-1921,'Report - ALL (DASHBOARD)'!$W$3) -> 50.2709198 | E60: =INDEX('Compile Data'!$CD$12:$CY$93,$A60-1921,'Report - ALL (DASHBOARD)'!$W$3) -> 50.27375412 | F60: =INDEX('Compile Data'!$DB$12:$DW$93,$A60-1921,'Report - ALL (DASHBOARD)'!$W$3) -> 50.2628212 | O60: 32 | P60: 0.3827160494 | Q60: =INDEX('Compile Data'!$J$123:$AE$204,$O60,'Report - ALL (DASHBOARD)'!$W$3) -> 52.48600006 | R60: =INDEX('Compile Data'!$AH$123:$BC$204,$O60,'Report - ALL (DASHBOARD)'!$W$3) -> 52.49517059 | S60: =INDEX('Compile Data'!$BF$123:$CA$204,$O60,'Report - ALL (DASHBOARD)'!$W$3) -> 52.34736633 | T60: =INDEX('Compile Data'!$CD$123:$CY$204,$O60,'Report - ALL (DASHBOARD)'!$W$3) -> 52.35584259 | U60: =INDEX('Compile Data'!$DB$123:$DW$204,$O60,'Report - ALL (DASHBOARD)'!$W$3) -> 52.25014496
A61: 1954 | B61: =INDEX('Compile Data'!$J$12:$AE$93,$A61-1921,'Report - ALL (DASHBOARD)'!$W$3) -> 50.80907059 | C61: =INDEX('Compile Data'!$AH$12:$BC$93,$A61-1921,'Report - ALL (DASHBOARD)'!$W$3) -> 50.77133942 | D61: =INDEX('Compile Data'!$BF$12:$CA$93,$A61-1921,'Report - ALL (DASHBOARD)'!$W$3) -> 50.69142151 | E61: =INDEX('Compile Data'!$CD$12:$CY$93,$A61-1921,'Report - ALL (DASHBOARD)'!$W$3) -> 50.54905319 | F61: =INDEX('Compile Data'!$DB$12:$DW$93,$A61-1921,'Report - ALL (DASHBOARD)'!$W$3) -> 50.7439537 | O61: 33 | P61: =(O61-1)/81 -> 0.3950617284 | Q61: =INDEX('Compile Data'!$J$123:$AE$204,$O61,'Report - ALL (DASHBOARD)'!$W$3) -> 52.43929672 | R61: =INDEX('Compile Data'!$AH$123:$BC$204,$O61,'Report - ALL (DASHBOARD)'!$W$3) -> 52.38200378 | S61: =INDEX('Compile Data'!$BF$123:$CA$204,$O61,'Report - ALL (DASHBOARD)'!$W$3) -> 52.32866669 | T61: =INDEX('Compile Data'!$CD$123:$CY$204,$O61,'Report - ALL (DASHBOARD)'!$W$3) -> 52.35270309 | U61: =INDEX('Compile Data'!$DB$123:$DW$204,$O61,'Report - ALL (DASHBOARD)'!$W$3) -> 52.24908447
A62: 1955 | B62: =INDEX('Compile Data'!$J$12:$AE$93,$A62-1921,'Report - ALL (DASHBOARD)'!$W$3) -> 53.03466415 | C62: =INDEX('Compile Data'!$AH$12:$BC$93,$A62-1921,'Report - ALL (DASHBOARD)'!$W$3) -> 52.63885117 | D62: =INDEX('Compile Data'!$BF$12:$CA$93,$A62-1921,'Report - ALL (DASHBOARD)'!$W$3) -> 52.66753387 | E62: =INDEX('Compile Data'!$CD$12:$CY$93,$A62-1921,'Report - ALL (DASHBOARD)'!$W$3) -> 52.66504669 | F62: =INDEX('Compile Data'!$DB$12:$DW$93,$A62-1921,'Report - ALL (DASHBOARD)'!$W$3) -> 52.67251587 | O62: 34 | P62: 0.4074074074 | Q62: =INDEX('Compile Data'!$J$123:$AE$204,$O62,'Report - ALL (DASHBOARD)'!$W$3) -> 52.36772537 | R62: =INDEX('Compile Data'!$AH$123:$BC$204,$O62,'Report - ALL (DASHBOARD)'!$W$3) -> 52.36175919 | S62: =INDEX('Compile Data'!$BF$123:$CA$204,$O62,'Report - ALL (DASHBOARD)'!$W$3) -> 52.3200531 | T62: =INDEX('Compile Data'!$CD$123:$CY$204,$O62,'Report - ALL (DASHBOARD)'!$W$3) -> 52.31959152 | U62: =INDEX('Compile Data'!$DB$123:$DW$204,$O62,'Report - ALL (DASHBOARD)'!$W$3) -> 52.24640274
A63: 1956 | B63: =INDEX('Compile Data'!$J$12:$AE$93,$A63-1921,'Report - ALL (DASHBOARD)'!$W$3) -> 50.07141876 | C63: =INDEX('Compile Data'!$AH$12:$BC$93,$A63-1921,'Report - ALL (DASHBOARD)'!$W$3) -> 50.0755043 | D63: =INDEX('Compile Data'!$BF$12:$CA$93,$A63-1921,'Report - ALL (DASHBOARD)'!$W$3) -> 50.07925797 | E63: =INDEX('Compile Data'!$CD$12:$CY$93,$A63-1921,'Report - ALL (DASHBOARD)'!$W$3) -> 50.0687561 | F63: =INDEX('Compile Data'!$DB$12:$DW$93,$A63-1921,'Report - ALL (DASHBOARD)'!$W$3) -> 50.07416534 | O63: 35 | P63: 0.4197530864 | Q63: =INDEX('Compile Data'!$J$123:$AE$204,$O63,'Report - ALL (DASHBOARD)'!$W$3) -> 52.33513641 | R63: =INDEX('Compile Data'!$AH$123:$BC$204,$O63,'Report - ALL (DASHBOARD)'!$W$3) -> 52.3152504 | S63: =INDEX('Compile Data'!$BF$123:$CA$204,$O63,'Report - ALL (DASHBOARD)'!$W$3) -> 52.30241394 | T63: =INDEX('Compile Data'!$CD$123:$CY$204,$O63,'Report - ALL (DASHBOARD)'!$W$3) -> 52.30386734 | U63: =INDEX('Compile Data'!$DB$123:$DW$204,$O63,'Report - ALL (DASHBOARD)'!$W$3) -> 52.24060059
A64: 1957 | B64: =INDEX('Compile Data'!$J$12:$AE$93,$A64-1921,'Report - ALL (DASHBOARD)'!$W$3) -> 51.34958649 | C64: =INDEX('Compile Data'!$AH$12:$BC$93,$A64-1921,'Report - ALL (DASHBOARD)'!$W$3) -> 51.28595352 | D64: =INDEX('Compile Data'!$BF$12:$CA$93,$A64-1921,'Report - ALL (DASHBOARD)'!$W$3) -> 51.24829483 | E64: =INDEX('Compile Data'!$CD$12:$CY$93,$A64-1921,'Report - ALL (DASHBOARD)'!$W$3) -> 51.23656082 | F64: =INDEX('Compile Data'!$DB$12:$DW$93,$A64-1921,'Report - ALL (DASHBOARD)'!$W$3) -> 51.23146057 | O64: 36 | P64: 0.4320987654 | Q64: =INDEX('Compile Data'!$J$123:$AE$204,$O64,'Report - ALL (DASHBOARD)'!$W$3) -> 52.32608414 | R64: =INDEX('Compile Data'!$AH$123:$BC$204,$O64,'Report - ALL (DASHBOARD)'!$W$3) -> 52.29218292 | S64: =INDEX('Compile Data'!$BF$123:$CA$204,$O64,'Report - ALL (DASHBOARD)'!$W$3) -> 52.29227066 | T64: =INDEX('Compile Data'!$CD$123:$CY$204,$O64,'Report - ALL (DASHBOARD)'!$W$3) -> 52.29560089 | U64: =INDEX('Compile Data'!$DB$123:$DW$204,$O64,'Report - ALL (DASHBOARD)'!$W$3) -> 52.21641159
A65: 1958 | B65: =INDEX('Compile Data'!$J$12:$AE$93,$A65-1921,'Report - ALL (DASHBOARD)'!$W$3) -> 50.28275299 | C65: =INDEX('Compile Data'!$AH$12:$BC$93,$A65-1921,'Report - ALL (DASHBOARD)'!$W$3) -> 50.29725647 | D65: =INDEX('Compile Data'!$BF$12:$CA$93,$A65-1921,'Report - ALL (DASHBOARD)'!$W$3) -> 50.2950592 | E65: =INDEX('Compile Data'!$CD$12:$CY$93,$A65-1921,'Report - ALL (DASHBOARD)'!$W$3) -> 50.29364395 | F65: =INDEX('Compile Data'!$DB$12:$DW$93,$A65-1921,'Report - ALL (DASHBOARD)'!$W$3) -> 50.28327179 | O65: 37 | P65: 0.4444444444 | Q65: =INDEX('Compile Data'!$J$123:$AE$204,$O65,'Report - ALL (DASHBOARD)'!$W$3) -> 52.29706955 | R65: =INDEX('Compile Data'!$AH$123:$BC$204,$O65,'Report - ALL (DASHBOARD)'!$W$3) -> 52.2783699 | S65: =INDEX('Compile Data'!$BF$123:$CA$204,$O65,'Report - ALL (DASHBOARD)'!$W$3) -> 52.13994598 | T65: =INDEX('Compile Data'!$CD$123:$CY$204,$O65,'Report - ALL (DASHBOARD)'!$W$3) -> 52.1558075 | U65: =INDEX('Compile Data'!$DB$123:$DW$204,$O65,'Report - ALL (DASHBOARD)'!$W$3) -> 52.18345642
A66: 1959 | B66: =INDEX('Compile Data'!$J$12:$AE$93,$A66-1921,'Report - ALL (DASHBOARD)'!$W$3) -> 53.89011002 | C66: =INDEX('Compile Data'!$AH$12:$BC$93,$A66-1921,'Report - ALL (DASHBOARD)'!$W$3) -> 53.78842163 | D66: =INDEX('Compile Data'!$BF$12:$CA$93,$A66-1921,'Report - ALL (DASHBOARD)'!$W$3) -> 53.58084106 | E66: =INDEX('Compile Data'!$CD$12:$CY$93,$A66-1921,'Report - ALL (DASHBOARD)'!$W$3) -> 53.37161255 | F66: =INDEX('Compile Data'!$DB$12:$DW$93,$A66-1921,'Report - ALL (DASHBOARD)'!$W$3) -> 53.11721802 | O66: 38 | P66: 0.4567901235 | Q66: =INDEX('Compile Data'!$J$123:$AE$204,$O66,'Report - ALL (DASHBOARD)'!$W$3) -> 52.22454453 | R66: =INDEX('Compile Data'!$AH$123:$BC$204,$O66,'Report - ALL (DASHBOARD)'!$W$3) -> 52.2562561 | S66: =INDEX('Compile Data'!$BF$123:$CA$204,$O66,'Report - ALL (DASHBOARD)'!$W$3) -> 52.11533737 | T66: =INDEX('Compile Data'!$CD$123:$CY$204,$O66,'Report - ALL (DASHBOARD)'!$W$3) -> 52.08397675 | U66: =INDEX('Compile Data'!$DB$123:$DW$204,$O66,'Report - ALL (DASHBOARD)'!$W$3) -> 52.09082413
A67: 1960 | B67: =INDEX('Compile Data'!$J$12:$AE$93,$A67-1921,'Report - ALL (DASHBOARD)'!$W$3) -> 52.36772537 | C67: =INDEX('Compile Data'!$AH$12:$BC$93,$A67-1921,'Report - ALL (DASHBOARD)'!$W$3) -> 52.2562561 | D67: =INDEX('Compile Data'!$BF$12:$CA$93,$A67-1921,'Report - ALL (DASHBOARD)'!$W$3) -> 52.11533737 | E67: =INDEX('Compile Data'!$CD$12:$CY$93,$A67-1921,'Report - ALL (DASHBOARD)'!$W$3) -> 52.00835037 | F67: =INDEX('Compile Data'!$DB$12:$DW$93,$A67-1921,'Report - ALL (DASHBOARD)'!$W$3) -> 52.02920532 | O67: 39 | P67: 0.4691358025 | Q67: =INDEX('Compile Data'!$J$123:$AE$204,$O67,'Report - ALL (DASHBOARD)'!$W$3) -> 52.12436295 | R67: =INDEX('Compile Data'!$AH$123:$BC$204,$O67,'Report - ALL (DASHBOARD)'!$W$3) -> 52.09376907 | S67: =INDEX('Compile Data'!$BF$123:$CA$204,$O67,'Report - ALL (DASHBOARD)'!$W$3) -> 52.08003235 | T67: =INDEX('Compile Data'!$CD$123:$CY$204,$O67,'Report - ALL (DASHBOARD)'!$W$3) -> 52.0096283 | U67: =INDEX('Compile Data'!$DB$123:$DW$204,$O67,'Report - ALL (DASHBOARD)'!$W$3) -> 52.02920532
A68: 1961 | B68: =INDEX('Compile Data'!$J$12:$AE$93,$A68-1921,'Report - ALL (DASHBOARD)'!$W$3) -> 52.43929672 | C68: =INDEX('Compile Data'!$AH$12:$BC$93,$A68-1921,'Report - ALL (DASHBOARD)'!$W$3) -> 52.36175919 | D68: =INDEX('Compile Data'!$BF$12:$CA$93,$A68-1921,'Report - ALL (DASHBOARD)'!$W$3) -> 52.29227066 | E68: =INDEX('Compile Data'!$CD$12:$CY$93,$A68-1921,'Report - ALL (DASHBOARD)'!$W$3) -> 52.30386734 | F68: =INDEX('Compile Data'!$DB$12:$DW$93,$A68-1921,'Report - ALL (DASHBOARD)'!$W$3) -> 52.24908447 | O68: 40 | P68: 0.4814814815 | Q68: =INDEX('Compile Data'!$J$123:$AE$204,$O68,'Report - ALL (DASHBOARD)'!$W$3) -> 52.09086227 | R68: =INDEX('Compile Data'!$AH$123:$BC$204,$O68,'Report - ALL (DASHBOARD)'!$W$3) -> 52.04582596 | S68: =INDEX('Compile Data'!$BF$123:$CA$204,$O68,'Report - ALL (DASHBOARD)'!$W$3) -> 52.06939316 | T68: =INDEX('Compile Data'!$CD$123:$CY$204,$O68,'Report - ALL (DASHBOARD)'!$W$3) -> 52.00835037 | U68: =INDEX('Compile Data'!$DB$123:$DW$204,$O68,'Report - ALL (DASHBOARD)'!$W$3) -> 51.99376678
A69: 1962 | B69: =INDEX('Compile Data'!$J$12:$AE$93,$A69-1921,'Report - ALL (DASHBOARD)'!$W$3) -> 52.02202988 | C69: =INDEX('Compile Data'!$AH$12:$BC$93,$A69-1921,'Report - ALL (DASHBOARD)'!$W$3) -> 52.04582596 | D69: =INDEX('Compile Data'!$BF$12:$CA$93,$A69-1921,'Report - ALL (DASHBOARD)'!$W$3) -> 51.85173416 | E69: =INDEX('Compile Data'!$CD$12:$CY$93,$A69-1921,'Report - ALL (DASHBOARD)'!$W$3) -> 51.93555069 | F69: =INDEX('Compile Data'!$DB$12:$DW$93,$A69-1921,'Report - ALL (DASHBOARD)'!$W$3) -> 51.93492889 | O69: 41 | P69: 0.4938271605 | Q69: =INDEX('Compile Data'!$J$123:$AE$204,$O69,'Report - ALL (DASHBOARD)'!$W$3) -> 52.07677078 | R69: =INDEX('Compile Data'!$AH$123:$BC$204,$O69,'Report - ALL (DASHBOARD)'!$W$3) -> 52.00407791 | S69: =INDEX('Compile Data'!$BF$123:$CA$204,$O69,'Report - ALL (DASHBOARD)'!$W$3) -> 52.01309586 | T69: =INDEX('Compile Data'!$CD$123:$CY$204,$O69,'Report - ALL (DASHBOARD)'!$W$3) -> 51.97053528 | U69: =INDEX('Compile Data'!$DB$123:$DW$204,$O69,'Report - ALL (DASHBOARD)'!$W$3) -> 51.93492889
A70: 1963 | B70: =INDEX('Compile Data'!$J$12:$AE$93,$A70-1921,'Report - ALL (DASHBOARD)'!$W$3) -> 50.77045822 | C70: =INDEX('Compile Data'!$AH$12:$BC$93,$A70-1921,'Report - ALL (DASHBOARD)'!$W$3) -> 50.76702118 | D70: =INDEX('Compile Data'!$BF$12:$CA$93,$A70-1921,'Report - ALL (DASHBOARD)'!$W$3) -> 50.76569748 | E70: =INDEX('Compile Data'!$CD$12:$CY$93,$A70-1921,'Report - ALL (DASHBOARD)'!$W$3) -> 50.7624588 | F70: =INDEX('Compile Data'!$DB$12:$DW$93,$A70-1921,'Report - ALL (DASHBOARD)'!$W$3) -> 50.75377274 | O70: 42 | P70: 0.5061728395 | Q70: =INDEX('Compile Data'!$J$123:$AE$204,$O70,'Report - ALL (DASHBOARD)'!$W$3) -> 52.02202988 | R70: =INDEX('Compile Data'!$AH$123:$BC$204,$O70,'Report - ALL (DASHBOARD)'!$W$3) -> 51.83765793 | S70: =INDEX('Compile Data'!$BF$123:$CA$204,$O70,'Report - ALL (DASHBOARD)'!$W$3) -> 51.85173416 | T70: =INDEX('Compile Data'!$CD$123:$CY$204,$O70,'Report - ALL (DASHBOARD)'!$W$3) -> 51.93555069 | U70: =INDEX('Compile Data'!$DB$123:$DW$204,$O70,'Report - ALL (DASHBOARD)'!$W$3) -> 51.81628036
A71: 1964 | B71: =INDEX('Compile Data'!$J$12:$AE$93,$A71-1921,'Report - ALL (DASHBOARD)'!$W$3) -> 52.48600006 | C71: =INDEX('Compile Data'!$AH$12:$BC$93,$A71-1921,'Report - ALL (DASHBOARD)'!$W$3) -> 51.6787529 | D71: =INDEX('Compile Data'!$BF$12:$CA$93,$A71-1921,'Report - ALL (DASHBOARD)'!$W$3) -> 52.06939316 | E71: =INDEX('Compile Data'!$CD$12:$CY$93,$A71-1921,'Report - ALL (DASHBOARD)'!$W$3) -> 52.5290184 | F71: =INDEX('Compile Data'!$DB$12:$DW$93,$A71-1921,'Report - ALL (DASHBOARD)'!$W$3) -> 51.72373199 | O71: 43 | P71: 0.5185185185 | Q71: =INDEX('Compile Data'!$J$123:$AE$204,$O71,'Report - ALL (DASHBOARD)'!$W$3) -> 51.99155426 | R71: =INDEX('Compile Data'!$AH$123:$BC$204,$O71,'Report - ALL (DASHBOARD)'!$W$3) -> 51.83375931 | S71: =INDEX('Compile Data'!$BF$123:$CA$204,$O71,'Report - ALL (DASHBOARD)'!$W$3) -> 51.81990433 | T71: =INDEX('Compile Data'!$CD$123:$CY$204,$O71,'Report - ALL (DASHBOARD)'!$W$3) -> 51.8212738 | U71: =INDEX('Compile Data'!$DB$123:$DW$204,$O71,'Report - ALL (DASHBOARD)'!$W$3) -> 51.79595184
A72: 1965 | B72: =INDEX('Compile Data'!$J$12:$AE$93,$A72-1921,'Report - ALL (DASHBOARD)'!$W$3) -> 50.19544601 | C72: =INDEX('Compile Data'!$AH$12:$BC$93,$A72-1921,'Report - ALL (DASHBOARD)'!$W$3) -> 50.13624573 | D72: =INDEX('Compile Data'!$BF$12:$CA$93,$A72-1921,'Report - ALL (DASHBOARD)'!$W$3) -> 50.13992691 | E72: =INDEX('Compile Data'!$CD$12:$CY$93,$A72-1921,'Report - ALL (DASHBOARD)'!$W$3) -> 50.1293869 | F72: =INDEX('Compile Data'!$DB$12:$DW$93,$A72-1921,'Report - ALL (DASHBOARD)'!$W$3) -> 50.13085938 | O72: 44 | P72: 0.5308641975 | Q72: =INDEX('Compile Data'!$J$123:$AE$204,$O72,'Report - ALL (DASHBOARD)'!$W$3) -> 51.86030197 | R72: =INDEX('Compile Data'!$AH$123:$BC$204,$O72,'Report - ALL (DASHBOARD)'!$W$3) -> 51.8177681 | S72: =INDEX('Compile Data'!$BF$123:$CA$204,$O72,'Report - ALL (DASHBOARD)'!$W$3) -> 51.79745483 | T72: =INDEX('Compile Data'!$CD$123:$CY$204,$O72,'Report - ALL (DASHBOARD)'!$W$3) -> 51.80405045 | U72: =INDEX('Compile Data'!$DB$123:$DW$204,$O72,'Report - ALL (DASHBOARD)'!$W$3) -> 51.78774643
A73: 1966 | B73: =INDEX('Compile Data'!$J$12:$AE$93,$A73-1921,'Report - ALL (DASHBOARD)'!$W$3) -> 51.24782562 | C73: =INDEX('Compile Data'!$AH$12:$BC$93,$A73-1921,'Report - ALL (DASHBOARD)'!$W$3) -> 51.27944565 | D73: =INDEX('Compile Data'!$BF$12:$CA$93,$A73-1921,'Report - ALL (DASHBOARD)'!$W$3) -> 51.2997551 | E73: =INDEX('Compile Data'!$CD$12:$CY$93,$A73-1921,'Report - ALL (DASHBOARD)'!$W$3) -> 51.29881287 | F73: =INDEX('Compile Data'!$DB$12:$DW$93,$A73-1921,'Report - ALL (DASHBOARD)'!$W$3) -> 51.29712296 | O73: 45 | P73: 0.5432098765 | Q73: =INDEX('Compile Data'!$J$123:$AE$204,$O73,'Report - ALL (DASHBOARD)'!$W$3) -> 51.83347321 | R73: =INDEX('Compile Data'!$AH$123:$BC$204,$O73,'Report - ALL (DASHBOARD)'!$W$3) -> 51.6787529 | S73: =INDEX('Compile Data'!$BF$123:$CA$204,$O73,'Report - ALL (DASHBOARD)'!$W$3) -> 51.6214447 | T73: =INDEX('Compile Data'!$CD$123:$CY$204,$O73,'Report - ALL (DASHBOARD)'!$W$3) -> 51.46110535 | U73: =INDEX('Compile Data'!$DB$123:$DW$204,$O73,'Report - ALL (DASHBOARD)'!$W$3) -> 51.72373199
A74: 1967 | B74: =INDEX('Compile Data'!$J$12:$AE$93,$A74-1921,'Report - ALL (DASHBOARD)'!$W$3) -> 50.26847076 | C74: =INDEX('Compile Data'!$AH$12:$BC$93,$A74-1921,'Report - ALL (DASHBOARD)'!$W$3) -> 50.27682877 | D74: =INDEX('Compile Data'!$BF$12:$CA$93,$A74-1921,'Report - ALL (DASHBOARD)'!$W$3) -> 50.27622604 | E74: =INDEX('Compile Data'!$CD$12:$CY$93,$A74-1921,'Report - ALL (DASHBOARD)'!$W$3) -> 50.27629471 | F74: =INDEX('Compile Data'!$DB$12:$DW$93,$A74-1921,'Report - ALL (DASHBOARD)'!$W$3) -> 50.27594757 | O74: 46 | P74: 0.5555555556 | Q74: =INDEX('Compile Data'!$J$123:$AE$204,$O74,'Report - ALL (DASHBOARD)'!$W$3) -> 51.79418182 | R74: =INDEX('Compile Data'!$AH$123:$BC$204,$O74,'Report - ALL (DASHBOARD)'!$W$3) -> 51.65313339 | S74: =INDEX('Compile Data'!$BF$123:$CA$204,$O74,'Report - ALL (DASHBOARD)'!$W$3) -> 51.46242523 | T74: =INDEX('Compile Data'!$CD$123:$CY$204,$O74,'Report - ALL (DASHBOARD)'!$W$3) -> 51.33957672 | U74: =INDEX('Compile Data'!$DB$123:$DW$204,$O74,'Report - ALL (DASHBOARD)'!$W$3) -> 51.5591774
A75: 1968 | B75: =INDEX('Compile Data'!$J$12:$AE$93,$A75-1921,'Report - ALL (DASHBOARD)'!$W$3) -> 52.78699493 | C75: =INDEX('Compile Data'!$AH$12:$BC$93,$A75-1921,'Report - ALL (DASHBOARD)'!$W$3) -> 52.49517059 | D75: =INDEX('Compile Data'!$BF$12:$CA$93,$A75-1921,'Report - ALL (DASHBOARD)'!$W$3) -> 52.53048706 | E75: =INDEX('Compile Data'!$CD$12:$CY$93,$A75-1921,'Report - ALL (DASHBOARD)'!$W$3) -> 52.53683472 | F75: =INDEX('Compile Data'!$DB$12:$DW$93,$A75-1921,'Report - ALL (DASHBOARD)'!$W$3) -> 52.48849106 | O75: 47 | P75: 0.5679012346 | Q75: =INDEX('Compile Data'!$J$123:$AE$204,$O75,'Report - ALL (DASHBOARD)'!$W$3) -> 51.7443161 | R75: =INDEX('Compile Data'!$AH$123:$BC$204,$O75,'Report - ALL (DASHBOARD)'!$W$3) -> 51.46004486 | S75: =INDEX('Compile Data'!$BF$123:$CA$204,$O75,'Report - ALL (DASHBOARD)'!$W$3) -> 51.34886551 | T75: =INDEX('Compile Data'!$CD$123:$CY$204,$O75,'Report - ALL (DASHBOARD)'!$W$3) -> 51.29881287 | U75: =INDEX('Compile Data'!$DB$123:$DW$204,$O75,'Report - ALL (DASHBOARD)'!$W$3) -> 51.46418381
A76: 1969 | B76: =INDEX('Compile Data'!$J$12:$AE$93,$A76-1921,'Report - ALL (DASHBOARD)'!$W$3) -> 50.4421196 | C76: =INDEX('Compile Data'!$AH$12:$BC$93,$A76-1921,'Report - ALL (DASHBOARD)'!$W$3) -> 50.42799377 | D76: =INDEX('Compile Data'!$BF$12:$CA$93,$A76-1921,'Report - ALL (DASHBOARD)'!$W$3) -> 50.42825317 | E76: =INDEX('Compile Data'!$CD$12:$CY$93,$A76-1921,'Report - ALL (DASHBOARD)'!$W$3) -> 50.43223572 | F76: =INDEX('Compile Data'!$DB$12:$DW$93,$A76-1921,'Report - ALL (DASHBOARD)'!$W$3) -> 50.41270065 | O76: 48 | P76: 0.5802469136 | Q76: =INDEX('Compile Data'!$J$123:$AE$204,$O76,'Report - ALL (DASHBOARD)'!$W$3) -> 51.524086 | R76: =INDEX('Compile Data'!$AH$123:$BC$204,$O76,'Report - ALL (DASHBOARD)'!$W$3) -> 51.28595352 | S76: =INDEX('Compile Data'!$BF$123:$CA$204,$O76,'Report - ALL (DASHBOARD)'!$W$3) -> 51.2997551 | T76: =INDEX('Compile Data'!$CD$123:$CY$204,$O76,'Report - ALL (DASHBOARD)'!$W$3) -> 51.26187897 | U76: =INDEX('Compile Data'!$DB$123:$DW$204,$O76,'Report - ALL (DASHBOARD)'!$W$3) -> 51.29712296
A77: 1970 | B77: =INDEX('Compile Data'!$J$12:$AE$93,$A77-1921,'Report - ALL (DASHBOARD)'!$W$3) -> 50.30679703 | C77: =INDEX('Compile Data'!$AH$12:$BC$93,$A77-1921,'Report - ALL (DASHBOARD)'!$W$3) -> 50.31232071 | D77: =INDEX('Compile Data'!$BF$12:$CA$93,$A77-1921,'Report - ALL (DASHBOARD)'!$W$3) -> 50.30466843 | E77: =INDEX('Compile Data'!$CD$12:$CY$93,$A77-1921,'Report - ALL (DASHBOARD)'!$W$3) -> 50.83620071 | F77: =INDEX('Compile Data'!$DB$12:$DW$93,$A77-1921,'Report - ALL (DASHBOARD)'!$W$3) -> 50.87394333 | O77: 49 | P77: 0.5925925926 | Q77: =INDEX('Compile Data'!$J$123:$AE$204,$O77,'Report - ALL (DASHBOARD)'!$W$3) -> 51.34958649 | R77: =INDEX('Compile Data'!$AH$123:$BC$204,$O77,'Report - ALL (DASHBOARD)'!$W$3) -> 51.27944565 | S77: =INDEX('Compile Data'!$BF$123:$CA$204,$O77,'Report - ALL (DASHBOARD)'!$W$3) -> 51.24829483 | T77: =INDEX('Compile Data'!$CD$123:$CY$204,$O77,'Report - ALL (DASHBOARD)'!$W$3) -> 51.23656082 | U77: =INDEX('Compile Data'!$DB$123:$DW$204,$O77,'Report - ALL (DASHBOARD)'!$W$3) -> 51.23146057
A78: 1971 | B78: =INDEX('Compile Data'!$J$12:$AE$93,$A78-1921,'Report - ALL (DASHBOARD)'!$W$3) -> 50.11315918 | C78: =INDEX('Compile Data'!$AH$12:$BC$93,$A78-1921,'Report - ALL (DASHBOARD)'!$W$3) -> 50.11059189 | D78: =INDEX('Compile Data'!$BF$12:$CA$93,$A78-1921,'Report - ALL (DASHBOARD)'!$W$3) -> 50.10546112 | E78: =INDEX('Compile Data'!$CD$12:$CY$93,$A78-1921,'Report - ALL (DASHBOARD)'!$W$3) -> 50.12721252 | F78: =INDEX('Compile Data'!$DB$12:$DW$93,$A78-1921,'Report - ALL (DASHBOARD)'!$W$3) -> 50.12482071 | O78: 50 | P78: 0.6049382716 | Q78: =INDEX('Compile Data'!$J$123:$AE$204,$O78,'Report - ALL (DASHBOARD)'!$W$3) -> 51.25930405 | R78: =INDEX('Compile Data'!$AH$123:$BC$204,$O78,'Report - ALL (DASHBOARD)'!$W$3) -> 51.21533585 | S78: =INDEX('Compile Data'!$BF$123:$CA$204,$O78,'Report - ALL (DASHBOARD)'!$W$3) -> 51.16837311 | T78: =INDEX('Compile Data'!$CD$123:$CY$204,$O78,'Report - ALL (DASHBOARD)'!$W$3) -> 51.14852905 | U78: =INDEX('Compile Data'!$DB$123:$DW$204,$O78,'Report - ALL (DASHBOARD)'!$W$3) -> 51.15268707
A79: 1972 | B79: =INDEX('Compile Data'!$J$12:$AE$93,$A79-1921,'Report - ALL (DASHBOARD)'!$W$3) -> 51.7443161 | C79: =INDEX('Compile Data'!$AH$12:$BC$93,$A79-1921,'Report - ALL (DASHBOARD)'!$W$3) -> 51.65313339 | D79: =INDEX('Compile Data'!$BF$12:$CA$93,$A79-1921,'Report - ALL (DASHBOARD)'!$W$3) -> 51.34886551 | E79: =INDEX('Compile Data'!$CD$12:$CY$93,$A79-1921,'Report - ALL (DASHBOARD)'!$W$3) -> 51.33957672 | F79: =INDEX('Compile Data'!$DB$12:$DW$93,$A79-1921,'Report - ALL (DASHBOARD)'!$W$3) -> 51.78774643 | O79: 51 | P79: 0.6172839506 | Q79: =INDEX('Compile Data'!$J$123:$AE$204,$O79,'Report - ALL (DASHBOARD)'!$W$3) -> 51.24782562 | R79: =INDEX('Compile Data'!$AH$123:$BC$204,$O79,'Report - ALL (DASHBOARD)'!$W$3) -> 51.18371582 | S79: =INDEX('Compile Data'!$BF$123:$CA$204,$O79,'Report - ALL (DASHBOARD)'!$W$3) -> 51.13647461 | T79: =INDEX('Compile Data'!$CD$123:$CY$204,$O79,'Report - ALL (DASHBOARD)'!$W$3) -> 51.12360001 | U79: =INDEX('Compile Data'!$DB$123:$DW$204,$O79,'Report - ALL (DASHBOARD)'!$W$3) -> 51.13258743
A80: 1973 | B80: =INDEX('Compile Data'!$J$12:$AE$93,$A80-1921,'Report - ALL (DASHBOARD)'!$W$3) -> 50.70771027 | C80: =INDEX('Compile Data'!$AH$12:$BC$93,$A80-1921,'Report - ALL (DASHBOARD)'!$W$3) -> 50.72687149 | D80: =INDEX('Compile Data'!$BF$12:$CA$93,$A80-1921,'Report - ALL (DASHBOARD)'!$W$3) -> 50.75895691 | E80: =INDEX('Compile Data'!$CD$12:$CY$93,$A80-1921,'Report - ALL (DASHBOARD)'!$W$3) -> 50.74990845 | F80: =INDEX('Compile Data'!$DB$12:$DW$93,$A80-1921,'Report - ALL (DASHBOARD)'!$W$3) -> 51.13258743 | O80: 52 | P80: 0.6296296296 | Q80: =INDEX('Compile Data'!$J$123:$AE$204,$O80,'Report - ALL (DASHBOARD)'!$W$3) -> 51.15143204 | R80: =INDEX('Compile Data'!$AH$123:$BC$204,$O80,'Report - ALL (DASHBOARD)'!$W$3) -> 51.15686417 | S80: =INDEX('Compile Data'!$BF$123:$CA$204,$O80,'Report - ALL (DASHBOARD)'!$W$3) -> 51.12520218 | T80: =INDEX('Compile Data'!$CD$123:$CY$204,$O80,'Report - ALL (DASHBOARD)'!$W$3) -> 51.10797882 | U80: =INDEX('Compile Data'!$DB$123:$DW$204,$O80,'Report - ALL (DASHBOARD)'!$W$3) -> 51.12528992
A81: 1974 | B81: =INDEX('Compile Data'!$J$12:$AE$93,$A81-1921,'Report - ALL (DASHBOARD)'!$W$3) -> 49.71268845 | C81: =INDEX('Compile Data'!$AH$12:$BC$93,$A81-1921,'Report - ALL (DASHBOARD)'!$W$3) -> 49.70137405 | D81: =INDEX('Compile Data'!$BF$12:$CA$93,$A81-1921,'Report - ALL (DASHBOARD)'!$W$3) -> 49.69420624 | E81: =INDEX('Compile Data'!$CD$12:$CY$93,$A81-1921,'Report - ALL (DASHBOARD)'!$W$3) -> 49.68525314 | F81: =INDEX('Compile Data'!$DB$12:$DW$93,$A81-1921,'Report - ALL (DASHBOARD)'!$W$3) -> 49.6879158 | O81: 53 | P81: 0.6419753086 | Q81: =INDEX('Compile Data'!$J$123:$AE$204,$O81,'Report - ALL (DASHBOARD)'!$W$3) -> 51.09087372 | R81: =INDEX('Compile Data'!$AH$123:$BC$204,$O81,'Report - ALL (DASHBOARD)'!$W$3) -> 51.09160614 | S81: =INDEX('Compile Data'!$BF$123:$CA$204,$O81,'Report - ALL (DASHBOARD)'!$W$3) -> 51.08049011 | T81: =INDEX('Compile Data'!$CD$123:$CY$204,$O81,'Report - ALL (DASHBOARD)'!$W$3) -> 51.08018494 | U81: =INDEX('Compile Data'!$DB$123:$DW$204,$O81,'Report - ALL (DASHBOARD)'!$W$3) -> 51.08826447
A82: 1975 | B82: =INDEX('Compile Data'!$J$12:$AE$93,$A82-1921,'Report - ALL (DASHBOARD)'!$W$3) -> 50.39580536 | C82: =INDEX('Compile Data'!$AH$12:$BC$93,$A82-1921,'Report - ALL (DASHBOARD)'!$W$3) -> 50.39465332 | D82: =INDEX('Compile Data'!$BF$12:$CA$93,$A82-1921,'Report - ALL (DASHBOARD)'!$W$3) -> 50.38834 | E82: =INDEX('Compile Data'!$CD$12:$CY$93,$A82-1921,'Report - ALL (DASHBOARD)'!$W$3) -> 50.38863373 | F82: =INDEX('Compile Data'!$DB$12:$DW$93,$A82-1921,'Report - ALL (DASHBOARD)'!$W$3) -> 50.38833237 | O82: 54 | P82: 0.6543209877 | Q82: =INDEX('Compile Data'!$J$123:$AE$204,$O82,'Report - ALL (DASHBOARD)'!$W$3) -> 51.08818436 | R82: =INDEX('Compile Data'!$AH$123:$BC$204,$O82,'Report - ALL (DASHBOARD)'!$W$3) -> 51.04343033 | S82: =INDEX('Compile Data'!$BF$123:$CA$204,$O82,'Report - ALL (DASHBOARD)'!$W$3) -> 50.76569748 | T82: =INDEX('Compile Data'!$CD$123:$CY$204,$O82,'Report - ALL (DASHBOARD)'!$W$3) -> 50.83620071 | U82: =INDEX('Compile Data'!$DB$123:$DW$204,$O82,'Report - ALL (DASHBOARD)'!$W$3) -> 51.03284454
A83: 1976 | B83: =INDEX('Compile Data'!$J$12:$AE$93,$A83-1921,'Report - ALL (DASHBOARD)'!$W$3) -> 53.48656082 | C83: =INDEX('Compile Data'!$AH$12:$BC$93,$A83-1921,'Report - ALL (DASHBOARD)'!$W$3) -> 53.24031448 | D83: =INDEX('Compile Data'!$BF$12:$CA$93,$A83-1921,'Report - ALL (DASHBOARD)'!$W$3) -> 53.15063477 | E83: =INDEX('Compile Data'!$CD$12:$CY$93,$A83-1921,'Report - ALL (DASHBOARD)'!$W$3) -> 53.1305809 | F83: =INDEX('Compile Data'!$DB$12:$DW$93,$A83-1921,'Report - ALL (DASHBOARD)'!$W$3) -> 52.29004288 | O83: 55 | P83: 0.6666666667 | Q83: =INDEX('Compile Data'!$J$123:$AE$204,$O83,'Report - ALL (DASHBOARD)'!$W$3) -> 51.08292389 | R83: =INDEX('Compile Data'!$AH$123:$BC$204,$O83,'Report - ALL (DASHBOARD)'!$W$3) -> 50.79842377 | S83: =INDEX('Compile Data'!$BF$123:$CA$204,$O83,'Report - ALL (DASHBOARD)'!$W$3) -> 50.75895691 | T83: =INDEX('Compile Data'!$CD$123:$CY$204,$O83,'Report - ALL (DASHBOARD)'!$W$3) -> 50.7624588 | U83: =INDEX('Compile Data'!$DB$123:$DW$204,$O83,'Report - ALL (DASHBOARD)'!$W$3) -> 50.9408989
A84: 1977 | B84: =INDEX('Compile Data'!$J$12:$AE$93,$A84-1921,'Report - ALL (DASHBOARD)'!$W$3) -> 65.31702423 | C84: =INDEX('Compile Data'!$AH$12:$BC$93,$A84-1921,'Report - ALL (DASHBOARD)'!$W$3) -> 64.29177856 | D84: =INDEX('Compile Data'!$BF$12:$CA$93,$A84-1921,'Report - ALL (DASHBOARD)'!$W$3) -> 62.16758347 | E84: =INDEX('Compile Data'!$CD$12:$CY$93,$A84-1921,'Report - ALL (DASHBOARD)'!$W$3) -> 62.18003845 | F84: =INDEX('Compile Data'!$DB$12:$DW$93,$A84-1921,'Report - ALL (DASHBOARD)'!$W$3) -> 60.74496841 | O84: 56 | P84: 0.6790123457 | Q84: =INDEX('Compile Data'!$J$123:$AE$204,$O84,'Report - ALL (DASHBOARD)'!$W$3) -> 51.04671097 | R84: =INDEX('Compile Data'!$AH$123:$BC$204,$O84,'Report - ALL (DASHBOARD)'!$W$3) -> 50.77133942 | S84: =INDEX('Compile Data'!$BF$123:$CA$204,$O84,'Report - ALL (DASHBOARD)'!$W$3) -> 50.70626831 | T84: =INDEX('Compile Data'!$CD$123:$CY$204,$O84,'Report - ALL (DASHBOARD)'!$W$3) -> 50.74990845 | U84: =INDEX('Compile Data'!$DB$123:$DW$204,$O84,'Report - ALL (DASHBOARD)'!$W$3) -> 50.87394333
A85: 1978 | B85: =INDEX('Compile Data'!$J$12:$AE$93,$A85-1921,'Report - ALL (DASHBOARD)'!$W$3) -> 51.09087372 | C85: =INDEX('Compile Data'!$AH$12:$BC$93,$A85-1921,'Report - ALL (DASHBOARD)'!$W$3) -> 50.46508408 | D85: =INDEX('Compile Data'!$BF$12:$CA$93,$A85-1921,'Report - ALL (DASHBOARD)'!$W$3) -> 50.3637085 | E85: =INDEX('Compile Data'!$CD$12:$CY$93,$A85-1921,'Report - ALL (DASHBOARD)'!$W$3) -> 50.33861542 | F85: =INDEX('Compile Data'!$DB$12:$DW$93,$A85-1921,'Report - ALL (DASHBOARD)'!$W$3) -> 50.44662094 | O85: 57 | P85: 0.6913580247 | Q85: =INDEX('Compile Data'!$J$123:$AE$204,$O85,'Report - ALL (DASHBOARD)'!$W$3) -> 50.80907059 | R85: =INDEX('Compile Data'!$AH$123:$BC$204,$O85,'Report - ALL (DASHBOARD)'!$W$3) -> 50.76702118 | S85: =INDEX('Compile Data'!$BF$123:$CA$204,$O85,'Report - ALL (DASHBOARD)'!$W$3) -> 50.701828 | T85: =INDEX('Compile Data'!$CD$123:$CY$204,$O85,'Report - ALL (DASHBOARD)'!$W$3) -> 50.70727158 | U85: =INDEX('Compile Data'!$DB$123:$DW$204,$O85,'Report - ALL (DASHBOARD)'!$W$3) -> 50.75377274
A86: 1979 | B86: =INDEX('Compile Data'!$J$12:$AE$93,$A86-1921,'Report - ALL (DASHBOARD)'!$W$3) -> 52.33513641 | C86: =INDEX('Compile Data'!$AH$12:$BC$93,$A86-1921,'Report - ALL (DASHBOARD)'!$W$3) -> 52.3152504 | D86: =INDEX('Compile Data'!$BF$12:$CA$93,$A86-1921,'Report - ALL (DASHBOARD)'!$W$3) -> 52.30241394 | E86: =INDEX('Compile Data'!$CD$12:$CY$93,$A86-1921,'Report - ALL (DASHBOARD)'!$W$3) -> 52.29560089 | F86: =INDEX('Compile Data'!$DB$12:$DW$93,$A86-1921,'Report - ALL (DASHBOARD)'!$W$3) -> 52.21641159 | O86: 58 | P86: 0.7037037037 | Q86: =INDEX('Compile Data'!$J$123:$AE$204,$O86,'Report - ALL (DASHBOARD)'!$W$3) -> 50.77045822 | R86: =INDEX('Compile Data'!$AH$123:$BC$204,$O86,'Report - ALL (DASHBOARD)'!$W$3) -> 50.72687149 | S86: =INDEX('Compile Data'!$BF$123:$CA$204,$O86,'Report - ALL (DASHBOARD)'!$W$3) -> 50.69142151 | T86: =INDEX('Compile Data'!$CD$123:$CY$204,$O86,'Report - ALL (DASHBOARD)'!$W$3) -> 50.69851685 | U86: =INDEX('Compile Data'!$DB$123:$DW$204,$O86,'Report - ALL (DASHBOARD)'!$W$3) -> 50.7439537
A87: 1980 | B87: =INDEX('Compile Data'!$J$12:$AE$93,$A87-1921,'Report - ALL (DASHBOARD)'!$W$3) -> 52.07677078 | C87: =INDEX('Compile Data'!$AH$12:$BC$93,$A87-1921,'Report - ALL (DASHBOARD)'!$W$3) -> 51.21533585 | D87: =INDEX('Compile Data'!$BF$12:$CA$93,$A87-1921,'Report - ALL (DASHBOARD)'!$W$3) -> 50.65125656 | E87: =INDEX('Compile Data'!$CD$12:$CY$93,$A87-1921,'Report - ALL (DASHBOARD)'!$W$3) -> 50.65115738 | F87: =INDEX('Compile Data'!$DB$12:$DW$93,$A87-1921,'Report - ALL (DASHBOARD)'!$W$3) -> 52.18345642 | O87: 59 | P87: 0.7160493827 | Q87: =INDEX('Compile Data'!$J$123:$AE$204,$O87,'Report - ALL (DASHBOARD)'!$W$3) -> 50.74880981 | R87: =INDEX('Compile Data'!$AH$123:$BC$204,$O87,'Report - ALL (DASHBOARD)'!$W$3) -> 50.72542572 | S87: =INDEX('Compile Data'!$BF$123:$CA$204,$O87,'Report - ALL (DASHBOARD)'!$W$3) -> 50.65125656 | T87: =INDEX('Compile Data'!$CD$123:$CY$204,$O87,'Report - ALL (DASHBOARD)'!$W$3) -> 50.65115738 | U87: =INDEX('Compile Data'!$DB$123:$DW$204,$O87,'Report - ALL (DASHBOARD)'!$W$3) -> 50.7028923
A88: 1981 | B88: =INDEX('Compile Data'!$J$12:$AE$93,$A88-1921,'Report - ALL (DASHBOARD)'!$W$3) -> 53.35100937 | C88: =INDEX('Compile Data'!$AH$12:$BC$93,$A88-1921,'Report - ALL (DASHBOARD)'!$W$3) -> 53.32044983 | D88: =INDEX('Compile Data'!$BF$12:$CA$93,$A88-1921,'Report - ALL (DASHBOARD)'!$W$3) -> 53.43098831 | E88: =INDEX('Compile Data'!$CD$12:$CY$93,$A88-1921,'Report - ALL (DASHBOARD)'!$W$3) -> 53.42854309 | F88: =INDEX('Compile Data'!$DB$12:$DW$93,$A88-1921,'Report - ALL (DASHBOARD)'!$W$3) -> 53.4559288 | O88: 60 | P88: 0.7283950617 | Q88: =INDEX('Compile Data'!$J$123:$AE$204,$O88,'Report - ALL (DASHBOARD)'!$W$3) -> 50.72579193 | R88: =INDEX('Compile Data'!$AH$123:$BC$204,$O88,'Report - ALL (DASHBOARD)'!$W$3) -> 50.70389938 | S88: =INDEX('Compile Data'!$BF$123:$CA$204,$O88,'Report - ALL (DASHBOARD)'!$W$3) -> 50.56591415 | T88: =INDEX('Compile Data'!$CD$123:$CY$204,$O88,'Report - ALL (DASHBOARD)'!$W$3) -> 50.59544373 | U88: =INDEX('Compile Data'!$DB$123:$DW$204,$O88,'Report - ALL (DASHBOARD)'!$W$3) -> 50.69298935
A89: 1982 | B89: =INDEX('Compile Data'!$J$12:$AE$93,$A89-1921,'Report - ALL (DASHBOARD)'!$W$3) -> 50.02973175 | C89: =INDEX('Compile Data'!$AH$12:$BC$93,$A89-1921,'Report - ALL (DASHBOARD)'!$W$3) -> 50.04141998 | D89: =INDEX('Compile Data'!$BF$12:$CA$93,$A89-1921,'Report - ALL (DASHBOARD)'!$W$3) -> 50.01540375 | E89: =INDEX('Compile Data'!$CD$12:$CY$93,$A89-1921,'Report - ALL (DASHBOARD)'!$W$3) -> 50.0368309 | F89: =INDEX('Compile Data'!$DB$12:$DW$93,$A89-1921,'Report - ALL (DASHBOARD)'!$W$3) -> 50.02571106 | O89: 61 | P89: 0.7407407407 | Q89: =INDEX('Compile Data'!$J$123:$AE$204,$O89,'Report - ALL (DASHBOARD)'!$W$3) -> 50.70771027 | R89: =INDEX('Compile Data'!$AH$123:$BC$204,$O89,'Report - ALL (DASHBOARD)'!$W$3) -> 50.5598793 | S89: =INDEX('Compile Data'!$BF$123:$CA$204,$O89,'Report - ALL (DASHBOARD)'!$W$3) -> 50.42825317 | T89: =INDEX('Compile Data'!$CD$123:$CY$204,$O89,'Report - ALL (DASHBOARD)'!$W$3) -> 50.54905319 | U89: =INDEX('Compile Data'!$DB$123:$DW$204,$O89,'Report - ALL (DASHBOARD)'!$W$3) -> 50.60150909
A90: 1983 | B90: =INDEX('Compile Data'!$J$12:$AE$93,$A90-1921,'Report - ALL (DASHBOARD)'!$W$3) -> 51.08292389 | C90: =INDEX('Compile Data'!$AH$12:$BC$93,$A90-1921,'Report - ALL (DASHBOARD)'!$W$3) -> 51.04343033 | D90: =INDEX('Compile Data'!$BF$12:$CA$93,$A90-1921,'Report - ALL (DASHBOARD)'!$W$3) -> 51.08049011 | E90: =INDEX('Compile Data'!$CD$12:$CY$93,$A90-1921,'Report - ALL (DASHBOARD)'!$W$3) -> 51.08018494 | F90: =INDEX('Compile Data'!$DB$12:$DW$93,$A90-1921,'Report - ALL (DASHBOARD)'!$W$3) -> 51.03284454 | O90: 62 | P90: 0.7530864198 | Q90: =INDEX('Compile Data'!$J$123:$AE$204,$O90,'Report - ALL (DASHBOARD)'!$W$3) -> 50.68167496 | R90: =INDEX('Compile Data'!$AH$123:$BC$204,$O90,'Report - ALL (DASHBOARD)'!$W$3) -> 50.46508408 | S90: =INDEX('Compile Data'!$BF$123:$CA$204,$O90,'Report - ALL (DASHBOARD)'!$W$3) -> 50.40996933 | T90: =INDEX('Compile Data'!$CD$123:$CY$204,$O90,'Report - ALL (DASHBOARD)'!$W$3) -> 50.43223572 | U90: =INDEX('Compile Data'!$DB$123:$DW$204,$O90,'Report - ALL (DASHBOARD)'!$W$3) -> 50.44662094
A91: 1984 | B91: =INDEX('Compile Data'!$J$12:$AE$93,$A91-1921,'Report - ALL (DASHBOARD)'!$W$3) -> 51.524086 | C91: =INDEX('Compile Data'!$AH$12:$BC$93,$A91-1921,'Report - ALL (DASHBOARD)'!$W$3) -> 51.46004486 | D91: =INDEX('Compile Data'!$BF$12:$CA$93,$A91-1921,'Report - ALL (DASHBOARD)'!$W$3) -> 51.46242523 | E91: =INDEX('Compile Data'!$CD$12:$CY$93,$A91-1921,'Report - ALL (DASHBOARD)'!$W$3) -> 51.46110535 | F91: =INDEX('Compile Data'!$DB$12:$DW$93,$A91-1921,'Report - ALL (DASHBOARD)'!$W$3) -> 51.46418381 | O91: 63 | P91: 0.7654320988 | Q91: =INDEX('Compile Data'!$J$123:$AE$204,$O91,'Report - ALL (DASHBOARD)'!$W$3) -> 50.5837822 | R91: =INDEX('Compile Data'!$AH$123:$BC$204,$O91,'Report - ALL (DASHBOARD)'!$W$3) -> 50.42799377 | S91: =INDEX('Compile Data'!$BF$123:$CA$204,$O91,'Report - ALL (DASHBOARD)'!$W$3) -> 50.38834 | T91: =INDEX('Compile Data'!$CD$123:$CY$204,$O91,'Report - ALL (DASHBOARD)'!$W$3) -> 50.39599228 | U91: =INDEX('Compile Data'!$DB$123:$DW$204,$O91,'Report - ALL (DASHBOARD)'!$W$3) -> 50.41270065
A92: 1985 | B92: =INDEX('Compile Data'!$J$12:$AE$93,$A92-1921,'Report - ALL (DASHBOARD)'!$W$3) -> 53.32525635 | C92: =INDEX('Compile Data'!$AH$12:$BC$93,$A92-1921,'Report - ALL (DASHBOARD)'!$W$3) -> 52.93452072 | D92: =INDEX('Compile Data'!$BF$12:$CA$93,$A92-1921,'Report - ALL (DASHBOARD)'!$W$3) -> 52.98040009 | E92: =INDEX('Compile Data'!$CD$12:$CY$93,$A92-1921,'Report - ALL (DASHBOARD)'!$W$3) -> 53.00137711 | F92: =INDEX('Compile Data'!$DB$12:$DW$93,$A92-1921,'Report - ALL (DASHBOARD)'!$W$3) -> 52.98731995 | O92: 64 | P92: 0.7777777778 | Q92: =INDEX('Compile Data'!$J$123:$AE$204,$O92,'Report - ALL (DASHBOARD)'!$W$3) -> 50.4421196 | R92: =INDEX('Compile Data'!$AH$123:$BC$204,$O92,'Report - ALL (DASHBOARD)'!$W$3) -> 50.40983582 | S92: =INDEX('Compile Data'!$BF$123:$CA$204,$O92,'Report - ALL (DASHBOARD)'!$W$3) -> 50.3637085 | T92: =INDEX('Compile Data'!$CD$123:$CY$204,$O92,'Report - ALL (DASHBOARD)'!$W$3) -> 50.38863373 | U92: =INDEX('Compile Data'!$DB$123:$DW$204,$O92,'Report - ALL (DASHBOARD)'!$W$3) -> 50.38833237
A93: 1986 | B93: =INDEX('Compile Data'!$J$12:$AE$93,$A93-1921,'Report - ALL (DASHBOARD)'!$W$3) -> 52.12436295 | C93: =INDEX('Compile Data'!$AH$12:$BC$93,$A93-1921,'Report - ALL (DASHBOARD)'!$W$3) -> 52.38200378 | D93: =INDEX('Compile Data'!$BF$12:$CA$93,$A93-1921,'Report - ALL (DASHBOARD)'!$W$3) -> 52.37314606 | E93: =INDEX('Compile Data'!$CD$12:$CY$93,$A93-1921,'Report - ALL (DASHBOARD)'!$W$3) -> 52.35270309 | F93: =INDEX('Compile Data'!$DB$12:$DW$93,$A93-1921,'Report - ALL (DASHBOARD)'!$W$3) -> 52.28369522 | O93: 65 | P93: =(O93-1)/81 -> 0.7901234568 | Q93: =INDEX('Compile Data'!$J$123:$AE$204,$O93,'Report - ALL (DASHBOARD)'!$W$3) -> 50.39580536 | R93: =INDEX('Compile Data'!$AH$123:$BC$204,$O93,'Report - ALL (DASHBOARD)'!$W$3) -> 50.39465332 | S93: =INDEX('Compile Data'!$BF$123:$CA$204,$O93,'Report - ALL (DASHBOARD)'!$W$3) -> 50.3596344 | T93: =INDEX('Compile Data'!$CD$123:$CY$204,$O93,'Report - ALL (DASHBOARD)'!$W$3) -> 50.3644104 | U93: =INDEX('Compile Data'!$DB$123:$DW$204,$O93,'Report - ALL (DASHBOARD)'!$W$3) -> 50.38224792
A94: 1987 | B94: =INDEX('Compile Data'!$J$12:$AE$93,$A94-1921,'Report - ALL (DASHBOARD)'!$W$3) -> 52.22454453 | C94: =INDEX('Compile Data'!$AH$12:$BC$93,$A94-1921,'Report - ALL (DASHBOARD)'!$W$3) -> 52.54146576 | D94: =INDEX('Compile Data'!$BF$12:$CA$93,$A94-1921,'Report - ALL (DASHBOARD)'!$W$3) -> 52.13994598 | E94: =INDEX('Compile Data'!$CD$12:$CY$93,$A94-1921,'Report - ALL (DASHBOARD)'!$W$3) -> 51.97053528 | F94: =INDEX('Compile Data'!$DB$12:$DW$93,$A94-1921,'Report - ALL (DASHBOARD)'!$W$3) -> 51.5591774 | O94: 66 | P94: 0.8024691358 | Q94: =INDEX('Compile Data'!$J$123:$AE$204,$O94,'Report - ALL (DASHBOARD)'!$W$3) -> 50.3908577 | R94: =INDEX('Compile Data'!$AH$123:$BC$204,$O94,'Report - ALL (DASHBOARD)'!$W$3) -> 50.35641098 | S94: =INDEX('Compile Data'!$BF$123:$CA$204,$O94,'Report - ALL (DASHBOARD)'!$W$3) -> 50.35111618 | T94: =INDEX('Compile Data'!$CD$123:$CY$204,$O94,'Report - ALL (DASHBOARD)'!$W$3) -> 50.34869766 | U94: =INDEX('Compile Data'!$DB$123:$DW$204,$O94,'Report - ALL (DASHBOARD)'!$W$3) -> 50.37598038
A95: =A94+1 -> 1988 | B95: =INDEX('Compile Data'!$J$12:$AE$93,$A95-1921,'Report - ALL (DASHBOARD)'!$W$3) -> 52.95948792 | C95: =INDEX('Compile Data'!$AH$12:$BC$93,$A95-1921,'Report - ALL (DASHBOARD)'!$W$3) -> 52.95658112 | D95: =INDEX('Compile Data'!$BF$12:$CA$93,$A95-1921,'Report - ALL (DASHBOARD)'!$W$3) -> 52.53428268 | E95: =INDEX('Compile Data'!$CD$12:$CY$93,$A95-1921,'Report - ALL (DASHBOARD)'!$W$3) -> 53.03200912 | F95: =INDEX('Compile Data'!$DB$12:$DW$93,$A95-1921,'Report - ALL (DASHBOARD)'!$W$3) -> 52.24060059 | O95: 67 | P95: 0.8148148148 | Q95: =INDEX('Compile Data'!$J$123:$AE$204,$O95,'Report - ALL (DASHBOARD)'!$W$3) -> 50.37451553 | R95: =INDEX('Compile Data'!$AH$123:$BC$204,$O95,'Report - ALL (DASHBOARD)'!$W$3) -> 50.31232071 | S95: =INDEX('Compile Data'!$BF$123:$CA$204,$O95,'Report - ALL (DASHBOARD)'!$W$3) -> 50.30466843 | T95: =INDEX('Compile Data'!$CD$123:$CY$204,$O95,'Report - ALL (DASHBOARD)'!$W$3) -> 50.33861542 | U95: =INDEX('Compile Data'!$DB$123:$DW$204,$O95,'Report - ALL (DASHBOARD)'!$W$3) -> 50.35003281
A96: 1989 | B96: =INDEX('Compile Data'!$J$12:$AE$93,$A96-1921,'Report - ALL (DASHBOARD)'!$W$3) -> 53.99173355 | C96: =INDEX('Compile Data'!$AH$12:$BC$93,$A96-1921,'Report - ALL (DASHBOARD)'!$W$3) -> 53.94460678 | D96: =INDEX('Compile Data'!$BF$12:$CA$93,$A96-1921,'Report - ALL (DASHBOARD)'!$W$3) -> 53.94807434 | E96: =INDEX('Compile Data'!$CD$12:$CY$93,$A96-1921,'Report - ALL (DASHBOARD)'!$W$3) -> 54.05443573 | F96: =INDEX('Compile Data'!$DB$12:$DW$93,$A96-1921,'Report - ALL (DASHBOARD)'!$W$3) -> 53.98009109 | O96: 68 | P96: 0.8271604938 | Q96: =INDEX('Compile Data'!$J$123:$AE$204,$O96,'Report - ALL (DASHBOARD)'!$W$3) -> 50.35299683 | R96: =INDEX('Compile Data'!$AH$123:$BC$204,$O96,'Report - ALL (DASHBOARD)'!$W$3) -> 50.29725647 | S96: =INDEX('Compile Data'!$BF$123:$CA$204,$O96,'Report - ALL (DASHBOARD)'!$W$3) -> 50.2950592 | T96: =INDEX('Compile Data'!$CD$123:$CY$204,$O96,'Report - ALL (DASHBOARD)'!$W$3) -> 50.29364395 | U96: =INDEX('Compile Data'!$DB$123:$DW$204,$O96,'Report - ALL (DASHBOARD)'!$W$3) -> 50.29238129
A97: 1990 | B97: =INDEX('Compile Data'!$J$12:$AE$93,$A97-1921,'Report - ALL (DASHBOARD)'!$W$3) -> 54.15291595 | C97: =INDEX('Compile Data'!$AH$12:$BC$93,$A97-1921,'Report - ALL (DASHBOARD)'!$W$3) -> 54.08722687 | D97: =INDEX('Compile Data'!$BF$12:$CA$93,$A97-1921,'Report - ALL (DASHBOARD)'!$W$3) -> 54.15697861 | E97: =INDEX('Compile Data'!$CD$12:$CY$93,$A97-1921,'Report - ALL (DASHBOARD)'!$W$3) -> 54.16012955 | F97: =INDEX('Compile Data'!$DB$12:$DW$93,$A97-1921,'Report - ALL (DASHBOARD)'!$W$3) -> 53.97069168 | O97: 69 | P97: 0.8395061728 | Q97: =INDEX('Compile Data'!$J$123:$AE$204,$O97,'Report - ALL (DASHBOARD)'!$W$3) -> 50.34731674 | R97: =INDEX('Compile Data'!$AH$123:$BC$204,$O97,'Report - ALL (DASHBOARD)'!$W$3) -> 50.28324509 | S97: =INDEX('Compile Data'!$BF$123:$CA$204,$O97,'Report - ALL (DASHBOARD)'!$W$3) -> 50.27622604 | T97: =INDEX('Compile Data'!$CD$123:$CY$204,$O97,'Report - ALL (DASHBOARD)'!$W$3) -> 50.27629471 | U97: =INDEX('Compile Data'!$DB$123:$DW$204,$O97,'Report - ALL (DASHBOARD)'!$W$3) -> 50.29141235
A98: 1991 | B98: =INDEX('Compile Data'!$J$12:$AE$93,$A98-1921,'Report - ALL (DASHBOARD)'!$W$3) -> 55.68894196 | C98: =INDEX('Compile Data'!$AH$12:$BC$93,$A98-1921,'Report - ALL (DASHBOARD)'!$W$3) -> 55.76084137 | D98: =INDEX('Compile Data'!$BF$12:$CA$93,$A98-1921,'Report - ALL (DASHBOARD)'!$W$3) -> 55.85803223 | E98: =INDEX('Compile Data'!$CD$12:$CY$93,$A98-1921,'Report - ALL (DASHBOARD)'!$W$3) -> 55.88502884 | F98: =INDEX('Compile Data'!$DB$12:$DW$93,$A98-1921,'Report - ALL (DASHBOARD)'!$W$3) -> 55.78344727 | O98: 70 | P98: 0.8518518519 | Q98: =INDEX('Compile Data'!$J$123:$AE$204,$O98,'Report - ALL (DASHBOARD)'!$W$3) -> 50.30679703 | R98: =INDEX('Compile Data'!$AH$123:$BC$204,$O98,'Report - ALL (DASHBOARD)'!$W$3) -> 50.27682877 | S98: =INDEX('Compile Data'!$BF$123:$CA$204,$O98,'Report - ALL (DASHBOARD)'!$W$3) -> 50.2709198 | T98: =INDEX('Compile Data'!$CD$123:$CY$204,$O98,'Report - ALL (DASHBOARD)'!$W$3) -> 50.27375412 | U98: =INDEX('Compile Data'!$DB$123:$DW$204,$O98,'Report - ALL (DASHBOARD)'!$W$3) -> 50.28327179
A99: 1992 | B99: =INDEX('Compile Data'!$J$12:$AE$93,$A99-1921,'Report - ALL (DASHBOARD)'!$W$3) -> 56.0083046 | C99: =INDEX('Compile Data'!$AH$12:$BC$93,$A99-1921,'Report - ALL (DASHBOARD)'!$W$3) -> 55.09200668 | D99: =INDEX('Compile Data'!$BF$12:$CA$93,$A99-1921,'Report - ALL (DASHBOARD)'!$W$3) -> 55.42884827 | E99: =INDEX('Compile Data'!$CD$12:$CY$93,$A99-1921,'Report - ALL (DASHBOARD)'!$W$3) -> 55.19777679 | F99: =INDEX('Compile Data'!$DB$12:$DW$93,$A99-1921,'Report - ALL (DASHBOARD)'!$W$3) -> 55.02035141 | O99: 71 | P99: 0.8641975309 | Q99: =INDEX('Compile Data'!$J$123:$AE$204,$O99,'Report - ALL (DASHBOARD)'!$W$3) -> 50.28275299 | R99: =INDEX('Compile Data'!$AH$123:$BC$204,$O99,'Report - ALL (DASHBOARD)'!$W$3) -> 50.26280212 | S99: =INDEX('Compile Data'!$BF$123:$CA$204,$O99,'Report - ALL (DASHBOARD)'!$W$3) -> 50.25080109 | T99: =INDEX('Compile Data'!$CD$123:$CY$204,$O99,'Report - ALL (DASHBOARD)'!$W$3) -> 50.17681503 | U99: =INDEX('Compile Data'!$DB$123:$DW$204,$O99,'Report - ALL (DASHBOARD)'!$W$3) -> 50.27594757
A100: 1993 | B100: =INDEX('Compile Data'!$J$12:$AE$93,$A100-1921,'Report - ALL (DASHBOARD)'!$W$3) -> 50.5837822 | C100: =INDEX('Compile Data'!$AH$12:$BC$93,$A100-1921,'Report - ALL (DASHBOARD)'!$W$3) -> 50.5598793 | D100: =INDEX('Compile Data'!$BF$12:$CA$93,$A100-1921,'Report - ALL (DASHBOARD)'!$W$3) -> 50.56591415 | E100: =INDEX('Compile Data'!$CD$12:$CY$93,$A100-1921,'Report - ALL (DASHBOARD)'!$W$3) -> 50.59544373 | F100: =INDEX('Compile Data'!$DB$12:$DW$93,$A100-1921,'Report - ALL (DASHBOARD)'!$W$3) -> 50.60150909 | O100: 72 | P100: 0.8765432099 | Q100: =INDEX('Compile Data'!$J$123:$AE$204,$O100,'Report - ALL (DASHBOARD)'!$W$3) -> 50.26847076 | R100: =INDEX('Compile Data'!$AH$123:$BC$204,$O100,'Report - ALL (DASHBOARD)'!$W$3) -> 50.25788879 | S100: =INDEX('Compile Data'!$BF$123:$CA$204,$O100,'Report - ALL (DASHBOARD)'!$W$3) -> 50.16563034 | T100: =INDEX('Compile Data'!$CD$123:$CY$204,$O100,'Report - ALL (DASHBOARD)'!$W$3) -> 50.15712357 | U100: =INDEX('Compile Data'!$DB$123:$DW$204,$O100,'Report - ALL (DASHBOARD)'!$W$3) -> 50.2628212
A101: 1994 | B101: =INDEX('Compile Data'!$J$12:$AE$93,$A101-1921,'Report - ALL (DASHBOARD)'!$W$3) -> 54.26488113 | C101: =INDEX('Compile Data'!$AH$12:$BC$93,$A101-1921,'Report - ALL (DASHBOARD)'!$W$3) -> 54.13597107 | D101: =INDEX('Compile Data'!$BF$12:$CA$93,$A101-1921,'Report - ALL (DASHBOARD)'!$W$3) -> 54.21175003 | E101: =INDEX('Compile Data'!$CD$12:$CY$93,$A101-1921,'Report - ALL (DASHBOARD)'!$W$3) -> 54.20741653 | F101: =INDEX('Compile Data'!$DB$12:$DW$93,$A101-1921,'Report - ALL (DASHBOARD)'!$W$3) -> 53.64324188 | O101: 73 | P101: 0.8888888889 | Q101: =INDEX('Compile Data'!$J$123:$AE$204,$O101,'Report - ALL (DASHBOARD)'!$W$3) -> 50.2575531 | R101: =INDEX('Compile Data'!$AH$123:$BC$204,$O101,'Report - ALL (DASHBOARD)'!$W$3) -> 50.24259949 | S101: =INDEX('Compile Data'!$BF$123:$CA$204,$O101,'Report - ALL (DASHBOARD)'!$W$3) -> 50.13992691 | T101: =INDEX('Compile Data'!$CD$123:$CY$204,$O101,'Report - ALL (DASHBOARD)'!$W$3) -> 50.14468002 | U101: =INDEX('Compile Data'!$DB$123:$DW$204,$O101,'Report - ALL (DASHBOARD)'!$W$3) -> 50.16249084
A102: 1995 | B102: =INDEX('Compile Data'!$J$12:$AE$93,$A102-1921,'Report - ALL (DASHBOARD)'!$W$3) -> 52.32608414 | C102: =INDEX('Compile Data'!$AH$12:$BC$93,$A102-1921,'Report - ALL (DASHBOARD)'!$W$3) -> 52.2783699 | D102: =INDEX('Compile Data'!$BF$12:$CA$93,$A102-1921,'Report - ALL (DASHBOARD)'!$W$3) -> 52.3200531 | E102: =INDEX('Compile Data'!$CD$12:$CY$93,$A102-1921,'Report - ALL (DASHBOARD)'!$W$3) -> 52.31959152 | F102: =INDEX('Compile Data'!$DB$12:$DW$93,$A102-1921,'Report - ALL (DASHBOARD)'!$W$3) -> 52.25014496 | O102: 74 | P102: 0.9012345679 | Q102: =INDEX('Compile Data'!$J$123:$AE$204,$O102,'Report - ALL (DASHBOARD)'!$W$3) -> 50.19544601 | R102: =INDEX('Compile Data'!$AH$123:$BC$204,$O102,'Report - ALL (DASHBOARD)'!$W$3) -> 50.14161682 | S102: =INDEX('Compile Data'!$BF$123:$CA$204,$O102,'Report - ALL (DASHBOARD)'!$W$3) -> 50.13928223 | T102: =INDEX('Compile Data'!$CD$123:$CY$204,$O102,'Report - ALL (DASHBOARD)'!$W$3) -> 50.1293869 | U102: =INDEX('Compile Data'!$DB$123:$DW$204,$O102,'Report - ALL (DASHBOARD)'!$W$3) -> 50.13489151
A103: 1996 | B103: =INDEX('Compile Data'!$J$12:$AE$93,$A103-1921,'Report - ALL (DASHBOARD)'!$W$3) -> 52.78435898 | C103: =INDEX('Compile Data'!$AH$12:$BC$93,$A103-1921,'Report - ALL (DASHBOARD)'!$W$3) -> 52.78030777 | D103: =INDEX('Compile Data'!$BF$12:$CA$93,$A103-1921,'Report - ALL (DASHBOARD)'!$W$3) -> 52.76912689 | E103: =INDEX('Compile Data'!$CD$12:$CY$93,$A103-1921,'Report - ALL (DASHBOARD)'!$W$3) -> 52.77866364 | F103: =INDEX('Compile Data'!$DB$12:$DW$93,$A103-1921,'Report - ALL (DASHBOARD)'!$W$3) -> 52.72676468 | O103: 75 | P103: 0.9135802469 | Q103: =INDEX('Compile Data'!$J$123:$AE$204,$O103,'Report - ALL (DASHBOARD)'!$W$3) -> 50.15649033 | R103: =INDEX('Compile Data'!$AH$123:$BC$204,$O103,'Report - ALL (DASHBOARD)'!$W$3) -> 50.13624573 | S103: =INDEX('Compile Data'!$BF$123:$CA$204,$O103,'Report - ALL (DASHBOARD)'!$W$3) -> 50.10546112 | T103: =INDEX('Compile Data'!$CD$123:$CY$204,$O103,'Report - ALL (DASHBOARD)'!$W$3) -> 50.12721252 | U103: =INDEX('Compile Data'!$DB$123:$DW$204,$O103,'Report - ALL (DASHBOARD)'!$W$3) -> 50.13085938
A104: 1997 | B104: =INDEX('Compile Data'!$J$12:$AE$93,$A104-1921,'Report - ALL (DASHBOARD)'!$W$3) -> 51.15143204 | C104: =INDEX('Compile Data'!$AH$12:$BC$93,$A104-1921,'Report - ALL (DASHBOARD)'!$W$3) -> 51.15686417 | D104: =INDEX('Compile Data'!$BF$12:$CA$93,$A104-1921,'Report - ALL (DASHBOARD)'!$W$3) -> 51.16837311 | E104: =INDEX('Compile Data'!$CD$12:$CY$93,$A104-1921,'Report - ALL (DASHBOARD)'!$W$3) -> 51.12360001 | F104: =INDEX('Compile Data'!$DB$12:$DW$93,$A104-1921,'Report - ALL (DASHBOARD)'!$W$3) -> 51.12528992 | O104: 76 | P104: 0.9259259259 | Q104: =INDEX('Compile Data'!$J$123:$AE$204,$O104,'Report - ALL (DASHBOARD)'!$W$3) -> 50.11315918 | R104: =INDEX('Compile Data'!$AH$123:$BC$204,$O104,'Report - ALL (DASHBOARD)'!$W$3) -> 50.11059189 | S104: =INDEX('Compile Data'!$BF$123:$CA$204,$O104,'Report - ALL (DASHBOARD)'!$W$3) -> 50.07925797 | T104: =INDEX('Compile Data'!$CD$123:$CY$204,$O104,'Report - ALL (DASHBOARD)'!$W$3) -> 50.0687561 | U104: =INDEX('Compile Data'!$DB$123:$DW$204,$O104,'Report - ALL (DASHBOARD)'!$W$3) -> 50.12482071
A105: 1998 | B105: =INDEX('Compile Data'!$J$12:$AE$93,$A105-1921,'Report - ALL (DASHBOARD)'!$W$3) -> 54.68373871 | C105: =INDEX('Compile Data'!$AH$12:$BC$93,$A105-1921,'Report - ALL (DASHBOARD)'!$W$3) -> 54.67761612 | D105: =INDEX('Compile Data'!$BF$12:$CA$93,$A105-1921,'Report - ALL (DASHBOARD)'!$W$3) -> 54.67821884 | E105: =INDEX('Compile Data'!$CD$12:$CY$93,$A105-1921,'Report - ALL (DASHBOARD)'!$W$3) -> 54.68080139 | F105: =INDEX('Compile Data'!$DB$12:$DW$93,$A105-1921,'Report - ALL (DASHBOARD)'!$W$3) -> 54.66806412 | O105: 77 | P105: 0.9382716049 | Q105: =INDEX('Compile Data'!$J$123:$AE$204,$O105,'Report - ALL (DASHBOARD)'!$W$3) -> 50.09543991 | R105: =INDEX('Compile Data'!$AH$123:$BC$204,$O105,'Report - ALL (DASHBOARD)'!$W$3) -> 50.07869339 | S105: =INDEX('Compile Data'!$BF$123:$CA$204,$O105,'Report - ALL (DASHBOARD)'!$W$3) -> 50.06525803 | T105: =INDEX('Compile Data'!$CD$123:$CY$204,$O105,'Report - ALL (DASHBOARD)'!$W$3) -> 50.05495834 | U105: =INDEX('Compile Data'!$DB$123:$DW$204,$O105,'Report - ALL (DASHBOARD)'!$W$3) -> 50.07416534
A106: 1999 | B106: =INDEX('Compile Data'!$J$12:$AE$93,$A106-1921,'Report - ALL (DASHBOARD)'!$W$3) -> 50.72579193 | C106: =INDEX('Compile Data'!$AH$12:$BC$93,$A106-1921,'Report - ALL (DASHBOARD)'!$W$3) -> 50.70389938 | D106: =INDEX('Compile Data'!$BF$12:$CA$93,$A106-1921,'Report - ALL (DASHBOARD)'!$W$3) -> 50.70626831 | E106: =INDEX('Compile Data'!$CD$12:$CY$93,$A106-1921,'Report - ALL (DASHBOARD)'!$W$3) -> 50.70727158 | F106: =INDEX('Compile Data'!$DB$12:$DW$93,$A106-1921,'Report - ALL (DASHBOARD)'!$W$3) -> 50.7028923 | O106: 78 | P106: 0.950617284 | Q106: =INDEX('Compile Data'!$J$123:$AE$204,$O106,'Report - ALL (DASHBOARD)'!$W$3) -> 50.07141876 | R106: =INDEX('Compile Data'!$AH$123:$BC$204,$O106,'Report - ALL (DASHBOARD)'!$W$3) -> 50.0755043 | S106: =INDEX('Compile Data'!$BF$123:$CA$204,$O106,'Report - ALL (DASHBOARD)'!$W$3) -> 50.05426788 | T106: =INDEX('Compile Data'!$CD$123:$CY$204,$O106,'Report - ALL (DASHBOARD)'!$W$3) -> 50.0368309 | U106: =INDEX('Compile Data'!$DB$123:$DW$204,$O106,'Report - ALL (DASHBOARD)'!$W$3) -> 50.05524445
A107: 2000 | B107: =INDEX('Compile Data'!$J$12:$AE$93,$A107-1921,'Report - ALL (DASHBOARD)'!$W$3) -> 52.92120361 | C107: =INDEX('Compile Data'!$AH$12:$BC$93,$A107-1921,'Report - ALL (DASHBOARD)'!$W$3) -> 52.79584122 | D107: =INDEX('Compile Data'!$BF$12:$CA$93,$A107-1921,'Report - ALL (DASHBOARD)'!$W$3) -> 52.38694382 | E107: =INDEX('Compile Data'!$CD$12:$CY$93,$A107-1921,'Report - ALL (DASHBOARD)'!$W$3) -> 52.39776611 | F107: =INDEX('Compile Data'!$DB$12:$DW$93,$A107-1921,'Report - ALL (DASHBOARD)'!$W$3) -> 52.40343857 | O107: 79 | P107: 0.962962963 | Q107: =INDEX('Compile Data'!$J$123:$AE$204,$O107,'Report - ALL (DASHBOARD)'!$W$3) -> 50.05224228 | R107: =INDEX('Compile Data'!$AH$123:$BC$204,$O107,'Report - ALL (DASHBOARD)'!$W$3) -> 50.04141998 | S107: =INDEX('Compile Data'!$BF$123:$CA$204,$O107,'Report - ALL (DASHBOARD)'!$W$3) -> 50.024086 | T107: =INDEX('Compile Data'!$CD$123:$CY$204,$O107,'Report - ALL (DASHBOARD)'!$W$3) -> 50.03415298 | U107: =INDEX('Compile Data'!$DB$123:$DW$204,$O107,'Report - ALL (DASHBOARD)'!$W$3) -> 50.0431366
A108: 2001 | B108: =INDEX('Compile Data'!$J$12:$AE$93,$A108-1921,'Report - ALL (DASHBOARD)'!$W$3) -> 54.09262466 | C108: =INDEX('Compile Data'!$AH$12:$BC$93,$A108-1921,'Report - ALL (DASHBOARD)'!$W$3) -> 53.83698654 | D108: =INDEX('Compile Data'!$BF$12:$CA$93,$A108-1921,'Report - ALL (DASHBOARD)'!$W$3) -> 53.66935349 | E108: =INDEX('Compile Data'!$CD$12:$CY$93,$A108-1921,'Report - ALL (DASHBOARD)'!$W$3) -> 53.64888763 | F108: =INDEX('Compile Data'!$DB$12:$DW$93,$A108-1921,'Report - ALL (DASHBOARD)'!$W$3) -> 53.63610458 | O108: 80 | P108: 0.975308642 | Q108: =INDEX('Compile Data'!$J$123:$AE$204,$O108,'Report - ALL (DASHBOARD)'!$W$3) -> 50.02973175 | R108: =INDEX('Compile Data'!$AH$123:$BC$204,$O108,'Report - ALL (DASHBOARD)'!$W$3) -> 50.0308075 | S108: =INDEX('Compile Data'!$BF$123:$CA$204,$O108,'Report - ALL (DASHBOARD)'!$W$3) -> 50.01540375 | T108: =INDEX('Compile Data'!$CD$123:$CY$204,$O108,'Report - ALL (DASHBOARD)'!$W$3) -> 49.96949768 | U108: =INDEX('Compile Data'!$DB$123:$DW$204,$O108,'Report - ALL (DASHBOARD)'!$W$3) -> 50.02571106
A109: 2002 | B109: =INDEX('Compile Data'!$J$12:$AE$93,$A109-1921,'Report - ALL (DASHBOARD)'!$W$3) -> 52.74786377 | C109: =INDEX('Compile Data'!$AH$12:$BC$93,$A109-1921,'Report - ALL (DASHBOARD)'!$W$3) -> 52.87475204 | D109: =INDEX('Compile Data'!$BF$12:$CA$93,$A109-1921,'Report - ALL (DASHBOARD)'!$W$3) -> 52.80158997 | E109: =INDEX('Compile Data'!$CD$12:$CY$93,$A109-1921,'Report - ALL (DASHBOARD)'!$W$3) -> 52.7875061 | F109: =INDEX('Compile Data'!$DB$12:$DW$93,$A109-1921,'Report - ALL (DASHBOARD)'!$W$3) -> 52.78346634 | O109: 81 | P109: 0.987654321 | Q109: =INDEX('Compile Data'!$J$123:$AE$204,$O109,'Report - ALL (DASHBOARD)'!$W$3) -> 49.79504013 | R109: =INDEX('Compile Data'!$AH$123:$BC$204,$O109,'Report - ALL (DASHBOARD)'!$W$3) -> 49.79063797 | S109: =INDEX('Compile Data'!$BF$123:$CA$204,$O109,'Report - ALL (DASHBOARD)'!$W$3) -> 49.79946136 | T109: =INDEX('Compile Data'!$CD$123:$CY$204,$O109,'Report - ALL (DASHBOARD)'!$W$3) -> 49.79614258 | U109: =INDEX('Compile Data'!$DB$123:$DW$204,$O109,'Report - ALL (DASHBOARD)'!$W$3) -> 49.79777527
A110: 2003 | B110: =INDEX('Compile Data'!$J$12:$AE$93,$A110-1921,'Report - ALL (DASHBOARD)'!$W$3) -> 51.25930405 | C110: =INDEX('Compile Data'!$AH$12:$BC$93,$A110-1921,'Report - ALL (DASHBOARD)'!$W$3) -> 51.18371582 | D110: =INDEX('Compile Data'!$BF$12:$CA$93,$A110-1921,'Report - ALL (DASHBOARD)'!$W$3) -> 51.12520218 | E110: =INDEX('Compile Data'!$CD$12:$CY$93,$A110-1921,'Report - ALL (DASHBOARD)'!$W$3) -> 51.10797882 | F110: =INDEX('Compile Data'!$DB$12:$DW$93,$A110-1921,'Report - ALL (DASHBOARD)'!$W$3) -> 51.15268707 | O110: 82 | P110: 1 | Q110: =INDEX('Compile Data'!$J$123:$AE$204,$O110,'Report - ALL (DASHBOARD)'!$W$3) -> 49.71268845 | R110: =INDEX('Compile Data'!$AH$123:$BC$204,$O110,'Report - ALL (DASHBOARD)'!$W$3) -> 49.70137405 | S110: =INDEX('Compile Data'!$BF$123:$CA$204,$O110,'Report - ALL (DASHBOARD)'!$W$3) -> 49.69420624 | T110: =INDEX('Compile Data'!$CD$123:$CY$204,$O110,'Report - ALL (DASHBOARD)'!$W$3) -> 49.68525314 | U110: =INDEX('Compile Data'!$DB$123:$DW$204,$O110,'Report - ALL (DASHBOARD)'!$W$3) -> 49.6879158

Sheet Compile Data
B1: =Control!$C$9 -> No Action Alternative 011221 | C1: =Control!$C$10 -> Alternative 1B 011221 | D1: =Control!$C$11 -> Alternative 3 020121 | E1: =Control!$C$12 -> Alternative 3BR 032321 | F1: =Control!$C$13 -> Alternative 3BR 120121 rev9b | AA1: =$B$8 -> PER-AVER | AY1: =$C$8 -> PER-AVER | BW1: ='Compile Data'!$D$8 -> PER-AVER | CU1: ='Compile Data'!$E$8 -> PER-AVER | DS1: ='Compile Data'!$F$8 -> PER-AVER | EQ1: ='Compile Data'!$E$8 -> PER-AVER
A2: Index: | B2: ='Report - ALL (DASHBOARD)'!W1 -> 29 | C2: =B2 -> 29 | D2: 29 | E2: 29 | F2: 29
A3: Convert? | B3: =IF('Report - ALL (DASHBOARD)'!W4,1,0) -> 0 | C3: 0 | D3: 0 | E3: 0 | F3: 0
A4: Column: | B4: =VLOOKUP(B$2,Control!$A$35:$J$121,7) -> AC | C4: AC | D4: AC | E4: AC | F4: AC
A5: Title: | B5: =VLOOKUP(B$2,Control!$A$35:$J$121,10) -> Sacramento River Below Clear Creek Temperature | C5: =VLOOKUP(C$2,Control!$A$35:$J$121,10) -> Sacramento River Below Clear Creek Temperature | D5: =VLOOKUP(D$2,Control!$A$35:$J$121,10) -> Sacramento River Below Clear Creek Temperature | E5: =VLOOKUP(E$2,Control!$A$35:$J$107,10) -> Sacramento River Below Clear Creek Temperature | F5: =VLOOKUP(F$2,Control!$A$35:$J$107,10) -> Sacramento River Below Clear Creek Temperature
A6: Parameter: | B6: =INDIRECT(CONCATENATE("'",B$1,"'!",B$4,2)) -> BLW CLEAR CREEK | C6: BLW CLEAR CREEK | D6: BLW CLEAR CREEK | E6: BLW CLEAR CREEK | F6: BLW CLEAR CREEK
B7: =INDIRECT(CONCATENATE("'",B$1,"'!",B$4,3)) -> TEMP | C7: TEMP | D7: TEMP | E7: TEMP | F7: TEMP
A8: Type: | B8: =TRIM(VLOOKUP(B$2,Control!$A$35:$J$107,9)) -> PER-AVER | C8: =TRIM(VLOOKUP(C$2,Control!$A$35:$J$107,9)) -> PER-AVER | D8: =TRIM(VLOOKUP(D$2,Control!$A$35:$J$107,9)) -> PER-AVER | E8: =TRIM(VLOOKUP(E$2,Control!$A$35:$J$107,9)) -> PER-AVER | F8: =TRIM(VLOOKUP(F$2,Control!$A$35:$J$107,9)) -> PER-AVER | I8: =CONCATENATE(TRIM(B$1),": ",TRIM(B$5)," - ",TRIM(B$6)," ",TRIM(B$7)," (",TRIM(B$10),") ",TRIM(B$11)) -> No Action Alternative 011221: Sacramento River Below Clear Creek Temperature - BLW CLEAR CREEK TEMP (DEGF) | AG8: =CONCATENATE(TRIM(C$1),": ",TRIM(C$5)," - ",TRIM(C$6)," ",TRIM(C$7)," (",TRIM(C$10),") ",TRIM(C$11)) -> Alternative 1B 011221: Sacramento River Below Clear Creek Temperature - BLW CLEAR CREEK TEMP (DEGF) | BE8: =CONCATENATE(TRIM('Compile Data'!D$1),": ",TRIM('Compile Data'!D$5)," - ",TRIM('Compile Data'!D$6)," ",TRIM('Compile Data'!D$7)," (",TRIM('Compile Data'!D$10),") ",TRIM('Compile Data'!D$11)) -> Alternative 3 020121: Sacramento River Below Clear Creek Temperature - BLW CLEAR CREEK TEMP (DEGF) | CC8: =CONCATENATE(TRIM('Compile Data'!E$1),": ",TRIM('Compile Data'!E$5)," - ",TRIM('Compile Data'!E$6)," ",TRIM('Compile Data'!E$7)," (",TRIM('Compile Data'!E$10),") ",TRIM('Compile Data'!E$11)) -> Alternative 3BR 032321: Sacramento River Below Clear Creek Temperature - BLW CLEAR CREEK TEMP (DEGF) | DA8: =CONCATENATE(TRIM('Compile Data'!F$1),": ",TRIM('Compile Data'!F$5)," - ",TRIM('Compile Data'!F$6)," ",TRIM('Compile Data'!F$7)," (",TRIM('Compile Data'!F$10),") ",TRIM('Compile Data'!F$11)) -> Alternative 3BR 120121 rev9b: Sacramento River Below Clear Creek Temperature - BLW CLEAR CREEK TEMP (DEGF) | DY8: =CONCATENATE(TRIM('Compile Data'!E$1),": ",TRIM('Compile Data'!E$5)," - ",TRIM('Compile Data'!E$6)," ",TRIM('Compile Data'!E$7)," (",TRIM('Compile Data'!E$10),") ",TRIM('Compile Data'!E$11)) -> Alternative 3BR 032321: Sacramento River Below Clear Creek Temperature - BLW CLEAR CREEK TEMP (DEGF)
A9: Units-native: | B9: =TRIM(INDIRECT(CONCATENATE("'",B$1,"'!",B$4,11))) -> DEGF | C9: DEGF | D9: DEGF | E9: DEGF | F9: DEGF
A10: Units-shown: | B10: =IF(AND(B$3>0,B$9="CFS"),"TAF",B$9) -> DEGF | C10: DEGF | D10: DEGF | E10: DEGF | F10: DEGF | W10: Jan-Dec | X10: Mar-Feb | Y10: Oct-Sep | AA10: Oct-Jan | AB10: Dec-Feb | AC10: Mar-Jun | AD10: Jun-Sep | AE10: Sep-Nov | AU10: Jan-Dec | AV10: Mar-Feb | AW10: Oct-Sep | AY10: Oct-Jan | AZ10: Dec-Feb | BA10: Mar-Jun | BB10: Jun-Sep | BC10: Sep-Nov | BS10: Jan-Dec | BT10: Mar-Feb | BU10: Oct-Sep | BW10: Oct-Jan | BX10: Dec-Feb | BY10: Mar-Jun | BZ10: Jun-Sep | CA10: Sep-Nov | CQ10: Jan-Dec | CR10: Mar-Feb | CS10: Oct-Sep | CU10: Oct-Jan | CV10: Dec-Feb | CW10: Mar-Jun | CX10: Jun-Sep | CY10: Sep-Nov | DO10: Jan-Dec | DP10: Mar-Feb | DQ10: Oct-Sep | DS10: Oct-Jan | DT10: Dec-Feb | DU10: Mar-Jun | DV10: Jun-Sep | DW10: Sep-Nov | EM10: Jan-Dec | EN10: Mar-Feb | EO10: Oct-Sep | EQ10: Oct-Jan | ER10: Dec-Feb | ES10: Mar-Jun | ET10: Jun-Sep | EU10: Sep-Nov
A11: Date | B11: =IF(ISNUMBER(FIND("PRV",B$6)),"SHIFTED","") ->  | I11: YEAR | J11: OCT | K11: NOV | L11: DEC | M11: JAN | N11: FEB | O11: MAR | P11: APR | Q11: MAY | R11: JUN | S11: JUL | T11: AUG | U11: SEP | W11: =IF(AND($B$10="TAF",$B$8="PER-AVER"),"TOT","AVG") -> AVG | X11: =IF(AND($B$10="TAF",$B$8="PER-AVER"),"TOT","AVG") -> AVG | Y11: =IF(AND($B$10="TAF",$B$8="PER-AVER"),"TOT","AVG") -> AVG | AA11: =IF(AND($B$10="TAF",$B$8="PER-AVER"),"TOT","AVG") -> AVG | AB11: =IF(AND($B$10="TAF",$B$8="PER-AVER"),"TOT","AVG") -> AVG | AC11: =IF(AND($B$10="TAF",$B$8="PER-AVER"),"TOT","AVG") -> AVG | AD11: =IF(AND($B$10="TAF",$B$8="PER-AVER"),"TOT","AVG") -> AVG | AE11: =IF(AND($B$10="TAF",$B$8="PER-AVER"),"TOT","AVG") -> AVG | AG11: YEAR | AH11: OCT | AI11: NOV | AJ11: DEC | AK11: JAN | AL11: FEB | AM11: MAR | AN11: APR | AO11: MAY | AP11: JUN | AQ11: JUL | AR11: AUG | AS11: SEP | AU11: =IF(AND($C$10="TAF",$C$8="PER-AVER"),"TOT","AVG") -> AVG | AV11: =IF(AND($C$10="TAF",$C$8="PER-AVER"),"TOT","AVG") -> AVG | AW11: =IF(AND($C$10="TAF",$C$8="PER-AVER"),"TOT","AVG") -> AVG | AY11: =IF(AND($C$10="TAF",$C$8="PER-AVER"),"TOT","AVG") -> AVG | AZ11: =IF(AND($C$10="TAF",$C$8="PER-AVER"),"TOT","AVG") -> AVG | BA11: =IF(AND($C$10="TAF",$C$8="PER-AVER"),"TOT","AVG") -> AVG | BB11: =IF(AND($C$10="TAF",$C$8="PER-AVER"),"TOT","AVG") -> AVG | BC11: =IF(AND($C$10="TAF",$C$8="PER-AVER"),"TOT","AVG") -> AVG | BE11: YEAR | BF11: OCT | BG11: NOV | BH11: DEC | BI11: JAN | BJ11: FEB | BK11: MAR | BL11: APR | BM11: MAY | BN11: JUN | BO11: JUL | BP11: AUG | BQ11: SEP | BS11: =IF(AND('Compile Data'!$D$10="TAF",'Compile Data'!$D$8="PER-AVER"),"TOT","AVG") -> AVG | BT11: =IF(AND('Compile Data'!$D$10="TAF",'Compile Data'!$D$8="PER-AVER"),"TOT","AVG") -> AVG | BU11: =IF(AND('Compile Data'!$D$10="TAF",'Compile Data'!$D$8="PER-AVER"),"TOT","AVG") -> AVG | BW11: =IF(AND('Compile Data'!$D$10="TAF",'Compile Data'!$D$8="PER-AVER"),"TOT","AVG") -> AVG | BX11: =IF(AND('Compile Data'!$D$10="TAF",'Compile Data'!$D$8="PER-AVER"),"TOT","AVG") -> AVG | BY11: =IF(AND('Compile Data'!$D$10="TAF",'Compile Data'!$D$8="PER-AVER"),"TOT","AVG") -> AVG | BZ11: =IF(AND('Compile Data'!$D$10="TAF",'Compile Data'!$D$8="PER-AVER"),"TOT","AVG") -> AVG | CA11: =IF(AND('Compile Data'!$D$10="TAF",'Compile Data'!$D$8="PER-AVER"),"TOT","AVG") -> AVG | CC11: YEAR | CD11: OCT | CE11: NOV | CF11: DEC | CG11: JAN | CH11: FEB | CI11: MAR | CJ11: APR | CK11: MAY | CL11: JUN | CM11: JUL | CN11: AUG | CO11: SEP | CQ11: =IF(AND('Compile Data'!$E$10="TAF",'Compile Data'!$E$8="PER-AVER"),"TOT","AVG") -> AVG | CR11: =IF(AND('Compile Data'!$E$10="TAF",'Compile Data'!$E$8="PER-AVER"),"TOT","AVG") -> AVG | CS11: =IF(AND('Compile Data'!$E$10="TAF",'Compile Data'!$E$8="PER-AVER"),"TOT","AVG") -> AVG | CU11: =IF(AND('Compile Data'!$E$10="TAF",'Compile Data'!$E$8="PER-AVER"),"TOT","AVG") -> AVG | CV11: =IF(AND('Compile Data'!$E$10="TAF",'Compile Data'!$E$8="PER-AVER"),"TOT","AVG") -> AVG | CW11: =IF(AND('Compile Data'!$E$10="TAF",'Compile Data'!$E$8="PER-AVER"),"TOT","AVG") -> AVG | CX11: =IF(AND('Compile Data'!$E$10="TAF",'Compile Data'!$E$8="PER-AVER"),"TOT","AVG") -> AVG | CY11: =IF(AND('Compile Data'!$E$10="TAF",'Compile Data'!$E$8="PER-AVER"),"TOT","AVG") -> AVG | DA11: YEAR | DB11: OCT | DC11: NOV | DD11: DEC | DE11: JAN | DF11: FEB | DG11: MAR | DH11: APR | DI11: MAY | DJ11: JUN | DK11: JUL | DL11: AUG | DM11: SEP | DO11: =IF(AND('Compile Data'!$F$10="TAF",'Compile Data'!$F$8="PER-AVER"),"TOT","AVG") -> AVG | DP11: =IF(AND('Compile Data'!$F$10="TAF",'Compile Data'!$F$8="PER-AVER"),"TOT","AVG") -> AVG | DQ11: =IF(AND('Compile Data'!$F$10="TAF",'Compile Data'!$F$8="PER-AVER"),"TOT","AVG") -> AVG | DS11: =IF(AND('Compile Data'!$F$10="TAF",'Compile Data'!$F$8="PER-AVER"),"TOT","AVG") -> AVG | DT11: =IF(AND('Compile Data'!$F$10="TAF",'Compile Data'!$F$8="PER-AVER"),"TOT","AVG") -> AVG | DU11: =IF(AND('Compile Data'!$F$10="TAF",'Compile Data'!$F$8="PER-AVER"),"TOT","AVG") -> AVG | DV11: =IF(AND('Compile Data'!$F$10="TAF",'Compile Data'!$F$8="PER-AVER"),"TOT","AVG") -> AVG | DW11: =IF(AND('Compile Data'!$F$10="TAF",'Compile Data'!$F$8="PER-AVER"),"TOT","AVG") -> AVG | DY11: YEAR | DZ11: OCT | EA11: NOV | EB11: DEC | EC11: JAN | ED11: FEB | EE11: MAR | EF11: APR | EG11: MAY | EH11: JUN | EI11: JUL | EJ11: AUG | EK11: SEP | EM11: =IF(AND('Compile Data'!$D$10="TAF",'Compile Data'!$D$8="PER-AVER"),"TOT","AVG") -> AVG | EN11: =IF(AND('Compile Data'!$D$10="TAF",'Compile Data'!$D$8="PER-AVER"),"TOT","AVG") -> AVG | EO11: =IF(AND('Compile Data'!$D$10="TAF",'Compile Data'!$D$8="PER-AVER"),"TOT","AVG") -> AVG | EQ11: =IF(AND('Compile Data'!$D$10="TAF",'Compile Data'!$D$8="PER-AVER"),"TOT","AVG") -> AVG | ER11: =IF(AND('Compile Data'!$D$10="TAF",'Compile Data'!$D$8="PER-AVER"),"TOT","AVG") -> AVG | ES11: =IF(AND('Compile Data'!$D$10="TAF",'Compile Data'!$D$8="PER-AVER"),"TOT","AVG") -> AVG | ET11: =IF(AND('Compile Data'!$D$10="TAF",'Compile Data'!$D$8="PER-AVER"),"TOT","AVG") -> AVG | EU11: =IF(AND('Compile Data'!$D$10="TAF",'Compile Data'!$D$8="PER-AVER"),"TOT","AVG") -> AVG
A12: 1921-09-30 | I12: 1922 | J12: =NA() ->  | K12: =NA() ->  | L12: =NA() ->  | M12: =B16 -> 45.86698914 | N12: =B17 -> 45.62512207 | O12: =B18 -> 48.1643486 | P12: =B19 -> 51.29597473 | Q12: =B20 -> 51.0175209 | R12: =B21 -> 51.81781769 | S12: =B22 -> 51.83929825 | T12: =B23 -> 51.76369858 | U12: =B24 -> 51.04671097 | W12: =IF(W$11="AVG",AVERAGE(M12:U12,J13:L13),SUM(M12:U12,J13:L13)) -> 50.41826884 | X12: =IF(X$11="AVG",AVERAGE(O12:U12,J13:N13),SUM(O12:U12,J13:N13)) -> 50.70561155 | Y12: =NA() ->  | AA12: =NA() ->  | AB12: =NA() ->  | AC12: =IF(AC$11="AVG",IF(AA$1="INST-VAL",AVERAGE(N12:Q12,O12:R12),AVERAGE(O12:R12)),SUM(O12:R12)) -> 50.57391548 | AD12: =IF(AD$11="AVG",IF(AA$1="INST-VAL",AVERAGE(Q12:T12,R12:U12),AVERAGE(R12:U12)),SUM(R12:U12)) -> 51.61688137 | AE12: =IF(AE$11="AVG",IF(AA$1="INST-VAL",AVERAGE(T12:U12,J13,U12,J13:K13),AVERAGE(U12,J13:K13)),SUM(U12,J13:K13)) -> 52.17153295 | AG12: 1922 | AH12: =NA() ->  | AI12: =NA() ->  | AJ12: =NA() ->  | AK12: ='Compile Data'!C16 -> 45.87252426 | AL12: ='Compile Data'!C17 -> 45.63713455 | AM12: ='Compile Data'!C18 -> 48.23376465 | AN12: ='Compile Data'!C19 -> 51.05755615 | AO12: ='Compile Data'!C20 -> 51.0097084 | AP12: ='Compile Data'!C21 -> 51.954422 | AQ12: ='Compile Data'!C22 -> 52.05846786 | AR12: ='Compile Data'!C23 -> 51.77032471 | AS12: ='Compile Data'!C24 -> 50.79842377 | AU12: =IF(AU$11="AVG",AVERAGE(AK12:AS12,AH13:AJ13),SUM(AK12:AS12,AH13:AJ13)) -> 50.40684573 | AV12: =IF(AV$11="AVG",AVERAGE(AM12:AS12,AH13:AL13),SUM(AM12:AS12,AH13:AL13)) -> 50.69262822 | AW12: =NA() ->  | AY12: =NA() ->  | AZ12: =NA() ->  | BA12: =IF(BA$11="AVG",IF(AY$1="INST-VAL",AVERAGE(AL12:AO12,AM12:AP12),AVERAGE(AM12:AP12)),SUM(AM12:AP12)) -> 50.5638628 | BB12: =IF(BB$11="AVG",IF(AY$1="INST-VAL",AVERAGE(AO12:AR12,AP12:AS12),AVERAGE(AP12:AS12)),SUM(AP12:AS12)) -> 51.64540958 | BC12: =IF(BC$11="AVG",IF(AY$1="INST-VAL",AVERAGE(AR12:AS12,AH13,AS12,AH13:AI13),AVERAGE(AS12,AH13:AI13)),SUM(AS12,AH13:AI13)) -> 52.06295904 | BE12: 1922 | BF12: =NA() ->  | BG12: =NA() ->  | BH12: =NA() ->  | BI12: ='Compile Data'!D16 -> 45.87252426 | BJ12: ='Compile Data'!D17 -> 45.63713455 | BK12: ='Compile Data'!D18 -> 48.23376465 | BL12: ='Compile Data'!D19 -> 51.05755615 | BM12: ='Compile Data'!D20 -> 51.0097084 | BN12: ='Compile Data'!D21 -> 51.954422 | BO12: ='Compile Data'!D22 -> 52.4151268 | BP12: ='Compile Data'!D23 -> 51.95953369 | BQ12: ='Compile Data'!D24 -> 50.16563034 | BS12: =IF(BS$11="AVG",AVERAGE(BI12:BQ12,BF13:BH13),SUM(BI12:BQ12,BF13:BH13)) -> 50.39777501 | BT12: =IF(BT$11="AVG",AVERAGE(BK12:BQ12,BF13:BJ13),SUM(BK12:BQ12,BF13:BJ13)) -> 50.69318199 | BU12: =NA() ->  | BW12: =NA() ->  | BX12: =NA() ->  | BY12: =IF(BY$11="AVG",IF(BW$1="INST-VAL",AVERAGE(BJ12:BM12,BK12:BN12),AVERAGE(BK12:BN12)),SUM(BK12:BN12)) -> 50.5638628 | BZ12: =IF(BZ$11="AVG",IF(BW$1="INST-VAL",AVERAGE(BM12:BP12,BN12:BQ12),AVERAGE(BN12:BQ12)),SUM(BN12:BQ12)) -> 51.62367821 | CA12: =IF(CA$11="AVG",IF(BW$1="INST-VAL",AVERAGE(BP12:BQ12,BF13,BQ12,BF13:BG13),AVERAGE(BQ12,BF13:BG13)),SUM(BQ12,BF13:BG13)) -> 51.82708232 | CC12: 1922 | CD12: =NA() ->  | CE12: =NA() ->  | CF12: =NA() ->  | CG12: ='Compile Data'!E16 -> 45.87261581 | CH12: ='Compile Data'!E17 -> 45.64303207 | CI12: ='Compile Data'!E18 -> 47.74803925 | CJ12: ='Compile Data'!E19 -> 51.40763855 | CK12: ='Compile Data'!E20 -> 51.0236702 | CL12: ='Compile Data'!E21 -> 51.95144653 | CM12: ='Compile Data'!E22 -> 52.40444565 | CN12: ='Compile Data'!E23 -> 51.95866394 | CO12: ='Compile Data'!E24 -> 50.15712357 | CQ12: =IF(CQ$11="AVG",AVERAGE(CG12:CO12,CD13:CF13),SUM(CG12:CO12,CD13:CF13)) -> 50.38786507 | CR12: =IF(CR$11="AVG",AVERAGE(CI12:CO12,CD13:CH13),SUM(CI12:CO12,CD13:CH13)) -> 50.68366909 | CS12: =NA() ->  | CU12: =NA() ->  | CV12: =NA() ->  | CW12: =IF(CW$11="AVG",IF(CU$1="INST-VAL",AVERAGE(CH12:CK12,CI12:CL12),AVERAGE(CI12:CL12)),SUM(CI12:CL12)) -> 50.53269863 | CX12: =IF(CX$11="AVG",IF(CU$1="INST-VAL",AVERAGE(CK12:CN12,CL12:CO12),AVERAGE(CL12:CO12)),SUM(CL12:CO12)) -> 51.61791992 | CY12: =IF(CY$11="AVG",IF(CU$1="INST-VAL",AVERAGE(CN12:CO12,CD13,CO12,CD13:CE13),AVERAGE(CO12,CD13:CE13)),SUM(CO12,CD13:CE13)) -> 51.82715352 | DA12: 1922 | DB12: =NA() ->  | DC12: =NA() ->  | DD12: =NA() ->  | DE12: ='Compile Data'!F16 -> 45.8716774 | DF12: ='Compile Data'!F17 -> 45.63570786 | DG12: ='Compile Data'!F18 -> 48.21891022 | DH12: ='Compile Data'!F19 -> 51.0496521 | DI12: ='Compile Data'!F20 -> 51.00704193 | DJ12: ='Compile Data'!F21 -> 51.9561615 | DK12: ='Compile Data'!F22 -> 52.40088272 | DL12: ='Compile Data'!F23 -> 51.95595169 | DM12: ='Compile Data'!F24 -> 50.16249084 | DO12: =IF(DO$11="AVG",AVERAGE(DE12:DM12,DB13:DD13),SUM(DE12:DM12,DB13:DD13)) -> 50.41162904 | DP12: =IF(DP$11="AVG",AVERAGE(DG12:DM12,DB13:DF13),SUM(DG12:DM12,DB13:DF13)) -> 50.70470238 | DQ12: =NA() ->  | DS12: =NA() ->  | DT12: =NA() ->  | DU12: =IF(DU$11="AVG",IF(DS$1="INST-VAL",AVERAGE(DF12:DI12,DG12:DJ12),AVERAGE(DG12:DJ12)),SUM(DG12:DJ12)) -> 50.55794144 | DV12: =IF(DV$11="AVG",IF(DS$1="INST-VAL",AVERAGE(DI12:DL12,DJ12:DM12),AVERAGE(DJ12:DM12)),SUM(DJ12:DM12)) -> 51.61887169 | DW12: =IF(DW$11="AVG",IF(DS$1="INST-VAL",AVERAGE(DL12:DM12,DB13,DM12,DB13:DC13),AVERAGE(DM12,DB13:DC13)),SUM(DM12,DB13:DC13)) -> 51.83967082 | DY12: 1922 | DZ12: =NA() ->  | EA12: =NA() ->  | EB12: =NA() ->  | EC12: ='Compile Data'!E16 -> 45.87261581 | ED12: ='Compile Data'!E17 -> 45.64303207 | EE12: ='Compile Data'!E18 -> 47.74803925 | EF12: ='Compile Data'!E19 -> 51.40763855 | EG12: ='Compile Data'!E20 -> 51.0236702 | EH12: ='Compile Data'!E21 -> 51.95144653 | EI12: ='Compile Data'!E22 -> 52.40444565 | EJ12: ='Compile Data'!E23 -> 51.95866394 | EK12: ='Compile Data'!E24 -> 50.15712357 | EM12: =IF(EM$11="AVG",AVERAGE(EC12:EK12,DZ13:EB13),SUM(EC12:EK12,DZ13:EB13)) -> 50.38786507 | EN12: =IF(EN$11="AVG",AVERAGE(EE12:EK12,DZ13:ED13),SUM(EE12:EK12,DZ13:ED13)) -> 50.68366909 | EO12: =NA() ->  | EQ12: =NA() ->  | ER12: =NA() ->  | ES12: =IF(ES$11="AVG",IF(EQ$1="INST-VAL",AVERAGE(ED12:EG12,EE12:EH12),AVERAGE(EE12:EH12)),SUM(EE12:EH12)) -> 50.53269863 | ET12: =IF(ET$11="AVG",IF(EQ$1="INST-VAL",AVERAGE(EG12:EJ12,EH12:EK12),AVERAGE(EH12:EK12)),SUM(EH12:EK12)) -> 51.61791992 | EU12: =IF(EU$11="AVG",IF(EQ$1="INST-VAL",AVERAGE(EJ12:EK12,DZ13,EK12,DZ13:EA13),AVERAGE(EK12,DZ13:EA13)),SUM(EK12,DZ13:EA13)) -> 51.82715352
A13: 1921-10-31 | I13: 1923 | J13: =B25 -> 51.89820862 | K13: =B26 -> 53.56967926 | L13: =B27 -> 51.11385727 | M13: =B28 -> 47.52082062 | N13: =B29 -> 47.41940308 | O13: =B30 -> 50.95542908 | P13: =B31 -> 53.18655396 | Q13: =B32 -> 51.91106415 | R13: =B33 -> 51.35770798 | S13: =B34 -> 51.78261185 | T13: =B35 -> 51.64431763 | U13: =B36 -> 52.60756683 | W13: 51.38943132 | X13: 51.65567271 | Y13: =IF(Y$11="AVG",AVERAGE(J13:U13),SUM(J13:U13)) -> 51.24726836 | AA13: =IF(AA$11="AVG",IF(AA$1="INST-VAL",AVERAGE(U12,J13:L13,J13:M13),AVERAGE(J13:M13)),SUM(J13:M13)) -> 51.02564144 | AB13: =IF(AB$11="AVG",IF(AA$1="INST-VAL",AVERAGE(K13:M13,L13:N13),AVERAGE(L13:N13)),SUM(L13:N13)) -> 48.68469365 | AC13: 51.85268879 | AD13: 51.84805107 | AE13: 52.97638321 | AG13: 1923 | AH13: ='Compile Data'!C25 -> 51.85019302 | AI13: ='Compile Data'!C26 -> 53.54026031 | AJ13: ='Compile Data'!C27 -> 51.09936905 | AK13: ='Compile Data'!C28 -> 47.50932312 | AL13: ='Compile Data'!C29 -> 47.42972565 | AM13: ='Compile Data'!C30 -> 50.94565201 | AN13: ='Compile Data'!C31 -> 53.12083435 | AO13: ='Compile Data'!C32 -> 52.00242996 | AP13: ='Compile Data'!C33 -> 51.4013176 | AQ13: ='Compile Data'!C34 -> 51.80054092 | AR13: ='Compile Data'!C35 -> 51.76874924 | AS13: ='Compile Data'!C36 -> 52.50654602 | AU13: =IF(AU$11="AVG",AVERAGE(AK13:AS13,AH14:AJ14),SUM(AK13:AS13,AH14:AJ14)) -> 51.3880221 | AV13: =IF(AV$11="AVG",AVERAGE(AM13:AS13,AH14:AL14),SUM(AM13:AS13,AH14:AL14)) -> 51.64905039 | AW13: =IF(AW$11="AVG",AVERAGE(AH13:AS13),SUM(AH13:AS13)) -> 51.24791177 | AY13: =IF(AY$11="AVG",IF(AY$1="INST-VAL",AVERAGE(AS12,AH13:AJ13,AH13:AK13),AVERAGE(AH13:AK13)),SUM(AH13:AK13)) -> 50.99978638 | AZ13: =IF(AZ$11="AVG",IF(AY$1="INST-VAL",AVERAGE(AI13:AK13,AJ13:AL13),AVERAGE(AJ13:AL13)),SUM(AJ13:AL13)) -> 48.67947261 | BA13: =IF(BA$11="AVG",IF(AY$1="INST-VAL",AVERAGE(AL13:AO13,AM13:AP13),AVERAGE(AM13:AP13)),SUM(AM13:AP13)) -> 51.86755848 | BB13: =IF(BB$11="AVG",IF(AY$1="INST-VAL",AVERAGE(AO13:AR13,AP13:AS13),AVERAGE(AP13:AS13)),SUM(AP13:AS13)) -> 51.86928844 | BC13: =IF(BC$11="AVG",IF(AY$1="INST-VAL",AVERAGE(AR13:AS13,AH14,AS13,AH14:AI14),AVERAGE(AS13,AH14:AI14)),SUM(AS13,AH14:AI14)) -> 52.92790349 | BE13: 1923 | BF13: ='Compile Data'!D25 -> 51.74239731 | BG13: ='Compile Data'!D26 -> 53.5732193 | BH13: ='Compile Data'!D27 -> 51.15228271 | BI13: ='Compile Data'!D28 -> 47.54462051 | BJ13: ='Compile Data'!D29 -> 47.50992203 | BK13: ='Compile Data'!D30 -> 50.9511261 | BL13: ='Compile Data'!D31 -> 53.095047 | BM13: ='Compile Data'!D32 -> 52.02238083 | BN13: ='Compile Data'!D33 -> 51.86757278 | BO13: ='Compile Data'!D34 -> 51.6065712 | BP13: ='Compile Data'!D35 -> 51.77462769 | BQ13: ='Compile Data'!D36 -> 52.32866669 | BS13: =IF(BS$11="AVG",AVERAGE(BI13:BQ13,BF14:BH14),SUM(BI13:BQ13,BF14:BH14)) -> 51.40272776 | BT13: =IF(BT$11="AVG",AVERAGE(BK13:BQ13,BF14:BJ14),SUM(BK13:BQ13,BF14:BJ14)) -> 51.64991124 | BU13: =IF(BU$11="AVG",AVERAGE(BF13:BQ13),SUM(BF13:BQ13)) -> 51.26403618 | BW13: =IF(BW$11="AVG",IF(BW$1="INST-VAL",AVERAGE(BQ12,BF13:BH13,BF13:BI13),AVERAGE(BF13:BI13)),SUM(BF13:BI13)) -> 51.00312996 | BX13: =IF(BX$11="AVG",IF(BW$1="INST-VAL",AVERAGE(BG13:BI13,BH13:BJ13),AVERAGE(BH13:BJ13)),SUM(BH13:BJ13)) -> 48.73560842 | BY13: =IF(BY$11="AVG",IF(BW$1="INST-VAL",AVERAGE(BJ13:BM13,BK13:BN13),AVERAGE(BK13:BN13)),SUM(BK13:BN13)) -> 51.98403168 | BZ13: =IF(BZ$11="AVG",IF(BW$1="INST-VAL",AVERAGE(BM13:BP13,BN13:BQ13),AVERAGE(BN13:BQ13)),SUM(BN13:BQ13)) -> 51.89435959 | CA13: =IF(CA$11="AVG",IF(BW$1="INST-VAL",AVERAGE(BP13:BQ13,BF14,BQ13,BF14:BG14),AVERAGE(BQ13,BF14:BG14)),SUM(BQ13,BF14:BG14)) -> 52.8727328 | CC13: 1923 | CD13: ='Compile Data'!E25 -> 51.74543381 | CE13: ='Compile Data'!E26 -> 53.5789032 | CF13: ='Compile Data'!E27 -> 51.16336823 | CG13: ='Compile Data'!E28 -> 47.55764389 | CH13: ='Compile Data'!E29 -> 47.50765228 | CI13: ='Compile Data'!E30 -> 50.97745514 | CJ13: ='Compile Data'!E31 -> 53.09984589 | CK13: ='Compile Data'!E32 -> 52.09060669 | CL13: ='Compile Data'!E33 -> 51.91490173 | CM13: ='Compile Data'!E34 -> 51.94973373 | CN13: ='Compile Data'!E35 -> 51.70611191 | CO13: ='Compile Data'!E36 -> 52.1558075 | CQ13: =IF(CQ$11="AVG",AVERAGE(CG13:CO13,CD14:CF14),SUM(CG13:CO13,CD14:CF14)) -> 51.41780472 | CR13: =IF(CR$11="AVG",AVERAGE(CI13:CO13,CD14:CH14),SUM(CI13:CO13,CD14:CH14)) -> 51.66070875 | CS13: =IF(CS$11="AVG",AVERAGE(CD13:CO13),SUM(CD13:CO13)) -> 51.28728867 | CU13: =IF(CU$11="AVG",IF(CU$1="INST-VAL",AVERAGE(CO12,CD13:CF13,CD13:CG13),AVERAGE(CD13:CG13)),SUM(CD13:CG13)) -> 51.01133728 | CV13: =IF(CV$11="AVG",IF(CU$1="INST-VAL",AVERAGE(CE13:CG13,CF13:CH13),AVERAGE(CF13:CH13)),SUM(CF13:CH13)) -> 48.74288813 | CW13: =IF(CW$11="AVG",IF(CU$1="INST-VAL",AVERAGE(CH13:CK13,CI13:CL13),AVERAGE(CI13:CL13)),SUM(CI13:CL13)) -> 52.02070236 | CX13: =IF(CX$11="AVG",IF(CU$1="INST-VAL",AVERAGE(CK13:CN13,CL13:CO13),AVERAGE(CL13:CO13)),SUM(CL13:CO13)) -> 51.93163872 | CY13: =IF(CY$11="AVG",IF(CU$1="INST-VAL",AVERAGE(CN13:CO13,CD14,CO13,CD14:CE14),AVERAGE(CO13,CD14:CE14)),SUM(CO13,CD14:CE14)) -> 52.80693563 | DA13: 1923 | DB13: ='Compile Data'!F25 -> 51.74184418 | DC13: ='Compile Data'!F26 -> 53.61467743 | DD13: ='Compile Data'!F27 -> 51.32455063 | DE13: ='Compile Data'!F28 -> 47.81387329 | DF13: ='Compile Data'!F29 -> 47.210392 | DG13: ='Compile Data'!F30 -> 49.62437057 | DH13: ='Compile Data'!F31 -> 53.20510864 | DI13: ='Compile Data'!F32 -> 52.74188614 | DJ13: ='Compile Data'!F33 -> 52.24533844 | DK13: ='Compile Data'!F34 -> 52.26342773 | DL13: ='Compile Data'!F35 -> 51.71063614 | DM13: ='Compile Data'!F36 -> 52.59682846 | DO13: =IF(DO$11="AVG",AVERAGE(DE13:DM13,DB14:DD14),SUM(DE13:DM13,DB14:DD14)) -> 51.45997715 | DP13: =IF(DP$11="AVG",AVERAGE(DG13:DM13,DB14:DF14),SUM(DG13:DM13,DB14:DF14)) -> 51.69702148 | DQ13: =IF(DQ$11="AVG",AVERAGE(DB13:DM13),SUM(DB13:DM13)) -> 51.3410778 | DS13: =IF(DS$11="AVG",IF(DS$1="INST-VAL",AVERAGE(DM12,DB13:DD13,DB13:DE13),AVERAGE(DB13:DE13)),SUM(DB13:DE13)) -> 51.12373638 | DT13: =IF(DT$11="AVG",IF(DS$1="INST-VAL",AVERAGE(DC13:DE13,DD13:DF13),AVERAGE(DD13:DF13)),SUM(DD13:DF13)) -> 48.78293864 | DU13: =IF(DU$11="AVG",IF(DS$1="INST-VAL",AVERAGE(DF13:DI13,DG13:DJ13),AVERAGE(DG13:DJ13)),SUM(DG13:DJ13)) -> 51.95417595 | DV13: =IF(DV$11="AVG",IF(DS$1="INST-VAL",AVERAGE(DI13:DL13,DJ13:DM13),AVERAGE(DJ13:DM13)),SUM(DJ13:DM13)) -> 52.20405769 | DW13: =IF(DW$11="AVG",IF(DS$1="INST-VAL",AVERAGE(DL13:DM13,DB14,DM13,DB14:DC14),AVERAGE(DM13,DB14:DC14)),SUM(DM13,DB14:DC14)) -> 52.99452082 | DY13: 1923 | DZ13: ='Compile Data'!E25 -> 51.74543381 | EA13: ='Compile Data'!E26 -> 53.5789032 | EB13: ='Compile Data'!E27 -> 51.16336823 | EC13: ='Compile Data'!E28 -> 47.55764389 | ED13: ='Compile Data'!E29 -> 47.50765228 | EE13: ='Compile Data'!E30 -> 50.97745514 | EF13: ='Compile Data'!E31 -> 53.09984589 | EG13: ='Compile Data'!E32 -> 52.09060669 | EH13: ='Compile Data'!E33 -> 51.91490173 | EI13: ='Compile Data'!E34 -> 51.94973373 | EJ13: ='Compile Data'!E35 -> 51.70611191 | EK13: ='Compile Data'!E36 -> 52.1558075 | EM13: 51.41780472 | EN13: 51.66070875 | EO13: =IF(EO$11="AVG",AVERAGE(DZ13:EK13),SUM(DZ13:EK13)) -> 51.28728867 | EQ13: =IF(EQ$11="AVG",IF(EQ$1="INST-VAL",AVERAGE(EK12,DZ13:EB13,DZ13:EC13),AVERAGE(DZ13:EC13)),SUM(DZ13:EC13)) -> 51.01133728 | ER13: =IF(ER$11="AVG",IF(EQ$1="INST-VAL",AVERAGE(EA13:EC13,EB13:ED13),AVERAGE(EB13:ED13)),SUM(EB13:ED13)) -> 48.74288813 | ES13: 52.02070236 | ET13: 51.93163872 | EU13: 52.80693563
A14: 1921-11-30 | I14: 1924 | J14: =B37 -> 52.01070023 | K14: =B38 -> 54.31088257 | L14: =B39 -> 51.96611786 | M14: =B40 -> 48.79593658 | N14: =B41 -> 49.33918381 | O14: =B42 -> 49.12997055 | P14: =B43 -> 51.1334877 | Q14: =B44 -> 53.98318863 | R14: =B45 -> 55.86037827 | S14: =B46 -> 52.36655426 | T14: =B47 -> 52.82830048 | U14: =B48 -> 55.4389267 | W14: 52.38552825 | X14: 52.05600007 | Y14: 52.26363564 | AA14: 51.77090931 | AB14: 50.03374608 | AC14: 52.52675629 | AD14: 54.12353992 | AE14: 55.22843933 | AG14: 1924 | AH14: ='Compile Data'!C37 -> 51.9559021 | AI14: ='Compile Data'!C38 -> 54.32126236 | AJ14: ='Compile Data'!C39 -> 51.89398193 | AK14: ='Compile Data'!C40 -> 48.76411819 | AL14: ='Compile Data'!C41 -> 49.30727005 | AM14: ='Compile Data'!C42 -> 49.08396149 | AN14: ='Compile Data'!C43 -> 51.10699463 | AO14: ='Compile Data'!C44 -> 53.78449249 | AP14: ='Compile Data'!C45 -> 55.85063934 | AQ14: ='Compile Data'!C46 -> 52.3421669 | AR14: ='Compile Data'!C47 -> 52.79203033 | AS14: ='Compile Data'!C48 -> 55.29014969 | AU14: 52.3101457 | AV14: 51.9980669 | AW14: 52.20774746 | AY14: 51.73381615 | AZ14: 49.98845673 | BA14: 52.45652199 | BB14: 54.06874657 | BC14: 55.04972076 | BE14: 1924 | BF14: ='Compile Data'!D37 -> 52.02483368 | BG14: ='Compile Data'!D38 -> 54.26469803 | BH14: ='Compile Data'!D39 -> 51.84266663 | BI14: ='Compile Data'!D40 -> 48.74963379 | BJ14: ='Compile Data'!D41 -> 49.27111053 | BK14: ='Compile Data'!D42 -> 48.99701309 | BL14: ='Compile Data'!D43 -> 51.05415726 | BM14: ='Compile Data'!D44 -> 53.13981628 | BN14: ='Compile Data'!D45 -> 55.50365448 | BO14: ='Compile Data'!D46 -> 52.33159256 | BP14: ='Compile Data'!D47 -> 52.79498291 | BQ14: ='Compile Data'!D48 -> 55.1446228 | BS14: 52.22963905 | BT14: 51.93938414 | BU14: 52.09323184 | BW14: 51.72045803 | BX14: 49.95447032 | BY14: 52.17366028 | BZ14: 53.94371319 | CA14: 54.94111379 | CC14: 1924 | CD14: ='Compile Data'!E37 -> 51.99596405 | CE14: ='Compile Data'!E38 -> 54.26903534 | CF14: ='Compile Data'!E39 -> 51.78889847 | CG14: ='Compile Data'!E40 -> 48.72446442 | CH14: ='Compile Data'!E41 -> 49.25568008 | CI14: ='Compile Data'!E42 -> 48.9393692 | CJ14: ='Compile Data'!E43 -> 51.0267067 | CK14: ='Compile Data'!E44 -> 52.72504807 | CL14: ='Compile Data'!E45 -> 55.16713333 | CM14: ='Compile Data'!E46 -> 52.3596077 | CN14: ='Compile Data'!E47 -> 52.79999542 | CO14: ='Compile Data'!E48 -> 54.91821671 | CQ14: 52.12936052 | CR14: 51.84697533 | CS14: 51.99750996 | CU14: 51.69459057 | CV14: 49.92301432 | CW14: 51.96456432 | CX14: 53.81123829 | CY14: 54.63443502 | DA14: 1924 | DB14: ='Compile Data'!F37 -> 52.07552719 | DC14: ='Compile Data'!F38 -> 54.31120682 | DD14: ='Compile Data'!F39 -> 51.72113037 | DE14: ='Compile Data'!F40 -> 48.6615181 | DF14: ='Compile Data'!F41 -> 49.20727921 | DG14: ='Compile Data'!F42 -> 48.96815109 | DH14: ='Compile Data'!F43 -> 51.48783112 | DI14: ='Compile Data'!F44 -> 52.90245056 | DJ14: ='Compile Data'!F45 -> 55.17714691 | DK14: ='Compile Data'!F46 -> 52.31854248 | DL14: ='Compile Data'!F47 -> 52.35923004 | DM14: ='Compile Data'!F48 -> 54.64143753 | DO14: 52.16677252 | DP14: 51.88216337 | DQ14: 51.98595428 | DS14: 51.69234562 | DT14: 49.86330922 | DU14: 52.13389492 | DV14: 53.62408924 | DW14: 55.06364695 | DY14: 1924 | DZ14: ='Compile Data'!E37 -> 51.99596405 | EA14: ='Compile Data'!E38 -> 54.26903534 | EB14: ='Compile Data'!E39 -> 51.78889847 | EC14: ='Compile Data'!E40 -> 48.72446442 | ED14: ='Compile Data'!E41 -> 49.25568008 | EE14: ='Compile Data'!E42 -> 48.9393692 | EF14: ='Compile Data'!E43 -> 51.0267067 | EG14: ='Compile Data'!E44 -> 52.72504807 | EH14: ='Compile Data'!E45 -> 55.16713333 | EI14: ='Compile Data'!E46 -> 52.3596077 | EJ14: ='Compile Data'!E47 -> 52.79999542 | EK14: ='Compile Data'!E48 -> 54.91821671 | EM14: 52.12936052 | EN14: 51.84697533 | EO14: 51.99750996 | EQ14: 51.69459057 | ER14: 49.92301432 | ES14: 51.96456432 | ET14: 53.81123829 | EU14: 54.63443502
A15: 1921-12-31 | I15: 1925 | J15: =B49 -> 56.28923035 | K15: =B50 -> 53.95716095 | L15: =B51 -> 49.50402069 | M15: =B52 -> 47.09355545 | N15: =B53 -> 47.08722687 | O15: =B54 -> 48.73402405 | P15: =B55 -> 51.41685867 | Q15: =B56 -> 52.55155945 | R15: =B57 -> 52.07055283 | S15: =B58 -> 51.39328003 | T15: =B59 -> 51.86101532 | U15: =B60 -> 51.08818436 | W15: 50.88186487 | X15: 50.99517695 | Y15: 51.08722242 | AA15: 51.71099186 | AB15: 47.89493434 | AC15: 51.19324875 | AD15: 51.60325813 | AE15: 52.36460368 | AG15: 1925 | AH15: ='Compile Data'!C49 -> 55.91638184 | AI15: ='Compile Data'!C50 -> 53.94263077 | AJ15: ='Compile Data'!C51 -> 49.54091263 | AK15: ='Compile Data'!C52 -> 47.22964478 | AL15: ='Compile Data'!C53 -> 47.09679794 | AM15: ='Compile Data'!C54 -> 48.75878525 | AN15: ='Compile Data'!C55 -> 51.48095322 | AO15: ='Compile Data'!C56 -> 52.79869461 | AP15: ='Compile Data'!C57 -> 52.25395966 | AQ15: ='Compile Data'!C58 -> 51.32606125 | AR15: ='Compile Data'!C59 -> 51.81414032 | AS15: ='Compile Data'!C60 -> 51.09160614 | AU15: 50.919336 | AV15: 51.02269586 | AW15: 51.10421403 | AY15: 51.6573925 | AZ15: 47.95578512 | BA15: 51.32309818 | BB15: 51.62144184 | BC15: 52.34312312 | BE15: 1925 | BF15: ='Compile Data'!D49 -> 55.69806671 | BG15: ='Compile Data'!D50 -> 53.98065186 | BH15: ='Compile Data'!D51 -> 50.09036636 | BI15: ='Compile Data'!D52 -> 47.40655899 | BJ15: ='Compile Data'!D53 -> 47.1311264 | BK15: ='Compile Data'!D54 -> 48.80168152 | BL15: ='Compile Data'!D55 -> 51.7571106 | BM15: ='Compile Data'!D56 -> 52.74991226 | BN15: ='Compile Data'!D57 -> 52.36470032 | BO15: ='Compile Data'!D58 -> 51.31887436 | BP15: ='Compile Data'!D59 -> 51.86159515 | BQ15: ='Compile Data'!D60 -> 51.13647461 | BS15: 50.94734414 | BT15: 51.02987035 | BU15: 51.1914266 | BW15: 51.79391098 | BX15: 48.20935059 | BY15: 51.41835117 | BZ15: 51.67041111 | CA15: 52.27010854 | CC15: 1925 | CD15: ='Compile Data'!E49 -> 55.08066559 | CE15: ='Compile Data'!E50 -> 53.90442276 | CF15: ='Compile Data'!E51 -> 50.65101624 | CG15: ='Compile Data'!E52 -> 47.44158936 | CH15: ='Compile Data'!E53 -> 47.14993286 | CI15: ='Compile Data'!E54 -> 48.99266434 | CJ15: ='Compile Data'!E55 -> 52.15417099 | CK15: ='Compile Data'!E56 -> 52.39133072 | CL15: ='Compile Data'!E57 -> 52.21936417 | CM15: ='Compile Data'!E58 -> 51.26189804 | CN15: ='Compile Data'!E59 -> 51.81578827 | CO15: ='Compile Data'!E60 -> 51.14852905 | CQ15: 50.95609824 | CR15: 51.03612041 | CS15: 51.18428103 | CU15: 51.76942348 | CV15: 48.41417948 | CW15: 51.43938255 | CX15: 51.61139488 | CY15: 52.28701528 | DA15: 1925 | DB15: ='Compile Data'!F49 -> 56.32065201 | DC15: ='Compile Data'!F50 -> 54.22885132 | DD15: ='Compile Data'!F51 -> 49.72817993 | DE15: ='Compile Data'!F52 -> 47.37823486 | DF15: ='Compile Data'!F53 -> 47.07525253 | DG15: ='Compile Data'!F54 -> 48.75059509 | DH15: ='Compile Data'!F55 -> 51.52914429 | DI15: ='Compile Data'!F56 -> 52.51655197 | DJ15: ='Compile Data'!F57 -> 52.36833572 | DK15: ='Compile Data'!F58 -> 51.4216423 | DL15: ='Compile Data'!F59 -> 51.83666229 | DM15: ='Compile Data'!F60 -> 51.08826447 | DO15: 50.92322858 | DP15: 51.01088651 | DQ15: 51.1868639 | DS15: 51.91397953 | DT15: 48.06055578 | DU15: 51.29115677 | DV15: 51.6787262 | DW15: 52.30685298 | DY15: 1925 | DZ15: ='Compile Data'!E49 -> 55.08066559 | EA15: ='Compile Data'!E50 -> 53.90442276 | EB15: ='Compile Data'!E51 -> 50.65101624 | EC15: ='Compile Data'!E52 -> 47.44158936 | ED15: ='Compile Data'!E53 -> 47.14993286 | EE15: ='Compile Data'!E54 -> 48.99266434 | EF15: ='Compile Data'!E55 -> 52.15417099 | EG15: ='Compile Data'!E56 -> 52.39133072 | EH15: ='Compile Data'!E57 -> 52.21936417 | EI15: ='Compile Data'!E58 -> 51.26189804 | EJ15: ='Compile Data'!E59 -> 51.81578827 | EK15: ='Compile Data'!E60 -> 51.14852905 | EM15: 50.95609824 | EN15: 51.03612041 | EO15: 51.18428103 | EQ15: 51.76942348 | ER15: 48.41417948 | ES15: 51.43938255 | ET15: 51.61139488 | EU15: 52.28701528
A16: 1922-01-31 | B16: =INDIRECT(CONCATENATE("'",B$1,"'!",B$4,(YEAR($A16)-1921)*12+MONTH($A16)+3+IF(ISNUMBER(FIND("PRV",B$6)),1,0)))*IF(AND(B$3>0,TRIM(B$9)="CFS"),Conv_Flags!$C16,1) -> 45.86698914 | C16: =IF(INDIRECT(CONCATENATE("'",C$1,"'!",C$4,(YEAR($A16)-1921)*12+MONTH($A16)+3+IF(ISNUMBER(FIND("PRV",C$6)),1,0)))=-901,NA(),INDIRECT(CONCATENATE("'",C$1,"'!",C$4,(YEAR($A16)-1921)*12+MONTH($A16)+3+IF(ISNUMBER(FIND("PRV",C$6)),1,0)))*IF(AND(C$3>0,TRIM(C$9)="CFS"),Conv_Flags!$C16,1)) -> 45.87252426 | D16: =IF(INDIRECT(CONCATENATE("'",D$1,"'!",D$4,(YEAR($A16)-1921)*12+MONTH($A16)+3+IF(ISNUMBER(FIND("PRV",D$6)),1,0)))=-901,NA(),INDIRECT(CONCATENATE("'",D$1,"'!",D$4,(YEAR($A16)-1921)*12+MONTH($A16)+3+IF(ISNUMBER(FIND("PRV",D$6)),1,0)))*IF(AND(D$3>0,TRIM(D$9)="CFS"),Conv_Flags!$C16,1)) -> 45.87252426 | E16: =IF(INDIRECT(CONCATENATE("'",E$1,"'!",E$4,(YEAR($A16)-1921)*12+MONTH($A16)+3+IF(ISNUMBER(FIND("PRV",E$6)),1,0)))=-901,NA(),INDIRECT(CONCATENATE("'",E$1,"'!",E$4,(YEAR($A16)-1921)*12+MONTH($A16)+3+IF(ISNUMBER(FIND("PRV",E$6)),1,0)))*IF(AND(E$3>0,TRIM(E$9)="CFS"),Conv_Flags!$C16,1)) -> 45.87261581 | F16: =IF(INDIRECT(CONCATENATE("'",F$1,"'!",F$4,(YEAR($A16)-1921)*12+MONTH($A16)+3+IF(ISNUMBER(FIND("PRV",F$6)),1,0)))=-901,NA(),INDIRECT(CONCATENATE("'",F$1,"'!",F$4,(YEAR($A16)-1921)*12+MONTH($A16)+3+IF(ISNUMBER(FIND("PRV",F$6)),1,0)))*IF(AND(F$3>0,TRIM(F$9)="CFS"),Conv_Flags!$C16,1)) -> 45.8716774 | I16: 1926 | J16: =B61 -> 52.13686371 | K16: =B62 -> 53.86876297 | L16: =B63 -> 51.28049469 | M16: =B64 -> 48.02466965 | N16: =B65 -> 47.5158577 | O16: =B66 -> 50.25582886 | P16: =B67 -> 54.29219818 | Q16: =B68 -> 53.6000824 | R16: =B69 -> 52.60035324 | S16: =B70 -> 52.06718445 | T16: =B71 -> 52.72558594 | U16: =B72 -> 52.60937881 | W16: 51.70816676 | X16: 51.41801135 | Y16: 51.74810505 | AA16: 51.32769775 | AB16: 48.94034068 | AC16: 52.68711567 | AD16: 52.50062561 | AE16: 53.10413488 | AG16: 1926 | AH16: ='Compile Data'!C61 -> 52.16862488 | AI16: ='Compile Data'!C62 -> 53.76913834 | AJ16: ='Compile Data'!C63 -> 51.24362564 | AK16: ='Compile Data'!C64 -> 48.0205307 | AL16: ='Compile Data'!C65 -> 47.54623032 | AM16: ='Compile Data'!C66 -> 50.2837677 | AN16: ='Compile Data'!C67 -> 54.31322479 | AO16: ='Compile Data'!C68 -> 52.73604584 | AP16: ='Compile Data'!C69 -> 52.05430603 | AQ16: ='Compile Data'!C70 -> 51.53517151 | AR16: ='Compile Data'!C71 -> 52.52923584 | AS16: ='Compile Data'!C72 -> 52.54386139 | AU16: 51.51312224 | AV16: 51.24863529 | AW16: 51.56198025 | AY16: 51.30047989 | AZ16: 48.93679555 | BA16: 52.34683609 | BB16: 52.16564369 | BC16: 52.99614461 | BE16: 1926 | BF16: ='Compile Data'!D61 -> 52.02779388 | BG16: ='Compile Data'!D62 -> 53.64605713 | BH16: ='Compile Data'!D63 -> 51.16624451 | BI16: ='Compile Data'!D64 -> 47.97763062 | BJ16: ='Compile Data'!D65 -> 47.55036926 | BK16: ='Compile Data'!D66 -> 50.32403183 | BL16: ='Compile Data'!D67 -> 54.20606613 | BM16: ='Compile Data'!D68 -> 52.57427597 | BN16: ='Compile Data'!D69 -> 52.09063339 | BO16: ='Compile Data'!D70 -> 51.46297455 | BP16: ='Compile Data'!D71 -> 52.51927948 | BQ16: ='Compile Data'!D72 -> 52.55150604 | BS16: 51.5261488 | BT16: 51.26246293 | BU16: 51.5080719 | BW16: 51.20443153 | BX16: 48.89808146 | BY16: 52.29875183 | BZ16: 52.15609837 | CA16: 53.08445613 | CC16: 1926 | CD16: ='Compile Data'!E61 -> 52.01453018 | CE16: ='Compile Data'!E62 -> 53.6979866 | CF16: ='Compile Data'!E63 -> 51.18539429 | CG16: ='Compile Data'!E64 -> 47.99237061 | CH16: ='Compile Data'!E65 -> 47.55941772 | CI16: ='Compile Data'!E66 -> 50.31370163 | CJ16: ='Compile Data'!E67 -> 54.26186752 | CK16: ='Compile Data'!E68 -> 52.66679382 | CL16: ='Compile Data'!E69 -> 52.03919983 | CM16: ='Compile Data'!E70 -> 51.58451462 | CN16: ='Compile Data'!E71 -> 52.53409576 | CO16: ='Compile Data'!E72 -> 52.55936813 | CQ16: 51.52037684 | CR16: 51.256622 | CS16: 51.53410339 | CU16: 51.22257042 | CV16: 48.91239421 | CW16: 52.3203907 | CX16: 52.17929459 | CY16: 52.9844017 | DA16: 1926 | DB16: ='Compile Data'!F61 -> 52.03607178 | DC16: ='Compile Data'!F62 -> 53.79622269 | DD16: ='Compile Data'!F63 -> 51.28176498 | DE16: ='Compile Data'!F64 -> 47.99221039 | DF16: ='Compile Data'!F65 -> 47.51317215 | DG16: ='Compile Data'!F66 -> 50.31661606 | DH16: ='Compile Data'!F67 -> 54.37825394 | DI16: ='Compile Data'!F68 -> 53.65187454 | DJ16: ='Compile Data'!F69 -> 52.39133835 | DK16: ='Compile Data'!F70 -> 51.561203 | DL16: ='Compile Data'!F71 -> 52.50013733 | DM16: ='Compile Data'!F72 -> 52.54711914 | DO16: 51.60384941 | DP16: 51.33509191 | DQ16: 51.66383203 | DS16: 51.27656746 | DT16: 48.92904917 | DU16: 52.68452072 | DV16: 52.24994946 | DW16: 53.0012118 | DY16: 1926 | DZ16: ='Compile Data'!E61 -> 52.01453018 | EA16: ='Compile Data'!E62 -> 53.6979866 | EB16: ='Compile Data'!E63 -> 51.18539429 | EC16: ='Compile Data'!E64 -> 47.99237061 | ED16: ='Compile Data'!E65 -> 47.55941772 | EE16: ='Compile Data'!E66 -> 50.31370163 | EF16: ='Compile Data'!E67 -> 54.26186752 | EG16: ='Compile Data'!E68 -> 52.66679382 | EH16: ='Compile Data'!E69 -> 52.03919983 | EI16: ='Compile Data'!E70 -> 51.58451462 | EJ16: ='Compile Data'!E71 -> 52.53409576 | EK16: ='Compile Data'!E72 -> 52.55936813 | EM16: 51.52037684 | EN16: 51.256622 | EO16: 51.53410339 | EQ16: 51.22257042 | ER16: 48.91239421 | ES16: 52.3203907 | ET16: 52.17929459 | EU16: 52.9844017
A17: 1922-02-28 | B17: =IF(INDIRECT(CONCATENATE("'",B$1,"'!",B$4,(YEAR($A17)-1921)*12+MONTH($A17)+3+IF(ISNUMBER(FIND("PRV",B$6)),1,0)))=-901,NA(),INDIRECT(CONCATENATE("'",B$1,"'!",B$4,(YEAR($A17)-1921)*12+MONTH($A17)+3+IF(ISNUMBER(FIND("PRV",B$6)),1,0)))*IF(AND(B$3>0,TRIM(B$9)="CFS"),Conv_Flags!$C17,1)) -> 45.62512207 | C17: =IF(INDIRECT(CONCATENATE("'",C$1,"'!",C$4,(YEAR($A17)-1921)*12+MONTH($A17)+3+IF(ISNUMBER(FIND("PRV",C$6)),1,0)))=-901,NA(),INDIRECT(CONCATENATE("'",C$1,"'!",C$4,(YEAR($A17)-1921)*12+MONTH($A17)+3+IF(ISNUMBER(FIND("PRV",C$6)),1,0)))*IF(AND(C$3>0,TRIM(C$9)="CFS"),Conv_Flags!$C17,1)) -> 45.63713455 | D17: =IF(INDIRECT(CONCATENATE("'",D$1,"'!",D$4,(YEAR($A17)-1921)*12+MONTH($A17)+3+IF(ISNUMBER(FIND("PRV",D$6)),1,0)))=-901,NA(),INDIRECT(CONCATENATE("'",D$1,"'!",D$4,(YEAR($A17)-1921)*12+MONTH($A17)+3+IF(ISNUMBER(FIND("PRV",D$6)),1,0)))*IF(AND(D$3>0,TRIM(D$9)="CFS"),Conv_Flags!$C17,1)) -> 45.63713455 | E17: =IF(INDIRECT(CONCATENATE("'",E$1,"'!",E$4,(YEAR($A17)-1921)*12+MONTH($A17)+3+IF(ISNUMBER(FIND("PRV",E$6)),1,0)))=-901,NA(),INDIRECT(CONCATENATE("'",E$1,"'!",E$4,(YEAR($A17)-1921)*12+MONTH($A17)+3+IF(ISNUMBER(FIND("PRV",E$6)),1,0)))*IF(AND(E$3>0,TRIM(E$9)="CFS"),Conv_Flags!$C17,1)) -> 45.64303207 | F17: =IF(INDIRECT(CONCATENATE("'",F$1,"'!",F$4,(YEAR($A17)-1921)*12+MONTH($A17)+3+IF(ISNUMBER(FIND("PRV",F$6)),1,0)))=-901,NA(),INDIRECT(CONCATENATE("'",F$1,"'!",F$4,(YEAR($A17)-1921)*12+MONTH($A17)+3+IF(ISNUMBER(FIND("PRV",F$6)),1,0)))*IF(AND(F$3>0,TRIM(F$9)="CFS"),Conv_Flags!$C17,1)) -> 45.63570786 | I17: 1927 | J17: =B73 -> 53.11463928 | K17: =B74 -> 53.58838654 | L17: =B75 -> 50.10383606 | M17: =B76 -> 46.8849678 | N17: =B77 -> 45.17369461 | O17: =B78 -> 47.82128143 | P17: =B79 -> 49.79927826 | Q17: =B80 -> 51.44459152 | R17: =B81 -> 51.85700989 | S17: =B82 -> 51.04845428 | T17: =B83 -> 51.18059921 | U17: =B84 -> 50.05224228 | W17: 50.05765279 | X17: 50.29454072 | Y17: 50.1724151 | AA17: 50.92295742 | AB17: 47.38749949 | AC17: 50.23054028 | AD17: 51.03457642 | AE17: 51.67980194 | AG17: 1927 | AH17: ='Compile Data'!C73 -> 52.5410881 | AI17: ='Compile Data'!C74 -> 53.90348434 | AJ17: ='Compile Data'!C75 -> 50.15052032 | AK17: ='Compile Data'!C76 -> 47.08272552 | AL17: ='Compile Data'!C77 -> 45.31019211 | AM17: ='Compile Data'!C78 -> 47.8551445 | AN17: ='Compile Data'!C79 -> 49.83634949 | AO17: ='Compile Data'!C80 -> 51.48197937 | AP17: ='Compile Data'!C81 -> 51.91419983 | AQ17: ='Compile Data'!C82 -> 51.04457092 | AR17: ='Compile Data'!C83 -> 51.18084717 | AS17: ='Compile Data'!C84 -> 50.0308075 | AU17: 50.11028735 | AV17: 50.32378674 | AW17: 50.19432576 | AY17: 50.91945457 | AZ17: 47.51447932 | BA17: 50.2719183 | BB17: 51.04260635 | BC17: 51.70439275 | BE17: 1927 | BF17: ='Compile Data'!D73 -> 52.8793335 | BG17: ='Compile Data'!D74 -> 53.82252884 | BH17: ='Compile Data'!D75 -> 50.35515594 | BI17: ='Compile Data'!D76 -> 47.07066345 | BJ17: ='Compile Data'!D77 -> 45.29310608 | BK17: ='Compile Data'!D78 -> 47.85420227 | BL17: ='Compile Data'!D79 -> 49.81792068 | BM17: ='Compile Data'!D80 -> 51.47268295 | BN17: ='Compile Data'!D81 -> 51.90190506 | BO17: ='Compile Data'!D82 -> 51.04637146 | BP17: ='Compile Data'!D83 -> 51.1844101 | BQ17: ='Compile Data'!D84 -> 50.024086 | BS17: 50.10002359 | BT17: 50.31421439 | BU17: 50.22686386 | BW17: 51.03192043 | BX17: 47.57297516 | BY17: 50.26167774 | BZ17: 51.03919315 | CA17: 51.68888474 | CC17: 1927 | CD17: ='Compile Data'!E73 -> 52.5271225 | CE17: ='Compile Data'!E74 -> 53.86671448 | CF17: ='Compile Data'!E75 -> 50.33935547 | CG17: ='Compile Data'!E76 -> 47.07983398 | CH17: ='Compile Data'!E77 -> 45.30689621 | CI17: ='Compile Data'!E78 -> 47.85746002 | CJ17: ='Compile Data'!E79 -> 49.82320404 | CK17: ='Compile Data'!E80 -> 51.47217941 | CL17: ='Compile Data'!E81 -> 51.90582657 | CM17: ='Compile Data'!E82 -> 51.04317856 | CN17: ='Compile Data'!E83 -> 51.1831398 | CO17: ='Compile Data'!E84 -> 50.03415298 | CQ17: 50.1042223 | CR17: 50.31647237 | CS17: 50.20325534 | CU17: 50.95325661 | CV17: 47.57536189 | CW17: 50.26466751 | CX17: 51.04157448 | CY17: 51.69519424 | DA17: 1927 | DB17: ='Compile Data'!F73 -> 52.57017136 | DC17: ='Compile Data'!F74 -> 53.88634491 | DD17: ='Compile Data'!F75 -> 49.93775177 | DE17: ='Compile Data'!F76 -> 47.00465393 | DF17: ='Compile Data'!F77 -> 45.27563858 | DG17: ='Compile Data'!F78 -> 47.84816742 | DH17: ='Compile Data'!F79 -> 49.80379486 | DI17: ='Compile Data'!F80 -> 51.45758438 | DJ17: ='Compile Data'!F81 -> 51.89519119 | DK17: ='Compile Data'!F82 -> 51.04271317 | DL17: ='Compile Data'!F83 -> 51.18090057 | DM17: ='Compile Data'!F84 -> 50.0431366 | DO17: 50.09048494 | DP17: 50.31122716 | DQ17: 50.16217073 | DS17: 50.84973049 | DT17: 47.40601476 | DU17: 50.25118446 | DV17: 51.04048538 | DW17: 51.70016352 | DY17: 1927 | DZ17: ='Compile Data'!E73 -> 52.5271225 | EA17: ='Compile Data'!E74 -> 53.86671448 | EB17: ='Compile Data'!E75 -> 50.33935547 | EC17: ='Compile Data'!E76 -> 47.07983398 | ED17: ='Compile Data'!E77 -> 45.30689621 | EE17: ='Compile Data'!E78 -> 47.85746002 | EF17: ='Compile Data'!E79 -> 49.82320404 | EG17: ='Compile Data'!E80 -> 51.47217941 | EH17: ='Compile Data'!E81 -> 51.90582657 | EI17: ='Compile Data'!E82 -> 51.04317856 | EJ17: ='Compile Data'!E83 -> 51.1831398 | EK17: ='Compile Data'!E84 -> 50.03415298 | EM17: 50.1042223 | EN17: 50.31647237 | EO17: 50.20325534 | EQ17: 50.95325661 | ER17: 47.57536189 | ES17: 50.26466751 | ET17: 51.04157448 | EU17: 51.69519424
A18: 1922-03-31 | B18: =IF(INDIRECT(CONCATENATE("'",B$1,"'!",B$4,(YEAR($A18)-1921)*12+MONTH($A18)+3+IF(ISNUMBER(FIND("PRV",B$6)),1,0)))=-901,NA(),INDIRECT(CONCATENATE("'",B$1,"'!",B$4,(YEAR($A18)-1921)*12+MONTH($A18)+3+IF(ISNUMBER(FIND("PRV",B$6)),1,0)))*IF(AND(B$3>0,TRIM(B$9)="CFS"),Conv_Flags!$C18,1)) -> 48.1643486 | C18: =IF(INDIRECT(CONCATENATE("'",C$1,"'!",C$4,(YEAR($A18)-1921)*12+MONTH($A18)+3+IF(ISNUMBER(FIND("PRV",C$6)),1,0)))=-901,NA(),INDIRECT(CONCATENATE("'",C$1,"'!",C$4,(YEAR($A18)-1921)*12+MONTH($A18)+3+IF(ISNUMBER(FIND("PRV",C$6)),1,0)))*IF(AND(C$3>0,TRIM(C$9)="CFS"),Conv_Flags!$C18,1)) -> 48.23376465 | D18: =IF(INDIRECT(CONCATENATE("'",D$1,"'!",D$4,(YEAR($A18)-1921)*12+MONTH($A18)+3+IF(ISNUMBER(FIND("PRV",D$6)),1,0)))=-901,NA(),INDIRECT(CONCATENATE("'",D$1,"'!",D$4,(YEAR($A18)-1921)*12+MONTH($A18)+3+IF(ISNUMBER(FIND("PRV",D$6)),1,0)))*IF(AND(D$3>0,TRIM(D$9)="CFS"),Conv_Flags!$C18,1)) -> 48.23376465 | E18: =IF(INDIRECT(CONCATENATE("'",E$1,"'!",E$4,(YEAR($A18)-1921)*12+MONTH($A18)+3+IF(ISNUMBER(FIND("PRV",E$6)),1,0)))=-901,NA(),INDIRECT(CONCATENATE("'",E$1,"'!",E$4,(YEAR($A18)-1921)*12+MONTH($A18)+3+IF(ISNUMBER(FIND("PRV",E$6)),1,0)))*IF(AND(E$3>0,TRIM(E$9)="CFS"),Conv_Flags!$C18,1)) -> 47.74803925 | F18: =IF(INDIRECT(CONCATENATE("'",F$1,"'!",F$4,(YEAR($A18)-1921)*12+MONTH($A18)+3+IF(ISNUMBER(FIND("PRV",F$6)),1,0)))=-901,NA(),INDIRECT(CONCATENATE("'",F$1,"'!",F$4,(YEAR($A18)-1921)*12+MONTH($A18)+3+IF(ISNUMBER(FIND("PRV",F$6)),1,0)))*IF(AND(F$3>0,TRIM(F$9)="CFS"),Conv_Flags!$C18,1)) -> 48.21891022 | I18: 1928 | J18: =B85 -> 51.79351044 | K18: =B86 -> 53.19365311 | L18: =B87 -> 50.44255066 | M18: =B88 -> 47.65870285 | N18: =B89 -> 47.24261475 | O18: =B90 -> 47.76773834 | P18: =B91 -> 52.59886932 | Q18: =B92 -> 52.8963356 | R18: =B93 -> 51.41280365 | S18: =B94 -> 50.67932129 | T18: =B95 -> 50.84938431 | U18: =B96 -> 50.37451553 | W18: 50.66207027 | X18: 50.64707375 | Y18: 50.57583332 | AA18: 50.77210426 | AB18: 48.44795609 | AC18: 51.16893673 | AD18: 50.8290062 | AE18: 51.80907567 | AG18: 1928 | AH18: ='Compile Data'!C85 -> 51.83684158 | AI18: ='Compile Data'!C86 -> 53.24552917 | AJ18: ='Compile Data'!C87 -> 50.50426102 | AK18: ='Compile Data'!C88 -> 47.69752884 | AL18: ='Compile Data'!C89 -> 47.25738144 | AM18: ='Compile Data'!C90 -> 47.78617859 | AN18: ='Compile Data'!C91 -> 52.60042953 | AO18: ='Compile Data'!C92 -> 53.04492569 | AP18: ='Compile Data'!C93 -> 51.57252502 | AQ18: ='Compile Data'!C94 -> 50.65787125 | AR18: ='Compile Data'!C95 -> 50.93616867 | AS18: ='Compile Data'!C96 -> 50.24259949 | AU18: 50.6835734 | AV18: 50.66580518 | AW18: 50.61518669 | AY18: 50.82104015 | AZ18: 48.48639043 | BA18: 51.25101471 | BB18: 50.85229111 | BC18: 51.76913198 | BE18: 1928 | BF18: ='Compile Data'!D85 -> 51.81051254 | BG18: ='Compile Data'!D86 -> 53.23205566 | BH18: ='Compile Data'!D87 -> 50.49236679 | BI18: ='Compile Data'!D88 -> 47.68527985 | BJ18: ='Compile Data'!D89 -> 47.2487793 | BK18: ='Compile Data'!D90 -> 47.77664948 | BL18: ='Compile Data'!D91 -> 52.59608841 | BM18: ='Compile Data'!D92 -> 53.03712463 | BN18: ='Compile Data'!D93 -> 51.70141983 | BO18: ='Compile Data'!D94 -> 50.6685524 | BP18: ='Compile Data'!D95 -> 51.23691559 | BQ18: ='Compile Data'!D96 -> 50.05426788 | BS18: 50.66769282 | BT18: 50.65113799 | BU18: 50.62833436 | BW18: 50.80505371 | BX18: 48.47547531 | BY18: 51.27782059 | BZ18: 50.91528893 | CA18: 51.61639659 | CC18: 1928 | CD18: ='Compile Data'!E85 -> 51.81519318 | CE18: ='Compile Data'!E86 -> 53.23623657 | CF18: ='Compile Data'!E87 -> 50.49336624 | CG18: ='Compile Data'!E88 -> 47.68488693 | CH18: ='Compile Data'!E89 -> 47.24884415 | CI18: ='Compile Data'!E90 -> 47.77888107 | CJ18: ='Compile Data'!E91 -> 52.59690094 | CK18: ='Compile Data'!E92 -> 53.03721619 | CL18: ='Compile Data'!E93 -> 51.70147705 | CM18: ='Compile Data'!E94 -> 50.70534134 | CN18: ='Compile Data'!E95 -> 51.28078461 | CO18: ='Compile Data'!E96 -> 49.96949768 | CQ18: 50.66601054 | CR18: 50.65052223 | CS18: 50.62905216 | CU18: 50.80742073 | CV18: 48.47569911 | CW18: 51.27861881 | CX18: 50.91427517 | CY18: 51.58454768 | DA18: 1928 | DB18: ='Compile Data'!F85 -> 51.80702591 | DC18: ='Compile Data'!F86 -> 53.25032806 | DD18: ='Compile Data'!F87 -> 50.47668457 | DE18: ='Compile Data'!F88 -> 47.67967224 | DF18: ='Compile Data'!F89 -> 47.24952698 | DG18: ='Compile Data'!F90 -> 47.77843475 | DH18: ='Compile Data'!F91 -> 52.22682953 | DI18: ='Compile Data'!F92 -> 52.53662491 | DJ18: ='Compile Data'!F93 -> 51.83127213 | DK18: ='Compile Data'!F94 -> 50.74341965 | DL18: ='Compile Data'!F95 -> 51.23996353 | DM18: ='Compile Data'!F96 -> 50.37598038 | DO18: 50.67338912 | DP18: 50.64412053 | DQ18: 50.59964689 | DS18: 50.8034277 | DT18: 48.46862793 | DU18: 51.09329033 | DV18: 51.04765892 | DW18: 51.77853902 | DY18: 1928 | DZ18: ='Compile Data'!E85 -> 51.81519318 | EA18: ='Compile Data'!E86 -> 53.23623657 | EB18: ='Compile Data'!E87 -> 50.49336624 | EC18: ='Compile Data'!E88 -> 47.68488693 | ED18: ='Compile Data'!E89 -> 47.24884415 | EE18: ='Compile Data'!E90 -> 47.77888107 | EF18: ='Compile Data'!E91 -> 52.59690094 | EG18: ='Compile Data'!E92 -> 53.03721619 | EH18: ='Compile Data'!E93 -> 51.70147705 | EI18: ='Compile Data'!E94 -> 50.70534134 | EJ18: ='Compile Data'!E95 -> 51.28078461 | EK18: ='Compile Data'!E96 -> 49.96949768 | EM18: 50.66601054 | EN18: 50.65052223 | EO18: 50.62905216 | EQ18: 50.80742073 | ER18: 48.47569911 | ES18: 51.27861881 | ET18: 50.91427517 | EU18: 51.58454768
A19: 1922-04-30 | B19: =IF(INDIRECT(CONCATENATE("'",B$1,"'!",B$4,(YEAR($A19)-1921)*12+MONTH($A19)+3+IF(ISNUMBER(FIND("PRV",B$6)),1,0)))=-901,NA(),INDIRECT(CONCATENATE("'",B$1,"'!",B$4,(YEAR($A19)-1921)*12+MONTH($A19)+3+IF(ISNUMBER(FIND("PRV",B$6)),1,0)))*IF(AND(B$3>0,TRIM(B$9)="CFS"),Conv_Flags!$C19,1)) -> 51.29597473 | C19: =IF(INDIRECT(CONCATENATE("'",C$1,"'!",C$4,(YEAR($A19)-1921)*12+MONTH($A19)+3+IF(ISNUMBER(FIND("PRV",C$6)),1,0)))=-901,NA(),INDIRECT(CONCATENATE("'",C$1,"'!",C$4,(YEAR($A19)-1921)*12+MONTH($A19)+3+IF(ISNUMBER(FIND("PRV",C$6)),1,0)))*IF(AND(C$3>0,TRIM(C$9)="CFS"),Conv_Flags!$C19,1)) -> 51.05755615 | D19: =IF(INDIRECT(CONCATENATE("'",D$1,"'!",D$4,(YEAR($A19)-1921)*12+MONTH($A19)+3+IF(ISNUMBER(FIND("PRV",D$6)),1,0)))=-901,NA(),INDIRECT(CONCATENATE("'",D$1,"'!",D$4,(YEAR($A19)-1921)*12+MONTH($A19)+3+IF(ISNUMBER(FIND("PRV",D$6)),1,0)))*IF(AND(D$3>0,TRIM(D$9)="CFS"),Conv_Flags!$C19,1)) -> 51.05755615 | E19: =IF(INDIRECT(CONCATENATE("'",E$1,"'!",E$4,(YEAR($A19)-1921)*12+MONTH($A19)+3+IF(ISNUMBER(FIND("PRV",E$6)),1,0)))=-901,NA(),INDIRECT(CONCATENATE("'",E$1,"'!",E$4,(YEAR($A19)-1921)*12+MONTH($A19)+3+IF(ISNUMBER(FIND("PRV",E$6)),1,0)))*IF(AND(E$3>0,TRIM(E$9)="CFS"),Conv_Flags!$C19,1)) -> 51.40763855 | F19: =IF(INDIRECT(CONCATENATE("'",F$1,"'!",F$4,(YEAR($A19)-1921)*12+MONTH($A19)+3+IF(ISNUMBER(FIND("PRV",F$6)),1,0)))=-901,NA(),INDIRECT(CONCATENATE("'",F$1,"'!",F$4,(YEAR($A19)-1921)*12+MONTH($A19)+3+IF(ISNUMBER(FIND("PRV",F$6)),1,0)))*IF(AND(F$3>0,TRIM(F$9)="CFS"),Conv_Flags!$C19,1)) -> 51.0496521 | I19: 1929 | J19: =B97 -> 51.82100677 | K19: =B98 -> 53.23170471 | L19: =B99 -> 51.41184616 | M19: =B100 -> 47.10522461 | N19: =B101 -> 47.61613464 | O19: =B102 -> 49.17785645 | P19: =B103 -> 50.39559555 | Q19: =B104 -> 51.65690231 | R19: =B105 -> 54.39536285 | S19: =B106 -> 52.95488358 | T19: =B107 -> 53.00213623 | U19: =B108 -> 54.21083832 | W19: 51.84149742 | X19: 51.93534152 | Y19: 51.41495768 | AA19: 50.89244556 | AB19: 48.71106847 | AC19: 51.40642929 | AD19: 53.64080524 | AE19: 54.46713257 | AG19: 1929 | AH19: ='Compile Data'!C97 -> 51.82061768 | AI19: ='Compile Data'!C98 -> 53.24417877 | AJ19: ='Compile Data'!C99 -> 51.34247589 | AK19: ='Compile Data'!C100 -> 47.1309433 | AL19: ='Compile Data'!C101 -> 47.61074829 | AM19: ='Compile Data'!C102 -> 48.95890045 | AN19: ='Compile Data'!C103 -> 50.32913971 | AO19: ='Compile Data'!C104 -> 51.85193634 | AP19: ='Compile Data'!C105 -> 54.00641632 | AQ19: ='Compile Data'!C106 -> 53.00645447 | AR19: ='Compile Data'!C107 -> 52.67141724 | AS19: ='Compile Data'!C108 -> 53.76229095 | AU19: 51.75109704 | AV19: 51.85155869 | AW19: 51.31129328 | AY19: 50.88455391 | AZ19: 48.69472249 | BA19: 51.28659821 | BB19: 53.36164474 | BC19: 54.3498675 | BE19: 1929 | BF19: ='Compile Data'!D97 -> 51.66236877 | BG19: ='Compile Data'!D98 -> 53.1325531 | BH19: ='Compile Data'!D99 -> 51.21231461 | BI19: ='Compile Data'!D100 -> 47.14924622 | BJ19: ='Compile Data'!D101 -> 47.58615494 | BK19: ='Compile Data'!D102 -> 48.71934509 | BL19: ='Compile Data'!D103 -> 50.20241928 | BM19: ='Compile Data'!D104 -> 51.63117981 | BN19: ='Compile Data'!D105 -> 53.78837204 | BO19: ='Compile Data'!D106 -> 52.95069504 | BP19: ='Compile Data'!D107 -> 52.61627579 | BQ19: ='Compile Data'!D108 -> 53.71918869 | BS19: 51.63229624 | BT19: 51.73918406 | BU19: 51.19750945 | BW19: 50.78912067 | BX19: 48.64923859 | BY19: 51.08532906 | BZ19: 53.26863289 | CA19: 54.19037501 | CC19: 1929 | CD19: ='Compile Data'!E97 -> 51.66199493 | CE19: ='Compile Data'!E98 -> 53.12215042 | CF19: ='Compile Data'!E99 -> 51.20415115 | CG19: ='Compile Data'!E100 -> 47.1504097 | CH19: ='Compile Data'!E101 -> 47.5974617 | CI19: ='Compile Data'!E102 -> 48.69849777 | CJ19: ='Compile Data'!E103 -> 50.23213577 | CK19: ='Compile Data'!E104 -> 51.31721497 | CL19: ='Compile Data'!E105 -> 54.01040649 | CM19: ='Compile Data'!E106 -> 52.96011353 | CN19: ='Compile Data'!E107 -> 53.00827026 | CO19: ='Compile Data'!E108 -> 53.73774338 | CQ19: 51.68044535 | CR19: 51.77858098 | CS19: 51.22504584 | CU19: 50.78467655 | CV19: 48.65067418 | CW19: 51.06456375 | CX19: 53.42913342 | CY19: 54.24398422 | DA19: 1929 | DB19: ='Compile Data'!F97 -> 51.81264114 | DC19: ='Compile Data'!F98 -> 53.14699554 | DD19: ='Compile Data'!F99 -> 51.45930862 | DE19: ='Compile Data'!F100 -> 47.08081818 | DF19: ='Compile Data'!F101 -> 47.49715805 | DG19: ='Compile Data'!F102 -> 48.86953735 | DH19: ='Compile Data'!F103 -> 50.4159584 | DI19: ='Compile Data'!F104 -> 51.69083786 | DJ19: ='Compile Data'!F105 -> 53.96198654 | DK19: ='Compile Data'!F106 -> 53.02051163 | DL19: ='Compile Data'!F107 -> 52.64624405 | DM19: ='Compile Data'!F108 -> 53.65365219 | DO19: 51.67754364 | DP19: 51.78515593 | DQ19: 51.27130413 | DS19: 50.87494087 | DT19: 48.67909495 | DU19: 51.23458004 | DV19: 53.3205986 | DW19: 54.19170252 | DY19: 1929 | DZ19: ='Compile Data'!E97 -> 51.66199493 | EA19: ='Compile Data'!E98 -> 53.12215042 | EB19: ='Compile Data'!E99 -> 51.20415115 | EC19: ='Compile Data'!E100 -> 47.1504097 | ED19: ='Compile Data'!E101 -> 47.5974617 | EE19: ='Compile Data'!E102 -> 48.69849777 | EF19: ='Compile Data'!E103 -> 50.23213577 | EG19: ='Compile Data'!E104 -> 51.31721497 | EH19: ='Compile Data'!E105 -> 54.01040649 | EI19: ='Compile Data'!E106 -> 52.96011353 | EJ19: ='Compile Data'!E107 -> 53.00827026 | EK19: ='Compile Data'!E108 -> 53.73774338 | EM19: 51.68044535 | EN19: 51.77858098 | EO19: 51.22504584 | EQ19: 50.78467655 | ER19: 48.65067418 | ES19: 51.06456375 | ET19: 53.42913342 | EU19: 54.24398422
A20: 1922-05-31 | B20: =IF(INDIRECT(CONCATENATE("'",B$1,"'!",B$4,(YEAR($A20)-1921)*12+MONTH($A20)+3+IF(ISNUMBER(FIND("PRV",B$6)),1,0)))=-901,NA(),INDIRECT(CONCATENATE("'",B$1,"'!",B$4,(YEAR($A20)-1921)*12+MONTH($A20)+3+IF(ISNUMBER(FIND("PRV",B$6)),1,0)))*IF(AND(B$3>0,TRIM(B$9)="CFS"),Conv_Flags!$C20,1)) -> 51.0175209 | C20: =IF(INDIRECT(CONCATENATE("'",C$1,"'!",C$4,(YEAR($A20)-1921)*12+MONTH($A20)+3+IF(ISNUMBER(FIND("PRV",C$6)),1,0)))=-901,NA(),INDIRECT(CONCATENATE("'",C$1,"'!",C$4,(YEAR($A20)-1921)*12+MONTH($A20)+3+IF(ISNUMBER(FIND("PRV",C$6)),1,0)))*IF(AND(C$3>0,TRIM(C$9)="CFS"),Conv_Flags!$C20,1)) -> 51.0097084 | D20: =IF(INDIRECT(CONCATENATE("'",D$1,"'!",D$4,(YEAR($A20)-1921)*12+MONTH($A20)+3+IF(ISNUMBER(FIND("PRV",D$6)),1,0)))=-901,NA(),INDIRECT(CONCATENATE("'",D$1,"'!",D$4,(YEAR($A20)-1921)*12+MONTH($A20)+3+IF(ISNUMBER(FIND("PRV",D$6)),1,0)))*IF(AND(D$3>0,TRIM(D$9)="CFS"),Conv_Flags!$C20,1)) -> 51.0097084 | E20: =IF(INDIRECT(CONCATENATE("'",E$1,"'!",E$4,(YEAR($A20)-1921)*12+MONTH($A20)+3+IF(ISNUMBER(FIND("PRV",E$6)),1,0)))=-901,NA(),INDIRECT(CONCATENATE("'",E$1,"'!",E$4,(YEAR($A20)-1921)*12+MONTH($A20)+3+IF(ISNUMBER(FIND("PRV",E$6)),1,0)))*IF(AND(E$3>0,TRIM(E$9)="CFS"),Conv_Flags!$C20,1)) -> 51.0236702 | F20: =IF(INDIRECT(CONCATENATE("'",F$1,"'!",F$4,(YEAR($A20)-1921)*12+MONTH($A20)+3+IF(ISNUMBER(FIND("PRV",F$6)),1,0)))=-901,NA(),INDIRECT(CONCATENATE("'",F$1,"'!",F$4,(YEAR($A20)-1921)*12+MONTH($A20)+3+IF(ISNUMBER(FIND("PRV",F$6)),1,0)))*IF(AND(F$3>0,TRIM(F$9)="CFS"),Conv_Flags!$C20,1)) -> 51.00704193 | I20: 1930 | J20: =B109 -> 54.80302811 | K20: =B110 -> 54.38753128 | L20: =B111 -> 52.39247513 | M20: =B112 -> 47.74476624 | N20: =B113 -> 48.10272217 | O20: =B114 -> 49.05615616 | P20: =B115 -> 51.33700562 | Q20: =B116 -> 54.93151474 | R20: =B117 -> 52.19417572 | S20: =B118 -> 52.1660614 | T20: =B119 -> 52.37359619 | U20: =B120 -> 52.85365677 | W20: 51.71181266 | X20: 51.8251435 | Y20: 51.86189079 | AA20: 52.33195019 | AB20: 49.41332118 | AC20: 51.87971306 | AD20: 52.39687252 | AE20: 53.39431381 | AG20: 1930 | AH20: ='Compile Data'!C109 -> 54.71504211 | AI20: ='Compile Data'!C110 -> 54.57226944 | AJ20: ='Compile Data'!C111 -> 52.3976059 | AK20: ='Compile Data'!C112 -> 47.81078339 | AL20: ='Compile Data'!C113 -> 48.13644791 | AM20: ='Compile Data'!C114 -> 49.05820465 | AN20: ='Compile Data'!C115 -> 52.84945679 | AO20: ='Compile Data'!C116 -> 55.24081421 | AP20: ='Compile Data'!C117 -> 52.52402115 | AQ20: ='Compile Data'!C118 -> 52.15734482 | AR20: ='Compile Data'!C119 -> 52.70424652 | AS20: ='Compile Data'!C120 -> 53.03053665 | AU20: 51.93632825 | AV20: 52.00843398 | AW20: 52.09973113 | AY20: 52.37392521 | AZ20: 49.44827906 | BA20: 52.4181242 | BB20: 52.60403728 | BC20: 53.50510661 | BE20: 1930 | BF20: ='Compile Data'!D109 -> 54.46327591 | BG20: ='Compile Data'!D110 -> 54.38866043 | BH20: ='Compile Data'!D111 -> 52.3727417 | BI20: ='Compile Data'!D112 -> 47.84794998 | BJ20: ='Compile Data'!D113 -> 48.17010498 | BK20: ='Compile Data'!D114 -> 49.07904816 | BL20: ='Compile Data'!D115 -> 53.61777496 | BM20: ='Compile Data'!D116 -> 55.19537354 | BN20: ='Compile Data'!D117 -> 52.66168594 | BO20: ='Compile Data'!D118 -> 52.14299774 | BP20: ='Compile Data'!D119 -> 52.71884918 | BQ20: ='Compile Data'!D120 -> 53.022995 | BS20: 52.00427659 | BT20: 52.06570021 | BU20: 52.14012146 | BW20: 52.26815701 | BX20: 49.46359889 | BY20: 52.63847065 | BZ20: 52.63663197 | CA20: 53.49566015 | CC20: 1930 | CD20: ='Compile Data'!E109 -> 54.29191208 | CE20: ='Compile Data'!E110 -> 54.70229721 | CF20: ='Compile Data'!E111 -> 52.45888138 | CG20: ='Compile Data'!E112 -> 47.78830719 | CH20: ='Compile Data'!E113 -> 48.13719177 | CI20: ='Compile Data'!E114 -> 49.06064987 | CJ20: ='Compile Data'!E115 -> 53.93540192 | CK20: ='Compile Data'!E116 -> 55.43274689 | CL20: ='Compile Data'!E117 -> 52.79585648 | CM20: ='Compile Data'!E118 -> 52.20869827 | CN20: ='Compile Data'!E119 -> 52.6992569 | CO20: ='Compile Data'!E120 -> 53.07000351 | CQ20: 52.04206753 | CR20: 52.10705185 | CS20: 52.21510029 | CU20: 52.31034946 | CV20: 49.46146011 | CW20: 52.80616379 | CX20: 52.69345379 | CY20: 53.46053696 | DA20: 1930 | DB20: ='Compile Data'!F109 -> 54.41657639 | DC20: ='Compile Data'!F110 -> 54.504879 | DD20: ='Compile Data'!F111 -> 52.37236404 | DE20: ='Compile Data'!F112 -> 47.7571373 | DF20: ='Compile Data'!F113 -> 48.11218643 | DG20: ='Compile Data'!F114 -> 49.03951263 | DH20: ='Compile Data'!F115 -> 52.71127701 | DI20: ='Compile Data'!F116 -> 55.6768837 | DJ20: ='Compile Data'!F117 -> 53.09662628 | DK20: ='Compile Data'!F118 -> 52.20518112 | DL20: ='Compile Data'!F119 -> 52.5229454 | DM20: ='Compile Data'!F120 -> 52.53850937 | DO20: 51.91595618 | DP20: 52.0009772 | DQ20: 52.07950656 | DS20: 52.26273918 | DT20: 49.41389592 | DU20: 52.63107491 | DV20: 52.59081554 | DW20: 53.23292923 | DY20: 1930 | DZ20: ='Compile Data'!E109 -> 54.29191208 | EA20: ='Compile Data'!E110 -> 54.70229721 | EB20: ='Compile Data'!E111 -> 52.45888138 | EC20: ='Compile Data'!E112 -> 47.78830719 | ED20: ='Compile Data'!E113 -> 48.13719177 | EE20: ='Compile Data'!E114 -> 49.06064987 | EF20: ='Compile Data'!E115 -> 53.93540192 | EG20: ='Compile Data'!E116 -> 55.43274689 | EH20: ='Compile Data'!E117 -> 52.79585648 | EI20: ='Compile Data'!E118 -> 52.20869827 | EJ20: ='Compile Data'!E119 -> 52.6992569 | EK20: ='Compile Data'!E120 -> 53.07000351 | EM20: 52.04206753 | EN20: 52.10705185 | EO20: 52.21510029 | EQ20: 52.31034946 | ER20: 49.46146011 | ES20: 52.80616379 | ET20: 52.69345379 | EU20: 53.46053696
A21: 1922-06-30 | B21: =IF(INDIRECT(CONCATENATE("'",B$1,"'!",B$4,(YEAR($A21)-1921)*12+MONTH($A21)+3+IF(ISNUMBER(FIND("PRV",B$6)),1,0)))=-901,NA(),INDIRECT(CONCATENATE("'",B$1,"'!",B$4,(YEAR($A21)-1921)*12+MONTH($A21)+3+IF(ISNUMBER(FIND("PRV",B$6)),1,0)))*IF(AND(B$3>0,TRIM(B$9)="CFS"),Conv_Flags!$C21,1)) -> 51.81781769 | C21: =IF(INDIRECT(CONCATENATE("'",C$1,"'!",C$4,(YEAR($A21)-1921)*12+MONTH($A21)+3+IF(ISNUMBER(FIND("PRV",C$6)),1,0)))=-901,NA(),INDIRECT(CONCATENATE("'",C$1,"'!",C$4,(YEAR($A21)-1921)*12+MONTH($A21)+3+IF(ISNUMBER(FIND("PRV",C$6)),1,0)))*IF(AND(C$3>0,TRIM(C$9)="CFS"),Conv_Flags!$C21,1)) -> 51.954422 | D21: =IF(INDIRECT(CONCATENATE("'",D$1,"'!",D$4,(YEAR($A21)-1921)*12+MONTH($A21)+3+IF(ISNUMBER(FIND("PRV",D$6)),1,0)))=-901,NA(),INDIRECT(CONCATENATE("'",D$1,"'!",D$4,(YEAR($A21)-1921)*12+MONTH($A21)+3+IF(ISNUMBER(FIND("PRV",D$6)),1,0)))*IF(AND(D$3>0,TRIM(D$9)="CFS"),Conv_Flags!$C21,1)) -> 51.954422 | E21: =IF(INDIRECT(CONCATENATE("'",E$1,"'!",E$4,(YEAR($A21)-1921)*12+MONTH($A21)+3+IF(ISNUMBER(FIND("PRV",E$6)),1,0)))=-901,NA(),INDIRECT(CONCATENATE("'",E$1,"'!",E$4,(YEAR($A21)-1921)*12+MONTH($A21)+3+IF(ISNUMBER(FIND("PRV",E$6)),1,0)))*IF(AND(E$3>0,TRIM(E$9)="CFS"),Conv_Flags!$C21,1)) -> 51.95144653 | F21: =IF(INDIRECT(CONCATENATE("'",F$1,"'!",F$4,(YEAR($A21)-1921)*12+MONTH($A21)+3+IF(ISNUMBER(FIND("PRV",F$6)),1,0)))=-901,NA(),INDIRECT(CONCATENATE("'",F$1,"'!",F$4,(YEAR($A21)-1921)*12+MONTH($A21)+3+IF(ISNUMBER(FIND("PRV",F$6)),1,0)))*IF(AND(F$3>0,TRIM(F$9)="CFS"),Conv_Flags!$C21,1)) -> 51.9561615 | I21: 1931 | J21: =B121 -> 53.09030533 | K21: =B122 -> 54.23897934 | L21: =B123 -> 52.45281219 | M21: =B124 -> 48.85168076 | N21: =B125 -> 48.35577774 | O21: =B126 -> 49.77164841 | P21: =B127 -> 52.02956772 | Q21: =B128 -> 54.44939041 | R21: =B129 -> 56.30656052 | S21: =B130 -> 52.6302948 | T21: =B131 -> 53.34380341 | U21: =B132 -> 54.91597366 | W21: 52.6579059 | X21: 52.07842827 | Y21: 52.53639952 | AA21: 52.1584444 | AB21: 49.8867569 | AC21: 53.13929176 | AD21: 54.2991581 | AE21: 55.45261765 | AG21: 1931 | AH21: ='Compile Data'!C121 -> 53.11754227 | AI21: ='Compile Data'!C122 -> 54.36724091 | AJ21: ='Compile Data'!C123 -> 52.23929977 | AK21: ='Compile Data'!C124 -> 48.62535477 | AL21: ='Compile Data'!C125 -> 48.18714523 | AM21: ='Compile Data'!C126 -> 49.80524826 | AN21: ='Compile Data'!C127 -> 51.36513901 | AO21: ='Compile Data'!C128 -> 54.63882828 | AP21: ='Compile Data'!C129 -> 56.37744141 | AQ21: ='Compile Data'!C130 -> 52.62374878 | AR21: ='Compile Data'!C131 -> 53.12372208 | AS21: ='Compile Data'!C132 -> 54.94610596 | AU21: 52.59170787 | AV21: 52.03658326 | AW21: 52.45140139 | AY21: 52.08735943 | AZ21: 49.68393326 | BA21: 53.04666424 | BB21: 54.26775455 | BC21: 55.52269363 | BE21: 1931 | BF21: ='Compile Data'!D121 -> 53.14233017 | BG21: ='Compile Data'!D122 -> 54.32165527 | BH21: ='Compile Data'!D123 -> 52.1305542 | BI21: ='Compile Data'!D124 -> 48.58081436 | BJ21: ='Compile Data'!D125 -> 48.17432404 | BK21: ='Compile Data'!D126 -> 49.76327515 | BL21: ='Compile Data'!D127 -> 51.08547211 | BM21: ='Compile Data'!D128 -> 54.13555908 | BN21: ='Compile Data'!D129 -> 56.25018692 | BO21: ='Compile Data'!D130 -> 52.62411499 | BP21: ='Compile Data'!D131 -> 53.24169922 | BQ21: ='Compile Data'!D132 -> 54.6126976 | BS21: 52.48522409 | BT21: 51.93754482 | BU21: 52.33855693 | BW21: 52.0438385 | BX21: 49.6285642 | BY21: 52.80862331 | BZ21: 54.18217468 | CA21: 55.38736979 | CC21: 1931 | CD21: ='Compile Data'!E121 -> 53.05931854 | CE21: ='Compile Data'!E122 -> 54.25228882 | CF21: ='Compile Data'!E123 -> 52.06509018 | CG21: ='Compile Data'!E124 -> 48.54572678 | CH21: ='Compile Data'!E125 -> 48.15958405 | CI21: ='Compile Data'!E126 -> 49.73884583 | CJ21: ='Compile Data'!E127 -> 51.04941177 | CK21: ='Compile Data'!E128 -> 53.20269394 | CL21: ='Compile Data'!E129 -> 56.197258 | CM21: ='Compile Data'!E130 -> 52.74055099 | CN21: ='Compile Data'!E131 -> 53.0813942 | CO21: ='Compile Data'!E132 -> 54.23544312 | CQ21: 52.2621603 | CR21: 51.77836132 | CS21: 52.19396718 | CU21: 51.98060608 | CV21: 49.59013367 | CW21: 52.54705238 | CX21: 54.06366158 | CY21: 54.84373983 | DA21: 1931 | DB21: ='Compile Data'!F121 -> 52.93688202 | DC21: ='Compile Data'!F122 -> 54.2233963 | DD21: ='Compile Data'!F123 -> 52.17093658 | DE21: ='Compile Data'!F124 -> 48.6579628 | DF21: ='Compile Data'!F125 -> 48.23161316 | DG21: ='Compile Data'!F126 -> 49.78153229 | DH21: ='Compile Data'!F127 -> 51.19644547 | DI21: ='Compile Data'!F128 -> 53.45287323 | DJ21: ='Compile Data'!F129 -> 56.34344864 | DK21: ='Compile Data'!F130 -> 52.60510635 | DL21: ='Compile Data'!F131 -> 53.10490417 | DM21: ='Compile Data'!F132 -> 54.79707336 | DO21: 52.44377836 | DP21: 51.91731389 | DQ21: 52.29184786 | DS21: 51.99729443 | DT21: 49.68683751 | DU21: 52.69357491 | DV21: 54.21263313 | DW21: 55.3618838 | DY21: 1931 | DZ21: ='Compile Data'!E121 -> 53.05931854 | EA21: ='Compile Data'!E122 -> 54.25228882 | EB21: ='Compile Data'!E123 -> 52.06509018 | EC21: ='Compile Data'!E124 -> 48.54572678 | ED21: ='Compile Data'!E125 -> 48.15958405 | EE21: ='Compile Data'!E126 -> 49.73884583 | EF21: ='Compile Data'!E127 -> 51.04941177 | EG21: ='Compile Data'!E128 -> 53.20269394 | EH21: ='Compile Data'!E129 -> 56.197258 | EI21: ='Compile Data'!E130 -> 52.74055099 | EJ21: ='Compile Data'!E131 -> 53.0813942 | EK21: ='Compile Data'!E132 -> 54.23544312 | EM21: 52.2621603 | EN21: 51.77836132 | EO21: 52.19396718 | EQ21: 51.98060608 | ER21: 49.59013367 | ES21: 52.54705238 | ET21: 54.06366158 | EU21: 54.84373983
A22: 1922-07-31 | B22: =IF(INDIRECT(CONCATENATE("'",B$1,"'!",B$4,(YEAR($A22)-1921)*12+MONTH($A22)+3+IF(ISNUMBER(FIND("PRV",B$6)),1,0)))=-901,NA(),INDIRECT(CONCATENATE("'",B$1,"'!",B$4,(YEAR($A22)-1921)*12+MONTH($A22)+3+IF(ISNUMBER(FIND("PRV",B$6)),1,0)))*IF(AND(B$3>0,TRIM(B$9)="CFS"),Conv_Flags!$C22,1)) -> 51.83929825 | C22: =IF(INDIRECT(CONCATENATE("'",C$1,"'!",C$4,(YEAR($A22)-1921)*12+MONTH($A22)+3+IF(ISNUMBER(FIND("PRV",C$6)),1,0)))=-901,NA(),INDIRECT(CONCATENATE("'",C$1,"'!",C$4,(YEAR($A22)-1921)*12+MONTH($A22)+3+IF(ISNUMBER(FIND("PRV",C$6)),1,0)))*IF(AND(C$3>0,TRIM(C$9)="CFS"),Conv_Flags!$C22,1)) -> 52.05846786 | D22: =IF(INDIRECT(CONCATENATE("'",D$1,"'!",D$4,(YEAR($A22)-1921)*12+MONTH($A22)+3+IF(ISNUMBER(FIND("PRV",D$6)),1,0)))=-901,NA(),INDIRECT(CONCATENATE("'",D$1,"'!",D$4,(YEAR($A22)-1921)*12+MONTH($A22)+3+IF(ISNUMBER(FIND("PRV",D$6)),1,0)))*IF(AND(D$3>0,TRIM(D$9)="CFS"),Conv_Flags!$C22,1)) -> 52.4151268 | E22: =IF(INDIRECT(CONCATENATE("'",E$1,"'!",E$4,(YEAR($A22)-1921)*12+MONTH($A22)+3+IF(ISNUMBER(FIND("PRV",E$6)),1,0)))=-901,NA(),INDIRECT(CONCATENATE("'",E$1,"'!",E$4,(YEAR($A22)-1921)*12+MONTH($A22)+3+IF(ISNUMBER(FIND("PRV",E$6)),1,0)))*IF(AND(E$3>0,TRIM(E$9)="CFS"),Conv_Flags!$C22,1)) -> 52.40444565 | F22: =IF(INDIRECT(CONCATENATE("'",F$1,"'!",F$4,(YEAR($A22)-1921)*12+MONTH($A22)+3+IF(ISNUMBER(FIND("PRV",F$6)),1,0)))=-901,NA(),INDIRECT(CONCATENATE("'",F$1,"'!",F$4,(YEAR($A22)-1921)*12+MONTH($A22)+3+IF(ISNUMBER(FIND("PRV",F$6)),1,0)))*IF(AND(F$3>0,TRIM(F$9)="CFS"),Conv_Flags!$C22,1)) -> 52.40088272 | I22: 1932 | J22: =B133 -> 56.67586899 | K22: =B134 -> 54.76601028 | L22: =B135 -> 49.79829407 | M22: =B136 -> 45.44993973 | N22: =B137 -> 44.80378723 | O22: =B138 -> 48.87576675 | P22: =B139 -> 52.02399445 | Q22: =B140 -> 54.97115326 | R22: =B141 -> 56.28049469 | S22: =B142 -> 53.50395203 | T22: =B143 -> 53.11159515 | U22: =B144 -> 54.84569168 | W22: 51.87568474 | X22: 52.13007259 | Y22: 52.09221236 | AA22: 51.67252827 | AB22: 46.68400701 | AC22: 53.03785229 | AD22: 54.43543339 | AE22: 54.52479299 | AG22: 1932 | AH22: ='Compile Data'!C133 -> 56.88598251 | AI22: ='Compile Data'!C134 -> 54.73599243 | AJ22: ='Compile Data'!C135 -> 49.78578568 | AK22: ='Compile Data'!C136 -> 45.41374588 | AL22: ='Compile Data'!C137 -> 44.73725891 | AM22: ='Compile Data'!C138 -> 48.80438614 | AN22: ='Compile Data'!C139 -> 52.03840256 | AO22: ='Compile Data'!C140 -> 54.71130371 | AP22: ='Compile Data'!C141 -> 56.33139801 | AQ22: ='Compile Data'!C142 -> 53.44314957 | AR22: ='Compile Data'!C143 -> 53.04898834 | AS22: ='Compile Data'!C144 -> 54.79928589 | AU22: 51.83420404 | AV22: 52.09796206 | AW22: 52.06130664 | AY22: 51.70537663 | AZ22: 46.64559682 | BA22: 52.9713726 | BB22: 54.40570545 | BC22: 54.52095795 | BE22: 1932 | BF22: ='Compile Data'!D133 -> 56.75848389 | BG22: ='Compile Data'!D134 -> 54.79092789 | BH22: ='Compile Data'!D135 -> 49.80513382 | BI22: ='Compile Data'!D136 -> 45.4201088 | BJ22: ='Compile Data'!D137 -> 44.76287842 | BK22: ='Compile Data'!D138 -> 48.76981735 | BL22: ='Compile Data'!D139 -> 52.04750061 | BM22: ='Compile Data'!D140 -> 54.76224136 | BN22: ='Compile Data'!D141 -> 56.48313904 | BO22: ='Compile Data'!D142 -> 53.42588425 | BP22: ='Compile Data'!D143 -> 53.04656982 | BQ22: ='Compile Data'!D144 -> 54.80682373 | BS22: 51.87336032 | BT22: 52.12031237 | BU22: 52.07329241 | BW22: 51.6936636 | BX22: 46.66270701 | BY22: 53.01567459 | BZ22: 54.44060421 | CA22: 54.48578517 | CC22: 1932 | CD22: ='Compile Data'!E133 -> 55.6833725 | CE22: ='Compile Data'!E134 -> 54.61240387 | CF22: ='Compile Data'!E135 -> 49.89923859 | CG22: ='Compile Data'!E136 -> 45.64355469 | CH22: ='Compile Data'!E137 -> 45.25616837 | CI22: ='Compile Data'!E138 -> 48.98083496 | CJ22: ='Compile Data'!E139 -> 51.79185867 | CK22: ='Compile Data'!E140 -> 54.04972839 | CL22: ='Compile Data'!E141 -> 55.9409523 | CM22: ='Compile Data'!E142 -> 53.43193436 | CN22: ='Compile Data'!E143 -> 53.14094543 | CO22: ='Compile Data'!E144 -> 54.6702652 | CQ22: 51.75626342 | CR22: 51.94222641 | CS22: 51.92510478 | CU22: 51.45964241 | CV22: 46.93298721 | CW22: 52.69084358 | CX22: 54.29602432 | CY22: 54.31835047 | DA22: 1932 | DB22: ='Compile Data'!F133 -> 56.52984238 | DC22: ='Compile Data'!F134 -> 54.75873566 | DD22: ='Compile Data'!F135 -> 49.86580276 | DE22: ='Compile Data'!F136 -> 45.53730774 | DF22: ='Compile Data'!F137 -> 45.03469467 | DG22: ='Compile Data'!F138 -> 48.94529724 | DH22: ='Compile Data'!F139 -> 51.927845 | DI22: ='Compile Data'!F140 -> 54.34953308 | DJ22: ='Compile Data'!F141 -> 56.05215454 | DK22: ='Compile Data'!F142 -> 53.49612045 | DL22: ='Compile Data'!F143 -> 53.80119705 | DM22: ='Compile Data'!F144 -> 54.60929489 | DO22: 51.82218997 | DP22: 52.01665751 | DQ22: 52.07565212 | DS22: 51.67292213 | DT22: 46.81260173 | DU22: 52.81870747 | DV22: 54.48969173 | DW22: 54.26652654 | DY22: 1932 | DZ22: ='Compile Data'!E133 -> 55.6833725 | EA22: ='Compile Data'!E134 -> 54.61240387 | EB22: ='Compile Data'!E135 -> 49.89923859 | EC22: ='Compile Data'!E136 -> 45.64355469 | ED22: ='Compile Data'!E137 -> 45.25616837 | EE22: ='Compile Data'!E138 -> 48.98083496 | EF22: ='Compile Data'!E139 -> 51.79185867 | EG22: ='Compile Data'!E140 -> 54.04972839 | EH22: ='Compile Data'!E141 -> 55.9409523 | EI22: ='Compile Data'!E142 -> 53.43193436 | EJ22: ='Compile Data'!E143 -> 53.14094543 | EK22: ='Compile Data'!E144 -> 54.6702652 | EM22: 51.75626342 | EN22: 51.94222641 | EO22: 51.92510478 | EQ22: 51.45964241 | ER22: 46.93298721 | ES22: 52.69084358 | ET22: 54.29602432 | EU22: 54.31835047
A23: 1922-08-31 | B23: =IF(INDIRECT(CONCATENATE("'",B$1,"'!",B$4,(YEAR($A23)-1921)*12+MONTH($A23)+3+IF(ISNUMBER(FIND("PRV",B$6)),1,0)))=-901,NA(),INDIRECT(CONCATENATE("'",B$1,"'!",B$4,(YEAR($A23)-1921)*12+MONTH($A23)+3+IF(ISNUMBER(FIND("PRV",B$6)),1,0)))*IF(AND(B$3>0,TRIM(B$9)="CFS"),Conv_Flags!$C23,1)) -> 51.76369858 | C23: =IF(INDIRECT(CONCATENATE("'",C$1,"'!",C$4,(YEAR($A23)-1921)*12+MONTH($A23)+3+IF(ISNUMBER(FIND("PRV",C$6)),1,0)))=-901,NA(),INDIRECT(CONCATENATE("'",C$1,"'!",C$4,(YEAR($A23)-1921)*12+MONTH($A23)+3+IF(ISNUMBER(FIND("PRV",C$6)),1,0)))*IF(AND(C$3>0,TRIM(C$9)="CFS"),Conv_Flags!$C23,1)) -> 51.77032471 | D23: =IF(INDIRECT(CONCATENATE("'",D$1,"'!",D$4,(YEAR($A23)-1921)*12+MONTH($A23)+3+IF(ISNUMBER(FIND("PRV",D$6)),1,0)))=-901,NA(),INDIRECT(CONCATENATE("'",D$1,"'!",D$4,(YEAR($A23)-1921)*12+MONTH($A23)+3+IF(ISNUMBER(FIND("PRV",D$6)),1,0)))*IF(AND(D$3>0,TRIM(D$9)="CFS"),Conv_Flags!$C23,1)) -> 51.95953369 | E23: =IF(INDIRECT(CONCATENATE("'",E$1,"'!",E$4,(YEAR($A23)-1921)*12+MONTH($A23)+3+IF(ISNUMBER(FIND("PRV",E$6)),1,0)))=-901,NA(),INDIRECT(CONCATENATE("'",E$1,"'!",E$4,(YEAR($A23)-1921)*12+MONTH($A23)+3+IF(ISNUMBER(FIND("PRV",E$6)),1,0)))*IF(AND(E$3>0,TRIM(E$9)="CFS"),Conv_Flags!$C23,1)) -> 51.95866394 | F23: =IF(INDIRECT(CONCATENATE("'",F$1,"'!",F$4,(YEAR($A23)-1921)*12+MONTH($A23)+3+IF(ISNUMBER(FIND("PRV",F$6)),1,0)))=-901,NA(),INDIRECT(CONCATENATE("'",F$1,"'!",F$4,(YEAR($A23)-1921)*12+MONTH($A23)+3+IF(ISNUMBER(FIND("PRV",F$6)),1,0)))*IF(AND(F$3>0,TRIM(F$9)="CFS"),Conv_Flags!$C23,1)) -> 51.95595169 | I23: 1933 | J23: =B145 -> 54.90002441 | K23: =B146 -> 53.82866287 | L23: =B147 -> 49.9131546 | M23: =B148 -> 47.06040955 | N23: =B149 -> 46.24597168 | O23: =B150 -> 48.98258972 | P23: =B151 -> 51.76052094 | Q23: =B152 -> 53.49240112 | R23: =B153 -> 56.18993378 | S23: =B154 -> 53.32850647 | T23: =B155 -> 52.4802475 | U23: =B156 -> 54.43056107 | W23: 52.22452418 | X23: 52.13566049 | Y23: 51.88441531 | AA23: 51.42556286 | AB23: 47.73984528 | AC23: 52.60636139 | AD23: 54.1073122 | AE23: 55.19284185 | AG23: 1933 | AH23: ='Compile Data'!C145 -> 54.86029816 | AI23: ='Compile Data'!C146 -> 53.90328979 | AJ23: ='Compile Data'!C147 -> 49.9189415 | AK23: ='Compile Data'!C148 -> 47.05698395 | AL23: ='Compile Data'!C149 -> 46.25911713 | AM23: ='Compile Data'!C150 -> 48.96767807 | AN23: ='Compile Data'!C151 -> 51.8360405 | AO23: ='Compile Data'!C152 -> 53.58891678 | AP23: ='Compile Data'!C153 -> 56.20863342 | AQ23: ='Compile Data'!C154 -> 53.38844299 | AR23: ='Compile Data'!C155 -> 52.31118774 | AS23: ='Compile Data'!C156 -> 54.59238052 | AU23: 52.23574797 | AV23: 52.12869962 | AW23: 51.90765921 | AY23: 51.43487835 | AZ23: 47.74501419 | BA23: 52.65031719 | BB23: 54.12516117 | BC23: 55.19289398 | BE23: 1933 | BF23: ='Compile Data'!D145 -> 54.62218857 | BG23: ='Compile Data'!D146 -> 54.0283432 | BH23: ='Compile Data'!D147 -> 50.30482864 | BI23: ='Compile Data'!D148 -> 47.04068756 | BJ23: ='Compile Data'!D149 -> 46.10572433 | BK23: ='Compile Data'!D150 -> 48.71163559 | BL23: ='Compile Data'!D151 -> 52.89203262 | BM23: ='Compile Data'!D152 -> 53.76021957 | BN23: ='Compile Data'!D153 -> 56.27370453 | BO23: ='Compile Data'!D154 -> 53.27667236 | BP23: ='Compile Data'!D155 -> 53.24068832 | BQ23: ='Compile Data'!D156 -> 54.79410172 | BS23: 52.31761551 | BT23: 52.20750078 | BU23: 52.08756892 | BW23: 51.49901199 | BX23: 47.81708018 | BY23: 52.90939808 | BZ23: 54.39629173 | CA23: 54.99591446 | CC23: 1933 | CD23: ='Compile Data'!E145 -> 54.6370163 | CE23: ='Compile Data'!E146 -> 53.64776993 | CF23: ='Compile Data'!E147 -> 49.88413239 | CG23: ='Compile Data'!E148 -> 46.94970703 | CH23: ='Compile Data'!E149 -> 46.18157196 | CI23: ='Compile Data'!E150 -> 49.05641556 | CJ23: ='Compile Data'!E151 -> 52.43051147 | CK23: ='Compile Data'!E152 -> 53.23262405 | CL23: ='Compile Data'!E153 -> 56.25831223 | CM23: ='Compile Data'!E154 -> 53.40800095 | CN23: ='Compile Data'!E155 -> 52.36583328 | CO23: ='Compile Data'!E156 -> 55.02626038 | CQ23: 52.21271261 | CR23: 52.13571644 | CS23: 51.92317963 | CU23: 51.27965641 | CV23: 47.67180379 | CW23: 52.74446583 | CX23: 54.26460171 | CY23: 55.05324809 | DA23: 1933 | DB23: ='Compile Data'!F145 -> 54.3871727 | DC23: ='Compile Data'!F146 -> 53.80311203 | DD23: ='Compile Data'!F147 -> 49.9225502 | DE23: ='Compile Data'!F148 -> 46.86182022 | DF23: ='Compile Data'!F149 -> 46.04379272 | DG23: ='Compile Data'!F150 -> 48.79737091 | DH23: ='Compile Data'!F151 -> 52.70274734 | DI23: ='Compile Data'!F152 -> 53.77453232 | DJ23: ='Compile Data'!F153 -> 56.30211258 | DK23: ='Compile Data'!F154 -> 53.35649109 | DL23: ='Compile Data'!F155 -> 52.33668137 | DM23: ='Compile Data'!F156 -> 54.62482071 | DO23: 52.27183787 | DP23: 52.19711081 | DQ23: 51.90943368 | DS23: 51.24366379 | DT23: 47.60938772 | DU23: 52.89419079 | DV23: 54.15502644 | DW23: 55.16048559 | DY23: 1933 | DZ23: ='Compile Data'!E145 -> 54.6370163 | EA23: ='Compile Data'!E146 -> 53.64776993 | EB23: ='Compile Data'!E147 -> 49.88413239 | EC23: ='Compile Data'!E148 -> 46.94970703 | ED23: ='Compile Data'!E149 -> 46.18157196 | EE23: ='Compile Data'!E150 -> 49.05641556 | EF23: ='Compile Data'!E151 -> 52.43051147 | EG23: ='Compile Data'!E152 -> 53.23262405 | EH23: ='Compile Data'!E153 -> 56.25831223 | EI23: ='Compile Data'!E154 -> 53.40800095 | EJ23: ='Compile Data'!E155 -> 52.36583328 | EK23: ='Compile Data'!E156 -> 55.02626038 | EM23: 52.21271261 | EN23: 52.13571644 | EO23: 51.92317963 | EQ23: 51.27965641 | ER23: 47.67180379 | ES23: 52.74446583 | ET23: 54.26460171 | EU23: 55.05324809
A24: 1922-09-30 | B24: =IF(INDIRECT(CONCATENATE("'",B$1,"'!",B$4,(YEAR($A24)-1921)*12+MONTH($A24)+3+IF(ISNUMBER(FIND("PRV",B$6)),1,0)))=-901,NA(),INDIRECT(CONCATENATE("'",B$1,"'!",B$4,(YEAR($A24)-1921)*12+MONTH($A24)+3+IF(ISNUMBER(FIND("PRV",B$6)),1,0)))*IF(AND(B$3>0,TRIM(B$9)="CFS"),Conv_Flags!$C24,1)) -> 51.04671097 | C24: =IF(INDIRECT(CONCATENATE("'",C$1,"'!",C$4,(YEAR($A24)-1921)*12+MONTH($A24)+3+IF(ISNUMBER(FIND("PRV",C$6)),1,0)))=-901,NA(),INDIRECT(CONCATENATE("'",C$1,"'!",C$4,(YEAR($A24)-1921)*12+MONTH($A24)+3+IF(ISNUMBER(FIND("PRV",C$6)),1,0)))*IF(AND(C$3>0,TRIM(C$9)="CFS"),Conv_Flags!$C24,1)) -> 50.79842377 | D24: =IF(INDIRECT(CONCATENATE("'",D$1,"'!",D$4,(YEAR($A24)-1921)*12+MONTH($A24)+3+IF(ISNUMBER(FIND("PRV",D$6)),1,0)))=-901,NA(),INDIRECT(CONCATENATE("'",D$1,"'!",D$4,(YEAR($A24)-1921)*12+MONTH($A24)+3+IF(ISNUMBER(FIND("PRV",D$6)),1,0)))*IF(AND(D$3>0,TRIM(D$9)="CFS"),Conv_Flags!$C24,1)) -> 50.16563034 | E24: =IF(INDIRECT(CONCATENATE("'",E$1,"'!",E$4,(YEAR($A24)-1921)*12+MONTH($A24)+3+IF(ISNUMBER(FIND("PRV",E$6)),1,0)))=-901,NA(),INDIRECT(CONCATENATE("'",E$1,"'!",E$4,(YEAR($A24)-1921)*12+MONTH($A24)+3+IF(ISNUMBER(FIND("PRV",E$6)),1,0)))*IF(AND(E$3>0,TRIM(E$9)="CFS"),Conv_Flags!$C24,1)) -> 50.15712357 | F24: =IF(INDIRECT(CONCATENATE("'",F$1,"'!",F$4,(YEAR($A24)-1921)*12+MONTH($A24)+3+IF(ISNUMBER(FIND("PRV",F$6)),1,0)))=-901,NA(),INDIRECT(CONCATENATE("'",F$1,"'!",F$4,(YEAR($A24)-1921)*12+MONTH($A24)+3+IF(ISNUMBER(FIND("PRV",F$6)),1,0)))*IF(AND(F$3>0,TRIM(F$9)="CFS"),Conv_Flags!$C24,1)) -> 50.16249084 | I24: 1934 | J24: =B157 -> 55.59714127 | K24: =B158 -> 55.55082321 | L24: =B159 -> 51.57518387 | M24: =B160 -> 46.23921967 | N24: =B161 -> 46.00079727 | O24: =B162 -> 49.86478424 | P24: =B163 -> 53.00112534 | Q24: =B164 -> 54.51847458 | R24: =B165 -> 56.0330658 | S24: =B166 -> 52.78859329 | T24: =B167 -> 52.22158051 | U24: =B168 -> 54.91272736 | W24: 52.37184842 | X24: 52.34130351 | Y24: 52.35862637 | AA24: 52.240592 | AB24: 47.93840027 | AC24: 53.35436249 | AD24: 53.98899174 | AE24: 55.76606369 | AG24: 1934 | AH24: ='Compile Data'!C157 -> 55.31548691 | AI24: ='Compile Data'!C158 -> 55.67081451 | AJ24: ='Compile Data'!C159 -> 51.63329315 | AK24: ='Compile Data'!C160 -> 46.16853333 | AL24: ='Compile Data'!C161 -> 45.86298752 | AM24: ='Compile Data'!C162 -> 49.90477753 | AN24: ='Compile Data'!C163 -> 53.3152771 | AO24: ='Compile Data'!C164 -> 54.86232376 | AP24: ='Compile Data'!C165 -> 56.05059814 | AQ24: ='Compile Data'!C166 -> 52.77209091 | AR24: ='Compile Data'!C167 -> 52.22413635 | AS24: ='Compile Data'!C168 -> 55.0137558 | AU24: 52.46389008 | AV24: 52.43813833 | AW24: 52.39950625 | AY24: 52.19703197 | AZ24: 47.88827133 | BA24: 53.53324413 | BB24: 54.0151453 | BC24: 56.03387451 | BE24: 1934 | BF24: ='Compile Data'!D157 -> 55.22089767 | BG24: ='Compile Data'!D158 -> 54.97274399 | BH24: ='Compile Data'!D159 -> 51.52227783 | BI24: ='Compile Data'!D160 -> 46.04961014 | BJ24: ='Compile Data'!D161 -> 45.77542496 | BK24: ='Compile Data'!D162 -> 49.85836029 | BL24: ='Compile Data'!D163 -> 53.33074951 | BM24: ='Compile Data'!D164 -> 54.82741165 | BN24: ='Compile Data'!D165 -> 56.01414871 | BO24: ='Compile Data'!D166 -> 52.78570938 | BP24: ='Compile Data'!D167 -> 52.28168488 | BQ24: ='Compile Data'!D168 -> 55.2407341 | BS24: 52.46576659 | BT24: 52.44636949 | BU24: 52.32331276 | BW24: 51.94138241 | BX24: 47.78243764 | BY24: 53.50766754 | BZ24: 54.08056927 | CA24: 56.15361404 | CC24: 1934 | CD24: ='Compile Data'!E157 -> 55.33972931 | CE24: ='Compile Data'!E158 -> 54.79375458 | CF24: ='Compile Data'!E159 -> 51.50983047 | CG24: ='Compile Data'!E160 -> 46.20907593 | CH24: ='Compile Data'!E161 -> 45.99824905 | CI24: ='Compile Data'!E162 -> 49.85228729 | CJ24: ='Compile Data'!E163 -> 52.97110367 | CK24: ='Compile Data'!E164 -> 54.55931473 | CL24: ='Compile Data'!E165 -> 56.0568924 | CM24: ='Compile Data'!E166 -> 52.87427902 | CN24: ='Compile Data'!E167 -> 52.26135254 | CO24: ='Compile Data'!E168 -> 54.5957222 | CQ24: 52.32236894 | CR24: 52.31455104 | CS24: 52.25179927 | CU24: 51.96309757 | CV24: 47.90571849 | CW24: 53.35989952 | CX24: 53.94706154 | CY24: 55.5194842 | DA24: 1934 | DB24: ='Compile Data'!F157 -> 55.28981781 | DC24: ='Compile Data'!F158 -> 55.56681824 | DD24: ='Compile Data'!F159 -> 51.60504913 | DE24: ='Compile Data'!F160 -> 46.16030884 | DF24: ='Compile Data'!F161 -> 45.84857941 | DG24: ='Compile Data'!F162 -> 49.87807846 | DH24: ='Compile Data'!F163 -> 53.2461319 | DI24: ='Compile Data'!F164 -> 54.87821579 | DJ24: ='Compile Data'!F165 -> 56.07743454 | DK24: ='Compile Data'!F166 -> 52.76550674 | DL24: ='Compile Data'!F167 -> 52.19392776 | DM24: ='Compile Data'!F168 -> 54.81615067 | DO24: 52.39042346 | DP24: 52.37226582 | DQ24: 52.36050161 | DS24: 52.1554985 | DT24: 47.87131246 | DU24: 53.51996517 | DV24: 53.96325493 | DW24: 55.72143809 | DY24: 1934 | DZ24: ='Compile Data'!E157 -> 55.33972931 | EA24: ='Compile Data'!E158 -> 54.79375458 | EB24: ='Compile Data'!E159 -> 51.50983047 | EC24: ='Compile Data'!E160 -> 46.20907593 | ED24: ='Compile Data'!E161 -> 45.99824905 | EE24: ='Compile Data'!E162 -> 49.85228729 | EF24: ='Compile Data'!E163 -> 52.97110367 | EG24: ='Compile Data'!E164 -> 54.55931473 | EH24: ='Compile Data'!E165 -> 56.0568924 | EI24: ='Compile Data'!E166 -> 52.87427902 | EJ24: ='Compile Data'!E167 -> 52.26135254 | EK24: ='Compile Data'!E168 -> 54.5957222 | EM24: 52.32236894 | EN24: 52.31455104 | EO24: 52.25179927 | EQ24: 51.96309757 | ER24: 47.90571849 | ES24: 53.35989952 | ET24: 53.94706154 | EU24: 55.5194842
A25: 1922-10-31 | B25: =IF(INDIRECT(CONCATENATE("'",B$1,"'!",B$4,(YEAR($A25)-1921)*12+MONTH($A25)+3+IF(ISNUMBER(FIND("PRV",B$6)),1,0)))=-901,NA(),INDIRECT(CONCATENATE("'",B$1,"'!",B$4,(YEAR($A25)-1921)*12+MONTH($A25)+3+IF(ISNUMBER(FIND("PRV",B$6)),1,0)))*IF(AND(B$3>0,TRIM(B$9)="CFS"),Conv_Flags!$C25,1)) -> 51.89820862 | C25: =IF(INDIRECT(CONCATENATE("'",C$1,"'!",C$4,(YEAR($A25)-1921)*12+MONTH($A25)+3+IF(ISNUMBER(FIND("PRV",C$6)),1,0)))=-901,NA(),INDIRECT(CONCATENATE("'",C$1,"'!",C$4,(YEAR($A25)-1921)*12+MONTH($A25)+3+IF(ISNUMBER(FIND("PRV",C$6)),1,0)))*IF(AND(C$3>0,TRIM(C$9)="CFS"),Conv_Flags!$C25,1)) -> 51.85019302 | D25: =IF(INDIRECT(CONCATENATE("'",D$1,"'!",D$4,(YEAR($A25)-1921)*12+MONTH($A25)+3+IF(ISNUMBER(FIND("PRV",D$6)),1,0)))=-901,NA(),INDIRECT(CONCATENATE("'",D$1,"'!",D$4,(YEAR($A25)-1921)*12+MONTH($A25)+3+IF(ISNUMBER(FIND("PRV",D$6)),1,0)))*IF(AND(D$3>0,TRIM(D$9)="CFS"),Conv_Flags!$C25,1)) -> 51.74239731 | E25: =IF(INDIRECT(CONCATENATE("'",E$1,"'!",E$4,(YEAR($A25)-1921)*12+MONTH($A25)+3+IF(ISNUMBER(FIND("PRV",E$6)),1,0)))=-901,NA(),INDIRECT(CONCATENATE("'",E$1,"'!",E$4,(YEAR($A25)-1921)*12+MONTH($A25)+3+IF(ISNUMBER(FIND("PRV",E$6)),1,0)))*IF(AND(E$3>0,TRIM(E$9)="CFS"),Conv_Flags!$C25,1)) -> 51.74543381 | F25: =IF(INDIRECT(CONCATENATE("'",F$1,"'!",F$4,(YEAR($A25)-1921)*12+MONTH($A25)+3+IF(ISNUMBER(FIND("PRV",F$6)),1,0)))=-901,NA(),INDIRECT(CONCATENATE("'",F$1,"'!",F$4,(YEAR($A25)-1921)*12+MONTH($A25)+3+IF(ISNUMBER(FIND("PRV",F$6)),1,0)))*IF(AND(F$3>0,TRIM(F$9)="CFS"),Conv_Flags!$C25,1)) -> 51.74184418 | I25: 1935 | J25: =B169 -> 57.53469467 | K25: =B170 -> 54.85076904 | L25: =B171 -> 50.49634933 | M25: =B172 -> 46.97658157 | N25: =B173 -> 44.89689636 | O25: =B174 -> 46.81420898 | P25: =B175 -> 50.54099274 | Q25: =B176 -> 52.70032501 | R25: =B177 -> 53.28600311 | S25: =B178 -> 52.02583313 | T25: =B179 -> 52.12194061 | U25: =B180 -> 53.38204956 | W25: 51.02925809 | X25: 51.16274389 | Y25: 51.30222034 | AA25: 52.46459866 | AB25: 47.45660909 | AC25: 50.83538246 | AD25: 52.7039566 | AE25: 53.9076678 | AG25: 1935 | AH25: ='Compile Data'!C169 -> 58.25385284 | AI25: ='Compile Data'!C170 -> 54.83401489 | AJ25: ='Compile Data'!C171 -> 50.30433273 | AK25: ='Compile Data'!C172 -> 46.8707428 | AL25: ='Compile Data'!C173 -> 44.85175705 | AM25: ='Compile Data'!C174 -> 46.7199707 | AN25: ='Compile Data'!C175 -> 50.61539078 | AO25: ='Compile Data'!C176 -> 53.25405884 | AP25: ='Compile Data'!C177 -> 53.46796417 | AQ25: ='Compile Data'!C178 -> 52.02930832 | AR25: ='Compile Data'!C179 -> 52.18413162 | AS25: ='Compile Data'!C180 -> 53.34858322 | AU25: 51.06722005 | AV25: 51.20551491 | AW25: 51.394509 | AY25: 52.56573582 | AZ25: 47.34227753 | BA25: 51.01434612 | BB25: 52.75749683 | BC25: 53.86980184 | BE25: 1935 | BF25: ='Compile Data'!D169 -> 58.41804123 | BG25: ='Compile Data'!D170 -> 54.8020668 | BH25: ='Compile Data'!D171 -> 50.20525742 | BI25: ='Compile Data'!D172 -> 46.81765747 | BJ25: ='Compile Data'!D173 -> 44.77461243 | BK25: ='Compile Data'!D174 -> 46.62952805 | BL25: ='Compile Data'!D175 -> 50.66968536 | BM25: ='Compile Data'!D176 -> 53.30841064 | BN25: ='Compile Data'!D177 -> 53.90861893 | BO25: ='Compile Data'!D178 -> 52.15681076 | BP25: ='Compile Data'!D179 -> 52.24650955 | BQ25: ='Compile Data'!D180 -> 53.33198547 | BS25: 51.10089429 | BT25: 51.24441306 | BU25: 51.43909868 | BW25: 52.56075573 | BX25: 47.26584244 | BY25: 51.12906075 | BZ25: 52.91098118 | CA25: 53.86087799 | CC25: 1935 | CD25: ='Compile Data'!E169 -> 57.14958191 | CE25: ='Compile Data'!E170 -> 54.8131485 | CF25: ='Compile Data'!E171 -> 50.52742004 | CG25: ='Compile Data'!E172 -> 47.01729584 | CH25: ='Compile Data'!E173 -> 45.09621429 | CI25: ='Compile Data'!E174 -> 46.76580429 | CJ25: ='Compile Data'!E175 -> 50.55195618 | CK25: ='Compile Data'!E176 -> 53.17750549 | CL25: ='Compile Data'!E177 -> 53.69747162 | CM25: ='Compile Data'!E178 -> 52.15538406 | CN25: ='Compile Data'!E179 -> 52.2963295 | CO25: ='Compile Data'!E180 -> 53.40000153 | CQ25: 51.12191995 | CR25: 51.22200584 | CS25: 51.38734277 | CU25: 52.37686157 | CV25: 47.54697673 | CW25: 51.04818439 | CX25: 52.88729668 | CY25: 53.87929789 | DA25: 1935 | DB25: ='Compile Data'!F169 -> 57.45773697 | DC25: ='Compile Data'!F170 -> 54.89042664 | DD25: ='Compile Data'!F171 -> 50.47258377 | DE25: ='Compile Data'!F172 -> 46.8010025 | DF25: ='Compile Data'!F173 -> 44.98999405 | DG25: ='Compile Data'!F174 -> 46.74614334 | DH25: ='Compile Data'!F175 -> 50.5711937 | DI25: ='Compile Data'!F176 -> 53.22553635 | DJ25: ='Compile Data'!F177 -> 53.33016205 | DK25: ='Compile Data'!F178 -> 52.05820847 | DL25: ='Compile Data'!F179 -> 52.20568466 | DM25: ='Compile Data'!F180 -> 53.4137764 | DO25: 51.06130219 | DP25: 51.1953516 | DQ25: 51.34687074 | DS25: 52.40543747 | DT25: 47.42119344 | DU25: 50.96825886 | DV25: 52.75195789 | DW25: 53.87402344 | DY25: 1935 | DZ25: ='Compile Data'!E169 -> 57.14958191 | EA25: ='Compile Data'!E170 -> 54.8131485 | EB25: ='Compile Data'!E171 -> 50.52742004 | EC25: ='Compile Data'!E172 -> 47.01729584 | ED25: ='Compile Data'!E173 -> 45.09621429 | EE25: ='Compile Data'!E174 -> 46.76580429 | EF25: ='Compile Data'!E175 -> 50.55195618 | EG25: ='Compile Data'!E176 -> 53.17750549 | EH25: ='Compile Data'!E177 -> 53.69747162 | EI25: ='Compile Data'!E178 -> 52.15538406 | EJ25: ='Compile Data'!E179 -> 52.2963295 | EK25: ='Compile Data'!E180 -> 53.40000153 | EM25: 51.12191995 | EN25: 51.22200584 | EO25: 51.38734277 | EQ25: 52.37686157 | ER25: 47.54697673 | ES25: 51.04818439 | ET25: 52.88729668 | EU25: 53.87929789
A26: 1922-11-30 | B26: =IF(INDIRECT(CONCATENATE("'",B$1,"'!",B$4,(YEAR($A26)-1921)*12+MONTH($A26)+3+IF(ISNUMBER(FIND("PRV",B$6)),1,0)))=-901,NA(),INDIRECT(CONCATENATE("'",B$1,"'!",B$4,(YEAR($A26)-1921)*12+MONTH($A26)+3+IF(ISNUMBER(FIND("PRV",B$6)),1,0)))*IF(AND(B$3>0,TRIM(B$9)="CFS"),Conv_Flags!$C26,1)) -> 53.56967926 | C26: =IF(INDIRECT(CONCATENATE("'",C$1,"'!",C$4,(YEAR($A26)-1921)*12+MONTH($A26)+3+IF(ISNUMBER(FIND("PRV",C$6)),1,0)))=-901,NA(),INDIRECT(CONCATENATE("'",C$1,"'!",C$4,(YEAR($A26)-1921)*12+MONTH($A26)+3+IF(ISNUMBER(FIND("PRV",C$6)),1,0)))*IF(AND(C$3>0,TRIM(C$9)="CFS"),Conv_Flags!$C26,1)) -> 53.54026031 | D26: =IF(INDIRECT(CONCATENATE("'",D$1,"'!",D$4,(YEAR($A26)-1921)*12+MONTH($A26)+3+IF(ISNUMBER(FIND("PRV",D$6)),1,0)))=-901,NA(),INDIRECT(CONCATENATE("'",D$1,"'!",D$4,(YEAR($A26)-1921)*12+MONTH($A26)+3+IF(ISNUMBER(FIND("PRV",D$6)),1,0)))*IF(AND(D$3>0,TRIM(D$9)="CFS"),Conv_Flags!$C26,1)) -> 53.5732193 | E26: =IF(INDIRECT(CONCATENATE("'",E$1,"'!",E$4,(YEAR($A26)-1921)*12+MONTH($A26)+3+IF(ISNUMBER(FIND("PRV",E$6)),1,0)))=-901,NA(),INDIRECT(CONCATENATE("'",E$1,"'!",E$4,(YEAR($A26)-1921)*12+MONTH($A26)+3+IF(ISNUMBER(FIND("PRV",E$6)),1,0)))*IF(AND(E$3>0,TRIM(E$9)="CFS"),Conv_Flags!$C26,1)) -> 53.5789032 | F26: =IF(INDIRECT(CONCATENATE("'",F$1,"'!",F$4,(YEAR($A26)-1921)*12+MONTH($A26)+3+IF(ISNUMBER(FIND("PRV",F$6)),1,0)))=-901,NA(),INDIRECT(CONCATENATE("'",F$1,"'!",F$4,(YEAR($A26)-1921)*12+MONTH($A26)+3+IF(ISNUMBER(FIND("PRV",F$6)),1,0)))*IF(AND(F$3>0,TRIM(F$9)="CFS"),Conv_Flags!$C26,1)) -> 53.61467743 | I26: 1936 | J26: =B181 -> 54.75600052 | K26: =B182 -> 53.58495331 | L26: =B183 -> 51.26531219 | M26: =B184 -> 47.84733582 | N26: =B185 -> 45.62797165 | O26: =B186 -> 49.24036789 | P26: =B187 -> 52.33794785 | Q26: =B188 -> 53.16083145 | R26: =B189 -> 52.4026947 | S26: =B190 -> 51.58068085 | T26: =B191 -> 51.84391403 | U26: =B192 -> 52.09086227 | W26: 51.10004965 | X26: 51.18483893 | Y26: 51.31157271 | AA26: 51.86340046 | AB26: 48.24687322 | AC26: 51.78546047 | AD26: 51.97953796 | AE26: 52.74728139 | AG26: 1936 | AH26: ='Compile Data'!C181 -> 54.68599319 | AI26: ='Compile Data'!C182 -> 53.5748291 | AJ26: ='Compile Data'!C183 -> 51.20391083 | AK26: ='Compile Data'!C184 -> 47.82091522 | AL26: ='Compile Data'!C185 -> 45.56112289 | AM26: ='Compile Data'!C186 -> 49.26740646 | AN26: ='Compile Data'!C187 -> 52.30384827 | AO26: ='Compile Data'!C188 -> 53.21379852 | AP26: ='Compile Data'!C189 -> 52.50083923 | AQ26: ='Compile Data'!C190 -> 51.79164124 | AR26: ='Compile Data'!C191 -> 51.84218597 | AS26: ='Compile Data'!C192 -> 52.09376907 | AU26: 51.10126591 | AV26: 51.18355624 | AW26: 51.32168833 | AY26: 51.82141209 | AZ26: 48.19531631 | BA26: 51.82147312 | BB26: 52.05710888 | BC26: 52.69955317 | BE26: 1936 | BF26: ='Compile Data'!D181 -> 54.68334579 | BG26: ='Compile Data'!D182 -> 53.5673027 | BH26: ='Compile Data'!D183 -> 51.11626434 | BI26: ='Compile Data'!D184 -> 47.78147888 | BJ26: ='Compile Data'!D185 -> 45.5330162 | BK26: ='Compile Data'!D186 -> 49.26343918 | BL26: ='Compile Data'!D187 -> 52.3181839 | BM26: ='Compile Data'!D188 -> 53.21481705 | BN26: ='Compile Data'!D189 -> 52.50059891 | BO26: ='Compile Data'!D190 -> 52.05545425 | BP26: ='Compile Data'!D191 -> 51.8816452 | BQ26: ='Compile Data'!D192 -> 52.08003235 | BS26: 51.10605208 | BT26: 51.18896739 | BU26: 51.3329649 | BW26: 51.78709793 | BX26: 48.14358648 | BY26: 51.82425976 | BZ26: 52.12943268 | CA26: 52.65722783 | CC26: 1936 | CD26: ='Compile Data'!E181 -> 54.69857788 | CE26: ='Compile Data'!E182 -> 53.53931427 | CF26: ='Compile Data'!E183 -> 51.06718445 | CG26: ='Compile Data'!E184 -> 47.77532959 | CH26: ='Compile Data'!E185 -> 45.53921127 | CI26: ='Compile Data'!E186 -> 49.31102753 | CJ26: ='Compile Data'!E187 -> 52.34704971 | CK26: ='Compile Data'!E188 -> 53.23425293 | CL26: ='Compile Data'!E189 -> 52.52230453 | CM26: ='Compile Data'!E190 -> 52.02812195 | CN26: ='Compile Data'!E191 -> 51.88269806 | CO26: ='Compile Data'!E192 -> 52.08397675 | CQ26: 51.11518319 | CR26: 51.20377477 | CS26: 51.33575408 | CU26: 51.77010155 | CV26: 48.12724177 | CW26: 51.85365868 | CX26: 52.12927532 | CY26: 52.65896225 | DA26: 1936 | DB26: ='Compile Data'!F181 -> 54.65174484 | DC26: ='Compile Data'!F182 -> 53.55654907 | DD26: ='Compile Data'!F183 -> 51.1856308 | DE26: ='Compile Data'!F184 -> 47.82183838 | DF26: ='Compile Data'!F185 -> 45.57775116 | DG26: ='Compile Data'!F186 -> 49.2672081 | DH26: ='Compile Data'!F187 -> 52.33372116 | DI26: ='Compile Data'!F188 -> 53.2312355 | DJ26: ='Compile Data'!F189 -> 52.51088333 | DK26: ='Compile Data'!F190 -> 52.01210785 | DL26: ='Compile Data'!F191 -> 51.8622551 | DM26: ='Compile Data'!F192 -> 52.09082413 | DO26: 51.11370182 | DP26: 51.19570923 | DQ26: 51.34181245 | DS26: 51.80394077 | DT26: 48.19507345 | DU26: 51.83576202 | DV26: 52.1190176 | DW26: 52.65925725 | DY26: 1936 | DZ26: ='Compile Data'!E181 -> 54.69857788 | EA26: ='Compile Data'!E182 -> 53.53931427 | EB26: ='Compile Data'!E183 -> 51.06718445 | EC26: ='Compile Data'!E184 -> 47.77532959 | ED26: ='Compile Data'!E185 -> 45.53921127 | EE26: ='Compile Data'!E186 -> 49.31102753 | EF26: ='Compile Data'!E187 -> 52.34704971 | EG26: ='Compile Data'!E188 -> 53.23425293 | EH26: ='Compile Data'!E189 -> 52.52230453 | EI26: ='Compile Data'!E190 -> 52.02812195 | EJ26: ='Compile Data'!E191 -> 51.88269806 | EK26: ='Compile Data'!E192 -> 52.08397675 | EM26: 51.11518319 | EN26: 51.20377477 | EO26: 51.33575408 | EQ26: 51.77010155 | ER26: 48.12724177 | ES26: 51.85365868 | ET26: 52.12927532 | EU26: 52.65896225
A27: 1922-12-31 | B27: =IF(INDIRECT(CONCATENATE("'",B$1,"'!",B$4,(YEAR($A27)-1921)*12+MONTH($A27)+3+IF(ISNUMBER(FIND("PRV",B$6)),1,0)))=-901,NA(),INDIRECT(CONCATENATE("'",B$1,"'!",B$4,(YEAR($A27)-1921)*12+MONTH($A27)+3+IF(ISNUMBER(FIND("PRV",B$6)),1,0)))*IF(AND(B$3>0,TRIM(B$9)="CFS"),Conv_Flags!$C27,1)) -> 51.11385727 | C27: =IF(INDIRECT(CONCATENATE("'",C$1,"'!",C$4,(YEAR($A27)-1921)*12+MONTH($A27)+3+IF(ISNUMBER(FIND("PRV",C$6)),1,0)))=-901,NA(),INDIRECT(CONCATENATE("'",C$1,"'!",C$4,(YEAR($A27)-1921)*12+MONTH($A27)+3+IF(ISNUMBER(FIND("PRV",C$6)),1,0)))*IF(AND(C$3>0,TRIM(C$9)="CFS"),Conv_Flags!$C27,1)) -> 51.09936905 | D27: =IF(INDIRECT(CONCATENATE("'",D$1,"'!",D$4,(YEAR($A27)-1921)*12+MONTH($A27)+3+IF(ISNUMBER(FIND("PRV",D$6)),1,0)))=-901,NA(),INDIRECT(CONCATENATE("'",D$1,"'!",D$4,(YEAR($A27)-1921)*12+MONTH($A27)+3+IF(ISNUMBER(FIND("PRV",D$6)),1,0)))*IF(AND(D$3>0,TRIM(D$9)="CFS"),Conv_Flags!$C27,1)) -> 51.15228271 | E27: =IF(INDIRECT(CONCATENATE("'",E$1,"'!",E$4,(YEAR($A27)-1921)*12+MONTH($A27)+3+IF(ISNUMBER(FIND("PRV",E$6)),1,0)))=-901,NA(),INDIRECT(CONCATENATE("'",E$1,"'!",E$4,(YEAR($A27)-1921)*12+MONTH($A27)+3+IF(ISNUMBER(FIND("PRV",E$6)),1,0)))*IF(AND(E$3>0,TRIM(E$9)="CFS"),Conv_Flags!$C27,1)) -> 51.16336823 | F27: =IF(INDIRECT(CONCATENATE("'",F$1,"'!",F$4,(YEAR($A27)-1921)*12+MONTH($A27)+3+IF(ISNUMBER(FIND("PRV",F$6)),1,0)))=-901,NA(),INDIRECT(CONCATENATE("'",F$1,"'!",F$4,(YEAR($A27)-1921)*12+MONTH($A27)+3+IF(ISNUMBER(FIND("PRV",F$6)),1,0)))*IF(AND(F$3>0,TRIM(F$9)="CFS"),Conv_Flags!$C27,1)) -> 51.32455063 | I27: 1937 | J27: =B193 -> 52.3026619 | K27: =B194 -> 53.84832001 | L27: =B195 -> 50.91700745 | M27: =B196 -> 47.71402359 | N27: =B197 -> 46.77875519 | O27: =B198 -> 48.41425705 | P27: =B199 -> 51.69201279 | Q27: =B200 -> 54.57238007 | R27: =B201 -> 53.25764084 | S27: =B202 -> 51.6715126 | T27: =B203 -> 52.20146942 | U27: =B204 -> 51.86030197 | W27: 51.15981293 | X27: 50.85484123 | Y27: 51.26919524 | AA27: 51.19550323 | AB27: 48.46992874 | AC27: 51.98407269 | AD27: 52.24773121 | AE27: 52.68344625 | AG27: 1937 | AH27: ='Compile Data'!C193 -> 52.27917099 | AI27: ='Compile Data'!C194 -> 53.72571945 | AJ27: ='Compile Data'!C195 -> 50.81477356 | AK27: ='Compile Data'!C196 -> 47.63267517 | AL27: ='Compile Data'!C197 -> 46.73684692 | AM27: ='Compile Data'!C198 -> 48.37016296 | AN27: ='Compile Data'!C199 -> 51.80410004 | AO27: ='Compile Data'!C200 -> 54.79218674 | AP27: ='Compile Data'!C201 -> 53.52263641 | AQ27: ='Compile Data'!C202 -> 51.65167618 | AR27: ='Compile Data'!C203 -> 52.19497681 | AS27: ='Compile Data'!C204 -> 51.83375931 | AU27: 51.1931483 | AV27: 50.88852278 | AW27: 51.27989038 | AY27: 51.11308479 | AZ27: 48.39476522 | BA27: 52.12227154 | BB27: 52.30076218 | BC27: 52.71522649 | BE27: 1937 | BF27: ='Compile Data'!D193 -> 52.24990082 | BG27: ='Compile Data'!D194 -> 53.64175034 | BH27: ='Compile Data'!D195 -> 50.75230789 | BI27: ='Compile Data'!D196 -> 47.59638596 | BJ27: ='Compile Data'!D197 -> 46.7130928 | BK27: ='Compile Data'!D198 -> 48.33771896 | BL27: ='Compile Data'!D199 -> 51.82617188 | BM27: ='Compile Data'!D200 -> 54.20241165 | BN27: ='Compile Data'!D201 -> 53.50746155 | BO27: ='Compile Data'!D202 -> 51.6416893 | BP27: ='Compile Data'!D203 -> 52.13338852 | BQ27: ='Compile Data'!D204 -> 51.79745483 | BS27: 51.12153594 | BT27: 50.822498 | BU27: 51.19997787 | BW27: 51.06008625 | BX27: 48.35392888 | BY27: 51.96844101 | BZ27: 52.26999855 | CA27: 52.67465719 | CC27: 1937 | CD27: ='Compile Data'!E193 -> 52.31994247 | CE27: ='Compile Data'!E194 -> 53.57296753 | CF27: ='Compile Data'!E195 -> 50.76531601 | CG27: ='Compile Data'!E196 -> 47.62672806 | CH27: ='Compile Data'!E197 -> 46.75091171 | CI27: ='Compile Data'!E198 -> 48.36784744 | CJ27: ='Compile Data'!E199 -> 51.8769722 | CK27: ='Compile Data'!E200 -> 54.15232849 | CL27: ='Compile Data'!E201 -> 53.46048737 | CM27: ='Compile Data'!E202 -> 51.5989151 | CN27: ='Compile Data'!E203 -> 52.12036133 | CO27: ='Compile Data'!E204 -> 51.80405045 | CQ27: 51.12519614 | CR27: 50.82171186 | CS27: 51.20140235 | CU27: 51.07123852 | CV27: 48.38098526 | CW27: 51.96440887 | CX27: 52.24595356 | CY27: 52.68261083 | DA27: 1937 | DB27: ='Compile Data'!F193 -> 52.32921219 | DC27: ='Compile Data'!F194 -> 53.55773544 | DD27: ='Compile Data'!F195 -> 50.76964951 | DE27: ='Compile Data'!F196 -> 47.63119888 | DF27: ='Compile Data'!F197 -> 46.75247955 | DG27: ='Compile Data'!F198 -> 48.36357498 | DH27: ='Compile Data'!F199 -> 51.92573929 | DI27: ='Compile Data'!F200 -> 54.15276337 | DJ27: ='Compile Data'!F201 -> 53.00634003 | DK27: ='Compile Data'!F202 -> 51.91366196 | DL27: ='Compile Data'!F203 -> 52.15270615 | DM27: ='Compile Data'!F204 -> 51.79595184 | DO27: 51.11570104 | DP27: 50.80669753 | DQ27: 51.19591777 | DS27: 51.07194901 | DT27: 48.38444265 | DU27: 51.86210442 | DV27: 52.21716499 | DW27: 52.68590927 | DY27: 1937 | DZ27: ='Compile Data'!E193 -> 52.31994247 | EA27: ='Compile Data'!E194 -> 53.57296753 | EB27: ='Compile Data'!E195 -> 50.76531601 | EC27: ='Compile Data'!E196 -> 47.62672806 | ED27: ='Compile Data'!E197 -> 46.75091171 | EE27: ='Compile Data'!E198 -> 48.36784744 | EF27: ='Compile Data'!E199 -> 51.8769722 | EG27: ='Compile Data'!E200 -> 54.15232849 | EH27: ='Compile Data'!E201 -> 53.46048737 | EI27: ='Compile Data'!E202 -> 51.5989151 | EJ27: ='Compile Data'!E203 -> 52.12036133 | EK27: ='Compile Data'!E204 -> 51.80405045 | EM27: 51.12519614 | EN27: 50.82171186 | EO27: 51.20140235 | EQ27: 51.07123852 | ER27: 48.38098526 | ES27: 51.96440887 | ET27: 52.24595356 | EU27: 52.68261083
A28: 1923-01-31 | B28: =IF(INDIRECT(CONCATENATE("'",B$1,"'!",B$4,(YEAR($A28)-1921)*12+MONTH($A28)+3+IF(ISNUMBER(FIND("PRV",B$6)),1,0)))=-901,NA(),INDIRECT(CONCATENATE("'",B$1,"'!",B$4,(YEAR($A28)-1921)*12+MONTH($A28)+3+IF(ISNUMBER(FIND("PRV",B$6)),1,0)))*IF(AND(B$3>0,TRIM(B$9)="CFS"),Conv_Flags!$C28,1)) -> 47.52082062 | C28: =IF(INDIRECT(CONCATENATE("'",C$1,"'!",C$4,(YEAR($A28)-1921)*12+MONTH($A28)+3+IF(ISNUMBER(FIND("PRV",C$6)),1,0)))=-901,NA(),INDIRECT(CONCATENATE("'",C$1,"'!",C$4,(YEAR($A28)-1921)*12+MONTH($A28)+3+IF(ISNUMBER(FIND("PRV",C$6)),1,0)))*IF(AND(C$3>0,TRIM(C$9)="CFS"),Conv_Flags!$C28,1)) -> 47.50932312 | D28: =IF(INDIRECT(CONCATENATE("'",D$1,"'!",D$4,(YEAR($A28)-1921)*12+MONTH($A28)+3+IF(ISNUMBER(FIND("PRV",D$6)),1,0)))=-901,NA(),INDIRECT(CONCATENATE("'",D$1,"'!",D$4,(YEAR($A28)-1921)*12+MONTH($A28)+3+IF(ISNUMBER(FIND("PRV",D$6)),1,0)))*IF(AND(D$3>0,TRIM(D$9)="CFS"),Conv_Flags!$C28,1)) -> 47.54462051 | E28: =IF(INDIRECT(CONCATENATE("'",E$1,"'!",E$4,(YEAR($A28)-1921)*12+MONTH($A28)+3+IF(ISNUMBER(FIND("PRV",E$6)),1,0)))=-901,NA(),INDIRECT(CONCATENATE("'",E$1,"'!",E$4,(YEAR($A28)-1921)*12+MONTH($A28)+3+IF(ISNUMBER(FIND("PRV",E$6)),1,0)))*IF(AND(E$3>0,TRIM(E$9)="CFS"),Conv_Flags!$C28,1)) -> 47.55764389 | F28: =IF(INDIRECT(CONCATENATE("'",F$1,"'!",F$4,(YEAR($A28)-1921)*12+MONTH($A28)+3+IF(ISNUMBER(FIND("PRV",F$6)),1,0)))=-901,NA(),INDIRECT(CONCATENATE("'",F$1,"'!",F$4,(YEAR($A28)-1921)*12+MONTH($A28)+3+IF(ISNUMBER(FIND("PRV",F$6)),1,0)))*IF(AND(F$3>0,TRIM(F$9)="CFS"),Conv_Flags!$C28,1)) -> 47.81387329 | I28: 1938 | J28: =B205 -> 52.6052742 | K28: =B206 -> 53.58476257 | L28: =B207 -> 49.56536484 | M28: =B208 -> 46.14678192 | N28: =B209 -> 44.68633652 | O28: =B210 -> 45.24442673 | P28: =B211 -> 49.83945084 | Q28: =B212 -> 52.30243683 | R28: =B213 -> 53.05410385 | S28: =B214 -> 51.85331345 | T28: =B215 -> 51.24132538 | U28: =B216 -> 50.15649033 | W28: 50.1600488 | X28: 50.68583711 | Y28: 50.02333895 | AA28: 50.47554588 | AB28: 46.79949443 | AC28: 50.11010456 | AD28: 51.57630825 | AE28: 51.70975367 | AG28: 1938 | AH28: ='Compile Data'!C205 -> 52.65953064 | AI28: ='Compile Data'!C206 -> 53.65238953 | AJ28: ='Compile Data'!C207 -> 49.46683884 | AK28: ='Compile Data'!C208 -> 46.08248901 | AL28: ='Compile Data'!C209 -> 44.63152695 | AM28: ='Compile Data'!C210 -> 45.21233749 | AN28: ='Compile Data'!C211 -> 49.83301544 | AO28: ='Compile Data'!C212 -> 52.31511307 | AP28: ='Compile Data'!C213 -> 53.05196762 | AQ28: ='Compile Data'!C214 -> 51.85654068 | AR28: ='Compile Data'!C215 -> 51.24243927 | AS28: ='Compile Data'!C216 -> 50.14161682 | AU28: 50.13780944 | AV28: 50.67291196 | AW28: 50.01215045 | AY28: 50.465312 | AZ28: 46.7269516 | BA28: 50.10310841 | BB28: 51.5731411 | BC28: 51.68959427 | BE28: 1938 | BF28: ='Compile Data'!D205 -> 52.64312744 | BG28: ='Compile Data'!D206 -> 53.58338928 | BH28: ='Compile Data'!D207 -> 49.47613907 | BI28: ='Compile Data'!D208 -> 46.09273911 | BJ28: ='Compile Data'!D209 -> 44.62828445 | BK28: ='Compile Data'!D210 -> 45.21094131 | BL28: ='Compile Data'!D211 -> 49.83903503 | BM28: ='Compile Data'!D212 -> 52.3109169 | BN28: ='Compile Data'!D213 -> 53.05091476 | BO28: ='Compile Data'!D214 -> 51.8567543 | BP28: ='Compile Data'!D215 -> 51.24022293 | BQ28: ='Compile Data'!D216 -> 50.13928223 | BS28: 50.13781834 | BT28: 50.67225202 | BU28: 50.0059789 | BW28: 50.44884872 | BX28: 46.73238754 | BY28: 50.102952 | BZ28: 51.57179356 | CA28: 51.68803151 | CC28: 1938 | CD28: ='Compile Data'!E205 -> 52.62120056 | CE28: ='Compile Data'!E206 -> 53.62258148 | CF28: ='Compile Data'!E207 -> 49.49996948 | CG28: ='Compile Data'!E208 -> 46.10520554 | CH28: ='Compile Data'!E209 -> 44.63062286 | CI28: ='Compile Data'!E210 -> 45.21355057 | CJ28: ='Compile Data'!E211 -> 49.84234619 | CK28: ='Compile Data'!E212 -> 52.31812286 | CL28: ='Compile Data'!E213 -> 53.05334091 | CM28: ='Compile Data'!E214 -> 51.85385513 | CN28: ='Compile Data'!E215 -> 51.23913193 | CO28: ='Compile Data'!E216 -> 50.14468002 | CQ28: 50.14095084 | CR28: 50.67449697 | CS28: 50.01205063 | CU28: 50.46223927 | CV28: 46.74526596 | CW28: 50.10684013 | CX28: 51.572752 | CY28: 51.69297663 | DA28: 1938 | DB28: ='Compile Data'!F205 -> 52.62614441 | DC28: ='Compile Data'!F206 -> 53.63563156 | DD28: ='Compile Data'!F207 -> 49.43222046 | DE28: ='Compile Data'!F208 -> 46.06626129 | DF28: ='Compile Data'!F209 -> 44.609375 | DG28: ='Compile Data'!F210 -> 45.2060051 | DH28: ='Compile Data'!F211 -> 49.83021164 | DI28: ='Compile Data'!F212 -> 52.32077408 | DJ28: ='Compile Data'!F213 -> 53.05902863 | DK28: ='Compile Data'!F214 -> 51.85613632 | DL28: ='Compile Data'!F215 -> 51.23919678 | DM28: ='Compile Data'!F216 -> 50.13489151 | DO28: 50.15332603 | DP28: 50.68624369 | DQ28: 50.00132306 | DS28: 50.44006443 | DT28: 46.70261892 | DU28: 50.10400486 | DV28: 51.57231331 | DW28: 51.69603093 | DY28: 1938 | DZ28: ='Compile Data'!E205 -> 52.62120056 | EA28: ='Compile Data'!E206 -> 53.62258148 | EB28: ='Compile Data'!E207 -> 49.49996948 | EC28: ='Compile Data'!E208 -> 46.10520554 | ED28: ='Compile Data'!E209 -> 44.63062286 | EE28: ='Compile Data'!E210 -> 45.21355057 | EF28: ='Compile Data'!E211 -> 49.84234619 | EG28: ='Compile Data'!E212 -> 52.31812286 | EH28: ='Compile Data'!E213 -> 53.05334091 | EI28: ='Compile Data'!E214 -> 51.85385513 | EJ28: ='Compile Data'!E215 -> 51.23913193 | EK28: ='Compile Data'!E216 -> 50.14468002 | EM28: 50.14095084 | EN28: 50.67449697 | EO28: 50.01205063 | EQ28: 50.46223927 | ER28: 46.74526596 | ES28: 50.10684013 | ET28: 51.572752 | EU28: 51.69297663
A29: 1923-02-28 | B29: =IF(INDIRECT(CONCATENATE("'",B$1,"'!",B$4,(YEAR($A29)-1921)*12+MONTH($A29)+3+IF(ISNUMBER(FIND("PRV",B$6)),1,0)))=-901,NA(),INDIRECT(CONCATENATE("'",B$1,"'!",B$4,(YEAR($A29)-1921)*12+MONTH($A29)+3+IF(ISNUMBER(FIND("PRV",B$6)),1,0)))*IF(AND(B$3>0,TRIM(B$9)="CFS"),Conv_Flags!$C29,1)) -> 47.41940308 | C29: =IF(INDIRECT(CONCATENATE("'",C$1,"'!",C$4,(YEAR($A29)-1921)*12+MONTH($A29)+3+IF(ISNUMBER(FIND("PRV",C$6)),1,0)))=-901,NA(),INDIRECT(CONCATENATE("'",C$1,"'!",C$4,(YEAR($A29)-1921)*12+MONTH($A29)+3+IF(ISNUMBER(FIND("PRV",C$6)),1,0)))*IF(AND(C$3>0,TRIM(C$9)="CFS"),Conv_Flags!$C29,1)) -> 47.42972565 | D29: =IF(INDIRECT(CONCATENATE("'",D$1,"'!",D$4,(YEAR($A29)-1921)*12+MONTH($A29)+3+IF(ISNUMBER(FIND("PRV",D$6)),1,0)))=-901,NA(),INDIRECT(CONCATENATE("'",D$1,"'!",D$4,(YEAR($A29)-1921)*12+MONTH($A29)+3+IF(ISNUMBER(FIND("PRV",D$6)),1,0)))*IF(AND(D$3>0,TRIM(D$9)="CFS"),Conv_Flags!$C29,1)) -> 47.50992203 | E29: =IF(INDIRECT(CONCATENATE("'",E$1,"'!",E$4,(YEAR($A29)-1921)*12+MONTH($A29)+3+IF(ISNUMBER(FIND("PRV",E$6)),1,0)))=-901,NA(),INDIRECT(CONCATENATE("'",E$1,"'!",E$4,(YEAR($A29)-1921)*12+MONTH($A29)+3+IF(ISNUMBER(FIND("PRV",E$6)),1,0)))*IF(AND(E$3>0,TRIM(E$9)="CFS"),Conv_Flags!$C29,1)) -> 47.50765228 | F29: =IF(INDIRECT(CONCATENATE("'",F$1,"'!",F$4,(YEAR($A29)-1921)*12+MONTH($A29)+3+IF(ISNUMBER(FIND("PRV",F$6)),1,0)))=-901,NA(),INDIRECT(CONCATENATE("'",F$1,"'!",F$4,(YEAR($A29)-1921)*12+MONTH($A29)+3+IF(ISNUMBER(FIND("PRV",F$6)),1,0)))*IF(AND(F$3>0,TRIM(F$9)="CFS"),Conv_Flags!$C29,1)) -> 47.210392 | I29: 1939 | J29: =B217 -> 51.19479752 | K29: =B218 -> 53.77797318 | L29: =B219 -> 52.42314911 | M29: =B220 -> 49.18099976 | N29: =B221 -> 47.96157837 | O29: =B222 -> 49.90706253 | P29: =B223 -> 53.67718506 | Q29: =B224 -> 53.53192902 | R29: =B225 -> 51.77274323 | S29: =B226 -> 51.90148926 | T29: =B227 -> 52.23176193 | U29: =B228 -> 53.23913574 | W29: 51.83445072 | X29: 51.49990431 | Y29: 51.73331706 | AA29: 51.64422989 | AB29: 49.85524241 | AC29: 52.22222996 | AD29: 52.28628254 | AE29: 53.19449615 | AG29: 1939 | AH29: ='Compile Data'!C217 -> 51.19126129 | AI29: ='Compile Data'!C218 -> 53.73590469 | AJ29: ='Compile Data'!C219 -> 52.35950089 | AK29: ='Compile Data'!C220 -> 49.16719055 | AL29: ='Compile Data'!C221 -> 47.96805573 | AM29: ='Compile Data'!C222 -> 49.94896317 | AN29: ='Compile Data'!C223 -> 53.63677216 | AO29: ='Compile Data'!C224 -> 53.62640762 | AP29: ='Compile Data'!C225 -> 52.15928268 | AQ29: ='Compile Data'!C226 -> 51.92323303 | AR29: ='Compile Data'!C227 -> 52.11857605 | AS29: ='Compile Data'!C228 -> 52.85730743 | AU29: 51.85714213 | AV29: 51.5101757 | AW29: 51.72437127 | AY29: 51.61346436 | AZ29: 49.83158239 | BA29: 52.34285641 | BB29: 52.2645998 | BC29: 53.201238 | BE29: 1939 | BF29: ='Compile Data'!D217 -> 51.19013214 | BG29: ='Compile Data'!D218 -> 53.73468018 | BH29: ='Compile Data'!D219 -> 52.35991669 | BI29: ='Compile Data'!D220 -> 49.1668663 | BJ29: ='Compile Data'!D221 -> 47.96736145 | BK29: ='Compile Data'!D222 -> 49.94842148 | BL29: ='Compile Data'!D223 -> 53.6367569 | BM29: ='Compile Data'!D224 -> 53.65657806 | BN29: ='Compile Data'!D225 -> 52.36550522 | BO29: ='Compile Data'!D226 -> 52.41616821 | BP29: ='Compile Data'!D227 -> 52.59512711 | BQ29: ='Compile Data'!D228 -> 53.14807129 | BS29: 51.94015471 | BT29: 51.58263175 | BU29: 51.84879875 | BW29: 51.61289883 | BX29: 49.83138148 | BY29: 52.40181541 | BZ29: 52.63121796 | CA29: 53.28525925 | CC29: 1939 | CD29: ='Compile Data'!E217 -> 51.19597244 | CE29: ='Compile Data'!E218 -> 53.73827744 | CF29: ='Compile Data'!E219 -> 52.35630417 | CG29: ='Compile Data'!E220 -> 49.16852188 | CH29: ='Compile Data'!E221 -> 47.96986008 | CI29: ='Compile Data'!E222 -> 49.94864273 | CJ29: ='Compile Data'!E223 -> 53.62622833 | CK29: ='Compile Data'!E224 -> 53.8212738 | CL29: ='Compile Data'!E225 -> 52.42948151 | CM29: ='Compile Data'!E226 -> 52.43638992 | CN29: ='Compile Data'!E227 -> 52.61894608 | CO29: ='Compile Data'!E228 -> 53.19334412 | CQ29: 51.96314653 | CR29: 51.60377089 | CS29: 51.87527021 | CU29: 51.61476898 | CV29: 49.83156204 | CW29: 52.45640659 | CX29: 52.66954041 | CY29: 53.30049388 | DA29: 1939 | DB29: ='Compile Data'!F217 -> 51.18408203 | DC29: ='Compile Data'!F218 -> 53.76911926 | DD29: ='Compile Data'!F219 -> 52.56483078 | DE29: ='Compile Data'!F220 -> 49.15703583 | DF29: ='Compile Data'!F221 -> 47.91361237 | DG29: ='Compile Data'!F222 -> 49.79843903 | DH29: ='Compile Data'!F223 -> 54.15078735 | DI29: ='Compile Data'!F224 -> 53.73674011 | DJ29: ='Compile Data'!F225 -> 52.83076859 | DK29: ='Compile Data'!F226 -> 52.43017197 | DL29: ='Compile Data'!F227 -> 52.27643585 | DM29: ='Compile Data'!F228 -> 52.47424316 | DO29: 51.92199771 | DP29: 51.57900461 | DQ29: 51.85718886 | DS29: 51.66876698 | DT29: 49.87849299 | DU29: 52.62918377 | DV29: 52.50290489 | DW29: 53.0108401 | DY29: 1939 | DZ29: ='Compile Data'!E217 -> 51.19597244 | EA29: ='Compile Data'!E218 -> 53.73827744 | EB29: ='Compile Data'!E219 -> 52.35630417 | EC29: ='Compile Data'!E220 -> 49.16852188 | ED29: ='Compile Data'!E221 -> 47.96986008 | EE29: ='Compile Data'!E222 -> 49.94864273 | EF29: ='Compile Data'!E223 -> 53.62622833 | EG29: ='Compile Data'!E224 -> 53.8212738 | EH29: ='Compile Data'!E225 -> 52.42948151 | EI29: ='Compile Data'!E226 -> 52.43638992 | EJ29: ='Compile Data'!E227 -> 52.61894608 | EK29: ='Compile Data'!E228 -> 53.19334412 | EM29: 51.96314653 | EN29: 51.60377089 | EO29: 51.87527021 | EQ29: 51.61476898 | ER29: 49.83156204 | ES29: 52.45640659 | ET29: 52.66954041 | EU29: 53.30049388
A30: 1923-03-31 | B30: =IF(INDIRECT(CONCATENATE("'",B$1,"'!",B$4,(YEAR($A30)-1921)*12+MONTH($A30)+3+IF(ISNUMBER(FIND("PRV",B$6)),1,0)))=-901,NA(),INDIRECT(CONCATENATE("'",B$1,"'!",B$4,(YEAR($A30)-1921)*12+MONTH($A30)+3+IF(ISNUMBER(FIND("PRV",B$6)),1,0)))*IF(AND(B$3>0,TRIM(B$9)="CFS"),Conv_Flags!$C30,1)) -> 50.95542908 | C30: =IF(INDIRECT(CONCATENATE("'",C$1,"'!",C$4,(YEAR($A30)-1921)*12+MONTH($A30)+3+IF(ISNUMBER(FIND("PRV",C$6)),1,0)))=-901,NA(),INDIRECT(CONCATENATE("'",C$1,"'!",C$4,(YEAR($A30)-1921)*12+MONTH($A30)+3+IF(ISNUMBER(FIND("PRV",C$6)),1,0)))*IF(AND(C$3>0,TRIM(C$9)="CFS"),Conv_Flags!$C30,1)) -> 50.94565201 | D30: =IF(INDIRECT(CONCATENATE("'",D$1,"'!",D$4,(YEAR($A30)-1921)*12+MONTH($A30)+3+IF(ISNUMBER(FIND("PRV",D$6)),1,0)))=-901,NA(),INDIRECT(CONCATENATE("'",D$1,"'!",D$4,(YEAR($A30)-1921)*12+MONTH($A30)+3+IF(ISNUMBER(FIND("PRV",D$6)),1,0)))*IF(AND(D$3>0,TRIM(D$9)="CFS"),Conv_Flags!$C30,1)) -> 50.9511261 | E30: =IF(INDIRECT(CONCATENATE("'",E$1,"'!",E$4,(YEAR($A30)-1921)*12+MONTH($A30)+3+IF(ISNUMBER(FIND("PRV",E$6)),1,0)))=-901,NA(),INDIRECT(CONCATENATE("'",E$1,"'!",E$4,(YEAR($A30)-1921)*12+MONTH($A30)+3+IF(ISNUMBER(FIND("PRV",E$6)),1,0)))*IF(AND(E$3>0,TRIM(E$9)="CFS"),Conv_Flags!$C30,1)) -> 50.97745514 | F30: =IF(INDIRECT(CONCATENATE("'",F$1,"'!",F$4,(YEAR($A30)-1921)*12+MONTH($A30)+3+IF(ISNUMBER(FIND("PRV",F$6)),1,0)))=-901,NA(),INDIRECT(CONCATENATE("'",F$1,"'!",F$4,(YEAR($A30)-1921)*12+MONTH($A30)+3+IF(ISNUMBER(FIND("PRV",F$6)),1,0)))*IF(AND(F$3>0,TRIM(F$9)="CFS"),Conv_Flags!$C30,1)) -> 49.62437057 | I30: 1940 | J30: =B229 -> 52.26704788 | K30: =B230 -> 54.07730484 | L30: =B231 -> 52.26517105 | M30: =B232 -> 47.74621582 | N30: =B233 -> 45.38180542 | O30: =B234 -> 46.29901886 | P30: =B235 -> 53.116436 | Q30: =B236 -> 54.31451416 | R30: =B237 -> 52.13272858 | S30: =B238 -> 50.62449265 | T30: =B239 -> 51.06420898 | U30: =B240 -> 50.3908577 | W30: 50.57657623 | X30: 50.42576885 | Y30: 50.80665016 | AA30: 51.5889349 | AB30: 48.46439743 | AC30: 51.4656744 | AD30: 51.05307198 | AE30: 52.0023791 | AG30: 1940 | AH30: ='Compile Data'!C229 -> 52.46682739 | AI30: ='Compile Data'!C230 -> 54.27957916 | AJ30: ='Compile Data'!C231 -> 52.13351059 | AK30: ='Compile Data'!C232 -> 47.65854645 | AL30: ='Compile Data'!C233 -> 45.31310272 | AM30: ='Compile Data'!C234 -> 46.26432037 | AN30: ='Compile Data'!C235 -> 53.10810089 | AO30: ='Compile Data'!C236 -> 54.54159164 | AP30: ='Compile Data'!C237 -> 52.42173004 | AQ30: ='Compile Data'!C238 -> 50.61841965 | AR30: ='Compile Data'!C239 -> 51.10035324 | AS30: ='Compile Data'!C240 -> 50.28324509 | AU30: 50.6058197 | AV30: 50.46008396 | AW30: 50.8491106 | AY30: 51.6346159 | AZ30: 48.36838659 | BA30: 51.58393574 | BB30: 51.105937 | BC30: 51.95456441 | BE30: 1940 | BF30: ='Compile Data'!D229 -> 52.41780853 | BG30: ='Compile Data'!D230 -> 54.28989792 | BH30: ='Compile Data'!D231 -> 51.67329407 | BI30: ='Compile Data'!D232 -> 47.52431107 | BJ30: ='Compile Data'!D233 -> 45.31964111 | BK30: ='Compile Data'!D234 -> 46.27830124 | BL30: ='Compile Data'!D235 -> 53.12829971 | BM30: ='Compile Data'!D236 -> 54.56629562 | BN30: ='Compile Data'!D237 -> 52.89736938 | BO30: ='Compile Data'!D238 -> 50.63267517 | BP30: ='Compile Data'!D239 -> 51.27284622 | BQ30: ='Compile Data'!D240 -> 50.25080109 | BS30: 50.63842805 | BT30: 50.497962 | BU30: 50.85429509 | BW30: 51.4763279 | BX30: 48.17241542 | BY30: 51.71756649 | BZ30: 51.26342297 | CA30: 51.83201726 | CC30: 1940 | CD30: ='Compile Data'!E229 -> 52.46821976 | CE30: ='Compile Data'!E230 -> 54.23991776 | CF30: ='Compile Data'!E231 -> 51.63693237 | CG30: ='Compile Data'!E232 -> 47.50681305 | CH30: ='Compile Data'!E233 -> 45.31906128 | CI30: ='Compile Data'!E234 -> 46.28157806 | CJ30: ='Compile Data'!E235 -> 53.13065338 | CK30: ='Compile Data'!E236 -> 54.57223511 | CL30: ='Compile Data'!E237 -> 52.89876175 | CM30: ='Compile Data'!E238 -> 50.68321991 | CN30: ='Compile Data'!E239 -> 51.34779739 | CO30: ='Compile Data'!E240 -> 50.17681503 | CQ30: 50.64039421 | CR30: 50.50038115 | CS30: 50.85516707 | CU30: 51.46297073 | CV30: 48.1542689 | CW30: 51.72080708 | CX30: 51.27664852 | CY30: 51.78801473 | DA30: 1940 | DB30: ='Compile Data'!F229 -> 52.2857666 | DC30: ='Compile Data'!F230 -> 54.27251053 | DD30: ='Compile Data'!F231 -> 51.73746109 | DE30: ='Compile Data'!F232 -> 47.58618927 | DF30: ='Compile Data'!F233 -> 45.36854172 | DG30: ='Compile Data'!F234 -> 46.31180573 | DH30: ='Compile Data'!F235 -> 53.12952042 | DI30: ='Compile Data'!F236 -> 53.83299637 | DJ30: ='Compile Data'!F237 -> 52.58641434 | DK30: ='Compile Data'!F238 -> 50.77980423 | DL30: ='Compile Data'!F239 -> 51.37869263 | DM30: ='Compile Data'!F240 -> 50.29141235 | DO30: 50.58701611 | DP30: 50.43470446 | DQ30: 50.79675961 | DS30: 51.47048187 | DT30: 48.23073069 | DU30: 51.46518421 | DV30: 51.25908089 | DW30: 51.84999466 | DY30: 1940 | DZ30: ='Compile Data'!E229 -> 52.46821976 | EA30: ='Compile Data'!E230 -> 54.23991776 | EB30: ='Compile Data'!E231 -> 51.63693237 | EC30: ='Compile Data'!E232 -> 47.50681305 | ED30: ='Compile Data'!E233 -> 45.31906128 | EE30: ='Compile Data'!E234 -> 46.28157806 | EF30: ='Compile Data'!E235 -> 53.13065338 | EG30: ='Compile Data'!E236 -> 54.57223511 | EH30: ='Compile Data'!E237 -> 52.89876175 | EI30: ='Compile Data'!E238 -> 50.68321991 | EJ30: ='Compile Data'!E239 -> 51.34779739 | EK30: ='Compile Data'!E240 -> 50.17681503 | EM30: 50.64039421 | EN30: 50.50038115 | EO30: 50.85516707 | EQ30: 51.46297073 | ER30: 48.1542689 | ES30: 51.72080708 | ET30: 51.27664852 | EU30: 51.78801473
A31: 1923-04-30 | B31: =IF(INDIRECT(CONCATENATE("'",B$1,"'!",B$4,(YEAR($A31)-1921)*12+MONTH($A31)+3+IF(ISNUMBER(FIND("PRV",B$6)),1,0)))=-901,NA(),INDIRECT(CONCATENATE("'",B$1,"'!",B$4,(YEAR($A31)-1921)*12+MONTH($A31)+3+IF(ISNUMBER(FIND("PRV",B$6)),1,0)))*IF(AND(B$3>0,TRIM(B$9)="CFS"),Conv_Flags!$C31,1)) -> 53.18655396 | C31: =IF(INDIRECT(CONCATENATE("'",C$1,"'!",C$4,(YEAR($A31)-1921)*12+MONTH($A31)+3+IF(ISNUMBER(FIND("PRV",C$6)),1,0)))=-901,NA(),INDIRECT(CONCATENATE("'",C$1,"'!",C$4,(YEAR($A31)-1921)*12+MONTH($A31)+3+IF(ISNUMBER(FIND("PRV",C$6)),1,0)))*IF(AND(C$3>0,TRIM(C$9)="CFS"),Conv_Flags!$C31,1)) -> 53.12083435 | D31: =IF(INDIRECT(CONCATENATE("'",D$1,"'!",D$4,(YEAR($A31)-1921)*12+MONTH($A31)+3+IF(ISNUMBER(FIND("PRV",D$6)),1,0)))=-901,NA(),INDIRECT(CONCATENATE("'",D$1,"'!",D$4,(YEAR($A31)-1921)*12+MONTH($A31)+3+IF(ISNUMBER(FIND("PRV",D$6)),1,0)))*IF(AND(D$3>0,TRIM(D$9)="CFS"),Conv_Flags!$C31,1)) -> 53.095047 | E31: =IF(INDIRECT(CONCATENATE("'",E$1,"'!",E$4,(YEAR($A31)-1921)*12+MONTH($A31)+3+IF(ISNUMBER(FIND("PRV",E$6)),1,0)))=-901,NA(),INDIRECT(CONCATENATE("'",E$1,"'!",E$4,(YEAR($A31)-1921)*12+MONTH($A31)+3+IF(ISNUMBER(FIND("PRV",E$6)),1,0)))*IF(AND(E$3>0,TRIM(E$9)="CFS"),Conv_Flags!$C31,1)) -> 53.09984589 | F31: =IF(INDIRECT(CONCATENATE("'",F$1,"'!",F$4,(YEAR($A31)-1921)*12+MONTH($A31)+3+IF(ISNUMBER(FIND("PRV",F$6)),1,0)))=-901,NA(),INDIRECT(CONCATENATE("'",F$1,"'!",F$4,(YEAR($A31)-1921)*12+MONTH($A31)+3+IF(ISNUMBER(FIND("PRV",F$6)),1,0)))*IF(AND(F$3>0,TRIM(F$9)="CFS"),Conv_Flags!$C31,1)) -> 53.20510864 | I31: 1941 | J31: =B241 -> 51.9119072 | K31: =B242 -> 53.70437241 | L31: =B243 -> 50.23235703 | M31: =B244 -> 46.50419998 | N31: =B245 -> 44.81413269 | O31: =B246 -> 46.83950043 | P31: =B247 -> 49.70158005 | Q31: =B248 -> 50.15313721 | R31: =B249 -> 51.78616714 | S31: =B250 -> 51.18654633 | T31: =B251 -> 50.96180725 | U31: =B252 -> 50.09543991 | W31: 49.84980361 | X31: 49.85292085 | Y31: 49.8242623 | AA31: 50.58820915 | AB31: 47.18356323 | AC31: 49.62009621 | AD31: 51.00749016 | AE31: 51.76282628 | AG31: 1941 | AH31: ='Compile Data'!C241 -> 51.88050842 | AI31: ='Compile Data'!C242 -> 53.69993973 | AJ31: ='Compile Data'!C243 -> 50.37997818 | AK31: ='Compile Data'!C244 -> 46.43954468 | AL31: ='Compile Data'!C245 -> 44.7832756 | AM31: ='Compile Data'!C246 -> 46.81965637 | AN31: ='Compile Data'!C247 -> 49.7022171 | AO31: ='Compile Data'!C248 -> 50.15923309 | AP31: ='Compile Data'!C249 -> 51.79957581 | AQ31: ='Compile Data'!C250 -> 51.18735504 | AR31: ='Compile Data'!C251 -> 50.96360397 | AS31: ='Compile Data'!C252 -> 50.07869339 | AU31: 49.84163348 | AV31: 49.85190582 | AW31: 49.82446512 | AY31: 50.59999275 | AZ31: 47.20093282 | BA31: 49.62017059 | BB31: 51.00730705 | BC31: 51.76456579 | BE31: 1941 | BF31: ='Compile Data'!D241 -> 51.86653519 | BG31: ='Compile Data'!D242 -> 53.37871552 | BH31: ='Compile Data'!D243 -> 50.54534531 | BI31: ='Compile Data'!D244 -> 46.40680695 | BJ31: ='Compile Data'!D245 -> 44.75155258 | BK31: ='Compile Data'!D246 -> 46.81994629 | BL31: ='Compile Data'!D247 -> 49.68122864 | BM31: ='Compile Data'!D248 -> 50.1422348 | BN31: ='Compile Data'!D249 -> 51.78475952 | BO31: ='Compile Data'!D250 -> 51.19550705 | BP31: ='Compile Data'!D251 -> 50.95993423 | BQ31: ='Compile Data'!D252 -> 50.06525803 | BS31: 49.82767455 | BT31: 49.84361935 | BU31: 49.79981867 | BW31: 50.54935074 | BX31: 47.23456828 | BY31: 49.60704231 | BZ31: 51.00136471 | CA31: 51.75117111 | CC31: 1941 | CD31: ='Compile Data'!E241 -> 51.84138489 | CE31: ='Compile Data'!E242 -> 53.34584427 | CF31: ='Compile Data'!E243 -> 50.58056641 | CG31: ='Compile Data'!E244 -> 46.40024948 | CH31: ='Compile Data'!E245 -> 44.74546814 | CI31: ='Compile Data'!E246 -> 46.811203 | CJ31: ='Compile Data'!E247 -> 49.67015076 | CK31: ='Compile Data'!E248 -> 50.14570236 | CL31: ='Compile Data'!E249 -> 51.78367996 | CM31: ='Compile Data'!E250 -> 51.19921494 | CN31: ='Compile Data'!E251 -> 50.96945572 | CO31: ='Compile Data'!E252 -> 50.05495834 | CQ31: 49.82516448 | CR31: 49.84074116 | CS31: 49.79565652 | CU31: 50.54201126 | CV31: 47.24209468 | CW31: 49.60268402 | CX31: 51.00182724 | CY31: 51.7492307 | DA31: 1941 | DB31: ='Compile Data'!F241 -> 51.87081528 | DC31: ='Compile Data'!F242 -> 53.38775635 | DD31: ='Compile Data'!F243 -> 50.5202446 | DE31: ='Compile Data'!F244 -> 46.38903046 | DF31: ='Compile Data'!F245 -> 44.73796082 | DG31: ='Compile Data'!F246 -> 46.80854797 | DH31: ='Compile Data'!F247 -> 49.68830109 | DI31: ='Compile Data'!F248 -> 50.15023422 | DJ31: ='Compile Data'!F249 -> 51.78399658 | DK31: ='Compile Data'!F250 -> 51.19939423 | DL31: ='Compile Data'!F251 -> 50.97001266 | DM31: ='Compile Data'!F252 -> 50.05524445 | DO31: 49.82754548 | DP31: 49.84569518 | DQ31: 49.79679489 | DS31: 50.54196167 | DT31: 47.21574529 | DU31: 49.60776997 | DV31: 51.00216198 | DW31: 51.75621923 | DY31: 1941 | DZ31: ='Compile Data'!E241 -> 51.84138489 | EA31: ='Compile Data'!E242 -> 53.34584427 | EB31: ='Compile Data'!E243 -> 50.58056641 | EC31: ='Compile Data'!E244 -> 46.40024948 | ED31: ='Compile Data'!E245 -> 44.74546814 | EE31: ='Compile Data'!E246 -> 46.811203 | EF31: ='Compile Data'!E247 -> 49.67015076 | EG31: ='Compile Data'!E248 -> 50.14570236 | EH31: ='Compile Data'!E249 -> 51.78367996 | EI31: ='Compile Data'!E250 -> 51.19921494 | EJ31: ='Compile Data'!E251 -> 50.96945572 | EK31: ='Compile Data'!E252 -> 50.05495834 | EM31: 49.82516448 | EN31: 49.84074116 | EO31: 49.79565652 | EQ31: 50.54201126 | ER31: 47.24209468 | ES31: 49.60268402 | ET31: 51.00182724 | EU31: 51.7492307
A32: 1923-05-31 | B32: =IF(INDIRECT(CONCATENATE("'",B$1,"'!",B$4,(YEAR($A32)-1921)*12+MONTH($A32)+3+IF(ISNUMBER(FIND("PRV",B$6)),1,0)))=-901,NA(),INDIRECT(CONCATENATE("'",B$1,"'!",B$4,(YEAR($A32)-1921)*12+MONTH($A32)+3+IF(ISNUMBER(FIND("PRV",B$6)),1,0)))*IF(AND(B$3>0,TRIM(B$9)="CFS"),Conv_Flags!$C32,1)) -> 51.91106415 | C32: =IF(INDIRECT(CONCATENATE("'",C$1,"'!",C$4,(YEAR($A32)-1921)*12+MONTH($A32)+3+IF(ISNUMBER(FIND("PRV",C$6)),1,0)))=-901,NA(),INDIRECT(CONCATENATE("'",C$1,"'!",C$4,(YEAR($A32)-1921)*12+MONTH($A32)+3+IF(ISNUMBER(FIND("PRV",C$6)),1,0)))*IF(AND(C$3>0,TRIM(C$9)="CFS"),Conv_Flags!$C32,1)) -> 52.00242996 | D32: =IF(INDIRECT(CONCATENATE("'",D$1,"'!",D$4,(YEAR($A32)-1921)*12+MONTH($A32)+3+IF(ISNUMBER(FIND("PRV",D$6)),1,0)))=-901,NA(),INDIRECT(CONCATENATE("'",D$1,"'!",D$4,(YEAR($A32)-1921)*12+MONTH($A32)+3+IF(ISNUMBER(FIND("PRV",D$6)),1,0)))*IF(AND(D$3>0,TRIM(D$9)="CFS"),Conv_Flags!$C32,1)) -> 52.02238083 | E32: =IF(INDIRECT(CONCATENATE("'",E$1,"'!",E$4,(YEAR($A32)-1921)*12+MONTH($A32)+3+IF(ISNUMBER(FIND("PRV",E$6)),1,0)))=-901,NA(),INDIRECT(CONCATENATE("'",E$1,"'!",E$4,(YEAR($A32)-1921)*12+MONTH($A32)+3+IF(ISNUMBER(FIND("PRV",E$6)),1,0)))*IF(AND(E$3>0,TRIM(E$9)="CFS"),Conv_Flags!$C32,1)) -> 52.09060669 | F32: =IF(INDIRECT(CONCATENATE("'",F$1,"'!",F$4,(YEAR($A32)-1921)*12+MONTH($A32)+3+IF(ISNUMBER(FIND("PRV",F$6)),1,0)))=-901,NA(),INDIRECT(CONCATENATE("'",F$1,"'!",F$4,(YEAR($A32)-1921)*12+MONTH($A32)+3+IF(ISNUMBER(FIND("PRV",F$6)),1,0)))*IF(AND(F$3>0,TRIM(F$9)="CFS"),Conv_Flags!$C32,1)) -> 52.74188614 | I32: 1942 | J32: =B253 -> 51.38028717 | K32: =B254 -> 53.81275177 | L32: =B255 -> 50.96209335 | M32: =B256 -> 46.55143738 | N32: =B257 -> 44.80430222 | O32: =B258 -> 47.7543602 | P32: =B259 -> 51.6022377 | Q32: =B260 -> 50.05508041 | R32: =B261 -> 51.95667267 | S32: =B262 -> 51.67213058 | T32: =B263 -> 51.38826752 | U32: =B264 -> 49.79504013 | W32: 50.12019507 | X32: 50.30850633 | Y32: 50.14455509 | AA32: 50.67664242 | AB32: 47.43927765 | AC32: 50.34208775 | AD32: 51.20302773 | AE32: 51.57131068 | AG32: 1942 | AH32: ='Compile Data'!C253 -> 51.39148331 | AI32: ='Compile Data'!C254 -> 53.82352066 | AJ32: ='Compile Data'!C255 -> 50.95144272 | AK32: ='Compile Data'!C256 -> 46.54683685 | AL32: ='Compile Data'!C257 -> 44.79925156 | AM32: ='Compile Data'!C258 -> 47.75106049 | AN32: ='Compile Data'!C259 -> 51.63951111 | AO32: ='Compile Data'!C260 -> 50.04452515 | AP32: ='Compile Data'!C261 -> 51.95457458 | AQ32: ='Compile Data'!C262 -> 51.67238998 | AR32: ='Compile Data'!C263 -> 51.39929962 | AS32: ='Compile Data'!C264 -> 49.79063797 | AU32: 50.1213452 | AV32: 50.30986468 | AW32: 50.1470445 | AY32: 50.67832088 | AZ32: 47.43251038 | BA32: 50.34741783 | BB32: 51.20422554 | BC32: 51.56941859 | BE32: 1942 | BF32: ='Compile Data'!D253 -> 51.371521 | BG32: ='Compile Data'!D254 -> 53.81673431 | BH32: ='Compile Data'!D255 -> 50.93661118 | BI32: ='Compile Data'!D256 -> 46.55092621 | BJ32: ='Compile Data'!D257 -> 44.7987709 | BK32: ='Compile Data'!D258 -> 47.74508667 | BL32: ='Compile Data'!D259 -> 51.63861084 | BM32: ='Compile Data'!D260 -> 50.04615402 | BN32: ='Compile Data'!D261 -> 51.96083832 | BO32: ='Compile Data'!D262 -> 51.67342377 | BP32: ='Compile Data'!D263 -> 51.39345551 | BQ32: ='Compile Data'!D264 -> 49.79946136 | BS32: 50.11935838 | BT32: 50.30929693 | BU32: 50.14429951 | BW32: 50.66894817 | BX32: 47.42876943 | BY32: 50.34767246 | BZ32: 51.20679474 | CA32: 51.55944443 | CC32: 1942 | CD32: ='Compile Data'!E253 -> 51.36384964 | CE32: ='Compile Data'!E254 -> 53.82888412 | CF32: ='Compile Data'!E255 -> 50.92915726 | CG32: ='Compile Data'!E256 -> 46.54049683 | CH32: ='Compile Data'!E257 -> 44.79214096 | CI32: ='Compile Data'!E258 -> 47.74820328 | CJ32: ='Compile Data'!E259 -> 51.63814926 | CK32: ='Compile Data'!E260 -> 50.04356766 | CL32: ='Compile Data'!E261 -> 51.96121979 | CM32: ='Compile Data'!E262 -> 51.66694641 | CN32: ='Compile Data'!E263 -> 51.41103745 | CO32: ='Compile Data'!E264 -> 49.79614258 | CQ32: 50.11914094 | CR32: 50.30831877 | CS32: 50.14331627 | CU32: 50.66559696 | CV32: 47.42059835 | CW32: 50.347785 | CX32: 51.20883656 | CY32: 51.56511943 | DA32: 1942 | DB32: ='Compile Data'!F253 -> 51.36715698 | DC32: ='Compile Data'!F254 -> 53.84625626 | DD32: ='Compile Data'!F255 -> 50.9344101 | DE32: ='Compile Data'!F256 -> 46.54844666 | DF32: ='Compile Data'!F257 -> 44.79634094 | DG32: ='Compile Data'!F258 -> 47.75117874 | DH32: ='Compile Data'!F259 -> 51.63747787 | DI32: ='Compile Data'!F260 -> 50.04497528 | DJ32: ='Compile Data'!F261 -> 51.95470428 | DK32: ='Compile Data'!F262 -> 51.66892624 | DL32: ='Compile Data'!F263 -> 51.40930939 | DM32: ='Compile Data'!F264 -> 49.79777527 | DO32: 50.12060706 | DP32: 50.30861632 | DQ32: 50.14641317 | DS32: 50.6740675 | DT32: 47.42639923 | DU32: 50.34708405 | DV32: 51.20767879 | DW32: 51.56746928 | DY32: 1942 | DZ32: ='Compile Data'!E253 -> 51.36384964 | EA32: ='Compile Data'!E254 -> 53.82888412 | EB32: ='Compile Data'!E255 -> 50.92915726 | EC32: ='Compile Data'!E256 -> 46.54049683 | ED32: ='Compile Data'!E257 -> 44.79214096 | EE32: ='Compile Data'!E258 -> 47.74820328 | EF32: ='Compile Data'!E259 -> 51.63814926 | EG32: ='Compile Data'!E260 -> 50.04356766 | EH32: ='Compile Data'!E261 -> 51.96121979 | EI32: ='Compile Data'!E262 -> 51.66694641 | EJ32: ='Compile Data'!E263 -> 51.41103745 | EK32: ='Compile Data'!E264 -> 49.79614258 | EM32: 50.11914094 | EN32: 50.30831877 | EO32: 50.14331627 | EQ32: 50.66559696 | ER32: 47.42059835 | ES32: 50.347785 | ET32: 51.20883656 | EU32: 51.56511943
A33: 1923-06-30 | B33: =IF(INDIRECT(CONCATENATE("'",B$1,"'!",B$4,(YEAR($A33)-1921)*12+MONTH($A33)+3+IF(ISNUMBER(FIND("PRV",B$6)),1,0)))=-901,NA(),INDIRECT(CONCATENATE("'",B$1,"'!",B$4,(YEAR($A33)-1921)*12+MONTH($A33)+3+IF(ISNUMBER(FIND("PRV",B$6)),1,0)))*IF(AND(B$3>0,TRIM(B$9)="CFS"),Conv_Flags!$C33,1)) -> 51.35770798 | C33: =IF(INDIRECT(CONCATENATE("'",C$1,"'!",C$4,(YEAR($A33)-1921)*12+MONTH($A33)+3+IF(ISNUMBER(FIND("PRV",C$6)),1,0)))=-901,NA(),INDIRECT(CONCATENATE("'",C$1,"'!",C$4,(YEAR($A33)-1921)*12+MONTH($A33)+3+IF(ISNUMBER(FIND("PRV",C$6)),1,0)))*IF(AND(C$3>0,TRIM(C$9)="CFS"),Conv_Flags!$C33,1)) -> 51.4013176 | D33: =IF(INDIRECT(CONCATENATE("'",D$1,"'!",D$4,(YEAR($A33)-1921)*12+MONTH($A33)+3+IF(ISNUMBER(FIND("PRV",D$6)),1,0)))=-901,NA(),INDIRECT(CONCATENATE("'",D$1,"'!",D$4,(YEAR($A33)-1921)*12+MONTH($A33)+3+IF(ISNUMBER(FIND("PRV",D$6)),1,0)))*IF(AND(D$3>0,TRIM(D$9)="CFS"),Conv_Flags!$C33,1)) -> 51.86757278 | E33: =IF(INDIRECT(CONCATENATE("'",E$1,"'!",E$4,(YEAR($A33)-1921)*12+MONTH($A33)+3+IF(ISNUMBER(FIND("PRV",E$6)),1,0)))=-901,NA(),INDIRECT(CONCATENATE("'",E$1,"'!",E$4,(YEAR($A33)-1921)*12+MONTH($A33)+3+IF(ISNUMBER(FIND("PRV",E$6)),1,0)))*IF(AND(E$3>0,TRIM(E$9)="CFS"),Conv_Flags!$C33,1)) -> 51.91490173 | F33: =IF(INDIRECT(CONCATENATE("'",F$1,"'!",F$4,(YEAR($A33)-1921)*12+MONTH($A33)+3+IF(ISNUMBER(FIND("PRV",F$6)),1,0)))=-901,NA(),INDIRECT(CONCATENATE("'",F$1,"'!",F$4,(YEAR($A33)-1921)*12+MONTH($A33)+3+IF(ISNUMBER(FIND("PRV",F$6)),1,0)))*IF(AND(F$3>0,TRIM(F$9)="CFS"),Conv_Flags!$C33,1)) -> 52.24533844 | I33: 1943 | J33: =B265 -> 51.53977203 | K33: =B266 -> 53.37911987 | L33: =B267 -> 50.94392014 | M33: =B268 -> 47.51040268 | N33: =B269 -> 46.10507202 | O33: =B270 -> 47.170784 | P33: =B271 -> 51.30353546 | Q33: =B272 -> 51.70872116 | R33: =B273 -> 51.73434067 | S33: =B274 -> 50.55505371 | T33: =B275 -> 51.3705101 | U33: =B276 -> 50.34731674 | W33: 50.47276624 | X33: 50.67359352 | Y33: 50.30571238 | AA33: 50.84330368 | AB33: 48.18646495 | AC33: 50.47934532 | AD33: 51.00180531 | AE33: 52.11130651 | AG33: 1943 | AH33: ='Compile Data'!C265 -> 51.54486847 | AI33: ='Compile Data'!C266 -> 53.37274933 | AJ33: ='Compile Data'!C267 -> 50.94043732 | AK33: ='Compile Data'!C268 -> 47.50727463 | AL33: ='Compile Data'!C269 -> 46.10104752 | AM33: ='Compile Data'!C270 -> 47.170784 | AN33: ='Compile Data'!C271 -> 51.30355835 | AO33: ='Compile Data'!C272 -> 51.70898056 | AP33: ='Compile Data'!C273 -> 51.83110809 | AQ33: ='Compile Data'!C274 -> 50.56306076 | AR33: ='Compile Data'!C275 -> 51.36896515 | AS33: ='Compile Data'!C276 -> 50.35641098 | AU33: 50.47498417 | AV33: 50.67538834 | AW33: 50.31410376 | AY33: 50.84133244 | AZ33: 48.18291982 | BA33: 50.50360775 | BB33: 51.02988625 | BC33: 52.09816996 | BE33: 1943 | BF33: ='Compile Data'!D265 -> 51.52423477 | BG33: ='Compile Data'!D266 -> 53.35463715 | BH33: ='Compile Data'!D267 -> 50.94670105 | BI33: ='Compile Data'!D268 -> 47.51334381 | BJ33: ='Compile Data'!D269 -> 46.11561584 | BK33: ='Compile Data'!D270 -> 47.17205811 | BL33: ='Compile Data'!D271 -> 51.30237198 | BM33: ='Compile Data'!D272 -> 51.70777512 | BN33: ='Compile Data'!D273 -> 51.83653259 | BO33: ='Compile Data'!D274 -> 50.55802536 | BP33: ='Compile Data'!D275 -> 51.36871719 | BQ33: ='Compile Data'!D276 -> 50.35111618 | BS33: 50.47629642 | BT33: 50.6745793 | BU33: 50.3125941 | BW33: 50.83472919 | BX33: 48.1918869 | BY33: 50.50468445 | BZ33: 51.02859783 | CA33: 52.0981013 | CC33: 1943 | CD33: ='Compile Data'!E265 -> 51.53237915 | CE33: ='Compile Data'!E266 -> 53.36683655 | CF33: ='Compile Data'!E267 -> 50.93257141 | CG33: ='Compile Data'!E268 -> 47.50060272 | CH33: ='Compile Data'!E269 -> 46.10216904 | CI33: ='Compile Data'!E270 -> 47.16756058 | CJ33: ='Compile Data'!E271 -> 51.30011749 | CK33: ='Compile Data'!E272 -> 51.70567703 | CL33: ='Compile Data'!E273 -> 51.83380508 | CM33: ='Compile Data'!E274 -> 50.55649185 | CN33: ='Compile Data'!E275 -> 51.36602783 | CO33: ='Compile Data'!E276 -> 50.34869766 | CQ33: 50.47241433 | CR33: 50.67279148 | CS33: 50.30941137 | CU33: 50.83309746 | CV33: 48.17844772 | CW33: 50.50179005 | CX33: 51.02625561 | CY33: 52.0966657 | DA33: 1943 | DB33: ='Compile Data'!F265 -> 51.53567886 | DC33: ='Compile Data'!F266 -> 53.3689537 | DD33: ='Compile Data'!F267 -> 50.93351746 | DE33: ='Compile Data'!F268 -> 47.50159073 | DF33: ='Compile Data'!F269 -> 46.09930801 | DG33: ='Compile Data'!F270 -> 47.16999435 | DH33: ='Compile Data'!F271 -> 51.30122757 | DI33: ='Compile Data'!F272 -> 51.70621872 | DJ33: ='Compile Data'!F273 -> 51.83519363 | DK33: ='Compile Data'!F274 -> 50.55802155 | DL33: ='Compile Data'!F275 -> 51.36671066 | DM33: ='Compile Data'!F276 -> 50.35003281 | DO33: 50.47875214 | DP33: 50.67835712 | DQ33: 50.31053734 | DS33: 50.83493519 | DT33: 48.17813873 | DU33: 50.50315857 | DV33: 51.02748966 | DW33: 52.11608124 | DY33: 1943 | DZ33: ='Compile Data'!E265 -> 51.53237915 | EA33: ='Compile Data'!E266 -> 53.36683655 | EB33: ='Compile Data'!E267 -> 50.93257141 | EC33: ='Compile Data'!E268 -> 47.50060272 | ED33: ='Compile Data'!E269 -> 46.10216904 | EE33: ='Compile Data'!E270 -> 47.16756058 | EF33: ='Compile Data'!E271 -> 51.30011749 | EG33: ='Compile Data'!E272 -> 51.70567703 | EH33: ='Compile Data'!E273 -> 51.83380508 | EI33: ='Compile Data'!E274 -> 50.55649185 | EJ33: ='Compile Data'!E275 -> 51.36602783 | EK33: ='Compile Data'!E276 -> 50.34869766 | EM33: 50.47241433 | EN33: 50.67279148 | EO33: 50.30941137 | EQ33: 50.83309746 | ER33: 48.17844772 | ES33: 50.50179005 | ET33: 51.02625561 | EU33: 52.0966657
A34: 1923-07-31 | B34: =IF(INDIRECT(CONCATENATE("'",B$1,"'!",B$4,(YEAR($A34)-1921)*12+MONTH($A34)+3+IF(ISNUMBER(FIND("PRV",B$6)),1,0)))=-901,NA(),INDIRECT(CONCATENATE("'",B$1,"'!",B$4,(YEAR($A34)-1921)*12+MONTH($A34)+3+IF(ISNUMBER(FIND("PRV",B$6)),1,0)))*IF(AND(B$3>0,TRIM(B$9)="CFS"),Conv_Flags!$C34,1)) -> 51.78261185 | C34: =IF(INDIRECT(CONCATENATE("'",C$1,"'!",C$4,(YEAR($A34)-1921)*12+MONTH($A34)+3+IF(ISNUMBER(FIND("PRV",C$6)),1,0)))=-901,NA(),INDIRECT(CONCATENATE("'",C$1,"'!",C$4,(YEAR($A34)-1921)*12+MONTH($A34)+3+IF(ISNUMBER(FIND("PRV",C$6)),1,0)))*IF(AND(C$3>0,TRIM(C$9)="CFS"),Conv_Flags!$C34,1)) -> 51.80054092 | D34: =IF(INDIRECT(CONCATENATE("'",D$1,"'!",D$4,(YEAR($A34)-1921)*12+MONTH($A34)+3+IF(ISNUMBER(FIND("PRV",D$6)),1,0)))=-901,NA(),INDIRECT(CONCATENATE("'",D$1,"'!",D$4,(YEAR($A34)-1921)*12+MONTH($A34)+3+IF(ISNUMBER(FIND("PRV",D$6)),1,0)))*IF(AND(D$3>0,TRIM(D$9)="CFS"),Conv_Flags!$C34,1)) -> 51.6065712 | E34: =IF(INDIRECT(CONCATENATE("'",E$1,"'!",E$4,(YEAR($A34)-1921)*12+MONTH($A34)+3+IF(ISNUMBER(FIND("PRV",E$6)),1,0)))=-901,NA(),INDIRECT(CONCATENATE("'",E$1,"'!",E$4,(YEAR($A34)-1921)*12+MONTH($A34)+3+IF(ISNUMBER(FIND("PRV",E$6)),1,0)))*IF(AND(E$3>0,TRIM(E$9)="CFS"),Conv_Flags!$C34,1)) -> 51.94973373 | F34: =IF(INDIRECT(CONCATENATE("'",F$1,"'!",F$4,(YEAR($A34)-1921)*12+MONTH($A34)+3+IF(ISNUMBER(FIND("PRV",F$6)),1,0)))=-901,NA(),INDIRECT(CONCATENATE("'",F$1,"'!",F$4,(YEAR($A34)-1921)*12+MONTH($A34)+3+IF(ISNUMBER(FIND("PRV",F$6)),1,0)))*IF(AND(F$3>0,TRIM(F$9)="CFS"),Conv_Flags!$C34,1)) -> 52.26342773 | I34: 1944 | J34: =B277 -> 51.91664124 | K34: =B278 -> 54.06996155 | L34: =B279 -> 51.88085556 | M34: =B280 -> 48.73064804 | N34: =B281 -> 47.29475403 | O34: =B282 -> 49.00270462 | P34: =B283 -> 52.4175148 | Q34: =B284 -> 54.26779938 | R34: =B285 -> 51.84736633 | S34: =B286 -> 51.50880432 | T34: =B287 -> 52.10624313 | U34: =B288 -> 52.74274445 | W34: 51.33767955 | X34: 51.21732299 | Y34: 51.48216979 | AA34: 51.6495266 | AB34: 49.30208588 | AC34: 51.88384628 | AD34: 52.05128956 | AE34: 52.83399455 | AG34: 1944 | AH34: ='Compile Data'!C277 -> 51.92137527 | AI34: ='Compile Data'!C278 -> 54.01672363 | AJ34: ='Compile Data'!C279 -> 51.85052109 | AK34: ='Compile Data'!C280 -> 48.71537018 | AL34: ='Compile Data'!C281 -> 47.29780197 | AM34: ='Compile Data'!C282 -> 49.00828934 | AN34: ='Compile Data'!C283 -> 52.96438599 | AO34: ='Compile Data'!C284 -> 54.60519028 | AP34: ='Compile Data'!C285 -> 52.05825424 | AQ34: ='Compile Data'!C286 -> 51.47969818 | AR34: ='Compile Data'!C287 -> 52.12253189 | AS34: ='Compile Data'!C288 -> 52.72269058 | AU34: 51.41216469 | AV34: 51.28577995 | AW34: 51.56356939 | AY34: 51.62599754 | AZ34: 49.28789775 | BA34: 52.15902996 | BB34: 52.09579372 | BC34: 52.81195831 | BE34: 1944 | BF34: ='Compile Data'!D277 -> 51.92605591 | BG34: ='Compile Data'!D278 -> 54.01713181 | BH34: ='Compile Data'!D279 -> 51.8468132 | BI34: ='Compile Data'!D280 -> 48.71243286 | BJ34: ='Compile Data'!D281 -> 47.29592133 | BK34: ='Compile Data'!D282 -> 49.00801849 | BL34: ='Compile Data'!D283 -> 52.94470596 | BM34: ='Compile Data'!D284 -> 54.5994873 | BN34: ='Compile Data'!D285 -> 52.21578598 | BO34: ='Compile Data'!D286 -> 51.7650032 | BP34: ='Compile Data'!D287 -> 52.32735062 | BQ34: ='Compile Data'!D288 -> 52.76067352 | BS34: 51.4235719 | BT34: 51.28000132 | BU34: 51.61828168 | BW34: 51.62560844 | BX34: 49.2850558 | BY34: 52.19199944 | BZ34: 52.26720333 | CA34: 52.77699407 | CC34: 1944 | CD34: ='Compile Data'!E277 -> 51.92415237 | CE34: ='Compile Data'!E278 -> 54.01714706 | CF34: ='Compile Data'!E279 -> 51.84652328 | CG34: ='Compile Data'!E280 -> 48.71224213 | CH34: ='Compile Data'!E281 -> 47.29505539 | CI34: ='Compile Data'!E282 -> 49.00671768 | CJ34: ='Compile Data'!E283 -> 52.96192551 | CK34: ='Compile Data'!E284 -> 54.67961121 | CL34: ='Compile Data'!E285 -> 52.18582916 | CM34: ='Compile Data'!E286 -> 51.82227325 | CN34: ='Compile Data'!E287 -> 52.44520187 | CO34: ='Compile Data'!E288 -> 52.76528168 | CQ34: 51.43357436 | CR34: 51.28674984 | CS34: 51.63849672 | CU34: 51.62501621 | CV34: 49.28460693 | CW34: 52.20852089 | CX34: 52.30464649 | CY34: 52.76631546 | DA34: 1944 | DB34: ='Compile Data'!F277 -> 51.92522812 | DC34: ='Compile Data'!F278 -> 54.07298279 | DD34: ='Compile Data'!F279 -> 51.85851669 | DE34: ='Compile Data'!F280 -> 48.71076584 | DF34: ='Compile Data'!F281 -> 47.28539276 | DG34: ='Compile Data'!F282 -> 48.99600983 | DH34: ='Compile Data'!F283 -> 52.62987518 | DI34: ='Compile Data'!F284 -> 55.17489243 | DJ34: ='Compile Data'!F285 -> 52.51799774 | DK34: ='Compile Data'!F286 -> 51.83747482 | DL34: ='Compile Data'!F287 -> 51.90192413 | DM34: ='Compile Data'!F288 -> 52.24640274 | DO34: 51.42792575 | DP34: 51.29157162 | DQ34: 51.59645526 | DS34: 51.64187336 | DT34: 49.28489176 | DU34: 52.32969379 | DV34: 52.12594986 | DW34: 52.64218394 | DY34: 1944 | DZ34: ='Compile Data'!E277 -> 51.92415237 | EA34: ='Compile Data'!E278 -> 54.01714706 | EB34: ='Compile Data'!E279 -> 51.84652328 | EC34: ='Compile Data'!E280 -> 48.71224213 | ED34: ='Compile Data'!E281 -> 47.29505539 | EE34: ='Compile Data'!E282 -> 49.00671768 | EF34: ='Compile Data'!E283 -> 52.96192551 | EG34: ='Compile Data'!E284 -> 54.67961121 | EH34: ='Compile Data'!E285 -> 52.18582916 | EI34: ='Compile Data'!E286 -> 51.82227325 | EJ34: ='Compile Data'!E287 -> 52.44520187 | EK34: ='Compile Data'!E288 -> 52.76528168 | EM34: 51.43357436 | EN34: 51.28674984 | EO34: 51.63849672 | EQ34: 51.62501621 | ER34: 49.28460693 | ES34: 52.20852089 | ET34: 52.30464649 | EU34: 52.76631546
A35: 1923-08-31 | B35: =IF(INDIRECT(CONCATENATE("'",B$1,"'!",B$4,(YEAR($A35)-1921)*12+MONTH($A35)+3+IF(ISNUMBER(FIND("PRV",B$6)),1,0)))=-901,NA(),INDIRECT(CONCATENATE("'",B$1,"'!",B$4,(YEAR($A35)-1921)*12+MONTH($A35)+3+IF(ISNUMBER(FIND("PRV",B$6)),1,0)))*IF(AND(B$3>0,TRIM(B$9)="CFS"),Conv_Flags!$C35,1)) -> 51.64431763 | C35: =IF(INDIRECT(CONCATENATE("'",C$1,"'!",C$4,(YEAR($A35)-1921)*12+MONTH($A35)+3+IF(ISNUMBER(FIND("PRV",C$6)),1,0)))=-901,NA(),INDIRECT(CONCATENATE("'",C$1,"'!",C$4,(YEAR($A35)-1921)*12+MONTH($A35)+3+IF(ISNUMBER(FIND("PRV",C$6)),1,0)))*IF(AND(C$3>0,TRIM(C$9)="CFS"),Conv_Flags!$C35,1)) -> 51.76874924 | D35: =IF(INDIRECT(CONCATENATE("'",D$1,"'!",D$4,(YEAR($A35)-1921)*12+MONTH($A35)+3+IF(ISNUMBER(FIND("PRV",D$6)),1,0)))=-901,NA(),INDIRECT(CONCATENATE("'",D$1,"'!",D$4,(YEAR($A35)-1921)*12+MONTH($A35)+3+IF(ISNUMBER(FIND("PRV",D$6)),1,0)))*IF(AND(D$3>0,TRIM(D$9)="CFS"),Conv_Flags!$C35,1)) -> 51.77462769 | E35: =IF(INDIRECT(CONCATENATE("'",E$1,"'!",E$4,(YEAR($A35)-1921)*12+MONTH($A35)+3+IF(ISNUMBER(FIND("PRV",E$6)),1,0)))=-901,NA(),INDIRECT(CONCATENATE("'",E$1,"'!",E$4,(YEAR($A35)-1921)*12+MONTH($A35)+3+IF(ISNUMBER(FIND("PRV",E$6)),1,0)))*IF(AND(E$3>0,TRIM(E$9)="CFS"),Conv_Flags!$C35,1)) -> 51.70611191 | F35: =IF(INDIRECT(CONCATENATE("'",F$1,"'!",F$4,(YEAR($A35)-1921)*12+MONTH($A35)+3+IF(ISNUMBER(FIND("PRV",F$6)),1,0)))=-901,NA(),INDIRECT(CONCATENATE("'",F$1,"'!",F$4,(YEAR($A35)-1921)*12+MONTH($A35)+3+IF(ISNUMBER(FIND("PRV",F$6)),1,0)))*IF(AND(F$3>0,TRIM(F$9)="CFS"),Conv_Flags!$C35,1)) -> 51.71063614 | I35: 1945 | J35: =B289 -> 52.57577133 | K35: =B290 -> 53.18346786 | L35: =B291 -> 50.37433624 | M35: =B292 -> 47.6603775 | N35: =B293 -> 46.92074585 | O35: =B294 -> 48.12593079 | P35: =B295 -> 51.86552429 | Q35: =B296 -> 51.45039749 | R35: =B297 -> 51.8312149 | S35: =B298 -> 51.20487213 | T35: =B299 -> 51.74822235 | U35: =B300 -> 51.83347321 | W35: 50.50138092 | X35: 50.08882236 | Y35: 50.7311945 | AA35: 50.94848824 | AB35: 48.31848653 | AC35: 50.81826687 | AD35: 51.65444565 | AE35: 52.28099823 | AG35: 1945 | AH35: ='Compile Data'!C289 -> 52.55222321 | AI35: ='Compile Data'!C290 -> 53.16096115 | AJ35: ='Compile Data'!C291 -> 50.25857925 | AK35: ='Compile Data'!C292 -> 47.62852478 | AL35: ='Compile Data'!C293 -> 46.86803055 | AM35: ='Compile Data'!C294 -> 48.14307022 | AN35: ='Compile Data'!C295 -> 51.87763977 | AO35: ='Compile Data'!C296 -> 51.45604324 | AP35: ='Compile Data'!C297 -> 52.06805801 | AQ35: ='Compile Data'!C298 -> 51.14234924 | AR35: ='Compile Data'!C299 -> 51.75722885 | AS35: ='Compile Data'!C300 -> 51.83765793 | AU35: 50.5073452 | AV35: 50.10066636 | AW35: 50.72919718 | AY35: 50.9000721 | AZ35: 48.25171153 | BA35: 50.88620281 | BB35: 51.70132351 | BC35: 52.26258469 | BE35: 1945 | BF35: ='Compile Data'!D289 -> 52.51205826 | BG35: ='Compile Data'!D290 -> 53.05825043 | BH35: ='Compile Data'!D291 -> 49.8831749 | BI35: ='Compile Data'!D292 -> 47.48815918 | BJ35: ='Compile Data'!D293 -> 46.79734802 | BK35: ='Compile Data'!D294 -> 48.1437645 | BL35: ='Compile Data'!D295 -> 51.87553024 | BM35: ='Compile Data'!D296 -> 51.44871521 | BN35: ='Compile Data'!D297 -> 52.51224518 | BO35: ='Compile Data'!D298 -> 51.18953705 | BP35: ='Compile Data'!D299 -> 51.74842072 | BQ35: ='Compile Data'!D300 -> 51.6214447 | BS35: 50.49574725 | BT35: 50.10444736 | BU35: 50.68988736 | BW35: 50.73541069 | BX35: 48.05622737 | BY35: 50.99506378 | BZ35: 51.76791191 | CA35: 52.1343867 | CC35: 1945 | CD35: ='Compile Data'!E289 -> 52.52309036 | CE35: ='Compile Data'!E290 -> 53.01057434 | CF35: ='Compile Data'!E291 -> 49.79508972 | CG35: ='Compile Data'!E292 -> 47.46958923 | CH35: ='Compile Data'!E293 -> 46.77581406 | CI35: ='Compile Data'!E294 -> 48.14450073 | CJ35: ='Compile Data'!E295 -> 51.87894058 | CK35: ='Compile Data'!E296 -> 51.44471359 | CL35: ='Compile Data'!E297 -> 52.51043701 | CM35: ='Compile Data'!E298 -> 51.30210876 | CN35: ='Compile Data'!E299 -> 51.74010086 | CO35: ='Compile Data'!E300 -> 51.26187897 | CQ35: 50.47318776 | CR35: 50.08877436 | CS35: 50.65473652 | CU35: 50.69958591 | CV35: 48.01349767 | CW35: 50.99464798 | CX35: 51.7036314 | CY35: 52.01868693 | DA35: 1945 | DB35: ='Compile Data'!F289 -> 52.45282364 | DC35: ='Compile Data'!F290 -> 53.22732544 | DD35: ='Compile Data'!F291 -> 50.1542244 | DE35: ='Compile Data'!F292 -> 47.5632782 | DF35: ='Compile Data'!F293 -> 46.79663086 | DG35: ='Compile Data'!F294 -> 48.13119507 | DH35: ='Compile Data'!F295 -> 51.86575699 | DI35: ='Compile Data'!F296 -> 51.43231964 | DJ35: ='Compile Data'!F297 -> 52.30476379 | DK35: ='Compile Data'!F298 -> 51.44696045 | DL35: ='Compile Data'!F299 -> 51.81410217 | DM35: ='Compile Data'!F300 -> 50.9408989 | DO35: 50.46085835 | DP35: 50.06530921 | DQ35: 50.6775233 | DS35: 50.84941292 | DT35: 48.17137782 | DU35: 50.93350887 | DV35: 51.62668133 | DW35: 51.93774414 | DY35: 1945 | DZ35: ='Compile Data'!E289 -> 52.52309036 | EA35: ='Compile Data'!E290 -> 53.01057434 | EB35: ='Compile Data'!E291 -> 49.79508972 | EC35: ='Compile Data'!E292 -> 47.46958923 | ED35: ='Compile Data'!E293 -> 46.77581406 | EE35: ='Compile Data'!E294 -> 48.14450073 | EF35: ='Compile Data'!E295 -> 51.87894058 | EG35: ='Compile Data'!E296 -> 51.44471359 | EH35: ='Compile Data'!E297 -> 52.51043701 | EI35: ='Compile Data'!E298 -> 51.30210876 | EJ35: ='Compile Data'!E299 -> 51.74010086 | EK35: ='Compile Data'!E300 -> 51.26187897 | EM35: 50.47318776 | EN35: 50.08877436 | EO35: 50.65473652 | EQ35: 50.69958591 | ER35: 48.01349767 | ES35: 50.99464798 | ET35: 51.7036314 | EU35: 52.01868693
A36: 1923-09-30 | B36: =IF(INDIRECT(CONCATENATE("'",B$1,"'!",B$4,(YEAR($A36)-1921)*12+MONTH($A36)+3+IF(ISNUMBER(FIND("PRV",B$6)),1,0)))=-901,NA(),INDIRECT(CONCATENATE("'",B$1,"'!",B$4,(YEAR($A36)-1921)*12+MONTH($A36)+3+IF(ISNUMBER(FIND("PRV",B$6)),1,0)))*IF(AND(B$3>0,TRIM(B$9)="CFS"),Conv_Flags!$C36,1)) -> 52.60756683 | C36: =IF(INDIRECT(CONCATENATE("'",C$1,"'!",C$4,(YEAR($A36)-1921)*12+MONTH($A36)+3+IF(ISNUMBER(FIND("PRV",C$6)),1,0)))=-901,NA(),INDIRECT(CONCATENATE("'",C$1,"'!",C$4,(YEAR($A36)-1921)*12+MONTH($A36)+3+IF(ISNUMBER(FIND("PRV",C$6)),1,0)))*IF(AND(C$3>0,TRIM(C$9)="CFS"),Conv_Flags!$C36,1)) -> 52.50654602 | D36: =IF(INDIRECT(CONCATENATE("'",D$1,"'!",D$4,(YEAR($A36)-1921)*12+MONTH($A36)+3+IF(ISNUMBER(FIND("PRV",D$6)),1,0)))=-901,NA(),INDIRECT(CONCATENATE("'",D$1,"'!",D$4,(YEAR($A36)-1921)*12+MONTH($A36)+3+IF(ISNUMBER(FIND("PRV",D$6)),1,0)))*IF(AND(D$3>0,TRIM(D$9)="CFS"),Conv_Flags!$C36,1)) -> 52.32866669 | E36: =IF(INDIRECT(CONCATENATE("'",E$1,"'!",E$4,(YEAR($A36)-1921)*12+MONTH($A36)+3+IF(ISNUMBER(FIND("PRV",E$6)),1,0)))=-901,NA(),INDIRECT(CONCATENATE("'",E$1,"'!",E$4,(YEAR($A36)-1921)*12+MONTH($A36)+3+IF(ISNUMBER(FIND("PRV",E$6)),1,0)))*IF(AND(E$3>0,TRIM(E$9)="CFS"),Conv_Flags!$C36,1)) -> 52.1558075 | F36: =IF(INDIRECT(CONCATENATE("'",F$1,"'!",F$4,(YEAR($A36)-1921)*12+MONTH($A36)+3+IF(ISNUMBER(FIND("PRV",F$6)),1,0)))=-901,NA(),INDIRECT(CONCATENATE("'",F$1,"'!",F$4,(YEAR($A36)-1921)*12+MONTH($A36)+3+IF(ISNUMBER(FIND("PRV",F$6)),1,0)))*IF(AND(F$3>0,TRIM(F$9)="CFS"),Conv_Flags!$C36,1)) -> 52.59682846 | I36: 1946 | J36: =B301 -> 52.13167953 | K36: =B302 -> 52.87784195 | L36: =B303 -> 48.36629105 | M36: =B304 -> 44.91511536 | N36: =B305 -> 44.71530533 | O36: =B306 -> 48.11148071 | P36: =B307 -> 51.15390015 | Q36: =B308 -> 51.57892227 | R36: =B309 -> 51.22759247 | S36: =B310 -> 50.80492783 | T36: =B311 -> 51.44062042 | U36: =B312 -> 51.79418182 | W36: 49.94716899 | X36: 50.27871609 | Y36: 49.92648824 | AA36: 49.57273197 | AB36: 45.99890391 | AC36: 50.5179739 | AD36: 51.31683064 | AE36: 51.98482513 | AG36: 1946 | AH36: ='Compile Data'!C301 -> 52.12518311 | AI36: ='Compile Data'!C302 -> 52.82491302 | AJ36: ='Compile Data'!C303 -> 48.35944366 | AK36: ='Compile Data'!C304 -> 44.90935898 | AL36: ='Compile Data'!C305 -> 44.70705032 | AM36: ='Compile Data'!C306 -> 48.10501099 | AN36: ='Compile Data'!C307 -> 51.13858795 | AO36: ='Compile Data'!C308 -> 51.65142059 | AP36: ='Compile Data'!C309 -> 51.2539444 | AQ36: ='Compile Data'!C310 -> 50.80191422 | AR36: ='Compile Data'!C311 -> 51.44094849 | AS36: ='Compile Data'!C312 -> 51.8177681 | AU36: 49.9370114 | AV36: 50.27231948 | AW36: 49.92796199 | AY36: 49.55472469 | AZ36: 45.99195099 | BA36: 50.53724098 | BB36: 51.3286438 | BC36: 51.94050598 | BE36: 1946 | BF36: ='Compile Data'!D301 -> 51.96100616 | BG36: ='Compile Data'!D302 -> 52.82070923 | BH36: ='Compile Data'!D303 -> 48.34208679 | BI36: ='Compile Data'!D304 -> 44.89453125 | BJ36: ='Compile Data'!D305 -> 44.69537735 | BK36: ='Compile Data'!D306 -> 48.07723236 | BL36: ='Compile Data'!D307 -> 51.13278198 | BM36: ='Compile Data'!D308 -> 51.64282608 | BN36: ='Compile Data'!D309 -> 51.34327698 | BO36: ='Compile Data'!D310 -> 50.77888489 | BP36: ='Compile Data'!D311 -> 51.42998886 | BQ36: ='Compile Data'!D312 -> 51.81990433 | BS36: 49.9204464 | BT36: 50.25644811 | BU36: 49.91155052 | BW36: 49.50458336 | BX36: 45.9773318 | BY36: 50.54902935 | BZ36: 51.34301376 | CA36: 51.89837392 | CC36: 1946 | CD36: ='Compile Data'!E301 -> 51.95782471 | CE36: ='Compile Data'!E302 -> 52.83635712 | CF36: ='Compile Data'!E303 -> 48.35598755 | CG36: ='Compile Data'!E304 -> 44.91253281 | CH36: ='Compile Data'!E305 -> 44.71990967 | CI36: ='Compile Data'!E306 -> 48.11389923 | CJ36: ='Compile Data'!E307 -> 51.1540184 | CK36: ='Compile Data'!E308 -> 51.65817642 | CL36: ='Compile Data'!E309 -> 51.34440231 | CM36: ='Compile Data'!E310 -> 50.77623749 | CN36: ='Compile Data'!E311 -> 51.4288063 | CO36: ='Compile Data'!E312 -> 51.8212738 | CQ36: 49.92955812 | CR36: 50.26156425 | CS36: 49.92328548 | CU36: 49.51567554 | CV36: 45.99614334 | CW36: 50.56762409 | CX36: 51.34267998 | CY36: 51.89874395 | DA36: 1946 | DB36: ='Compile Data'!F301 -> 52.02721405 | DC36: ='Compile Data'!F302 -> 52.84511948 | DD36: ='Compile Data'!F303 -> 48.36206055 | DE36: ='Compile Data'!F304 -> 44.90351868 | DF36: ='Compile Data'!F305 -> 44.70980072 | DG36: ='Compile Data'!F306 -> 48.10670471 | DH36: ='Compile Data'!F307 -> 51.1502533 | DI36: ='Compile Data'!F308 -> 51.6545639 | DJ36: ='Compile Data'!F309 -> 51.64387512 | DK36: ='Compile Data'!F310 -> 50.79934692 | DL36: ='Compile Data'!F311 -> 51.37483978 | DM36: ='Compile Data'!F312 -> 51.81628036 | DO36: 49.94248676 | DP36: 50.27156353 | DQ36: 49.9494648 | DS36: 49.53447819 | DT36: 45.99179331 | DU36: 50.63884926 | DV36: 51.40858555 | DW36: 51.9026858 | DY36: 1946 | DZ36: ='Compile Data'!E301 -> 51.95782471 | EA36: ='Compile Data'!E302 -> 52.83635712 | EB36: ='Compile Data'!E303 -> 48.35598755 | EC36: ='Compile Data'!E304 -> 44.91253281 | ED36: ='Compile Data'!E305 -> 44.71990967 | EE36: ='Compile Data'!E306 -> 48.11389923 | EF36: ='Compile Data'!E307 -> 51.1540184 | EG36: ='Compile Data'!E308 -> 51.65817642 | EH36: ='Compile Data'!E309 -> 51.34440231 | EI36: ='Compile Data'!E310 -> 50.77623749 | EJ36: ='Compile Data'!E311 -> 51.4288063 | EK36: ='Compile Data'!E312 -> 51.8212738 | EM36: 49.92955812 | EN36: 50.26156425 | EO36: 49.92328548 | EQ36: 49.51567554 | ER36: 45.99614334 | ES36: 50.56762409 | ET36: 51.34267998 | EU36: 51.89874395
A37: 1923-10-31 | B37: =IF(INDIRECT(CONCATENATE("'",B$1,"'!",B$4,(YEAR($A37)-1921)*12+MONTH($A37)+3+IF(ISNUMBER(FIND("PRV",B$6)),1,0)))=-901,NA(),INDIRECT(CONCATENATE("'",B$1,"'!",B$4,(YEAR($A37)-1921)*12+MONTH($A37)+3+IF(ISNUMBER(FIND("PRV",B$6)),1,0)))*IF(AND(B$3>0,TRIM(B$9)="CFS"),Conv_Flags!$C37,1)) -> 52.01070023 | C37: =IF(INDIRECT(CONCATENATE("'",C$1,"'!",C$4,(YEAR($A37)-1921)*12+MONTH($A37)+3+IF(ISNUMBER(FIND("PRV",C$6)),1,0)))=-901,NA(),INDIRECT(CONCATENATE("'",C$1,"'!",C$4,(YEAR($A37)-1921)*12+MONTH($A37)+3+IF(ISNUMBER(FIND("PRV",C$6)),1,0)))*IF(AND(C$3>0,TRIM(C$9)="CFS"),Conv_Flags!$C37,1)) -> 51.9559021 | D37: =IF(INDIRECT(CONCATENATE("'",D$1,"'!",D$4,(YEAR($A37)-1921)*12+MONTH($A37)+3+IF(ISNUMBER(FIND("PRV",D$6)),1,0)))=-901,NA(),INDIRECT(CONCATENATE("'",D$1,"'!",D$4,(YEAR($A37)-1921)*12+MONTH($A37)+3+IF(ISNUMBER(FIND("PRV",D$6)),1,0)))*IF(AND(D$3>0,TRIM(D$9)="CFS"),Conv_Flags!$C37,1)) -> 52.02483368 | E37: =IF(INDIRECT(CONCATENATE("'",E$1,"'!",E$4,(YEAR($A37)-1921)*12+MONTH($A37)+3+IF(ISNUMBER(FIND("PRV",E$6)),1,0)))=-901,NA(),INDIRECT(CONCATENATE("'",E$1,"'!",E$4,(YEAR($A37)-1921)*12+MONTH($A37)+3+IF(ISNUMBER(FIND("PRV",E$6)),1,0)))*IF(AND(E$3>0,TRIM(E$9)="CFS"),Conv_Flags!$C37,1)) -> 51.99596405 | F37: =IF(INDIRECT(CONCATENATE("'",F$1,"'!",F$4,(YEAR($A37)-1921)*12+MONTH($A37)+3+IF(ISNUMBER(FIND("PRV",F$6)),1,0)))=-901,NA(),INDIRECT(CONCATENATE("'",F$1,"'!",F$4,(YEAR($A37)-1921)*12+MONTH($A37)+3+IF(ISNUMBER(FIND("PRV",F$6)),1,0)))*IF(AND(F$3>0,TRIM(F$9)="CFS"),Conv_Flags!$C37,1)) -> 52.07552719 | I37: 1947 | J37: =B313 -> 51.71201324 | K37: =B314 -> 52.44828033 | L37: =B315 -> 49.4636879 | M37: =B316 -> 46.66556931 | N37: =B317 -> 46.9434166 | O37: =B318 -> 49.42915726 | P37: =B319 -> 54.31062698 | Q37: =B320 -> 52.67901611 | R37: =B321 -> 51.27440262 | S37: =B322 -> 51.1212883 | T37: =B323 -> 52.09680176 | U37: =B324 -> 52.8417511 | W37: 51.1694142 | X37: 51.16085593 | Y37: 50.91550096 | AA37: 50.0723877 | AB37: 47.69089127 | AC37: 51.92330074 | AD37: 51.83356094 | AE37: 52.91858673 | AG37: 1947 | AH37: ='Compile Data'!C313 -> 51.71572495 | AI37: ='Compile Data'!C314 -> 52.2880249 | AJ37: ='Compile Data'!C315 -> 49.41438293 | AK37: ='Compile Data'!C316 -> 46.68512726 | AL37: ='Compile Data'!C317 -> 46.95497894 | AM37: ='Compile Data'!C318 -> 49.46010208 | AN37: ='Compile Data'!C319 -> 54.30123901 | AO37: ='Compile Data'!C320 -> 52.65670776 | AP37: ='Compile Data'!C321 -> 51.25003815 | AQ37: ='Compile Data'!C322 -> 51.10580826 | AR37: ='Compile Data'!C323 -> 52.05346298 | AS37: ='Compile Data'!C324 -> 52.8620224 | AU37: 51.17323685 | AV37: 51.16416804 | AW37: 50.89563497 | AY37: 50.02581501 | AZ37: 47.68482971 | BA37: 51.91702175 | BB37: 51.81783295 | BC37: 52.92924118 | BE37: 1947 | BF37: ='Compile Data'!D313 -> 51.68418503 | BG37: ='Compile Data'!D314 -> 52.19103241 | BH37: ='Compile Data'!D315 -> 49.35533524 | BI37: ='Compile Data'!D316 -> 46.67647171 | BJ37: ='Compile Data'!D317 -> 46.94545746 | BK37: ='Compile Data'!D318 -> 49.48760986 | BL37: ='Compile Data'!D319 -> 54.25359726 | BM37: ='Compile Data'!D320 -> 52.60747528 | BN37: ='Compile Data'!D321 -> 51.24050522 | BO37: ='Compile Data'!D322 -> 51.13486862 | BP37: ='Compile Data'!D323 -> 52.04981995 | BQ37: ='Compile Data'!D324 -> 52.82455444 | BS37: 51.15656726 | BT37: 51.14616871 | BU37: 50.87090937 | BW37: 49.9767561 | BX37: 47.65908813 | BY37: 51.89729691 | BZ37: 51.81243706 | CA37: 52.92045339 | CC37: 1947 | CD37: ='Compile Data'!E313 -> 51.68513107 | CE37: ='Compile Data'!E314 -> 52.18982697 | CF37: ='Compile Data'!E315 -> 49.35048294 | CG37: ='Compile Data'!E316 -> 46.6791687 | CH37: ='Compile Data'!E317 -> 46.93734741 | CI37: ='Compile Data'!E318 -> 49.50568008 | CJ37: ='Compile Data'!E319 -> 54.23976135 | CK37: ='Compile Data'!E320 -> 52.6551857 | CL37: ='Compile Data'!E321 -> 51.21118546 | CM37: ='Compile Data'!E322 -> 51.14464569 | CN37: ='Compile Data'!E323 -> 52.07368088 | CO37: ='Compile Data'!E324 -> 52.85452271 | CQ37: 51.15474383 | CR37: 51.14872615 | CS37: 50.87721825 | CU37: 49.97615242 | CV37: 47.65566635 | CW37: 51.90295315 | CX37: 51.82100868 | CY37: 52.90063349 | DA37: 1947 | DB37: ='Compile Data'!F313 -> 51.7141304 | DC37: ='Compile Data'!F314 -> 52.17764664 | DD37: ='Compile Data'!F315 -> 49.25888062 | DE37: ='Compile Data'!F316 -> 46.64034271 | DF37: ='Compile Data'!F317 -> 46.92189789 | DG37: ='Compile Data'!F318 -> 49.5213089 | DH37: ='Compile Data'!F319 -> 54.19822693 | DI37: ='Compile Data'!F320 -> 52.69416046 | DJ37: ='Compile Data'!F321 -> 51.18507767 | DK37: ='Compile Data'!F322 -> 51.13793564 | DL37: ='Compile Data'!F323 -> 52.08335114 | DM37: ='Compile Data'!F324 -> 52.89064407 | DO37: 51.14966329 | DP37: 51.14493974 | DQ37: 50.86863359 | DS37: 49.94775009 | DT37: 47.60704041 | DU37: 51.89969349 | DV37: 51.82425213 | DW37: 52.91352463 | DY37: 1947 | DZ37: ='Compile Data'!E313 -> 51.68513107 | EA37: ='Compile Data'!E314 -> 52.18982697 | EB37: ='Compile Data'!E315 -> 49.35048294 | EC37: ='Compile Data'!E316 -> 46.6791687 | ED37: ='Compile Data'!E317 -> 46.93734741 | EE37: ='Compile Data'!E318 -> 49.50568008 | EF37: ='Compile Data'!E319 -> 54.23976135 | EG37: ='Compile Data'!E320 -> 52.6551857 | EH37: ='Compile Data'!E321 -> 51.21118546 | EI37: ='Compile Data'!E322 -> 51.14464569 | EJ37: ='Compile Data'!E323 -> 52.07368088 | EK37: ='Compile Data'!E324 -> 52.85452271 | EM37: 51.15474383 | EN37: 51.14872615 | EO37: 50.87721825 | EQ37: 49.97615242 | ER37: 47.65566635 | ES37: 51.90295315 | ET37: 51.82100868 | EU37: 52.90063349
A38: 1923-11-30 | B38: =IF(INDIRECT(CONCATENATE("'",B$1,"'!",B$4,(YEAR($A38)-1921)*12+MONTH($A38)+3+IF(ISNUMBER(FIND("PRV",B$6)),1,0)))=-901,NA(),INDIRECT(CONCATENATE("'",B$1,"'!",B$4,(YEAR($A38)-1921)*12+MONTH($A38)+3+IF(ISNUMBER(FIND("PRV",B$6)),1,0)))*IF(AND(B$3>0,TRIM(B$9)="CFS"),Conv_Flags!$C38,1)) -> 54.31088257 | C38: =IF(INDIRECT(CONCATENATE("'",C$1,"'!",C$4,(YEAR($A38)-1921)*12+MONTH($A38)+3+IF(ISNUMBER(FIND("PRV",C$6)),1,0)))=-901,NA(),INDIRECT(CONCATENATE("'",C$1,"'!",C$4,(YEAR($A38)-1921)*12+MONTH($A38)+3+IF(ISNUMBER(FIND("PRV",C$6)),1,0)))*IF(AND(C$3>0,TRIM(C$9)="CFS"),Conv_Flags!$C38,1)) -> 54.32126236 | D38: =IF(INDIRECT(CONCATENATE("'",D$1,"'!",D$4,(YEAR($A38)-1921)*12+MONTH($A38)+3+IF(ISNUMBER(FIND("PRV",D$6)),1,0)))=-901,NA(),INDIRECT(CONCATENATE("'",D$1,"'!",D$4,(YEAR($A38)-1921)*12+MONTH($A38)+3+IF(ISNUMBER(FIND("PRV",D$6)),1,0)))*IF(AND(D$3>0,TRIM(D$9)="CFS"),Conv_Flags!$C38,1)) -> 54.26469803 | E38: =IF(INDIRECT(CONCATENATE("'",E$1,"'!",E$4,(YEAR($A38)-1921)*12+MONTH($A38)+3+IF(ISNUMBER(FIND("PRV",E$6)),1,0)))=-901,NA(),INDIRECT(CONCATENATE("'",E$1,"'!",E$4,(YEAR($A38)-1921)*12+MONTH($A38)+3+IF(ISNUMBER(FIND("PRV",E$6)),1,0)))*IF(AND(E$3>0,TRIM(E$9)="CFS"),Conv_Flags!$C38,1)) -> 54.26903534 | F38: =IF(INDIRECT(CONCATENATE("'",F$1,"'!",F$4,(YEAR($A38)-1921)*12+MONTH($A38)+3+IF(ISNUMBER(FIND("PRV",F$6)),1,0)))=-901,NA(),INDIRECT(CONCATENATE("'",F$1,"'!",F$4,(YEAR($A38)-1921)*12+MONTH($A38)+3+IF(ISNUMBER(FIND("PRV",F$6)),1,0)))*IF(AND(F$3>0,TRIM(F$9)="CFS"),Conv_Flags!$C38,1)) -> 54.31120682 | I38: 1948 | J38: =B325 -> 52.56122208 | K38: =B326 -> 53.35278702 | L38: =B327 -> 50.7569313 | M38: =B328 -> 47.50243759 | N38: =B329 -> 46.00384903 | O38: =B330 -> 47.54524612 | P38: =B331 -> 50.09928513 | Q38: =B332 -> 50.14082718 | R38: =B333 -> 51.80893326 | S38: =B334 -> 51.17169952 | T38: =B335 -> 51.73566437 | U38: =B336 -> 50.74880981 | W38: 50.29040941 | X38: 50.40528647 | Y38: 50.28564103 | AA38: 51.0433445 | AB38: 48.08773931 | AC38: 49.89857292 | AD38: 51.36627674 | AE38: 52.18552653 | AG38: 1948 | AH38: ='Compile Data'!C325 -> 52.54228973 | AI38: ='Compile Data'!C326 -> 53.38341141 | AJ38: ='Compile Data'!C327 -> 50.82365417 | AK38: ='Compile Data'!C328 -> 47.51340485 | AL38: ='Compile Data'!C329 -> 46.01787567 | AM38: ='Compile Data'!C330 -> 47.53873444 | AN38: ='Compile Data'!C331 -> 50.22221375 | AO38: ='Compile Data'!C332 -> 50.15551376 | AP38: ='Compile Data'!C333 -> 51.80598068 | AQ38: ='Compile Data'!C334 -> 51.22102737 | AR38: ='Compile Data'!C335 -> 51.72846985 | AS38: ='Compile Data'!C336 -> 50.40983582 | AU38: 50.30100346 | AV38: 50.41881847 | AW38: 50.28020096 | AY38: 51.06569004 | AZ38: 48.11831156 | BA38: 49.93061066 | BB38: 51.29132843 | BC38: 52.14593252 | BE38: 1948 | BF38: ='Compile Data'!D325 -> 52.56420135 | BG38: ='Compile Data'!D326 -> 53.37260437 | BH38: ='Compile Data'!D327 -> 50.72164154 | BI38: ='Compile Data'!D328 -> 47.48918915 | BJ38: ='Compile Data'!D329 -> 46.00795746 | BK38: ='Compile Data'!D330 -> 47.54844284 | BL38: ='Compile Data'!D331 -> 50.01687622 | BM38: ='Compile Data'!D332 -> 50.14490509 | BN38: ='Compile Data'!D333 -> 51.80619049 | BO38: ='Compile Data'!D334 -> 51.32083893 | BP38: ='Compile Data'!D335 -> 51.72971725 | BQ38: ='Compile Data'!D336 -> 50.40996933 | BS38: 50.26992321 | BT38: 50.3910977 | BU38: 50.2610445 | BW38: 51.0369091 | BX38: 48.07292938 | BY38: 49.87910366 | BZ38: 51.316679 | CA38: 52.06644567 | CC38: 1948 | CD38: ='Compile Data'!E325 -> 52.56333542 | CE38: ='Compile Data'!E326 -> 53.28404236 | CF38: ='Compile Data'!E327 -> 50.70837021 | CG38: ='Compile Data'!E328 -> 47.50034714 | CH38: ='Compile Data'!E329 -> 46.04395676 | CI38: ='Compile Data'!E330 -> 47.55849457 | CJ38: ='Compile Data'!E331 -> 49.92117691 | CK38: ='Compile Data'!E332 -> 50.13344193 | CL38: ='Compile Data'!E333 -> 51.81111526 | CM38: ='Compile Data'!E334 -> 51.37630844 | CN38: ='Compile Data'!E335 -> 51.6715889 | CO38: ='Compile Data'!E336 -> 50.39599228 | CQ38: 50.26454226 | CR38: 50.38046392 | CS38: 50.24734751 | CU38: 51.01402378 | CV38: 48.0842247 | CW38: 49.85605717 | CX38: 51.31375122 | CY38: 52.06349182 | DA38: 1948 | DB38: ='Compile Data'!F325 -> 52.57167435 | DC38: ='Compile Data'!F326 -> 53.27825546 | DD38: ='Compile Data'!F327 -> 50.67308426 | DE38: ='Compile Data'!F328 -> 47.46979904 | DF38: ='Compile Data'!F329 -> 46.03575897 | DG38: ='Compile Data'!F330 -> 47.56489563 | DH38: ='Compile Data'!F331 -> 49.83444977 | DI38: ='Compile Data'!F332 -> 50.12151337 | DJ38: ='Compile Data'!F333 -> 51.80538559 | DK38: ='Compile Data'!F334 -> 51.38660431 | DL38: ='Compile Data'!F335 -> 51.65826416 | DM38: ='Compile Data'!F336 -> 50.38224792 | DO38: 50.25388972 | DP38: 50.39076805 | DQ38: 50.23182774 | DS38: 50.99820328 | DT38: 48.05954742 | DU38: 49.83156109 | DV38: 51.3081255 | DW38: 52.04792531 | DY38: 1948 | DZ38: ='Compile Data'!E325 -> 52.56333542 | EA38: ='Compile Data'!E326 -> 53.28404236 | EB38: ='Compile Data'!E327 -> 50.70837021 | EC38: ='Compile Data'!E328 -> 47.50034714 | ED38: ='Compile Data'!E329 -> 46.04395676 | EE38: ='Compile Data'!E330 -> 47.55849457 | EF38: ='Compile Data'!E331 -> 49.92117691 | EG38: ='Compile Data'!E332 -> 50.13344193 | EH38: ='Compile Data'!E333 -> 51.81111526 | EI38: ='Compile Data'!E334 -> 51.37630844 | EJ38: ='Compile Data'!E335 -> 51.6715889 | EK38: ='Compile Data'!E336 -> 50.39599228 | EM38: 50.26454226 | EN38: 50.38046392 | EO38: 50.24734751 | EQ38: 51.01402378 | ER38: 48.0842247 | ES38: 49.85605717 | ET38: 51.31375122 | EU38: 52.06349182
A39: 1923-12-31 | B39: =IF(INDIRECT(CONCATENATE("'",B$1,"'!",B$4,(YEAR($A39)-1921)*12+MONTH($A39)+3+IF(ISNUMBER(FIND("PRV",B$6)),1,0)))=-901,NA(),INDIRECT(CONCATENATE("'",B$1,"'!",B$4,(YEAR($A39)-1921)*12+MONTH($A39)+3+IF(ISNUMBER(FIND("PRV",B$6)),1,0)))*IF(AND(B$3>0,TRIM(B$9)="CFS"),Conv_Flags!$C39,1)) -> 51.96611786 | C39: =IF(INDIRECT(CONCATENATE("'",C$1,"'!",C$4,(YEAR($A39)-1921)*12+MONTH($A39)+3+IF(ISNUMBER(FIND("PRV",C$6)),1,0)))=-901,NA(),INDIRECT(CONCATENATE("'",C$1,"'!",C$4,(YEAR($A39)-1921)*12+MONTH($A39)+3+IF(ISNUMBER(FIND("PRV",C$6)),1,0)))*IF(AND(C$3>0,TRIM(C$9)="CFS"),Conv_Flags!$C39,1)) -> 51.89398193 | D39: =IF(INDIRECT(CONCATENATE("'",D$1,"'!",D$4,(YEAR($A39)-1921)*12+MONTH($A39)+3+IF(ISNUMBER(FIND("PRV",D$6)),1,0)))=-901,NA(),INDIRECT(CONCATENATE("'",D$1,"'!",D$4,(YEAR($A39)-1921)*12+MONTH($A39)+3+IF(ISNUMBER(FIND("PRV",D$6)),1,0)))*IF(AND(D$3>0,TRIM(D$9)="CFS"),Conv_Flags!$C39,1)) -> 51.84266663 | E39: =IF(INDIRECT(CONCATENATE("'",E$1,"'!",E$4,(YEAR($A39)-1921)*12+MONTH($A39)+3+IF(ISNUMBER(FIND("PRV",E$6)),1,0)))=-901,NA(),INDIRECT(CONCATENATE("'",E$1,"'!",E$4,(YEAR($A39)-1921)*12+MONTH($A39)+3+IF(ISNUMBER(FIND("PRV",E$6)),1,0)))*IF(AND(E$3>0,TRIM(E$9)="CFS"),Conv_Flags!$C39,1)) -> 51.78889847 | F39: =IF(INDIRECT(CONCATENATE("'",F$1,"'!",F$4,(YEAR($A39)-1921)*12+MONTH($A39)+3+IF(ISNUMBER(FIND("PRV",F$6)),1,0)))=-901,NA(),INDIRECT(CONCATENATE("'",F$1,"'!",F$4,(YEAR($A39)-1921)*12+MONTH($A39)+3+IF(ISNUMBER(FIND("PRV",F$6)),1,0)))*IF(AND(F$3>0,TRIM(F$9)="CFS"),Conv_Flags!$C39,1)) -> 51.72113037 | I39: 1949 | J39: =B337 -> 51.9510498 | K39: =B338 -> 53.85671997 | L39: =B339 -> 50.92039108 | M39: =B340 -> 47.74245453 | N39: =B341 -> 47.14235687 | O39: =B342 -> 47.1979866 | P39: =B343 -> 53.30413055 | Q39: =B344 -> 52.4693222 | R39: =B345 -> 51.75101852 | S39: =B346 -> 50.98401642 | T39: =B347 -> 51.76266098 | U39: =B348 -> 51.99155426 | W39: 50.83863544 | X39: 50.71099091 | Y39: 50.92280515 | AA39: 51.11765385 | AB39: 48.60173416 | AC39: 51.18061447 | AD39: 51.62231255 | AE39: 52.41654078 | AG39: 1949 | AH39: ='Compile Data'!C337 -> 52.17192841 | AI39: ='Compile Data'!C338 -> 53.85603333 | AJ39: ='Compile Data'!C339 -> 50.97102356 | AK39: ='Compile Data'!C340 -> 47.77875519 | AL39: ='Compile Data'!C341 -> 47.16630554 | AM39: ='Compile Data'!C342 -> 47.20668411 | AN39: ='Compile Data'!C343 -> 53.31453323 | AO39: ='Compile Data'!C344 -> 52.39721298 | AP39: ='Compile Data'!C345 -> 51.80931854 | AQ39: ='Compile Data'!C346 -> 51.04635239 | AR39: ='Compile Data'!C347 -> 51.81010437 | AS39: ='Compile Data'!C348 -> 52.00407791 | AU39: 50.85734367 | AV39: 50.72287432 | AW39: 50.96102746 | AY39: 51.19443512 | AZ39: 48.63869476 | BA39: 51.18193722 | BB39: 51.6674633 | BC39: 52.4445432 | BE39: 1949 | BF39: ='Compile Data'!D337 -> 51.95446396 | BG39: ='Compile Data'!D338 -> 53.83490372 | BH39: ='Compile Data'!D339 -> 50.97562408 | BI39: ='Compile Data'!D340 -> 47.7823143 | BJ39: ='Compile Data'!D341 -> 47.16892624 | BK39: ='Compile Data'!D342 -> 47.21029282 | BL39: ='Compile Data'!D343 -> 53.30794907 | BM39: ='Compile Data'!D344 -> 52.69114685 | BN39: ='Compile Data'!D345 -> 51.75713348 | BO39: ='Compile Data'!D346 -> 51.0417366 | BP39: ='Compile Data'!D347 -> 51.80393219 | BQ39: ='Compile Data'!D348 -> 52.01309586 | BS39: 50.86785475 | BT39: 50.73654238 | BU39: 50.96179326 | BW39: 51.13682652 | BX39: 48.64228821 | BY39: 51.24163055 | BZ39: 51.65397453 | CA39: 52.41725667 | CC39: 1949 | CD39: ='Compile Data'!E337 -> 51.95248032 | CE39: ='Compile Data'!E338 -> 53.84200287 | CF39: ='Compile Data'!E339 -> 50.96760178 | CG39: ='Compile Data'!E340 -> 47.77257156 | CH39: ='Compile Data'!E341 -> 47.16279221 | CI39: ='Compile Data'!E342 -> 47.20550156 | CJ39: ='Compile Data'!E343 -> 53.32248688 | CK39: ='Compile Data'!E344 -> 52.69348907 | CL39: ='Compile Data'!E345 -> 51.7550354 | CM39: ='Compile Data'!E346 -> 51.04840469 | CN39: ='Compile Data'!E347 -> 51.79486847 | CO39: ='Compile Data'!E348 -> 52.0096283 | CQ39: 50.87153149 | CR39: 50.73845514 | CS39: 50.96057192 | CU39: 51.13366413 | CV39: 48.63432185 | CW39: 51.24412823 | CX39: 51.65198421 | CY39: 52.43730418 | DA39: 1949 | DB39: ='Compile Data'!F337 -> 51.92473984 | DC39: ='Compile Data'!F338 -> 53.83678818 | DD39: ='Compile Data'!F339 -> 51.02622986 | DE39: ='Compile Data'!F340 -> 48.00328064 | DF39: ='Compile Data'!F341 -> 47.14481735 | DG39: ='Compile Data'!F342 -> 47.32713318 | DH39: ='Compile Data'!F343 -> 53.30657196 | DI39: ='Compile Data'!F344 -> 52.64111328 | DJ39: ='Compile Data'!F345 -> 51.78227997 | DK39: ='Compile Data'!F346 -> 51.03327942 | DL39: ='Compile Data'!F347 -> 51.75974655 | DM39: ='Compile Data'!F348 -> 51.99376678 | DO39: 50.88845571 | DP39: 50.73889287 | DQ39: 50.98164558 | DS39: 51.19775963 | DT39: 48.72477595 | DU39: 51.2642746 | DV39: 51.64226818 | DW39: 52.41950734 | DY39: 1949 | DZ39: ='Compile Data'!E337 -> 51.95248032 | EA39: ='Compile Data'!E338 -> 53.84200287 | EB39: ='Compile Data'!E339 -> 50.96760178 | EC39: ='Compile Data'!E340 -> 47.77257156 | ED39: ='Compile Data'!E341 -> 47.16279221 | EE39: ='Compile Data'!E342 -> 47.20550156 | EF39: ='Compile Data'!E343 -> 53.32248688 | EG39: ='Compile Data'!E344 -> 52.69348907 | EH39: ='Compile Data'!E345 -> 51.7550354 | EI39: ='Compile Data'!E346 -> 51.04840469 | EJ39: ='Compile Data'!E347 -> 51.79486847 | EK39: ='Compile Data'!E348 -> 52.0096283 | EM39: 50.87153149 | EN39: 50.73845514 | EO39: 50.96057192 | EQ39: 51.13366413 | ER39: 48.63432185 | ES39: 51.24412823 | ET39: 51.65198421 | EU39: 52.43730418
A40: 1924-01-31 | B40: =IF(INDIRECT(CONCATENATE("'",B$1,"'!",B$4,(YEAR($A40)-1921)*12+MONTH($A40)+3+IF(ISNUMBER(FIND("PRV",B$6)),1,0)))=-901,NA(),INDIRECT(CONCATENATE("'",B$1,"'!",B$4,(YEAR($A40)-1921)*12+MONTH($A40)+3+IF(ISNUMBER(FIND("PRV",B$6)),1,0)))*IF(AND(B$3>0,TRIM(B$9)="CFS"),Conv_Flags!$C40,1)) -> 48.79593658 | C40: =IF(INDIRECT(CONCATENATE("'",C$1,"'!",C$4,(YEAR($A40)-1921)*12+MONTH($A40)+3+IF(ISNUMBER(FIND("PRV",C$6)),1,0)))=-901,NA(),INDIRECT(CONCATENATE("'",C$1,"'!",C$4,(YEAR($A40)-1921)*12+MONTH($A40)+3+IF(ISNUMBER(FIND("PRV",C$6)),1,0)))*IF(AND(C$3>0,TRIM(C$9)="CFS"),Conv_Flags!$C40,1)) -> 48.76411819 | D40: =IF(INDIRECT(CONCATENATE("'",D$1,"'!",D$4,(YEAR($A40)-1921)*12+MONTH($A40)+3+IF(ISNUMBER(FIND("PRV",D$6)),1,0)))=-901,NA(),INDIRECT(CONCATENATE("'",D$1,"'!",D$4,(YEAR($A40)-1921)*12+MONTH($A40)+3+IF(ISNUMBER(FIND("PRV",D$6)),1,0)))*IF(AND(D$3>0,TRIM(D$9)="CFS"),Conv_Flags!$C40,1)) -> 48.74963379 | E40: =IF(INDIRECT(CONCATENATE("'",E$1,"'!",E$4,(YEAR($A40)-1921)*12+MONTH($A40)+3+IF(ISNUMBER(FIND("PRV",E$6)),1,0)))=-901,NA(),INDIRECT(CONCATENATE("'",E$1,"'!",E$4,(YEAR($A40)-1921)*12+MONTH($A40)+3+IF(ISNUMBER(FIND("PRV",E$6)),1,0)))*IF(AND(E$3>0,TRIM(E$9)="CFS"),Conv_Flags!$C40,1)) -> 48.72446442 | F40: =IF(INDIRECT(CONCATENATE("'",F$1,"'!",F$4,(YEAR($A40)-1921)*12+MONTH($A40)+3+IF(ISNUMBER(FIND("PRV",F$6)),1,0)))=-901,NA(),INDIRECT(CONCATENATE("'",F$1,"'!",F$4,(YEAR($A40)-1921)*12+MONTH($A40)+3+IF(ISNUMBER(FIND("PRV",F$6)),1,0)))*IF(AND(F$3>0,TRIM(F$9)="CFS"),Conv_Flags!$C40,1)) -> 48.6615181 | I40: 1950 | J40: =B349 -> 51.81285477 | K40: =B350 -> 53.44521332 | L40: =B351 -> 50.4600563 | M40: =B352 -> 47.02527237 | N40: =B353 -> 46.32780457 | O40: =B354 -> 48.99300766 | P40: =B355 -> 53.43845749 | Q40: =B356 -> 52.54849625 | R40: =B357 -> 52.19537735 | S40: =B358 -> 51.89678192 | T40: =B359 -> 51.98492432 | U40: =B360 -> 52.29706955 | W40: 50.99428368 | X40: 50.79145622 | Y40: 51.03544299 | AA40: 50.68584919 | AB40: 47.93771108 | AC40: 51.79383469 | AD40: 52.09353828 | AE40: 52.65030034 | AG40: 1950 | AH40: ='Compile Data'!C349 -> 51.82705307 | AI40: ='Compile Data'!C350 -> 53.50249863 | AJ40: ='Compile Data'!C351 -> 50.42522812 | AK40: ='Compile Data'!C352 -> 47.00785446 | AL40: ='Compile Data'!C353 -> 46.32357407 | AM40: ='Compile Data'!C354 -> 48.98901367 | AN40: ='Compile Data'!C355 -> 53.41682434 | AO40: ='Compile Data'!C356 -> 52.60458374 | AP40: ='Compile Data'!C357 -> 52.25229263 | AQ40: ='Compile Data'!C358 -> 51.90101242 | AR40: ='Compile Data'!C359 -> 51.97687531 | AS40: ='Compile Data'!C360 -> 52.29218292 | AU40: 50.99689992 | AV40: 50.79500357 | AW40: 51.04324945 | AY40: 50.69065857 | AZ40: 47.91888555 | BA40: 51.8156786 | BB40: 52.10559082 | BC40: 52.64338938 | BE40: 1950 | BF40: ='Compile Data'!D349 -> 51.82878494 | BG40: ='Compile Data'!D350 -> 53.40988922 | BH40: ='Compile Data'!D351 -> 50.39905548 | BI40: ='Compile Data'!D352 -> 47.01853561 | BJ40: ='Compile Data'!D353 -> 46.35695648 | BK40: ='Compile Data'!D354 -> 49.11728287 | BL40: ='Compile Data'!D355 -> 53.35861969 | BM40: ='Compile Data'!D356 -> 52.58644104 | BN40: ='Compile Data'!D357 -> 52.23783493 | BO40: ='Compile Data'!D358 -> 51.84886169 | BP40: ='Compile Data'!D359 -> 51.96450043 | BQ40: ='Compile Data'!D360 -> 52.34736633 | BS40: 50.99674702 | BT40: 50.79134846 | BU40: 51.03951073 | BW40: 50.66406631 | BX40: 47.92484919 | BY40: 51.82504463 | BZ40: 52.09964085 | CA40: 52.63345846 | CC40: 1950 | CD40: ='Compile Data'!E349 -> 51.85379791 | CE40: ='Compile Data'!E350 -> 53.44848633 | CF40: ='Compile Data'!E351 -> 50.39131546 | CG40: ='Compile Data'!E352 -> 47.009655 | CH40: ='Compile Data'!E353 -> 46.32879257 | CI40: ='Compile Data'!E354 -> 49.08176041 | CJ40: ='Compile Data'!E355 -> 53.36205673 | CK40: ='Compile Data'!E356 -> 52.58687973 | CL40: ='Compile Data'!E357 -> 52.24505997 | CM40: ='Compile Data'!E358 -> 51.89449692 | CN40: ='Compile Data'!E359 -> 51.96609879 | CO40: ='Compile Data'!E360 -> 52.35584259 | CQ40: 50.99652863 | CR40: 50.7932539 | CS40: 51.04368687 | CU40: 50.67581367 | CV40: 47.90992101 | CW40: 51.81893921 | CX40: 52.11537457 | CY40: 52.64446767 | DA40: 1950 | DB40: ='Compile Data'!F349 -> 51.81372452 | DC40: ='Compile Data'!F350 -> 53.45103073 | DD40: ='Compile Data'!F351 -> 50.40472412 | DE40: ='Compile Data'!F352 -> 47.01654434 | DF40: ='Compile Data'!F353 -> 46.33679962 | DG40: ='Compile Data'!F354 -> 49.08838272 | DH40: ='Compile Data'!F355 -> 53.37617874 | DI40: ='Compile Data'!F356 -> 52.58956528 | DJ40: ='Compile Data'!F357 -> 52.25144958 | DK40: ='Compile Data'!F358 -> 51.87937927 | DL40: ='Compile Data'!F359 -> 51.966362 | DM40: ='Compile Data'!F360 -> 52.36849213 | DO40: 51.00153923 | DP40: 50.7978096 | DQ40: 51.04521942 | DS40: 50.67150593 | DT40: 47.91935603 | DU40: 51.82639408 | DV40: 52.11642075 | DW40: 52.65230052 | DY40: 1950 | DZ40: ='Compile Data'!E349 -> 51.85379791 | EA40: ='Compile Data'!E350 -> 53.44848633 | EB40: ='Compile Data'!E351 -> 50.39131546 | EC40: ='Compile Data'!E352 -> 47.009655 | ED40: ='Compile Data'!E353 -> 46.32879257 | EE40: ='Compile Data'!E354 -> 49.08176041 | EF40: ='Compile Data'!E355 -> 53.36205673 | EG40: ='Compile Data'!E356 -> 52.58687973 | EH40: ='Compile Data'!E357 -> 52.24505997 | EI40: ='Compile Data'!E358 -> 51.89449692 | EJ40: ='Compile Data'!E359 -> 51.96609879 | EK40: ='Compile Data'!E360 -> 52.35584259 | EM40: 50.99652863 | EN40: 50.7932539 | EO40: 51.04368687 | EQ40: 50.67581367 | ER40: 47.90992101 | ES40: 51.81893921 | ET40: 52.11537457 | EU40: 52.64446767
A41: 1924-02-29 | B41: =IF(INDIRECT(CONCATENATE("'",B$1,"'!",B$4,(YEAR($A41)-1921)*12+MONTH($A41)+3+IF(ISNUMBER(FIND("PRV",B$6)),1,0)))=-901,NA(),INDIRECT(CONCATENATE("'",B$1,"'!",B$4,(YEAR($A41)-1921)*12+MONTH($A41)+3+IF(ISNUMBER(FIND("PRV",B$6)),1,0)))*IF(AND(B$3>0,TRIM(B$9)="CFS"),Conv_Flags!$C41,1)) -> 49.33918381 | C41: =IF(INDIRECT(CONCATENATE("'",C$1,"'!",C$4,(YEAR($A41)-1921)*12+MONTH($A41)+3+IF(ISNUMBER(FIND("PRV",C$6)),1,0)))=-901,NA(),INDIRECT(CONCATENATE("'",C$1,"'!",C$4,(YEAR($A41)-1921)*12+MONTH($A41)+3+IF(ISNUMBER(FIND("PRV",C$6)),1,0)))*IF(AND(C$3>0,TRIM(C$9)="CFS"),Conv_Flags!$C41,1)) -> 49.30727005 | D41: =IF(INDIRECT(CONCATENATE("'",D$1,"'!",D$4,(YEAR($A41)-1921)*12+MONTH($A41)+3+IF(ISNUMBER(FIND("PRV",D$6)),1,0)))=-901,NA(),INDIRECT(CONCATENATE("'",D$1,"'!",D$4,(YEAR($A41)-1921)*12+MONTH($A41)+3+IF(ISNUMBER(FIND("PRV",D$6)),1,0)))*IF(AND(D$3>0,TRIM(D$9)="CFS"),Conv_Flags!$C41,1)) -> 49.27111053 | E41: =IF(INDIRECT(CONCATENATE("'",E$1,"'!",E$4,(YEAR($A41)-1921)*12+MONTH($A41)+3+IF(ISNUMBER(FIND("PRV",E$6)),1,0)))=-901,NA(),INDIRECT(CONCATENATE("'",E$1,"'!",E$4,(YEAR($A41)-1921)*12+MONTH($A41)+3+IF(ISNUMBER(FIND("PRV",E$6)),1,0)))*IF(AND(E$3>0,TRIM(E$9)="CFS"),Conv_Flags!$C41,1)) -> 49.25568008 | F41: =IF(INDIRECT(CONCATENATE("'",F$1,"'!",F$4,(YEAR($A41)-1921)*12+MONTH($A41)+3+IF(ISNUMBER(FIND("PRV",F$6)),1,0)))=-901,NA(),INDIRECT(CONCATENATE("'",F$1,"'!",F$4,(YEAR($A41)-1921)*12+MONTH($A41)+3+IF(ISNUMBER(FIND("PRV",F$6)),1,0)))*IF(AND(F$3>0,TRIM(F$9)="CFS"),Conv_Flags!$C41,1)) -> 49.20727921 | I41: 1951 | J41: =B361 -> 51.90904999 | K41: =B362 -> 53.74478149 | L41: =B363 -> 49.57038116 | M41: =B364 -> 45.8777504 | N41: =B365 -> 45.04139709 | O41: =B366 -> 47.77741623 | P41: =B367 -> 51.74075317 | Q41: =B368 -> 52.15086746 | R41: =B369 -> 51.50754929 | S41: =B370 -> 50.57893753 | T41: =B371 -> 51.13892746 | U41: =B372 -> 50.68167496 | W41: 49.99083742 | X41: 49.91041056 | Y41: 50.14329052 | AA41: 50.27549076 | AB41: 46.82984289 | AC41: 50.79414654 | AD41: 50.97677231 | AE41: 51.71175385 | AG41: 1951 | AH41: ='Compile Data'!C361 -> 51.88091278 | AI41: ='Compile Data'!C362 -> 53.75707245 | AJ41: ='Compile Data'!C363 -> 49.56060028 | AK41: ='Compile Data'!C364 -> 45.87443542 | AL41: ='Compile Data'!C365 -> 45.03423691 | AM41: ='Compile Data'!C366 -> 47.7749939 | AN41: ='Compile Data'!C367 -> 51.73590851 | AO41: ='Compile Data'!C368 -> 52.15739059 | AP41: ='Compile Data'!C369 -> 51.67597961 | AQ41: ='Compile Data'!C370 -> 50.57697296 | AR41: ='Compile Data'!C371 -> 51.13529587 | AS41: ='Compile Data'!C372 -> 50.72542572 | AU41: 50.0000089 | AV41: 49.91874345 | AW41: 50.15743542 | AY41: 50.26825523 | AZ41: 46.82309087 | BA41: 50.83606815 | BB41: 51.02841854 | BC41: 51.71600978 | BE41: 1951 | BF41: ='Compile Data'!D361 -> 51.80496979 | BG41: ='Compile Data'!D362 -> 53.74803925 | BH41: ='Compile Data'!D363 -> 49.57155609 | BI41: ='Compile Data'!D364 -> 45.8796463 | BJ41: ='Compile Data'!D365 -> 45.03106308 | BK41: ='Compile Data'!D366 -> 47.76511765 | BL41: ='Compile Data'!D367 -> 51.73386002 | BM41: ='Compile Data'!D368 -> 52.1537323 | BN41: ='Compile Data'!D369 -> 51.85540009 | BO41: ='Compile Data'!D370 -> 50.56119919 | BP41: ='Compile Data'!D371 -> 51.25871277 | BQ41: ='Compile Data'!D372 -> 50.701828 | BS41: 49.99794928 | BT41: 49.91630459 | BU41: 50.17209371 | BW41: 50.25105286 | BX41: 46.82742182 | BY41: 50.87702751 | BZ41: 51.09428501 | CA41: 51.63731639 | CC41: 1951 | CD41: ='Compile Data'!E361 -> 51.82619476 | CE41: ='Compile Data'!E362 -> 53.75136566 | CF41: ='Compile Data'!E363 -> 49.55014038 | CG41: ='Compile Data'!E364 -> 45.86903381 | CH41: ='Compile Data'!E365 -> 45.03011703 | CI41: ='Compile Data'!E366 -> 47.78782272 | CJ41: ='Compile Data'!E367 -> 51.75265503 | CK41: ='Compile Data'!E368 -> 52.16032028 | CL41: ='Compile Data'!E369 -> 51.8452301 | CM41: ='Compile Data'!E370 -> 50.55249405 | CN41: ='Compile Data'!E371 -> 51.26201248 | CO41: ='Compile Data'!E372 -> 50.69851685 | CQ41: 49.99893824 | CR41: 49.91833655 | CS41: 50.17382526 | CU41: 50.24918365 | CV41: 46.81643041 | CW41: 50.88650703 | CX41: 51.08956337 | CY41: 51.63411585 | DA41: 1951 | DB41: ='Compile Data'!F361 -> 51.83234787 | DC41: ='Compile Data'!F362 -> 53.75606155 | DD41: ='Compile Data'!F363 -> 49.55690765 | DE41: ='Compile Data'!F364 -> 45.87503433 | DF41: ='Compile Data'!F365 -> 45.03355408 | DG41: ='Compile Data'!F366 -> 47.76839447 | DH41: ='Compile Data'!F367 -> 51.73209763 | DI41: ='Compile Data'!F368 -> 52.16114426 | DJ41: ='Compile Data'!F369 -> 51.84495163 | DK41: ='Compile Data'!F370 -> 50.55128479 | DL41: ='Compile Data'!F371 -> 51.25841522 | DM41: ='Compile Data'!F372 -> 50.69298935 | DO41: 49.99551201 | DP41: 49.91424052 | DQ41: 50.1719319 | DS41: 50.25508785 | DT41: 46.82183202 | DU41: 50.876647 | DV41: 51.08691025 | DW41: 51.63218435 | DY41: 1951 | DZ41: ='Compile Data'!E361 -> 51.82619476 | EA41: ='Compile Data'!E362 -> 53.75136566 | EB41: ='Compile Data'!E363 -> 49.55014038 | EC41: ='Compile Data'!E364 -> 45.86903381 | ED41: ='Compile Data'!E365 -> 45.03011703 | EE41: ='Compile Data'!E366 -> 47.78782272 | EF41: ='Compile Data'!E367 -> 51.75265503 | EG41: ='Compile Data'!E368 -> 52.16032028 | EH41: ='Compile Data'!E369 -> 51.8452301 | EI41: ='Compile Data'!E370 -> 50.55249405 | EJ41: ='Compile Data'!E371 -> 51.26201248 | EK41: ='Compile Data'!E372 -> 50.69851685 | EM41: 49.99893824 | EN41: 49.91833655 | EO41: 50.17382526 | EQ41: 50.24918365 | ER41: 46.81643041 | ES41: 50.88650703 | ET41: 51.08956337 | EU41: 51.63411585
A42: 1924-03-31 | B42: =IF(INDIRECT(CONCATENATE("'",B$1,"'!",B$4,(YEAR($A42)-1921)*12+MONTH($A42)+3+IF(ISNUMBER(FIND("PRV",B$6)),1,0)))=-901,NA(),INDIRECT(CONCATENATE("'",B$1,"'!",B$4,(YEAR($A42)-1921)*12+MONTH($A42)+3+IF(ISNUMBER(FIND("PRV",B$6)),1,0)))*IF(AND(B$3>0,TRIM(B$9)="CFS"),Conv_Flags!$C42,1)) -> 49.12997055 | C42: =IF(INDIRECT(CONCATENATE("'",C$1,"'!",C$4,(YEAR($A42)-1921)*12+MONTH($A42)+3+IF(ISNUMBER(FIND("PRV",C$6)),1,0)))=-901,NA(),INDIRECT(CONCATENATE("'",C$1,"'!",C$4,(YEAR($A42)-1921)*12+MONTH($A42)+3+IF(ISNUMBER(FIND("PRV",C$6)),1,0)))*IF(AND(C$3>0,TRIM(C$9)="CFS"),Conv_Flags!$C42,1)) -> 49.08396149 | D42: =IF(INDIRECT(CONCATENATE("'",D$1,"'!",D$4,(YEAR($A42)-1921)*12+MONTH($A42)+3+IF(ISNUMBER(FIND("PRV",D$6)),1,0)))=-901,NA(),INDIRECT(CONCATENATE("'",D$1,"'!",D$4,(YEAR($A42)-1921)*12+MONTH($A42)+3+IF(ISNUMBER(FIND("PRV",D$6)),1,0)))*IF(AND(D$3>0,TRIM(D$9)="CFS"),Conv_Flags!$C42,1)) -> 48.99701309 | E42: =IF(INDIRECT(CONCATENATE("'",E$1,"'!",E$4,(YEAR($A42)-1921)*12+MONTH($A42)+3+IF(ISNUMBER(FIND("PRV",E$6)),1,0)))=-901,NA(),INDIRECT(CONCATENATE("'",E$1,"'!",E$4,(YEAR($A42)-1921)*12+MONTH($A42)+3+IF(ISNUMBER(FIND("PRV",E$6)),1,0)))*IF(AND(E$3>0,TRIM(E$9)="CFS"),Conv_Flags!$C42,1)) -> 48.9393692 | F42: =IF(INDIRECT(CONCATENATE("'",F$1,"'!",F$4,(YEAR($A42)-1921)*12+MONTH($A42)+3+IF(ISNUMBER(FIND("PRV",F$6)),1,0)))=-901,NA(),INDIRECT(CONCATENATE("'",F$1,"'!",F$4,(YEAR($A42)-1921)*12+MONTH($A42)+3+IF(ISNUMBER(FIND("PRV",F$6)),1,0)))*IF(AND(F$3>0,TRIM(F$9)="CFS"),Conv_Flags!$C42,1)) -> 48.96815109 | I42: 1952 | J42: =B373 -> 51.70320892 | K42: =B374 -> 52.75037766 | L42: =B375 -> 48.94118881 | M42: =B376 -> 45.51386642 | N42: =B377 -> 44.44015884 | O42: =B378 -> 46.45432281 | P42: =B379 -> 49.57813644 | Q42: =B380 -> 51.28502274 | R42: =B381 -> 52.32043076 | S42: =B382 -> 51.45443344 | T42: =B383 -> 51.3379097 | U42: =B384 -> 50.35299683 | W42: 49.96414089 | X42: 50.19329484 | Y42: 49.67767111 | AA42: 49.72716045 | AB42: 46.29840469 | AC42: 49.90947819 | AD42: 51.36644268 | AE42: 51.9262619 | AG42: 1952 | AH42: ='Compile Data'!C373 -> 51.6905098 | AI42: ='Compile Data'!C374 -> 52.73209381 | AJ42: ='Compile Data'!C375 -> 48.88686371 | AK42: ='Compile Data'!C376 -> 45.49942017 | AL42: ='Compile Data'!C377 -> 44.43406677 | AM42: ='Compile Data'!C378 -> 46.44355011 | AN42: ='Compile Data'!C379 -> 49.58223724 | AO42: ='Compile Data'!C380 -> 51.28181458 | AP42: ='Compile Data'!C381 -> 52.32531357 | AQ42: ='Compile Data'!C382 -> 51.45526123 | AR42: ='Compile Data'!C383 -> 51.33415222 | AS42: ='Compile Data'!C384 -> 50.25788879 | AU42: 49.94950771 | AV42: 50.18364938 | AW42: 49.66026433 | AY42: 49.70222187 | AZ42: 46.27345022 | BA42: 49.90822887 | BB42: 51.34315395 | BC42: 51.86076228 | BE42: 1952 | BF42: ='Compile Data'!D373 -> 51.74622726 | BG42: ='Compile Data'!D374 -> 52.46389389 | BH42: ='Compile Data'!D375 -> 48.82471085 | BI42: ='Compile Data'!D376 -> 45.48935699 | BJ42: ='Compile Data'!D377 -> 44.44161606 | BK42: ='Compile Data'!D378 -> 46.4449234 | BL42: ='Compile Data'!D379 -> 49.56058884 | BM42: ='Compile Data'!D380 -> 51.27837372 | BN42: ='Compile Data'!D381 -> 52.31772232 | BO42: ='Compile Data'!D382 -> 51.4626236 | BP42: ='Compile Data'!D383 -> 51.33303833 | BQ42: ='Compile Data'!D384 -> 50.3596344 | BS42: 49.95346514 | BT42: 50.18408616 | BU42: 49.64355914 | BW42: 49.63104725 | BX42: 46.25189463 | BY42: 49.90040207 | BZ42: 51.36825466 | CA42: 51.89960353 | CC42: 1952 | CD42: ='Compile Data'!E373 -> 51.74357224 | CE42: ='Compile Data'!E374 -> 52.46025848 | CF42: ='Compile Data'!E375 -> 48.82522583 | CG42: ='Compile Data'!E376 -> 45.49564743 | CH42: ='Compile Data'!E377 -> 44.43628311 | CI42: ='Compile Data'!E378 -> 46.45158768 | CJ42: ='Compile Data'!E379 -> 49.56348038 | CK42: ='Compile Data'!E380 -> 51.27835464 | CL42: ='Compile Data'!E381 -> 52.32220459 | CM42: ='Compile Data'!E382 -> 51.46492767 | CN42: ='Compile Data'!E383 -> 51.33362198 | CO42: ='Compile Data'!E384 -> 50.3644104 | CQ42: 49.95567926 | CR42: 50.18602117 | CS42: 49.64496454 | CU42: 49.63117599 | CV42: 46.25238546 | CW42: 49.90390682 | CX42: 51.37129116 | CY42: 51.90154266 | DA42: 1952 | DB42: ='Compile Data'!F373 -> 51.74390411 | DC42: ='Compile Data'!F374 -> 52.45965958 | DD42: ='Compile Data'!F375 -> 48.82471466 | DE42: ='Compile Data'!F376 -> 45.49610901 | DF42: ='Compile Data'!F377 -> 44.43722153 | DG42: ='Compile Data'!F378 -> 46.45207214 | DH42: ='Compile Data'!F379 -> 49.56392288 | DI42: ='Compile Data'!F380 -> 51.27707291 | DJ42: ='Compile Data'!F381 -> 52.32498169 | DK42: ='Compile Data'!F382 -> 51.4657402 | DL42: ='Compile Data'!F383 -> 51.33443069 | DM42: ='Compile Data'!F384 -> 50.29238129 | DO42: 49.95754719 | DP42: 50.16101774 | DQ42: 49.63935089 | DS42: 49.63109684 | DT42: 46.25268173 | DU42: 49.90451241 | DV42: 51.35438347 | DW42: 51.89972941 | DY42: 1952 | DZ42: ='Compile Data'!E373 -> 51.74357224 | EA42: ='Compile Data'!E374 -> 52.46025848 | EB42: ='Compile Data'!E375 -> 48.82522583 | EC42: ='Compile Data'!E376 -> 45.49564743 | ED42: ='Compile Data'!E377 -> 44.43628311 | EE42: ='Compile Data'!E378 -> 46.45158768 | EF42: ='Compile Data'!E379 -> 49.56348038 | EG42: ='Compile Data'!E380 -> 51.27835464 | EH42: ='Compile Data'!E381 -> 52.32220459 | EI42: ='Compile Data'!E382 -> 51.46492767 | EJ42: ='Compile Data'!E383 -> 51.33362198 | EK42: ='Compile Data'!E384 -> 50.3644104 | EM42: 49.95567926 | EN42: 50.18602117 | EO42: 49.64496454 | EQ42: 49.63117599 | ER42: 46.25238546 | ES42: 49.90390682 | ET42: 51.37129116 | EU42: 51.90154266
A43: 1924-04-30 | B43: =IF(INDIRECT(CONCATENATE("'",B$1,"'!",B$4,(YEAR($A43)-1921)*12+MONTH($A43)+3+IF(ISNUMBER(FIND("PRV",B$6)),1,0)))=-901,NA(),INDIRECT(CONCATENATE("'",B$1,"'!",B$4,(YEAR($A43)-1921)*12+MONTH($A43)+3+IF(ISNUMBER(FIND("PRV",B$6)),1,0)))*IF(AND(B$3>0,TRIM(B$9)="CFS"),Conv_Flags!$C43,1)) -> 51.1334877 | C43: =IF(INDIRECT(CONCATENATE("'",C$1,"'!",C$4,(YEAR($A43)-1921)*12+MONTH($A43)+3+IF(ISNUMBER(FIND("PRV",C$6)),1,0)))=-901,NA(),INDIRECT(CONCATENATE("'",C$1,"'!",C$4,(YEAR($A43)-1921)*12+MONTH($A43)+3+IF(ISNUMBER(FIND("PRV",C$6)),1,0)))*IF(AND(C$3>0,TRIM(C$9)="CFS"),Conv_Flags!$C43,1)) -> 51.10699463 | D43: =IF(INDIRECT(CONCATENATE("'",D$1,"'!",D$4,(YEAR($A43)-1921)*12+MONTH($A43)+3+IF(ISNUMBER(FIND("PRV",D$6)),1,0)))=-901,NA(),INDIRECT(CONCATENATE("'",D$1,"'!",D$4,(YEAR($A43)-1921)*12+MONTH($A43)+3+IF(ISNUMBER(FIND("PRV",D$6)),1,0)))*IF(AND(D$3>0,TRIM(D$9)="CFS"),Conv_Flags!$C43,1)) -> 51.05415726 | E43: =IF(INDIRECT(CONCATENATE("'",E$1,"'!",E$4,(YEAR($A43)-1921)*12+MONTH($A43)+3+IF(ISNUMBER(FIND("PRV",E$6)),1,0)))=-901,NA(),INDIRECT(CONCATENATE("'",E$1,"'!",E$4,(YEAR($A43)-1921)*12+MONTH($A43)+3+IF(ISNUMBER(FIND("PRV",E$6)),1,0)))*IF(AND(E$3>0,TRIM(E$9)="CFS"),Conv_Flags!$C43,1)) -> 51.0267067 | F43: =IF(INDIRECT(CONCATENATE("'",F$1,"'!",F$4,(YEAR($A43)-1921)*12+MONTH($A43)+3+IF(ISNUMBER(FIND("PRV",F$6)),1,0)))=-901,NA(),INDIRECT(CONCATENATE("'",F$1,"'!",F$4,(YEAR($A43)-1921)*12+MONTH($A43)+3+IF(ISNUMBER(FIND("PRV",F$6)),1,0)))*IF(AND(F$3>0,TRIM(F$9)="CFS"),Conv_Flags!$C43,1)) -> 51.48783112 | I43: 1953 | J43: =B385 -> 51.62741089 | K43: =B386 -> 53.79837799 | L43: =B387 -> 51.40662384 | M43: =B388 -> 46.73344803 | N43: =B389 -> 45.97042465 | O43: =B390 -> 48.40409088 | P43: =B391 -> 51.96505737 | Q43: =B392 -> 50.32528687 | R43: =B393 -> 51.43667221 | S43: =B394 -> 51.52616501 | T43: =B395 -> 51.46970367 | U43: =B396 -> 50.2575531 | W43: 50.21658134 | X43: 50.26638285 | Y43: 50.41006788 | AA43: 50.89146519 | AB43: 48.03683217 | AC43: 50.53277683 | AD43: 51.1725235 | AE43: 51.53816096 | AG43: 1953 | AH43: ='Compile Data'!C385 -> 51.60931015 | AI43: ='Compile Data'!C386 -> 53.71508789 | AJ43: ='Compile Data'!C387 -> 51.45598984 | AK43: ='Compile Data'!C388 -> 46.75722504 | AL43: ='Compile Data'!C389 -> 45.98596191 | AM43: ='Compile Data'!C390 -> 48.41525269 | AN43: ='Compile Data'!C391 -> 52.16115189 | AO43: ='Compile Data'!C392 -> 50.23395538 | AP43: ='Compile Data'!C393 -> 51.43783951 | AQ43: ='Compile Data'!C394 -> 51.52393341 | AR43: ='Compile Data'!C395 -> 51.47797394 | AS43: ='Compile Data'!C396 -> 50.26280212 | AU43: 50.2329572 | AV43: 50.28146807 | AW43: 50.41970698 | AY43: 50.88440323 | AZ43: 48.06639226 | BA43: 50.56204987 | BB43: 51.17563725 | BC43: 51.54320908 | BE43: 1953 | BF43: ='Compile Data'!D385 -> 51.62083435 | BG43: ='Compile Data'!D386 -> 53.71834183 | BH43: ='Compile Data'!D387 -> 51.41452789 | BI43: ='Compile Data'!D388 -> 46.73206711 | BJ43: ='Compile Data'!D389 -> 45.96635818 | BK43: ='Compile Data'!D390 -> 48.40006638 | BL43: ='Compile Data'!D391 -> 52.15329361 | BM43: ='Compile Data'!D392 -> 50.22541428 | BN43: ='Compile Data'!D393 -> 51.43624115 | BO43: ='Compile Data'!D394 -> 51.51523972 | BP43: ='Compile Data'!D395 -> 51.48499298 | BQ43: ='Compile Data'!D396 -> 50.2709198 | BS43: 50.22536246 | BT43: 50.27643204 | BU43: 50.41152477 | BW43: 50.87144279 | BX43: 48.03765106 | BY43: 50.55375385 | BZ43: 51.17684841 | CA43: 51.54228338 | CC43: 1953 | CD43: ='Compile Data'!E385 -> 51.62490082 | CE43: ='Compile Data'!E386 -> 53.71531677 | CF43: ='Compile Data'!E387 -> 51.41741562 | CG43: ='Compile Data'!E388 -> 46.73067093 | CH43: ='Compile Data'!E389 -> 45.96536255 | CI43: ='Compile Data'!E390 -> 48.39850998 | CJ43: ='Compile Data'!E391 -> 52.15206909 | CK43: ='Compile Data'!E392 -> 50.22522354 | CL43: ='Compile Data'!E393 -> 51.43195724 | CM43: ='Compile Data'!E394 -> 51.51234055 | CN43: ='Compile Data'!E395 -> 51.47841644 | CO43: ='Compile Data'!E396 -> 50.27375412 | CQ43: 50.2244091 | CR43: 50.27578004 | CS43: 50.4104948 | CU43: 50.87207603 | CV43: 48.03781637 | CW43: 50.55193996 | CX43: 51.17411709 | CY43: 51.54429118 | DA43: 1953 | DB43: ='Compile Data'!F385 -> 51.64229965 | DC43: ='Compile Data'!F386 -> 53.76450729 | DD43: ='Compile Data'!F387 -> 51.43982697 | DE43: ='Compile Data'!F388 -> 46.72878647 | DF43: ='Compile Data'!F389 -> 45.64619064 | DG43: ='Compile Data'!F390 -> 48.41411972 | DH43: ='Compile Data'!F391 -> 52.3125 | DI43: ='Compile Data'!F392 -> 50.74497986 | DJ43: ='Compile Data'!F393 -> 51.43806839 | DK43: ='Compile Data'!F394 -> 51.50991821 | DL43: ='Compile Data'!F395 -> 51.48604965 | DM43: ='Compile Data'!F396 -> 50.2628212 | DO43: 50.25553894 | DP43: 50.3330253 | DQ43: 50.44917234 | DS43: 50.89385509 | DT43: 47.93826803 | DU43: 50.72741699 | DV43: 51.17421436 | DW43: 51.54129537 | DY43: 1953 | DZ43: ='Compile Data'!E385 -> 51.62490082 | EA43: ='Compile Data'!E386 -> 53.71531677 | EB43: ='Compile Data'!E387 -> 51.41741562 | EC43: ='Compile Data'!E388 -> 46.73067093 | ED43: ='Compile Data'!E389 -> 45.96536255 | EE43: ='Compile Data'!E390 -> 48.39850998 | EF43: ='Compile Data'!E391 -> 52.15206909 | EG43: ='Compile Data'!E392 -> 50.22522354 | EH43: ='Compile Data'!E393 -> 51.43195724 | EI43: ='Compile Data'!E394 -> 51.51234055 | EJ43: ='Compile Data'!E395 -> 51.47841644 | EK43: ='Compile Data'!E396 -> 50.27375412 | EM43: 50.2244091 | EN43: 50.27578004 | EO43: 50.4104948 | EQ43: 50.87207603 | ER43: 48.03781637 | ES43: 50.55193996 | ET43: 51.17411709 | EU43: 51.54429118
A44: 1924-05-31 | B44: =IF(INDIRECT(CONCATENATE("'",B$1,"'!",B$4,(YEAR($A44)-1921)*12+MONTH($A44)+3+IF(ISNUMBER(FIND("PRV",B$6)),1,0)))=-901,NA(),INDIRECT(CONCATENATE("'",B$1,"'!",B$4,(YEAR($A44)-1921)*12+MONTH($A44)+3+IF(ISNUMBER(FIND("PRV",B$6)),1,0)))*IF(AND(B$3>0,TRIM(B$9)="CFS"),Conv_Flags!$C44,1)) -> 53.98318863 | C44: =IF(INDIRECT(CONCATENATE("'",C$1,"'!",C$4,(YEAR($A44)-1921)*12+MONTH($A44)+3+IF(ISNUMBER(FIND("PRV",C$6)),1,0)))=-901,NA(),INDIRECT(CONCATENATE("'",C$1,"'!",C$4,(YEAR($A44)-1921)*12+MONTH($A44)+3+IF(ISNUMBER(FIND("PRV",C$6)),1,0)))*IF(AND(C$3>0,TRIM(C$9)="CFS"),Conv_Flags!$C44,1)) -> 53.78449249 | D44: =IF(INDIRECT(CONCATENATE("'",D$1,"'!",D$4,(YEAR($A44)-1921)*12+MONTH($A44)+3+IF(ISNUMBER(FIND("PRV",D$6)),1,0)))=-901,NA(),INDIRECT(CONCATENATE("'",D$1,"'!",D$4,(YEAR($A44)-1921)*12+MONTH($A44)+3+IF(ISNUMBER(FIND("PRV",D$6)),1,0)))*IF(AND(D$3>0,TRIM(D$9)="CFS"),Conv_Flags!$C44,1)) -> 53.13981628 | E44: =IF(INDIRECT(CONCATENATE("'",E$1,"'!",E$4,(YEAR($A44)-1921)*12+MONTH($A44)+3+IF(ISNUMBER(FIND("PRV",E$6)),1,0)))=-901,NA(),INDIRECT(CONCATENATE("'",E$1,"'!",E$4,(YEAR($A44)-1921)*12+MONTH($A44)+3+IF(ISNUMBER(FIND("PRV",E$6)),1,0)))*IF(AND(E$3>0,TRIM(E$9)="CFS"),Conv_Flags!$C44,1)) -> 52.72504807 | F44: =IF(INDIRECT(CONCATENATE("'",F$1,"'!",F$4,(YEAR($A44)-1921)*12+MONTH($A44)+3+IF(ISNUMBER(FIND("PRV",F$6)),1,0)))=-901,NA(),INDIRECT(CONCATENATE("'",F$1,"'!",F$4,(YEAR($A44)-1921)*12+MONTH($A44)+3+IF(ISNUMBER(FIND("PRV",F$6)),1,0)))*IF(AND(F$3>0,TRIM(F$9)="CFS"),Conv_Flags!$C44,1)) -> 52.90245056 | I44: 1954 | J44: =B397 -> 51.31765747 | K44: =B398 -> 53.03927231 | L44: =B399 -> 50.15364456 | M44: =B400 -> 47.57983017 | N44: =B401 -> 45.72166061 | O44: =B402 -> 47.25004578 | P44: =B403 -> 50.03069687 | Q44: =B404 -> 52.24311447 | R44: =B405 -> 51.42726135 | S44: =B406 -> 50.91052628 | T44: =B407 -> 51.43001175 | U44: =B408 -> 50.80907059 | W44: =IF(W$11="AVG",AVERAGE(M44:U44,J45:L45),SUM(M44:U44,J45:L45)) -> 50.25907707 | X44: =IF(X$11="AVG",AVERAGE(O44:U44,J45:N45),SUM(O44:U44,J45:N45)) -> 50.31830724 | Y44: =IF(Y$11="AVG",AVERAGE(J44:U44),SUM(J44:U44)) -> 50.15939935 | AA44: =IF(AA$11="AVG",IF(AA$1="INST-VAL",AVERAGE(U43,J44:L44,J44:M44),AVERAGE(J44:M44)),SUM(J44:M44)) -> 50.52260113 | AB44: =IF(AB$11="AVG",IF(AA$1="INST-VAL",AVERAGE(K44:M44,L44:N44),AVERAGE(L44:N44)),SUM(L44:N44)) -> 47.81837845 | AC44: =IF(AC$11="AVG",IF(AA$1="INST-VAL",AVERAGE(N44:Q44,O44:R44),AVERAGE(O44:R44)),SUM(O44:R44)) -> 50.23777962 | AD44: =IF(AD$11="AVG",IF(AA$1="INST-VAL",AVERAGE(Q44:T44,R44:U44),AVERAGE(R44:U44)),SUM(R44:U44)) -> 51.14421749 | AE44: =IF(AE$11="AVG",IF(AA$1="INST-VAL",AVERAGE(T44:U44,J45,U44,J45:K45),AVERAGE(U44,J45:K45)),SUM(U44,J45:K45)) -> 51.93024953 | AG44: 1954 | AH44: ='Compile Data'!C397 -> 51.31272888 | AI44: ='Compile Data'!C398 -> 53.05409622 | AJ44: ='Compile Data'!C399 -> 50.17256546 | AK44: ='Compile Data'!C400 -> 47.59520721 | AL44: ='Compile Data'!C401 -> 45.73011017 | AM44: ='Compile Data'!C402 -> 47.25553894 | AN44: ='Compile Data'!C403 -> 50.04353333 | AO44: ='Compile Data'!C404 -> 52.29109573 | AP44: ='Compile Data'!C405 -> 51.67089081 | AQ44: ='Compile Data'!C406 -> 50.91252899 | AR44: ='Compile Data'!C407 -> 51.45530701 | AS44: ='Compile Data'!C408 -> 50.77133942 | AU44: =IF(AU$11="AVG",AVERAGE(AK44:AS44,AH45:AJ45),SUM(AK44:AS44,AH45:AJ45)) -> 50.28074932 | AV44: =IF(AV$11="AVG",AVERAGE(AM44:AS44,AH45:AL45),SUM(AM44:AS44,AH45:AL45)) -> 50.33247121 | AW44: =IF(AW$11="AVG",AVERAGE(AH44:AS44),SUM(AH44:AS44)) -> 50.18874518 | AY44: =IF(AY$11="AVG",IF(AY$1="INST-VAL",AVERAGE(AS43,AH44:AJ44,AH44:AK44),AVERAGE(AH44:AK44)),SUM(AH44:AK44)) -> 50.53364944 | AZ44: =IF(AZ$11="AVG",IF(AY$1="INST-VAL",AVERAGE(AI44:AK44,AJ44:AL44),AVERAGE(AJ44:AL44)),SUM(AJ44:AL44)) -> 47.83262761 | BA44: =IF(BA$11="AVG",IF(AY$1="INST-VAL",AVERAGE(AL44:AO44,AM44:AP44),AVERAGE(AM44:AP44)),SUM(AM44:AP44)) -> 50.3152647 | BB44: =IF(BB$11="AVG",IF(AY$1="INST-VAL",AVERAGE(AO44:AR44,AP44:AS44),AVERAGE(AP44:AS44)),SUM(AP44:AS44)) -> 51.20251656 | BC44: =IF(BC$11="AVG",IF(AY$1="INST-VAL",AVERAGE(AR44:AS44,AH45,AS44,AH45:AI45),AVERAGE(AS44,AH45:AI45)),SUM(AS44,AH45:AI45)) -> 51.87150701 | BE44: 1954 | BF44: ='Compile Data'!D397 -> 51.31141663 | BG44: ='Compile Data'!D398 -> 53.0445137 | BH44: ='Compile Data'!D399 -> 50.16382599 | BI44: ='Compile Data'!D400 -> 47.58725739 | BJ44: ='Compile Data'!D401 -> 45.72400284 | BK44: ='Compile Data'!D402 -> 47.25320435 | BL44: ='Compile Data'!D403 -> 50.04169083 | BM44: ='Compile Data'!D404 -> 52.28717422 | BN44: ='Compile Data'!D405 -> 51.74202347 | BO44: ='Compile Data'!D406 -> 50.91797638 | BP44: ='Compile Data'!D407 -> 52.03664017 | BQ44: ='Compile Data'!D408 -> 50.69142151 | BS44: =IF(BS$11="AVG",AVERAGE(BI44:BQ44,BF45:BH45),SUM(BI44:BQ44,BF45:BH45)) -> 50.32058748 | BT44: =IF(BT$11="AVG",AVERAGE(BK44:BQ44,BF45:BJ45),SUM(BK44:BQ44,BF45:BJ45)) -> 50.35796483 | BU44: =IF(BU$11="AVG",AVERAGE(BF44:BQ44),SUM(BF44:BQ44)) -> 50.23342896 | BW44: =IF(BW$11="AVG",IF(BW$1="INST-VAL",AVERAGE(BQ43,BF44:BH44,BF44:BI44),AVERAGE(BF44:BI44)),SUM(BF44:BI44)) -> 50.52675343 | BX44: =IF(BX$11="AVG",IF(BW$1="INST-VAL",AVERAGE(BG44:BI44,BH44:BJ44),AVERAGE(BH44:BJ44)),SUM(BH44:BJ44)) -> 47.82502874 | BY44: =IF(BY$11="AVG",IF(BW$1="INST-VAL",AVERAGE(BJ44:BM44,BK44:BN44),AVERAGE(BK44:BN44)),SUM(BK44:BN44)) -> 50.33102322 | BZ44: =IF(BZ$11="AVG",IF(BW$1="INST-VAL",AVERAGE(BM44:BP44,BN44:BQ44),AVERAGE(BN44:BQ44)),SUM(BN44:BQ44)) -> 51.34701538 | CA44: =IF(CA$11="AVG",IF(BW$1="INST-VAL",AVERAGE(BP44:BQ44,BF45,BQ44,BF45:BG45),AVERAGE(BQ44,BF45:BG45)),SUM(BQ44,BF45:BG45)) -> 51.87041473 | CC44: 1954 | CD44: ='Compile Data'!E397 -> 51.31136703 | CE44: ='Compile Data'!E398 -> 53.04775238 | CF44: ='Compile Data'!E399 -> 50.16548538 | CG44: ='Compile Data'!E400 -> 47.58882141 | CH44: ='Compile Data'!E401 -> 45.72366333 | CI44: ='Compile Data'!E402 -> 47.25265503 | CJ44: ='Compile Data'!E403 -> 50.04270935 | CK44: ='Compile Data'!E404 -> 52.28990936 | CL44: ='Compile Data'!E405 -> 51.74454117 | CM44: ='Compile Data'!E406 -> 51.11065292 | CN44: ='Compile Data'!E407 -> 52.0623703 | CO44: ='Compile Data'!E408 -> 50.54905319 | CQ44: =IF(CQ$11="AVG",AVERAGE(CG44:CO44,CD45:CF45),SUM(CG44:CO44,CD45:CF45)) -> 50.32470449 | CR44: =IF(CR$11="AVG",AVERAGE(CI44:CO44,CD45:CH45),SUM(CI44:CO44,CD45:CH45)) -> 50.35311127 | CS44: =IF(CS$11="AVG",AVERAGE(CD44:CO44),SUM(CD44:CO44)) -> 50.24074841 | CU44: =IF(CU$11="AVG",IF(CU$1="INST-VAL",AVERAGE(CO43,CD44:CF44,CD44:CG44),AVERAGE(CD44:CG44)),SUM(CD44:CG44)) -> 50.52835655 | CV44: =IF(CV$11="AVG",IF(CU$1="INST-VAL",AVERAGE(CE44:CG44,CF44:CH44),AVERAGE(CF44:CH44)),SUM(CF44:CH44)) -> 47.82599004 | CW44: =IF(CW$11="AVG",IF(CU$1="INST-VAL",AVERAGE(CH44:CK44,CI44:CL44),AVERAGE(CI44:CL44)),SUM(CI44:CL44)) -> 50.33245373 | CX44: =IF(CX$11="AVG",IF(CU$1="INST-VAL",AVERAGE(CK44:CN44,CL44:CO44),AVERAGE(CL44:CO44)),SUM(CL44:CO44)) -> 51.3666544 | CY44: =IF(CY$11="AVG",IF(CU$1="INST-VAL",AVERAGE(CN44:CO44,CD45,CO44,CD45:CE45),AVERAGE(CO44,CD45:CE45)),SUM(CO44,CD45:CE45)) -> 51.84259033 | DA44: 1954 | DB44: ='Compile Data'!F397 -> 51.31928253 | DC44: ='Compile Data'!F398 -> 53.04178238 | DD44: ='Compile Data'!F399 -> 50.16196823 | DE44: ='Compile Data'!F400 -> 47.58238983 | DF44: ='Compile Data'!F401 -> 45.72242355 | DG44: ='Compile Data'!F402 -> 47.25147629 | DH44: ='Compile Data'!F403 -> 50.04363632 | DI44: ='Compile Data'!F404 -> 52.28523254 | DJ44: ='Compile Data'!F405 -> 51.71582413 | DK44: ='Compile Data'!F406 -> 51.10902786 | DL44: ='Compile Data'!F407 -> 51.89732361 | DM44: ='Compile Data'!F408 -> 50.7439537 | DO44: 50.31966813 | DP44: 50.33921369 | DQ44: 50.23952675 | DS44: 50.52635574 | DT44: 47.82226054 | DU44: 50.32404232 | DV44: 51.36653233 | DW44: 51.89957809 | DY44: 1954 | DZ44: ='Compile Data'!E397 -> 51.31136703 | EA44: ='Compile Data'!E398 -> 53.04775238 | EB44: ='Compile Data'!E399 -> 50.16548538 | EC44: ='Compile Data'!E400 -> 47.58882141 | ED44: ='Compile Data'!E401 -> 45.72366333 | EE44: ='Compile Data'!E402 -> 47.25265503 | EF44: ='Compile Data'!E403 -> 50.04270935 | EG44: ='Compile Data'!E404 -> 52.28990936 | EH44: ='Compile Data'!E405 -> 51.74454117 | EI44: ='Compile Data'!E406 -> 51.11065292 | EJ44: ='Compile Data'!E407 -> 52.0623703 | EK44: ='Compile Data'!E408 -> 50.54905319 | EM44: 50.32470449 | EN44: 50.35311127 | EO44: 50.24074841 | EQ44: 50.52835655 | ER44: 47.82599004 | ES44: 50.33245373 | ET44: 51.3666544 | EU44: 51.84259033
A45: 1924-06-30 | B45: =IF(INDIRECT(CONCATENATE("'",B$1,"'!",B$4,(YEAR($A45)-1921)*12+MONTH($A45)+3+IF(ISNUMBER(FIND("PRV",B$6)),1,0)))=-901,NA(),INDIRECT(CONCATENATE("'",B$1,"'!",B$4,(YEAR($A45)-1921)*12+MONTH($A45)+3+IF(ISNUMBER(FIND("PRV",B$6)),1,0)))*IF(AND(B$3>0,TRIM(B$9)="CFS"),Conv_Flags!$C45,1)) -> 55.86037827 | C45: =IF(INDIRECT(CONCATENATE("'",C$1,"'!",C$4,(YEAR($A45)-1921)*12+MONTH($A45)+3+IF(ISNUMBER(FIND("PRV",C$6)),1,0)))=-901,NA(),INDIRECT(CONCATENATE("'",C$1,"'!",C$4,(YEAR($A45)-1921)*12+MONTH($A45)+3+IF(ISNUMBER(FIND("PRV",C$6)),1,0)))*IF(AND(C$3>0,TRIM(C$9)="CFS"),Conv_Flags!$C45,1)) -> 55.85063934 | D45: =IF(INDIRECT(CONCATENATE("'",D$1,"'!",D$4,(YEAR($A45)-1921)*12+MONTH($A45)+3+IF(ISNUMBER(FIND("PRV",D$6)),1,0)))=-901,NA(),INDIRECT(CONCATENATE("'",D$1,"'!",D$4,(YEAR($A45)-1921)*12+MONTH($A45)+3+IF(ISNUMBER(FIND("PRV",D$6)),1,0)))*IF(AND(D$3>0,TRIM(D$9)="CFS"),Conv_Flags!$C45,1)) -> 55.50365448 | E45: =IF(INDIRECT(CONCATENATE("'",E$1,"'!",E$4,(YEAR($A45)-1921)*12+MONTH($A45)+3+IF(ISNUMBER(FIND("PRV",E$6)),1,0)))=-901,NA(),INDIRECT(CONCATENATE("'",E$1,"'!",E$4,(YEAR($A45)-1921)*12+MONTH($A45)+3+IF(ISNUMBER(FIND("PRV",E$6)),1,0)))*IF(AND(E$3>0,TRIM(E$9)="CFS"),Conv_Flags!$C45,1)) -> 55.16713333 | F45: =IF(INDIRECT(CONCATENATE("'",F$1,"'!",F$4,(YEAR($A45)-1921)*12+MONTH($A45)+3+IF(ISNUMBER(FIND("PRV",F$6)),1,0)))=-901,NA(),INDIRECT(CONCATENATE("'",F$1,"'!",F$4,(YEAR($A45)-1921)*12+MONTH($A45)+3+IF(ISNUMBER(FIND("PRV",F$6)),1,0)))*IF(AND(F$3>0,TRIM(F$9)="CFS"),Conv_Flags!$C45,1)) -> 55.17714691 | I45: 1955 | J45: =B409 -> 51.80165482 | K45: =B410 -> 53.18002319 | L45: =B411 -> 50.72502899 | M45: =B412 -> 47.06308365 | N45: =B413 -> 46.94916916 | O45: =B414 -> 49.73684692 | P45: =B415 -> 52.77351761 | Q45: =B416 -> 52.92913437 | R45: =B417 -> 51.07455063 | S45: =B418 -> 51.25269699 | T45: =B419 -> 51.94898605 | U45: =B420 -> 53.03466415 | W45: 51.00402578 | X45: 50.53543504 | Y45: 51.03911304 | AA45: 50.69244766 | AB45: 48.2457606 | AC45: 51.62851238 | AD45: 51.82772446 | AE45: 52.82274246 | AG45: 1955 | AH45: ='Compile Data'!C409 -> 51.80992889 | AI45: ='Compile Data'!C410 -> 53.03325272 | AJ45: ='Compile Data'!C411 -> 50.80025864 | AK45: ='Compile Data'!C412 -> 47.02319336 | AL45: ='Compile Data'!C413 -> 46.92278671 | AM45: ='Compile Data'!C414 -> 49.69593811 | AN45: ='Compile Data'!C415 -> 52.87311935 | AO45: ='Compile Data'!C416 -> 52.89472198 | AP45: ='Compile Data'!C417 -> 51.1014595 | AQ45: ='Compile Data'!C418 -> 51.25998306 | AR45: ='Compile Data'!C419 -> 51.96721268 | AS45: ='Compile Data'!C420 -> 52.63885117 | AU45: 50.99923547 | AV45: 50.52981949 | AW45: 51.00172551 | AY45: 50.6666584 | AZ45: 48.24874624 | BA45: 51.64130974 | BB45: 51.7418766 | BC45: 52.82011922 | BE45: 1955 | BF45: ='Compile Data'!D409 -> 51.78502274 | BG45: ='Compile Data'!D410 -> 53.13479996 | BH45: ='Compile Data'!D411 -> 50.64583588 | BI45: ='Compile Data'!D412 -> 46.89701462 | BJ45: ='Compile Data'!D413 -> 46.8627739 | BK45: ='Compile Data'!D414 -> 49.6293869 | BL45: ='Compile Data'!D415 -> 52.83542633 | BM45: ='Compile Data'!D416 -> 53.01065445 | BN45: ='Compile Data'!D417 -> 51.1975441 | BO45: ='Compile Data'!D418 -> 51.24073029 | BP45: ='Compile Data'!D419 -> 52.04764938 | BQ45: ='Compile Data'!D420 -> 52.66753387 | BS45: 50.95824591 | BT45: 50.50265821 | BU45: 50.9961977 | BW45: 50.6156683 | BX45: 48.13520813 | BY45: 51.66825294 | BZ45: 51.78836441 | CA45: 52.68747838 | CC45: 1955 | CD45: ='Compile Data'!E409 -> 51.74903107 | CE45: ='Compile Data'!E410 -> 53.22968674 | CF45: ='Compile Data'!E411 -> 50.55335999 | CG45: ='Compile Data'!E412 -> 46.85636139 | CH45: ='Compile Data'!E413 -> 46.7970047 | CI45: ='Compile Data'!E414 -> 49.61330032 | CJ45: ='Compile Data'!E415 -> 52.84173203 | CK45: ='Compile Data'!E416 -> 53.01014709 | CL45: ='Compile Data'!E417 -> 51.16670227 | CM45: ='Compile Data'!E418 -> 51.26449966 | CN45: ='Compile Data'!E419 -> 52.0730896 | CO45: ='Compile Data'!E420 -> 52.66504669 | CQ45: 50.9492712 | CR45: 50.50132847 | CS45: 50.9849968 | CU45: 50.59710979 | CV45: 48.06890869 | CW45: 51.65797043 | CX45: 51.79233456 | CY45: 52.69173559 | DA45: 1955 | DB45: ='Compile Data'!F409 -> 51.76235199 | DC45: ='Compile Data'!F410 -> 53.19242859 | DD45: ='Compile Data'!F411 -> 50.52994919 | DE45: ='Compile Data'!F412 -> 47.06568527 | DF45: ='Compile Data'!F413 -> 46.47367477 | DG45: ='Compile Data'!F414 -> 48.98511505 | DH45: ='Compile Data'!F415 -> 53.09740448 | DI45: ='Compile Data'!F416 -> 53.90610504 | DJ45: ='Compile Data'!F417 -> 51.76096725 | DK45: ='Compile Data'!F418 -> 51.27503204 | DL45: ='Compile Data'!F419 -> 52.04516602 | DM45: ='Compile Data'!F420 -> 52.67251587 | DO45: 51.05646038 | DP45: 50.61545722 | DQ45: 51.0638663 | DS45: 50.63760376 | DT45: 48.02310308 | DU45: 51.93739796 | DV45: 51.9384203 | DW45: 52.80064392 | DY45: 1955 | DZ45: ='Compile Data'!E409 -> 51.74903107 | EA45: ='Compile Data'!E410 -> 53.22968674 | EB45: ='Compile Data'!E411 -> 50.55335999 | EC45: ='Compile Data'!E412 -> 46.85636139 | ED45: ='Compile Data'!E413 -> 46.7970047 | EE45: ='Compile Data'!E414 -> 49.61330032 | EF45: ='Compile Data'!E415 -> 52.84173203 | EG45: ='Compile Data'!E416 -> 53.01014709 | EH45: ='Compile Data'!E417 -> 51.16670227 | EI45: ='Compile Data'!E418 -> 51.26449966 | EJ45: ='Compile Data'!E419 -> 52.0730896 | EK45: ='Compile Data'!E420 -> 52.66504669 | EM45: 50.9492712 | EN45: 50.50132847 | EO45: 50.9849968 | EQ45: 50.59710979 | ER45: 48.06890869 | ES45: 51.65797043 | ET45: 51.79233456 | EU45: 52.69173559
